Workbook

Sheet Tabelle5 (2) (hidden)
A1: ID | B1: Kontinent | C1: Land | D1: Bundesland | E1: Stadt | F1: Hauptstadt
A2: Europa | B2: Belgien | C2: Brüssel
A3: Europa | B3: Bulgarien | C3: Sofia
A4: Europa | B4: Dänemark | C4: Kopenhagen
A5: Europa | B5: Deutschland | C5: Berlin
A6: Europa | B6: Deutschland | C6: Stuttgart
A7: Europa | B7: Deutschland | C7: München | D7: Bayern
A8: Europa | B8: Deutschland | C8: Potsdam | D8: Brandenburg
A9: Europa | B9: Deutschland | C9: Bremen | D9: Bremen
A10: Europa | B10: Deutschland | C10: Hamburg | D10: Hamburg
A11: Europa | B11: Deutschland | C11: Wiesbaden | D11: Hessen
A12: Europa | B12: Deutschland | C12: Schwerin | D12: Mecklenburg-Vorpommern
A13: Europa | B13: Deutschland | C13: Hannover | D13: Niedersachsen | I13: Berechnungen
A14: Europa | B14: Deutschland | C14: Düsseldorf | D14: Nordrhein-Westfalen | I14: Cash kaufen
A15: Europa | B15: Deutschland | C15: Mainz | D15: Rheinland-Pfalz | H15: Messages | I15: Preise und Kontigente
A16: Europa | B16: Deutschland | C16: Saarbrücken | D16: Saarland | H16: Send
A17: Europa | B17: Deutschland | C17: Dresden | D17: Sachsen | H17: log adresses
A18: Europa | B18: Deutschland | C18: Magdeburg | D18: Sachsen-Anhalt | H18: kürze die offline erneuere die online
A19: Europa | B19: Deutschland | C19: Kiel | D19: Schleswig-Holstein
A20: Europa | B20: Deutschland | C20: Köln | H20: Betriebsmodus 1-3 check
A21: Europa | B21: Deutschland | C21: Frankfurt am Main
A22: Europa | B22: Deutschland | C22: Dortmund | H22: transfer lists
A23: Europa | B23: Deutschland | C23: Essen | H23: transfer suchparameter
A24: Europa | B24: Deutschland | C24: Leipzig
A25: Europa | B25: Deutschland | C25: Nürnberg | H25: non outlook service
A26: Europa | B26: Deutschland | C26: Duisburg
A27: Europa | B27: Deutschland | C27: Bochum
A28: Europa | B28: Deutschland | C28: Wuppertal
A29: Europa | B29: Deutschland | C29: Bielefeld
A30: Europa | B30: Deutschland | C30: Bonn
A31: Europa | B31: Deutschland | C31: Münster
A32: Europa | B32: Deutschland | C32: Karlsruhe
A33: Europa | B33: Deutschland | C33: Mannheim
A34: Europa | B34: Deutschland | C34: Augsburg
A35: Europa | B35: Deutschland | C35: Gelsenkirchen
A36: Europa | B36: Deutschland | C36: Mönchengladbach
A37: Europa | B37: Deutschland | C37: Braunschweig
A38: Europa | B38: Deutschland | C38: Chemnitz
A39: Europa | B39: Deutschland | C39: Aachen
A40: Europa | B40: Deutschland | C40: Halle
A41: Europa | B41: Deutschland | C41: Freiburg im Breisgau
A42: Europa | B42: Deutschland | C42: Krefeld
A43: Europa | B43: Deutschland | C43: Lübeck
A44: Europa | B44: Deutschland | C44: Oberhausen
A45: Europa | B45: Deutschland | C45: Erfurt
A46: Europa | B46: Deutschland | C46: Rostock
A47: Europa | B47: Deutschland | C47: Kassel
A48: Europa | B48: Deutschland | C48: Hagen
A49: Europa | B49: Deutschland | C49: Hamm
A50: Europa | B50: Deutschland | C50: Mülheim an der Ruhr
A51: Europa | B51: Deutschland | C51: Ludwigshafen am Rhein
A52: Europa | B52: Deutschland | C52: Oldenburg
A53: Europa | B53: Deutschland | C53: Osnabrück
A54: Europa | B54: Deutschland | C54: Leverkusen
A55: Europa | B55: Deutschland | C55: Heidelberg
A56: Europa | B56: Deutschland | C56: Solingen
A57: Europa | B57: Deutschland | C57: Darmstadt
A58: Europa | B58: Deutschland | C58: Herne
A59: Europa | B59: Deutschland | C59: Neuss
A60: Europa | B60: Deutschland | C60: Paderborn
A61: Europa | B61: Deutschland | C61: Regensburg
A62: Europa | B62: Deutschland | C62: Ingolstadt
A63: Europa | B63: Deutschland | C63: Würzburg
A64: Europa | B64: Deutschland | C64: Fürth
A65: Europa | B65: Deutschland | C65: Offenbach am Main
A66: Europa | B66: Deutschland | C66: Ulm
A67: Europa | B67: Deutschland | C67: Wolfsburg
A68: Europa | B68: Deutschland | C68: Heilbronn
A69: Europa | B69: Deutschland | C69: Pforzheim
A70: Europa | B70: Deutschland | C70: Göttingen
A71: Europa | B71: Deutschland | C71: Bottrop
A72: Europa | B72: Deutschland | C72: Reutlingen
A73: Europa | B73: Deutschland | C73: Recklinghausen
A74: Europa | B74: Deutschland | C74: Koblenz
A75: Europa | B75: Deutschland | C75: Bremerhaven
A76: Europa | B76: Deutschland | C76: Bergisch Gladbach
A77: Europa | B77: Deutschland | C77: Remscheid
A78: Europa | B78: Deutschland | C78: Jena
A79: Europa | B79: Deutschland | C79: Erlangen
A80: Europa | B80: Deutschland | C80: Trier
A81: Europa | B81: Deutschland | C81: Moers
A82: Europa | B82: Deutschland | C82: Salzgitter
A83: Europa | B83: Deutschland | C83: Siegen
A84: Europa | B84: Deutschland | C84: Hildesheim
A85: Europa | B85: Deutschland | C85: Cottbus
A86: Europa | B86: Deutschland | C86: Kaiserslautern
A87: Europa | B87: Deutschland | C87: Gütersloh
A88: Europa | B88: Deutschland | C88: Witten
A89: Europa | B89: Deutschland | C89: Hanau
A90: Europa | B90: Deutschland | C90: Gera
A91: Europa | B91: Deutschland | C91: Iserlohn
A92: Europa | B92: Deutschland | C92: Ludwigsburg
A93: Europa | B93: Deutschland | C93: Esslingen am Neckar
A94: Europa | B94: Deutschland | C94: Zwickau
A95: Europa | B95: Deutschland | C95: Düren
A96: Europa | B96: Deutschland | C96: Tübingen
A97: Europa | B97: Deutschland | C97: Flensburg
A98: Europa | B98: Deutschland | C98: Ratingen
A99: Europa | B99: Deutschland | C99: Gießen
A100: Europa | B100: Deutschland | C100: Lünen
A101: Europa | B101: Deutschland | C101: Villingen-Schwenningen
A102: Europa | B102: Deutschland | C102: Konstanz
A103: Europa | B103: Deutschland | C103: Marl
A104: Europa | B104: Deutschland | C104: Worms
A105: Europa | B105: Deutschland | C105: Dessau-Roßlau
A106: Europa | B106: Deutschland | C106: Velbert
A107: Europa | B107: Deutschland | C107: Minden
A108: Europa | B108: Deutschland | C108: Neumünster
A109: Europa | B109: Deutschland | C109: Norderstedt
A110: Europa | B110: Deutschland | C110: Delmenhorst
A111: Europa | B111: Deutschland | C111: Viersen
A112: Europa | B112: Deutschland | C112: Wilhelmshaven
A113: Europa | B113: Deutschland | C113: Bamberg
A114: Europa | B114: Deutschland | C114: Gladbeck
A115: Europa | B115: Deutschland | C115: Rheine
A116: Europa | B116: Deutschland | C116: Dorsten
A117: Europa | B117: Deutschland | C117: Marburg
A118: Europa | B118: Deutschland | C118: Troisdorf
A119: Europa | B119: Deutschland | C119: Lüneburg
A120: Europa | B120: Deutschland | C120: Castrop-Rauxel
A121: Europa | B121: Deutschland | C121: Arnsberg
A122: Europa | B122: Deutschland | C122: Detmold
A123: Europa | B123: Deutschland | C123: Lüdenscheid
A124: Europa | B124: Deutschland | C124: Bayreuth
A125: Europa | B125: Deutschland | C125: Brandenburg an der Havel
A126: Europa | B126: Deutschland | C126: Bocholt
A127: Europa | B127: Deutschland | C127: Landshut
A128: Europa | B128: Deutschland | C128: Celle
A129: Europa | B129: Deutschland | C129: Aschaffenburg
A130: Europa | B130: Deutschland | C130: Lippstadt
A131: Europa | B131: Deutschland | C131: Dinslaken
A132: Europa | B132: Deutschland | C132: Aalen
A133: Europa | B133: Deutschland | C133: Kempten
A134: Europa | B134: Deutschland | C134: Fulda
A135: Europa | B135: Deutschland | C135: Herford
A136: Europa | B136: Deutschland | C136: Kerpen
A137: Europa | B137: Deutschland | C137: Plauen
A138: Europa | B138: Deutschland | C138: Neuwied
A139: Europa | B139: Deutschland | C139: Weimar
A140: Europa | B140: Deutschland | C140: Sindelfingen
A141: Europa | B141: Deutschland | C141: Rüsselsheim am Main
A142: Europa | B142: Deutschland | C142: Dormagen
A143: Europa | B143: Deutschland | C143: Neubrandenburg
A144: Europa | B144: Deutschland | C144: Grevenbroich
A145: Europa | B145: Deutschland | C145: Rosenheim
A146: Europa | B146: Deutschland | C146: Herten
A147: Europa | B147: Deutschland | C147: Garbsen
A148: Europa | B148: Deutschland | C148: Wesel
A149: Europa | B149: Deutschland | C149: Schwäbisch Gmünd
A150: Europa | B150: Deutschland | C150: Bergheim
A151: Europa | B151: Deutschland | C151: Friedrichshafen
A152: Europa | B152: Deutschland | C152: Hürth
A153: Europa | B153: Deutschland | C153: Stralsund
A154: Europa | B154: Deutschland | C154: Offenburg
A155: Europa | B155: Deutschland | C155: Langenfeld
A156: Europa | B156: Deutschland | C156: Frankfurt
A157: Europa | B157: Deutschland | C157: Greifswald
A158: Europa | B158: Deutschland | C158: Unna
A159: Europa | B159: Deutschland | C159: Euskirchen
A160: Europa | B160: Deutschland | C160: Neu-Ulm
A161: Europa | B161: Deutschland | C161: Göppingen
A162: Europa | B162: Deutschland | C162: Hameln
A163: Europa | B163: Deutschland | C163: Stolberg
A164: Europa | B164: Deutschland | C164: Sankt Augustin
A165: Europa | B165: Deutschland | C165: Eschweiler
A166: Europa | B166: Deutschland | C166: Görlitz
A167: Europa | B167: Deutschland | C167: Hilden
A168: Europa | B168: Deutschland | C168: Meerbusch
A169: Europa | B169: Deutschland | C169: Waiblingen
A170: Europa | B170: Deutschland | C170: Hattingen
A171: Europa | B171: Deutschland | C171: Baden-Baden
A172: Europa | B172: Deutschland | C172: Lingen
A173: Europa | B173: Deutschland | C173: Pulheim
A174: Europa | B174: Deutschland | C174: Bad Salzuflen
A175: Europa | B175: Deutschland | C175: Bad Homburg vor der Höhe
A176: Europa | B176: Deutschland | C176: Langenhagen
A177: Europa | B177: Deutschland | C177: Menden
A178: Europa | B178: Deutschland | C178: Nordhorn
A179: Europa | B179: Deutschland | C179: Neustadt an der Weinstraße
A180: Europa | B180: Deutschland | C180: Ahlen
A181: Europa | B181: Deutschland | C181: Schweinfurt
A182: Europa | B182: Deutschland | C182: Wolfenbüttel
A183: Europa | B183: Deutschland | C183: Wetzlar
A184: Europa | B184: Deutschland | C184: Frechen
A185: Europa | B185: Deutschland | C185: Goslar
A186: Europa | B186: Deutschland | C186: Ibbenbüren
A187: Europa | B187: Deutschland | C187: Passau
A188: Europa | B188: Deutschland | C188: Kleve
A189: Europa | B189: Deutschland | C189: Willich
A190: Europa | B190: Deutschland | C190: Speyer
A191: Europa | B191: Deutschland | C191: Emden
A192: Europa | B192: Deutschland | C192: Gummersbach
A193: Europa | B193: Deutschland | C193: Ravensburg
A194: Europa | B194: Deutschland | C194: Bad Kreuznach
A195: Europa | B195: Deutschland | C195: Peine
A196: Europa | B196: Deutschland | C196: Böblingen
A197: Europa | B197: Deutschland | C197: Erftstadt
A198: Europa | B198: Deutschland | C198: Elmshorn
A199: Europa | B199: Deutschland | C199: Lörrach
A200: Europa | B200: Deutschland | C200: Bad Oeynhausen
... 553 more rows

Sheet s2 (hidden)
A1: id | B1: Aktivierung | C1: G1 | D1: Wert | E1: Delta | F1: G2 | G1: Wert | H1: Delta | I1: G3 | J1: Wert | K1: Delta | L1: G4 | M1: Wert | N1: Delta | O1: G5 | P1: Wert | Q1: Delta | R1: G6 | S1: Wert | T1: Delta | U1: G7 | V1: Wert | W1: Delta | X1: G7 | Y1: Wert | Z1: Delta
A2: 1 | B2: 1 | C2: Online/OFFline | D2: 1 | E2: 0 | F2: Counter | G2: 0 | I2: Off5Datum | J2: 2021-10-22 | K2: 1 | L2: Datum_Atomic | M2: 10.01.2022 | O2: Uhrzeit_Atomic | P2: 21:40:59 | R2: Datum jetzt | S2: 2022-01-10 | U2: Uhrzeit jetzt | V2: 21:41:01
A3: 2 | B3: 1 | D3: 1 | E3: 1/10/2022 9:41:02 PM | F3: DatumVergleich | G3: 0 | I3: UhrzeitVergleich | J3: 0.00 | K3: 1 | L3: Counter | R3: TimestampD_OK | S3: 2022-01-10 | U3: TimestampU_OK | V3: 21:41:02
A4: 3 | B4: 1 | C4: TimeOut | F4: TimeShort | I4: Datum | L4: Uhrzeit | O4: TimeLong | R4: Datum | U4: Uhrzeit
A5: 4 | B5: 1 | C5: TradeBaseInstalled | D5: 1 | F5: Licensed | I5: LoginLicensed | L5: Resttime2Download | O5: Datum jetzt | R5: Uhrzeit jetzt
A6: 5 | B6: 1 | C6: LoginSperre | F6: Datum | I6: Uhrzeit | L6: Sperre | O6: Restzeit | R6: Differenz

Sheet Balance (hidden)
C1: PBC-Shop | D1: Kontingent | E1: Treasure | F1: Events | G1: Vip Area | H1: EAMS | I1: Cash Trade | O1: ID | P1: Akey | Q1: Code | R1: Used
C3: PBC-Codes (Promotion & Affiliation) | J3: Balance
B5: ID | C5: Code | D5: Benefit | E5: Wert/Value | F5: Genutzt/Used | G5: Gültig bis/ Expiration | J5: Gesamt/Total: | K5: €10.00
B6: 1 | C6: 943893479 | D6: Rabatt/Discount | E6: 5.00 € | G6: Ende Oktober 2020
J7: VIP-Points: | K7: 0
J9: PBC Gold-Cash: | K9: 0
J10: PBC Coin-Cash: | K10: 0
J12: PBC Air-Cash: | K12: 0
J13: PBC Fire-Cash: | K13: 0
J14: PBC Earth-Cash: | K14: 0
J15: PBC Water-Cash: | K15: 0

Sheet Welcome
E1: 1 | Q1: 1
A3: 3 | M3: 1
M4: C:\Users\Marku\Desktop\01_PBC\E-PBC Trade Base\0_0_0_E-PBC Trade Base.xlsm
Z25170: 0

Sheet EAMSaccess (hidden)
A2: 1 | B2: Activation-Produkte | C2: 0
A3: 2 | B3: EMS-Activation-all | C3: 0
A4: 3 | B4: EMS-Activation-1 | C4: 0
A5: 4 | B5: EMS-Activation-2 | C5: 0
A6: 5 | B6: EMS-Activation-3 | C6: 0

Sheet Server (hidden)

Sheet Main (hidden)
G1: 1 | AN1: 1. | AO1: Welcome | AP1: $N$3
F2: Registration Userform | L2: Account & Study | O2: Einstellungen | AN2: 1.1. | AO2: Registration Userform | AP2: $Q$2
C3: Welcome | I3: Main | AN3: 1.2. | AO3: LoginUserform | AP3: $Q$5
AN4: 2. | AO4: Main | AP4: $T$3
A5: 1 | F5: LoginUserform | O5: Account | AN5: 2.1. | AO5: Account & Study | AP5: $W$2
AN6: 2.1.1. | AO6: Einstellungen | AP6: $Z$2
A7: Account & Study | AN7: 2.1.2. | AO7: Account | AP7: $Z$5
O8: Passwort ändern/ reset | AN8: 2.1.3. | AO8: Passwort ändern/ reset | AP8: $Z$8
A9: Support | AN9: 2.1.4. | AO9: Persönliche Zahlungsmethode | AP9: $Z$11
AN10: 2.1.5. | AO10: Freischalten (E-Mail Service) | AP10: $Z$14
A11: Data Generator | O11: Persönliche Zahlungsmethode | AN11: 2.1.6. | AO11: Lizenzaktivierung (E-Mail Service) | AP11: $Z$17
AN12: 2.1.7. | AO12: Logged in | AP12: $Z$20
A13: Cybertechnics | AN13: 2.1.8. | AO13: Logout | AP13: $Z$23
O14: Freischalten (E-Mail Service) | AN14: 2.1.9. | AO14: Refresh | AP14: $Z$26
A15: EAMS | AN15: 2.1.10. | AO15: Clear | AP15: $Z$29
AN16: 2.1.11. | AO16: Activation Area | AP16: $Z$32
A17: All Products & Businesses | O17: Lizenzaktivierung (E-Mail Service) | AN17: 2.1.11.1. | AO17: Activation.show | AP17: $AC$32
AN18: 2.1.12. | AO18: Vip Area | AP18: $Z$35
A19: Logout | AN19: 2.1.12.1. | AO19: Balance | AP19: $AC$35
O20: Logged in | AN20: 2.1.13. | AO20: Balance | AP20: $Z$38
AN21: 2.1.13.1. | AO21: Balance | AP21: $AC$38
AN22: 2.1.14. | AO22: Discount Area | AP22: $Z$41
O23: Logout | AN23: 2.1.14.1. | AO23: Balance | AP23: $AC$41
AN24: 2.1.15. | AO24: Affiliation | AP24: $Z$44
AN25: 2.1.15.1. | AO25: Affiliationrequest | AP25: $AC$44
O26: Refresh | AN26: 2.1.16. | AO26: CBMB | AP26: $Z$47
AN27: 2.1.16.1. | AO27: CBMB | AP27: $AC$47
AN28: 2.1.17. | AO28: EAMS | AP28: $Z$50
O29: Clear | AN29: 2.1.17.1. | AO29: EAMS | AP29: $AC$50
AN30: 2.1.18. | AO30: Businesses | AP30: $Z$53
AN31: 2.1.18.1. | AO31: 01_BAS_Produkte_und_Businesses.xlsm | AP31: $AC$53
O32: Activation Area | R32: Activation.show | AN32: 2.1.19. | AO32: This Business | AP32: $Z$56
AN33: 2.1.19.1. | AO33: InfoBusiness.show | AP33: $AC$56
AN34: 2.1.20. | AO34: Studiums Konfigurator | AP34: $Z$59
O35: Vip Area | R35: Balance | AN35: 2.1.20.1. | AO35: Konfigurator.Show | AP35: $AC$59
AN36: 2.1.21. | AO36: Lern- & Abfrage Center | AP36: $Z$62
AN37: 2.1.21.1. | AO37: Learnbase | AP37: $AC$62
O38: Balance | R38: Balance | AN38: 2.1.22. | AO38: Für Studium bewerben | AP38: $Z$65
AN39: 2.1.22.1. | AO39: Konfigurator.Show | AP39: $AC$65
AN40: 2.2. | AO40: Support | AP40: $W$68
O41: Discount Area | R41: Balance | AN41: 2.3. | AO41: EAMS | AP41: $W$71
AN42: 2.3.1. | AO42: Balance | AP42: $Z$71
AN43: 2.3.1.1. | AO43: Balance | AP43: $AC$71
O44: Affiliation | R44: Affiliationrequest | AN44: 2.3.10. | AO44: Adressbuch | AP44: $Z$98
AN45: 2.3.10.1. | AO45: Adressbuch.show | AP45: $AC$98
AN46: 2.3.11. | AO46: Preise & Kontingente | AP46: $Z$101
O47: CBMB | R47: CBMB | AN47: 2.3.11.1. | AO47: APBCKontingent.show | AP47: $AC$101
AN48: 2.3.12. | AO48: Autosending | AP48: $Z$104
AN49: 2.3.12.1. | AO49: EMSConfigurator.Show | AP49: $AC$104
O50: EAMS | R50: EAMS | AN50: 2.3.13. | AO50: Generator | AP50: $Z$107
AN51: 2.3.13.1. | AO51: EMSGenerator.Show | AP51: $AC$107
AN52: 2.3.2. | AO52: Auswahl löschen | AP52: $Z$74
O53: Businesses | R53: 01_BAS_Produkte_und_Businesses.xlsm | AN53: 2.3.3. | AO53: Buy | AP53: $Z$77
AN54: 2.3.4. | AO54: Sale | AP54: $Z$80
AN55: 2.3.5. | AO55: Adresslists refreshen | AP55: $Z$83
O56: This Business | R56: InfoBusiness.show | AN56: 2.3.6. | AO56: Cash abholen | AP56: $Z$86
AN57: 2.3.7. | AO57: PBC-Shop | AP57: $Z$89
AN58: 2.3.8. | AO58: Manuell | AP58: $Z$92
O59: Studiums Konfigurator | R59: Konfigurator.Show | AN59: 2.3.9. | AO59: Manuelle Liste refreshen | AP59: $Z$95
AN60: 2.4. | AO60: Cybernetics | AP60: $W$110
AN61: 2.4.1. | AO61: Refresh Cybernetics | AP61: $Z$110
O62: Lern- & Abfrage Center | R62: Learnbase | AN62: 2.4.2. | AO62: Warenkorb | AP62: $Z$113
B63: 1 Angebote | AN63: 2.4.2.1. | AO63: Order | AP63: $AC$113
AN64: 2.5. | AO64: Öffnungszeiten | AP64: $W$116
O65: Für Studium bewerben | R65: Konfigurator.Show | AN65: 2.6. | AO65: All Products & Businesses | AP65: $W$119
AN66: 2.6.1. | AO66: 01_BAS_Produkte_und_Businesses.xlsm | AP66: $Z$119
AN67: 2.7. | AO67: ISE-Login | AP67: $W$122
L68: Support | AN68: 2.7.1. | AO68: Account.xlsm | AP68: $Z$122
AN69: 2.7.1.1. | AO69: ISE-Konfiguration | AP69: $AC$122
AN70: 2.7.1.2. | AO70: Terminal | AP70: $AC$125
L71: EAMS | O71: Balance | R71: Balance | AN71: 2.7.1.2.1. | AO71: PP | AP71: $AF$125
B72: 2 Info | AN72: 2.7.1.2.1.1. | AO72: Terminal | AP72: $AI$125
AN73: 2.7.1.2.10. | AO73: Instanzen Synchronisierung | AP73: $AF$302
O74: Auswahl löschen | AN74: 2.7.1.2.11. | AO74: 2022 | AP74: $AF$305
AN75: 2.7.1.2.11.1. | AO75: Refresh | AP75: $AI$305
AN76: 2.7.1.2.11.2. | AO76: Zeitnachweis | AP76: $AI$308
B77: 3 Info | O77: Buy | AN77: 2.7.1.2.11.3. | AO77: Projekt DB | AP77: $AI$311
AN78: 2.7.1.2.11.4. | AO78: Terminal | AP78: $AI$314
AN79: 2.7.1.2.11.5. | AO79: 2022 | AP79: $AI$317
O80: Sale | AN80: 2.7.1.2.11.6. | AO80: Refresh | AP80: $AI$320
AN81: 2.7.1.2.12. | AO81: Zeitnachweis | AP81: $AF$317
B82: 4 Info | AN82: 2.7.1.2.12.1. | AO82: Load Input | AP82: $AI$323
O83: Adresslists refreshen | AN83: 2.7.1.2.12.2. | AO83: Save Input | AP83: $AI$326
AN84: 2.7.1.2.12.3. | AO84: Projekt Kanban | AP84: $AI$329
AN85: 2.7.1.2.12.4. | AO85: Projekt Visualizer | AP85: $AI$332
O86: Cash abholen | AN86: 2.7.1.2.12.5. | AO86: Projekt-DB | AP86: $AI$335
AN87: 2.7.1.2.12.6. | AO87: Terminal | AP87: $AI$338
AN88: 2.7.1.2.12.7. | AO88: Sync | AP88: $AI$341
O89: PBC-Shop | AN89: 2.7.1.2.13. | AO89: App Terminal erstellen | AP89: $AF$344
AN90: 2.7.1.2.14. | AO90: App Terminal löschen | AP90: $AF$347
AN91: 2.7.1.2.15. | AO91: App Terminal laden | AP91: $AF$350
O92: Manuell | AN92: 2.7.1.2.16. | AO92: App Terminal refreshen | AP92: $AF$353
AN93: 2.7.1.2.17. | AO93: App Terminal erneuern | AP93: $AF$356
AN94: 2.7.1.2.18. | AO94: AISTEUERUNG | AP94: $AF$359
O95: Manuelle Liste refreshen | AN95: 2.7.1.2.18.1. | AO95: PP | AP95: $AI$359
AN96: 2.7.1.2.18.1.1. | AO96: AI.docx | AP96: $AL$359
AN97: 2.7.1.2.19. | AO97: AITRANSLATION | AP97: $AF$362
O98: Adressbuch | R98: Adressbuch.show | AN98: 2.7.1.2.19.1. | AO98: Translate | AP98: $AI$362
AN99: 2.7.1.2.19.2. | AO99: SPEAK-> | AP99: $AI$365
AN100: 2.7.1.2.19.3. | AO100: <-SPEAK | AP100: $AI$368
O101: Preise & Kontingente | R101: APBCKontingent.show | AN101: 2.7.1.2.19.4. | AO101: LOG | AP101: $AI$371
AN102: 2.7.1.2.19.5. | AO102: <-SPEAK | AP102: $AI$374
AN103: 2.7.1.2.19.6. | AO103: SPEAK-> | AP103: $AI$377
O104: Autosending | R104: EMSConfigurator.Show | AN104: 2.7.1.2.19.7. | AO104: Speek.Reactions | AP104: $AI$380
AN105: 2.7.1.2.2. | AO105: Projekt-Kanban | AP105: $AF$128
AN106: 2.7.1.2.2.1. | AO106: Add New Kanban Task Card | AP106: $AI$128
O107: Generator | R107: EMSGenerator.Show | AN107: 2.7.1.2.2.2. | AO107: Terminal | AP107: $AI$131
AN108: 2.7.1.2.2.3. | AO108: Visualizer | AP108: $AI$134
AN109: 2.7.1.2.2.4. | AO109: Projekt DB | AP109: $AI$137
L110: Cybernetics | O110: Refresh Cybernetics | AN110: 2.7.1.2.2.5. | AO110: Default | AP110: $AI$140
AN111: 2.7.1.2.2.6. | AO111: Delete Cards | AP111: $AI$143
AN112: 2.7.1.2.2.7. | AO112: All Cards | AP112: $AI$146
O113: Warenkorb | R113: Order | AN113: 2.7.1.2.2.8. | AO113: Load Prozess | AP113: $AI$149
AN114: 2.7.1.2.2.9. | AO114: Save Kanban | AP114: $AI$152
AN115: 2.7.1.2.20. | AO115: AISPEAK | AP115: $AF$383
L116: Öffnungszeiten | AN116: 2.7.1.2.20.1. | AO116: SPEAK-> | AP116: $AI$383
AN117: 2.7.1.2.21. | AO117: Logout | AP117: $AF$386
AN118: 2.7.1.2.22. | AO118: Neue Applikation einbinden | AP118: $AF$389
L119: All Products & Businesses | O119: 01_BAS_Produkte_und_Businesses.xlsm | AN119: 2.7.1.2.3. | AO119: Select Datenordner | AP119: $AF$155
AN120: 2.7.1.2.4. | AO120: Projekt-Visualizer | AP120: $AF$158
AN121: 2.7.1.2.4.1. | AO121: Visualisieren | AP121: $AI$158
L122: ISE-Login | O122: Account.xlsm | R122: ISE-Konfiguration | AN122: 2.7.1.2.4.1.1. | AO122: Projekt-Visualizer | AP122: $AL$158
AN123: 2.7.1.2.4.2. | AO123: Bearbeiten | AP123: $AI$161
AN124: 2.7.1.2.4.3. | AO124: Neue Eingabe | AP124: $AI$164
O125: Login | R125: Terminal | U125: PP | X125: Terminal | AN125: 2.7.1.2.4.4. | AO125: Terminal | AP125: $AI$167
AN126: 2.7.1.2.4.5. | AO126: Kanban | AP126: $AI$170
AN127: 2.7.1.2.4.5.1. | AO127: Projekt-Kanban | AP127: $AL$170
L128: Order | O128: Paypal | U128: Projekt-Kanban | X128: Add New Kanban Task Card | AN128: 2.7.1.2.4.6. | AO128: Load Prozess | AP128: $AI$173
AN129: 2.7.1.2.4.7. | AO129: Save Modell | AP129: $AI$176
AN130: 2.7.1.2.4.8. | AO130: Projekt DB | AP130: $AI$179
O131: IBAN (Überweisung) | X131: Terminal | AN131: 2.7.1.2.4.8.1. | AO131: Projekt-Datenbank | AP131: $AL$179
AN132: 2.7.1.2.5. | AO132: Projekt-Datenbank | AP132: $AF$182
AN133: 2.7.1.2.5.1. | AO133: Konfigurator | AP133: $AI$182
O134: IBAN (Lastschrift) | X134: Visualizer | AN134: 2.7.1.2.5.1.1. | AO134: Konfigurator.show | AP134: $AL$182
AN135: 2.7.1.2.5.10. | AO135: Save Projekte | AP135: $AI$209
AN136: 2.7.1.2.5.11. | AO136: Konfig | AP136: $AI$212
O137: Other | X137: Projekt DB | AN137: 2.7.1.2.5.11.1. | AO137: PDBKonfigurator.show | AP137: $AL$212
AN138: 2.7.1.2.5.12. | AO138: Datasource laden | AP138: $AI$215
AN139: 2.7.1.2.5.12.1. | AO139: File Auswahl | AP139: $AL$215
O140: Creditcard | X140: Default | AN140: 2.7.1.2.5.13. | AO140: 2022 | AP140: $AI$218
AN141: 2.7.1.2.5.14. | AO141: QuickNumUID | AP141: $AI$221
AN142: 2.7.1.2.5.15. | AO142: Zeitnachweis | AP142: $AI$224
O143: Crypto Currency | X143: Delete Cards | AN143: 2.7.1.2.5.16. | AO143: <-Back | AP143: $AI$227
AN144: 2.7.1.2.5.17. | AO144: Visualisieren | AP144: $AI$230
AN145: 2.7.1.2.5.18. | AO145: Vision | AP145: $AI$233
O146: E-Mail (empfohlen) | X146: All Cards | AN146: 2.7.1.2.5.19. | AO146: For-> | AP146: $AI$236
AN147: 2.7.1.2.5.2. | AO147: Visualizer | AP147: $AI$185
AN148: 2.7.1.2.5.2.1. | AO148: Projekt-Visualizer | AP148: $AL$185
O149: AGB's Info | R149: AGB | X149: Load Prozess | AN149: 2.7.1.2.5.20. | AO149: 4.180. | AP149: $AI$239
AN150: 2.7.1.2.5.3. | AO150: Terminal | AP150: $AI$188
AN151: 2.7.1.2.5.4. | AO151: Kaban | AP151: $AI$191
O152: Zurücksetzen | X152: Save Kanban | AN152: 2.7.1.2.5.4.1. | AO152: Projekt-Kanban | AP152: $AL$191
AN153: 2.7.1.2.5.5. | AO153: Sort | AP153: $AI$194
AN154: 2.7.1.2.5.6. | AO154: Sort | AP154: $AI$197
O155: Bestellen/ Kaufen | U155: Select Datenordner | AN155: 2.7.1.2.5.7. | AO155: Sort | AP155: $AI$200
AN156: 2.7.1.2.5.8. | AO156: Sort | AP156: $AI$203
AN157: 2.7.1.2.5.9. | AO157: Load Prozess | AP157: $AI$206
O158: Währung ändern | U158: Projekt-Visualizer | X158: Visualisieren | AA158: Projekt-Visualizer | AN158: 2.7.1.2.6. | AO158: Select SDA Ordner | AP158: $AF$242
AN159: 2.7.1.2.7. | AO159: Aufgaben Management | AP159: $AF$245
AN160: 2.7.1.2.7.1. | AO160: Terminal | AP160: $AI$245
O161: Löschen | X161: Bearbeiten | AN161: 2.7.1.2.7.2. | AO161: Datasource laden | AP161: $AI$248
AN162: 2.7.1.2.7.3. | AO162: Projekt DB | AP162: $AI$251
AN163: 2.7.1.2.7.3.1. | AO163: Projekt-Datenbank | AP163: $AL$251
X164: Neue Eingabe | AN164: 2.7.1.2.7.4. | AO164: Transfer to Smart Display | AP164: $AI$254
AN165: 2.7.1.2.8. | AO165: Mode | AP165: $AF$257
AN166: 2.7.1.2.8.1. | AO166: Administrator | AP166: $AI$257
X167: Terminal | AN167: 2.7.1.2.8.10. | AO167: Customer I | AP167: $AI$284
AN168: 2.7.1.2.8.11. | AO168: Terminal | AP168: $AI$314
AN169: 2.7.1.2.8.2. | AO169: Management | AP169: $AI$260
X170: Kanban | AA170: Projekt-Kanban | AN170: 2.7.1.2.8.3. | AO170: Development | AP170: $AI$263
AN171: 2.7.1.2.8.4. | AO171: User III | AP171: $AI$266
AN172: 2.7.1.2.8.5. | AO172: Customer III | AP172: $AI$269
X173: Load Prozess | AN173: 2.7.1.2.8.6. | AO173: Master | AP173: $AI$272
AN174: 2.7.1.2.8.7. | AO174: User II | AP174: $AI$275
AN175: 2.7.1.2.8.8. | AO175: User I | AP175: $AI$278
X176: Save Modell | AN176: 2.7.1.2.8.9. | AO176: Customer II | AP176: $AI$281
AN177: 2.7.1.2.9. | AO177: Download Area | AP177: $AF$290
AN178: 2.7.1.2.9.1. | AO178: Terminal | AP178: $AI$290
X179: Projekt DB | AA179: Projekt-Datenbank | AN179: 2.7.1.2.9.2. | AO179: Load Apps | AP179: $AI$293
AN180: 2.7.1.2.9.3. | AO180: Store | AP180: $AI$296
AN181: 2.7.1.2.9.4. | AO181: Create Apps | AP181: $AI$299
U182: Projekt-Datenbank | X182: Konfigurator | AA182: Konfigurator.show | AN182: 2.7.1.2.9.4.1. | AO182: AppCreator.xlsm | AP182: $AL$299
AN183: 2.7.2. | AO183: Login | AP183: $Z$125
AN184: 2.8. | AO184: Order | AP184: $W$128
X185: Visualizer | AA185: Projekt-Visualizer | AN185: 2.8.1. | AO185: Paypal | AP185: $Z$128
AN186: 2.8.10. | AO186: Bestellen/ Kaufen | AP186: $Z$155
AN187: 2.8.11. | AO187: Währung ändern | AP187: $Z$158
X188: Terminal | AN188: 2.8.12. | AO188: Löschen | AP188: $Z$161
AN189: 2.8.2. | AO189: IBAN (Überweisung) | AP189: $Z$131
AN190: 2.8.3. | AO190: IBAN (Lastschrift) | AP190: $Z$134
X191: Kaban | AA191: Projekt-Kanban | AN191: 2.8.4. | AO191: Other | AP191: $Z$137
AN192: 2.8.5. | AO192: Creditcard | AP192: $Z$140
AN193: 2.8.6. | AO193: Crypto Currency | AP193: $Z$143
X194: Sort | AN194: 2.8.7. | AO194: E-Mail (empfohlen) | AP194: $Z$146
AN195: 2.8.8. | AO195: AGB's Info | AP195: $Z$149
AN196: 2.8.8.1. | AO196: AGB | AP196: $AC$149
X197: Sort | AN197: 2.8.9. | AO197: Zurücksetzen | AP197: $Z$152
X200: Sort
X203: Sort
X206: Load Prozess
... 61 more rows

Sheet Tabelle1 (hidden)
K1: Defmode | L1: Infomode | P1: unhide | V1: 0
K2: Datamode | L2: Productionmode | P2: PBC_PW_3 | Q2: Registrieren/ Registrate
P4: PP | Q4: Aktivieren/ Activate
P5: Applications
P6: SR | Q6: Freischalten/ Lizensieren
P7: Enterprises
P8: Em@illist | Q8: Download TradeBase
P9: WUSBT
P10: Kontakt | Q10: Synchronisieren/ Synchronize
P11: PBC
Q12: Bestellen/ Order
P13: IOS
Q14: Download Cybernetics
P15: IPOS
P16: 1_0_0_E-Books-Base_Trade.xlsm | Q16: Check Updates
Q18: Neues Geschäft/ New Business
P20: unhide | Q20: unhide
P24: 1_0_0_E-Books-Base_Trade.xlsm
P26: 0_0_0_E-CUG-Base_Trade.xlsm
P28: 0_0_0_E-CUG-Base_Trade.xlsm
P30: 9_0_0_E-Trade-Base.xlsm
P32: 9_0_0_E-Trade-Base.xlsm
P34: 0_0_1_E-WASBT-Base_Trade.xlsm
P36: 0_0_1_E-WASBT-Base_Trade.xlsm

Sheet WUSBTLDB (hidden)
A1: ID | B1: Username | C1: Passwort | D1: Rolle | E1: Status | F1: Beruf
A2: 1 | B2: MAS | C2: wasbt123A! | D2: Dr. h.c. | F2: Excel-VBA Specialist
A3: 2
A4: 3
A5: 4
A6: 5
A7: 6

Sheet Overview (2) (hidden)
A1: C:\Users\Marku\Desktop\02_PBC\01_PBC\00_ISE_ISmith_Engineering\000_Base_Panel\01_Accounts\Accounts.xlsm
B2: ID | C2: Auftragsfeld | D2: Details | E2: ID | F2: Sheets Visualisierung mit Systemstart
B3: 1 | C3: 00_ICT | D3: Prozessknowhow, Optimierung, Automatisierung, ct reduzieren, Defects reduzieren, Qualität erhöhen, Loop (Projekt) | F3: Auszublenden
B4: 2 | C4: 01_Demonstrationen | E4: 1 | F4: Overview
B5: 3 | C5: 02_Benchmarking | D5: Produkte, Wettbewerb, Attribute, Automatisierung, Ausgabe (Realtime?, Format?, Reporting?), Autostart | E5: 2 | F5: PP
B6: 4 | C6: 03_Installationen | E6: 3 | F6: Aufgaben Management
B7: 5 | C7: 04_Applikationserstellung | D7: Testprogramme (ICT, AOI?, Dr. Eschke?, ect.?) | E7: 4 | F7: Download Area
B8: 6 | C8: 05_Service-Einsätze | E8: 5 | F8: Systemsynchronisation
B9: 7 | C9: 06_Kundenservice | D9: Material( Kittel, ESD-Schuhe, Covid-Impfung) | E9: 6
B10: 8 | C10: 07_Schulung von Produkten | D10: Inhalte, Präsentation, Know How (Datenblätter ect.), Angebotsschema (Kommunikation)
B11: 9 | C11: 08_Homework | D11: Makro Generierung, Sec-Processes
C13: Zusatztätigkeiten
B14: 10 | C14: Versand
B15: 11 | C15: Auftragsabwicklung
B16: 12 | C16: Angebotsgenerierung
B17: 13 | C17: Kundenabsprache | D17: Kontaktmanagement
B18: 14 | C18: Ressourcen-Management | D18: Milch, Getränke, Essen, Süßstoff, Tee, Honig
B19: 15 | C19: Entsorgung
DR100: wasbt123A!

Sheet Terminal (hidden)
A1: C:\Users\Marku\Desktop\Arbeit\ | Z1: ©2022
A2: Mainmode | J2: Wasbt | N2: 1 | 1 | Q2: 2
A100: C:\Users\Marku\Documents\01_Unterschrift Vertrag MAS_301221.pdf
A101: 01_Unterschrift Vertrag MAS_301221

Sheet Termlog (hidden)

Sheet 2022 (hidden)
B2: Januar | C2: Februar | D2: März | E2: April | F2: Mai | G2: Juni | H2: Juli | I2: August | J2: September | K2: Oktober | L2: November | M2: Dezember
B3: Sa 01.01.2022 | C3: Di 01.02.2022 | D3: Di 01.03.2022 | E3: Fr 01.04.2022 | F3: So 01.05.2022 | G3: Mi 01.06.2022 | H3: Fr 01.07.2022 | I3: Mo 01.08.2022 | J3: Do 01.09.2022 | K3: Sa 01.10.2022 | L3: Di 01.11.2022 | M3: Do 01.12.2022
B4: So 02.01.2022 | C4: Mi 02.02.2022 | D4: Mi 02.03.2022 | E4: Sa 02.04.2022 | F4: Mo 02.05.2022 | G4: Do 02.06.2022 | H4: Sa 02.07.2022 | I4: Di 02.08.2022 | J4: Fr 02.09.2022 | K4: So 02.10.2022 | L4: Mi 02.11.2022 | M4: Fr 02.12.2022
B5: Mo 03.01.2022 | C5: Do 03.02.2022 | D5: Do 03.03.2022 | E5: So 03.04.2022 | F5: Di 03.05.2022 | G5: Fr 03.06.2022 | H5: So 03.07.2022 | I5: Mi 03.08.2022 | J5: Sa 03.09.2022 | K5: Mo 03.10.2022 | L5: Do 03.11.2022 | M5: Sa 03.12.2022
B6: Di 04.01.2022 | C6: Fr 04.02.2022 | D6: Fr 04.03.2022 | E6: Mo 04.04.2022 | F6: Mi 04.05.2022 | G6: Sa 04.06.2022 | H6: Mo 04.07.2022 | I6: Do 04.08.2022 | J6: So 04.09.2022 | K6: Di 04.10.2022 | L6: Fr 04.11.2022 | M6: So 04.12.2022
B7: Mi 05.01.2022 | C7: Sa 05.02.2022 | D7: Sa 05.03.2022 | E7: Di 05.04.2022 | F7: Do 05.05.2022 | G7: So 05.06.2022 | H7: Di 05.07.2022 | I7: Fr 05.08.2022 | J7: Mo 05.09.2022 | K7: Mi 05.10.2022 | L7: Sa 05.11.2022 | M7: Mo 05.12.2022
B8: Do 06.01.2022 | C8: So 06.02.2022 | D8: So 06.03.2022 | E8: Mi 06.04.2022 | F8: Fr 06.05.2022 | G8: Mo 06.06.2022 | H8: Mi 06.07.2022 | I8: Sa 06.08.2022 | J8: Di 06.09.2022 | K8: Do 06.10.2022 | L8: So 06.11.2022 | M8: Di 06.12.2022
B9: Fr 07.01.2022 | C9: Mo 07.02.2022 | D9: Mo 07.03.2022 | E9: Do 07.04.2022 | F9: Sa 07.05.2022 | G9: Di 07.06.2022 | H9: Do 07.07.2022 | I9: So 07.08.2022 | J9: Mi 07.09.2022 | K9: Fr 07.10.2022 | L9: Mo 07.11.2022 | M9: Mi 07.12.2022
B10: Sa 08.01.2022 | C10: Di 08.02.2022 | D10: Di 08.03.2022 | E10: Fr 08.04.2022 | F10: So 08.05.2022 | G10: Mi 08.06.2022 | H10: Fr 08.07.2022 | I10: Mo 08.08.2022 | J10: Do 08.09.2022 | K10: Sa 08.10.2022 | L10: Di 08.11.2022 | M10: Do 08.12.2022
B11: So 09.01.2022 | C11: Mi 09.02.2022 | D11: Mi 09.03.2022 | E11: Sa 09.04.2022 | F11: Mo 09.05.2022 | G11: Do 09.06.2022 | H11: Sa 09.07.2022 | I11: Di 09.08.2022 | J11: Fr 09.09.2022 | K11: So 09.10.2022 | L11: Mi 09.11.2022 | M11: Fr 09.12.2022
B12: Mo 10.01.2022 | C12: Do 10.02.2022 | D12: Do 10.03.2022 | E12: So 10.04.2022 | F12: Di 10.05.2022 | G12: Fr 10.06.2022 | H12: So 10.07.2022 | I12: Mi 10.08.2022 | J12: Sa 10.09.2022 | K12: Mo 10.10.2022 | L12: Do 10.11.2022 | M12: Sa 10.12.2022
B13: Di 11.01.2022 | C13: Fr 11.02.2022 | D13: Fr 11.03.2022 | E13: Mo 11.04.2022 | F13: Mi 11.05.2022 | G13: Sa 11.06.2022 | H13: Mo 11.07.2022 | I13: Do 11.08.2022 | J13: So 11.09.2022 | K13: Di 11.10.2022 | L13: Fr 11.11.2022 | M13: So 11.12.2022
B14: Mi 12.01.2022 | C14: Sa 12.02.2022 | D14: Sa 12.03.2022 | E14: Di 12.04.2022 | F14: Do 12.05.2022 | G14: So 12.06.2022 | H14: Di 12.07.2022 | I14: Fr 12.08.2022 | J14: Mo 12.09.2022 | K14: Mi 12.10.2022 | L14: Sa 12.11.2022 | M14: Mo 12.12.2022
B15: Do 13.01.2022 | C15: So 13.02.2022 | D15: So 13.03.2022 | E15: Mi 13.04.2022 | F15: Fr 13.05.2022 | G15: Mo 13.06.2022 | H15: Mi 13.07.2022 | I15: Sa 13.08.2022 | J15: Di 13.09.2022 | K15: Do 13.10.2022 | L15: So 13.11.2022 | M15: Di 13.12.2022
B16: Fr 14.01.2022 | C16: Mo 14.02.2022 | D16: Mo 14.03.2022 | E16: Do 14.04.2022 | F16: Sa 14.05.2022 | G16: Di 14.06.2022 | H16: Do 14.07.2022 | I16: So 14.08.2022 | J16: Mi 14.09.2022 | K16: Fr 14.10.2022 | L16: Mo 14.11.2022 | M16: Mi 14.12.2022
B17: Sa 15.01.2022 | C17: Di 15.02.2022 | D17: Di 15.03.2022 | E17: Fr 15.04.2022 | F17: So 15.05.2022 | G17: Mi 15.06.2022 | H17: Fr 15.07.2022 | I17: Mo 15.08.2022 | J17: Do 15.09.2022 | K17: Sa 15.10.2022 | L17: Di 15.11.2022 | M17: Do 15.12.2022
B18: So 16.01.2022 | C18: Mi 16.02.2022 | D18: Mi 16.03.2022 | E18: Sa 16.04.2022 | F18: Mo 16.05.2022 | G18: Do 16.06.2022 | H18: Sa 16.07.2022 | I18: Di 16.08.2022 | J18: Fr 16.09.2022 | K18: So 16.10.2022 | L18: Mi 16.11.2022 | M18: Fr 16.12.2022
B19: Mo 17.01.2022 | C19: Do 17.02.2022 | D19: Do 17.03.2022 | E19: So 17.04.2022 | F19: Di 17.05.2022 | G19: Fr 17.06.2022 | H19: So 17.07.2022 | I19: Mi 17.08.2022 | J19: Sa 17.09.2022 | K19: Mo 17.10.2022 | L19: Do 17.11.2022 | M19: Sa 17.12.2022
B20: Di 18.01.2022 | C20: Fr 18.02.2022 | D20: Fr 18.03.2022 | E20: Mo 18.04.2022 | F20: Mi 18.05.2022 | G20: Sa 18.06.2022 | H20: Mo 18.07.2022 | I20: Do 18.08.2022 | J20: So 18.09.2022 | K20: Di 18.10.2022 | L20: Fr 18.11.2022 | M20: So 18.12.2022
B21: Mi 19.01.2022 | C21: Sa 19.02.2022 | D21: Sa 19.03.2022 | E21: Di 19.04.2022 | F21: Do 19.05.2022 | G21: So 19.06.2022 | H21: Di 19.07.2022 | I21: Fr 19.08.2022 | J21: Mo 19.09.2022 | K21: Mi 19.10.2022 | L21: Sa 19.11.2022 | M21: Mo 19.12.2022
B22: Do 20.01.2022 | C22: So 20.02.2022 | D22: So 20.03.2022 | E22: Mi 20.04.2022 | F22: Fr 20.05.2022 | G22: Mo 20.06.2022 | H22: Mi 20.07.2022 | I22: Sa 20.08.2022 | J22: Di 20.09.2022 | K22: Do 20.10.2022 | L22: So 20.11.2022 | M22: Di 20.12.2022
B23: Fr 21.01.2022 | C23: Mo 21.02.2022 | D23: Mo 21.03.2022 | E23: Do 21.04.2022 | F23: Sa 21.05.2022 | G23: Di 21.06.2022 | H23: Do 21.07.2022 | I23: So 21.08.2022 | J23: Mi 21.09.2022 | K23: Fr 21.10.2022 | L23: Mo 21.11.2022 | M23: Mi 21.12.2022
B24: Sa 22.01.2022 | C24: Di 22.02.2022 | D24: Di 22.03.2022 | E24: Fr 22.04.2022 | F24: So 22.05.2022 | G24: Mi 22.06.2022 | H24: Fr 22.07.2022 | I24: Mo 22.08.2022 | J24: Do 22.09.2022 | K24: Sa 22.10.2022 | L24: Di 22.11.2022 | M24: Do 22.12.2022
B25: So 23.01.2022 | C25: Mi 23.02.2022 | D25: Mi 23.03.2022 | E25: Sa 23.04.2022 | F25: Mo 23.05.2022 | G25: Do 23.06.2022 | H25: Sa 23.07.2022 | I25: Di 23.08.2022 | J25: Fr 23.09.2022 | K25: So 23.10.2022 | L25: Mi 23.11.2022 | M25: Fr 23.12.2022
B26: Mo 24.01.2022 | C26: Do 24.02.2022 | D26: Do 24.03.2022 | E26: So 24.04.2022 | F26: Di 24.05.2022 | G26: Fr 24.06.2022 | H26: So 24.07.2022 | I26: Mi 24.08.2022 | J26: Sa 24.09.2022 | K26: Mo 24.10.2022 | L26: Do 24.11.2022 | M26: Sa 24.12.2022
B27: Di 25.01.2022 | C27: Fr 25.02.2022 | D27: Fr 25.03.2022 | E27: Mo 25.04.2022 | F27: Mi 25.05.2022 | G27: Sa 25.06.2022 | H27: Mo 25.07.2022 | I27: Do 25.08.2022 | J27: So 25.09.2022 | K27: Di 25.10.2022 | L27: Fr 25.11.2022 | M27: So 25.12.2022
B28: Mi 26.01.2022 | C28: Sa 26.02.2022 | D28: Sa 26.03.2022 | E28: Di 26.04.2022 | F28: Do 26.05.2022 | G28: So 26.06.2022 | H28: Di 26.07.2022 | I28: Fr 26.08.2022 | J28: Mo 26.09.2022 | K28: Mi 26.10.2022 | L28: Sa 26.11.2022 | M28: Mo 26.12.2022
B29: Do 27.01.2022 | C29: So 27.02.2022 | D29: So 27.03.2022 | E29: Mi 27.04.2022 | F29: Fr 27.05.2022 | G29: Mo 27.06.2022 | H29: Mi 27.07.2022 | I29: Sa 27.08.2022 | J29: Di 27.09.2022 | K29: Do 27.10.2022 | L29: So 27.11.2022 | M29: Di 27.12.2022
B30: Fr 28.01.2022 | C30: Mo 28.02.2022 | D30: Mo 28.03.2022 | E30: Do 28.04.2022 | F30: Sa 28.05.2022 | G30: Di 28.06.2022 | H30: Do 28.07.2022 | I30: So 28.08.2022 | J30: Mi 28.09.2022 | K30: Fr 28.10.2022 | L30: Mo 28.11.2022 | M30: Mi 28.12.2022
B31: Sa 29.01.2022 | D31: Di 29.03.2022 | E31: Fr 29.04.2022 | F31: So 29.05.2022 | G31: Mi 29.06.2022 | H31: Fr 29.07.2022 | I31: Mo 29.08.2022 | J31: Do 29.09.2022 | K31: Sa 29.10.2022 | L31: Di 29.11.2022 | M31: Do 29.12.2022
B32: So 30.01.2022 | D32: Mi 30.03.2022 | E32: Sa 30.04.2022 | F32: Mo 30.05.2022 | G32: Do 30.06.2022 | H32: Sa 30.07.2022 | I32: Di 30.08.2022 | J32: Fr 30.09.2022 | K32: So 30.10.2022 | L32: Mi 30.11.2022 | M32: Fr 30.12.2022
B33: Mo 31.01.2022 | D33: Do 31.03.2022 | F33: Di 31.05.2022 | H33: So 31.07.2022 | I33: Mi 31.08.2022 | K33: Mo 31.10.2022 | M33: Sa 31.12.2022

Sheet Zeitnachweis (hidden)
A1: Id | B1: Wann | C1: Start | D1: Ende | E1: Delta | F1: Differenz | G1: Überstunden | I1: Details | J1: Sonstiges | K1: ID | L1: KW | M1: Überstunden | N1: Gesamt: | O1: 00:00:00 | P1: 21 | Q1: Summe nightly: 37 h - Mittagszeiten 20min.*20=400min./60=6,6h->31,4h | AB1: Modell Version: | AD1: 00001 | AE1: Modell Name: | AF1: Gesamter Zeitnachweis | BA1: 0
A2: 1 | B2: 2022-05-23 | C2: 08:30:00 | D2: 16:30:00 | E2: 08:00:00 | F2: 00:00:00 | G2: 08:00:00 | K2: 1 | L2: 21 | M2: 00:00:00
A3: 2 | B3: 2022-05-24 | C3: 08:30:00 | D3: 16:30:00 | E3: 08:00:00 | F3: 00:00:00 | K3: 2 | L3: 21 | M3: 00:00:00
A4: 3 | B4: 2022-05-25 | C4: 08:30:00 | D4: 16:30:00 | E4: 08:00:00 | F4: 00:00:00
A5: 4 | B5: 2022-05-26 | C5: 08:30:00 | D5: 16:30:00 | E5: 08:00:00 | F5: 00:00:00
A6: 5 | B6: 2022-05-27 | C6: 08:30:00 | D6: 16:30:00 | E6: 08:00:00 | F6: 00:00:00 | G6: 00:00:00
A7: 6 | B7: 2022-05-30 | C7: 08:30:00 | D7: 16:30:00 | E7: 08:00:00 | F7: 00:00:00
A8: 7 | B8: 2022-05-31 | C8: 08:30:00 | D8: 16:30:00 | E8: 08:00:00 | F8: 00:00:00
A9: 8 | B9: 2022-06-01 | C9: 08:30:00 | D9: 16:30:00 | E9: 08:00:00 | F9: 00:00:00
A10: 9 | B10: 2022-06-02 | C10: 08:30:00 | D10: 16:30:00 | E10: 08:00:00 | F10: 00:00:00
A11: 10 | B11: 2022-05-27 | C11: 08:30:00 | D11: 16:30:00 | E11: 08:00:00 | F11: 00:00:00 | G11: 00:00:00

Sheet PP (hidden)
C2: Produktionsplanung - Kapazitätsverteilung - Ist-Soll-Vergleich - Auftragsorientierung - Supervision
O3: Legende
P5: Ist-Verteilung
P6: Soll-Verteilung
P7: Arithmetisches Mittel
P8: Priorisierung

Sheet Passwords (hidden)
C1: Password Manager
C2: ID | D2: Webseite | G2: Benutzername | J2: Passwort

Sheet Projekt-Datenbank (hidden)
A1: 4.180. | J1: Modell Version: | L1: 00001 | M1: Modell Name: | N1: Gesammter Prozess
A2: UID | B2: ID | C2: Was | D2: Wann | E2: Uhrzeit | F2: Dauer | G2: Wo | H2: Warum | I2: Wer | J2: Details | K2: Daten | L2: Kontakt | M2: Sonstiges | N2: Änderung | O2: Verantwortlicher | P2: Teammitglieder | Q2: Abteilung | R2: Kanbanspalte | S2: Status | T2: Kundenkontakt
AH3: 00001_Allround.xlsx | AK3: ICT-Softwareprogrammierung
AO5: ETB (Nailassignment)
AO6: POB (Otis-Berlin)
AO7: ESW (Stolberg(AE1071))
AO8: Belden
AO9: BMK_elk001
AO11: Produktionslinie (Programme)
AQ12: Virtual Windows 7 - Home Office - Produktion
AO13: Produktionslinie (SDA)
AO14: Produktionslinie (Sonstiges)
AK15: SDA
AO18: Systemkompatibilitätsprüfung
AO19: Userbilitytest
AO20: Funktionstest
AK21: Lerninhalte
AO29: Library Programming PDF
AO30: TPG Debug PDF
AO31: Library User Guide PDF
AO32: Software User's Guide PDF
AO33: TPG Manual PDF
AO34: Test Language Reference PDF
AK35: Beldenprojekt

Sheet Projekt-Visualizer (hidden)
A1: 0 | K1: Modell Version: | L1: 00002 | M1: Modell Name: | N1: Allround

Sheet Projekt-Kanban (hidden)
A1: ID | B1: ToDo | D1: Doing | H1: Done | T1: Person Responsible | AA1: 31 | AB1: Modell Version: | AD1: 00002 | AE1: Modell Name: | AF1: Allround
D2: Developement | F2: Testing | H2: Deployment | I2: Complete | Q2: Test Language Reference PDF
B3: Backlog | C3: Active | D3: Active | E3: Complete | F3: Active | G3: Complete | R3: 32 | T3: MAS
A4: 1
A5: 2
A6: 3
A7: 4
A8: 5
A9: 6
A1000: 1

Sheet Download Liste (hidden)

Sheet Schutz (hidden)
B1: ID | C1: Was | D1: Passwort | E1: MainSheets
B2: 1 | C2: ISMITH-Projektschutz | D2: 0R5%1,2208 3,2V@20m0@430mA0V@6OM06cd W | E2: Welcome
B3: 2 | C3: ISMITH-Schreibschutz | D3: q6tp7Wtnmp52blk0 | E3: WUSBTLDB
B4: 3 | C4: ISMITH-Blattschutz | D4: lKq6v1a2Js(qJs(t6=Ct2hh
B5: 4 | C5: Tradebasedurchgehen (neu) | D5: 0R50w43üVba-080 m0@roü1i0mA0zd0@43r0mAoäOM06cd
B6: 5 | C6: Accountschutz | D6: v1Jpb02tpVe9W

Sheet AISTEUERUNG (hidden)
C2: AI starten | G2: Detection Language:
C3: AI autostarten | E3: FALSE | G3: Translation Language:
C4: AI recognition
C5: AI autorecognition
C6: AI steady recognition
C7: AI steady translation recognition
C8: AI Readtranslate
C9: AIReadtranslate and transfer
C10: AI Refresh
C11: AI Speek Read G1 (Origin)
C12: AI Speek Read H1 (Translation)
C13: AIReadtranslate and transfer and speak

Sheet AINOTIZ (hidden)
B1: ID | C1: What | D1: Depth
B2: A | C2: Prozess
B3: 1 | C3: start word
B4: 2 | C4: send win h
B5: 3 | C5: read win h
B6: 4 | C6: analyse input
B7: 5 | C7: react on input | D7: read win h
B8: 6 | C8: speak output | D8: stop reading win h
D9: read win h
B11: B | C11: Sonstiges:
B12: 1 | C12: punktierung
B13: 2 | C13: Worterkennung groß/klein
B14: 3 | C14: Procedure onerrorresumenext
B15: 4 | C15: speakingprocedure from presentationtechwusbt
B16: 5 | C16: Übereinstimmungen (bsp. Joke-antwort)
B18: C | C18: Funktionalitäten
B19: 1 | C19: protokollieren
B20: 2 | C20: ausführen
B21: 3 | C21: starten
B22: 4 | C22: übersetzten
B23: 5 | C23: recherchieren
B24: 6 | C24: suchen
B25: 7 | C25: finden
B26: 8 | C26: route berechnen
B27: 9 | C27: informieren
B28: 10 | C28: email senden
B29: 11 | C29: Musik abspielen
B30: 12 | C30: Datenbilder vergleichen
B31: 13 | C31: Google einträger erstellen
B32: 14 | C32: Finanzen überwachen
B33: 15 | C33: Erkennen
B34: 16 | C34: Google recherchieren
B35: 17 | C35: andere Ais steuern
B36: 18 | C36: Alexa, Bixby, Siri, cortana, Siri
B37: 19 | C37: News
B38: 20 | C38: Produce
B39: 21 | C39: reports
B40: 22 | C40: Tasksmanagement
B41: 23 | C41: Spaß
B43: D | C43: AI LEARNING BY DICTATING ANALYSE THE TAGS

Sheet AIRECON (hidden)
A1: Ha, I did it. How are you, Markus. Lots to do right? | B1: Ha, I did it. How are you, Markus. Lots to do right? Ha, ich habs geschafft. Wie gehtâ€™s dir Markus. Viel zu tun oder? Ha, I did it. How are you, Markus. Lots to do right?
A2: Ha, ich habs geschafft. Wie gehtâ€™s dir Markus. Viel zu tun oder? | B2: 175
A4: Ha, I did it. How are you, Markus. Lots to do right?

Sheet AITRANSLATION (hidden)
A1: Speek.Reactions | B1: Id.Sprachen | C1: Shortcode | G1: Ni tre ŝatis la atestojn. | H1: Nous avons beaucoup aimé les témoignages. | CA1: Speek.Reactions
A2: Autoische, Auto | B2: Auto | C2: auto | D2: 1 | BZ2: Autoische | CA2: Auto
A3: Afrikanische, afrikanisch | B3: Afrikaans | C3: af | D3: 26 | F3: ID | G3: ORIGINAL | H3: TRANSLATION | BZ3: Afrikanische | CA3: afrikanisch
A4: Albanische, albanisch | B4: Albanian | C4: sq | F4: 1 | G4: Ha, I did it. How are you, Markus. Lots to do right? | H4: Ha, ich habe es geschafft. Wie geht es dir Markus? Viel zu tun, richtig? | BZ4: Albanische | CA4: albanisch
A5: Amharische, Amharisch | B5: Amharic | C5: am | BZ5: Amharische | CA5: Amharisch
A6: Arabische, Arabisch | B6: Arabic | C6: ar | F6: 22 | BZ6: Arabische | CA6: Arabisch
A7: Armenische, Armenisch | B7: Armenian | C7: hy | F7: 36 | BZ7: Armenische | CA7: Armenisch
A8: Aserbaidschanische, Aserbaidschanisch | B8: Azerbaijani | C8: az | F8: 27 | BZ8: Aserbaidschanische | CA8: Aserbaidschanisch
A9: Baskische, baskisch | B9: Basque | C9: eu | F9: 23 | BZ9: Baskische | CA9: baskisch
A10: Belarussische, Belarussisch | B10: Belarusian | C10: be | F10: 30 | BZ10: Belarussische | CA10: Belarussisch
A11: Bengaliische, Bengali | B11: Bengali | C11: bn | F11: 21 | BZ11: Bengaliische | CA11: Bengali
A12: Bosnische, bosnisch | B12: Bosnian | C12: bs | F12: 22 | BZ12: Bosnische | CA12: bosnisch
A13: Bulgarische, bulgarisch | B13: Bulgarian | C13: bg | F13: 19 | BZ13: Bulgarische | CA13: bulgarisch
A14: Katalanische, katalanisch | B14: Catalan | C14: ca | F14: 16 | BZ14: Katalanische | CA14: katalanisch
A15: Cebuanoische, Cebuano | B15: Cebuano | C15: ceb | F15: 12 | BZ15: Cebuanoische | CA15: Cebuano
A16: Chichewaische, Chichewa | B16: Chichewa | C16: ny | F16: 27 | BZ16: Chichewaische | CA16: Chichewa
A17: Chinesische, Chinesisch | B17: Chinese | C17: zh-CN | F17: 32 | BZ17: Chinesische | CA17: Chinesisch
A18: Korsische, Korsisch | B18: Corsican | C18: co | F18: 38 | BZ18: Korsische | CA18: Korsisch
A19: Kroatische, kroatisch | B19: Croatian | C19: hr | F19: 22 | BZ19: Kroatische | CA19: kroatisch
A20: Tschechische, Tschechisch | B20: Czech | C20: cs | F20: 96 | BZ20: Tschechische | CA20: Tschechisch
A21: Dänische, dänisch | B21: Danish | C21: da | F21: 58 | BZ21: Dänische | CA21: dänisch
A22: Niederländische, Niederländisch | B22: Dutch | C22: nl | F22: 27 | BZ22: Niederländische | CA22: Niederländisch
A23: Englische, Englisch | B23: English | C23: en | F23: 44 | BZ23: Englische | CA23: Englisch
A24: Esperantoische, Esperanto | B24: Esperanto | C24: eo | F24: 75 | BZ24: Esperantoische | CA24: Esperanto
A25: Estnische, estnisch | B25: Estonian | C25: et | F25: 86 | BZ25: Estnische | CA25: estnisch
A26: Philippinische, Philippinisch | B26: Filipino | C26: tl | F26: 22 | BZ26: Philippinische | CA26: Philippinisch
A27: Finnische, finnisch | B27: Finnish | C27: fi | BZ27: Finnische | CA27: finnisch
A28: Französische, Französisch | B28: French | C28: fr | BZ28: Französische | CA28: Französisch
A29: Friesische, Friesisch | B29: Frisian | C29: fy | BZ29: Friesische | CA29: Friesisch
A30: Galizische, galizisch | B30: Galician | C30: gl | BZ30: Galizische | CA30: galizisch
A31: Georgische, georgisch | B31: Georgian | C31: ka | BZ31: Georgische | CA31: georgisch
A32: Deutschische, Deutsch | B32: German | C32: de | BZ32: Deutschische | CA32: Deutsch
A33: Griechische, griechisch | B33: Greek | C33: el | BZ33: Griechische | CA33: griechisch
A34: Gujaratiische, Gujarati | B34: Gujarati | C34: gu | BZ34: Gujaratiische | CA34: Gujarati
A35: Haitianisches Kreolische, Haitianisches Kreol | B35: Haitian Creole | C35: ht | BZ35: Haitianisches Kreolische | CA35: Haitianisches Kreol
A36: Hausaische, Hausa | B36: Hausa | C36: ha | BZ36: Hausaische | CA36: Hausa
A37: Hawaiische, hawaiisch | B37: Hawaiian | C37: ka | BZ37: Hawaiische | CA37: hawaiisch
A38: Hebräische, hebräisch | B38: Hebrew | C38: iw | BZ38: Hebräische | CA38: hebräisch
A39: Nein.ische, Nein. | B39: Hindi | C39: hi | BZ39: Nein.ische | CA39: Nein.
A40: Hmongische, Hmong | B40: Hmong | C40: hmn | BZ40: Hmongische | CA40: Hmong
A41: Ungarische, ungarisch | B41: Hungarian | C41: hu | BZ41: Ungarische | CA41: ungarisch
A42: Isländische, isländisch | B42: Icelandic | C42: is | BZ42: Isländische | CA42: isländisch
A43: Igboische, Igbo | B43: Igbo | C43: ig | BZ43: Igboische | CA43: Igbo
A44: Indonesische, Indonesisch | B44: Indonesian | C44: id | BZ44: Indonesische | CA44: Indonesisch
A45: Irische, irisch | B45: Irish | C45: ga | BZ45: Irische | CA45: irisch
A46: Italienische, Italienisch | B46: Italian | C46: it | BZ46: Italienische | CA46: Italienisch
A47: Japanische, japanisch | B47: Japanese | C47: ja | BZ47: Japanische | CA47: japanisch
A48: Javanische, Javanisch | B48: Javanese | C48: jw | BZ48: Javanische | CA48: Javanisch
A49: Kannadaische, Kannada | B49: Kannada | C49: kn | BZ49: Kannadaische | CA49: Kannada
A50: Kasachische, Kasachisch | B50: Kazakh | C50: kk | BZ50: Kasachische | CA50: Kasachisch
A51: Khmerische, Khmer | B51: Khmer | C51: km | BZ51: Khmerische | CA51: Khmer
A52: Koreanische, Koreanisch | B52: Korean | C52: ko | BZ52: Koreanische | CA52: Koreanisch
A53: Kurdisch (Kurmanji)ische, Kurdisch (Kurmanji) | B53: Kurdish (Kurmanji) | C53: ku | BZ53: Kurdisch (Kurmanji)ische | CA53: Kurdisch (Kurmanji)
A54: Kirgisische, Kirgisisch | B54: Kyrgyz | C54: ky | BZ54: Kirgisische | CA54: Kirgisisch
A55: Arbeitische, Arbeit | B55: Lao | C55: lo | BZ55: Arbeitische | CA55: Arbeit
A56: Lateinische, Latein | B56: Latin | C56: la | BZ56: Lateinische | CA56: Latein
A57: Lettische, lettisch | B57: Latvian | C57: lv | BZ57: Lettische | CA57: lettisch
A58: Litauische, litauisch | B58: Lithuanian | C58: lt | BZ58: Litauische | CA58: litauisch
A59: Luxemburgische, Luxemburgisch | B59: Luxembourgish | C59: lb | BZ59: Luxemburgische | CA59: Luxemburgisch
A60: Mazedonische, mazedonisch | B60: Macedonian | C60: mk | BZ60: Mazedonische | CA60: mazedonisch
A61: Madagassische, Madagassisch | B61: Malagasy | C61: mg | BZ61: Madagassische | CA61: Madagassisch
A62: Malaiische, malaiisch | B62: Malay | C62: ms | BZ62: Malaiische | CA62: malaiisch
A63: Malayalamische, Malayalam | B63: Malayalam | C63: ml | BZ63: Malayalamische | CA63: Malayalam
A64: Maltesische, maltesisch | B64: Maltese | C64: mt | BZ64: Maltesische | CA64: maltesisch
A65: Maoriische, Maori | B65: Maori | C65: mi | BZ65: Maoriische | CA65: Maori
A66: Marathiische, Marathi | B66: Marathi | C66: mr | BZ66: Marathiische | CA66: Marathi
A67: Mongolische, mongolisch | B67: Mongolian | C67: mn | BZ67: Mongolische | CA67: mongolisch
A68: Myanmar (birmanisch)ische, Myanmar (birmanisch) | B68: Myanmar (Burmese) | C68: my | BZ68: Myanmar (birmanisch)ische | CA68: Myanmar (birmanisch)
A69: Nepaliische, Nepali | B69: Nepali | C69: ne | BZ69: Nepaliische | CA69: Nepali
A70: Norwegische, norwegisch | B70: Norwegian | C70: no | BZ70: Norwegische | CA70: norwegisch
A71: Paschtuische, Paschtu | B71: Pashto | C71: ps | BZ71: Paschtuische | CA71: Paschtu
A72: Persische, persisch | B72: Persian | C72: fa | BZ72: Persische | CA72: persisch
A73: Polierenische, Polieren | B73: Polish | C73: pl | BZ73: Polierenische | CA73: Polieren
A74: Portugiesische, Portugiesisch | B74: Portuguese | C74: pt | BZ74: Portugiesische | CA74: Portugiesisch
A75: Punjabiische, Punjabi | B75: Punjabi | C75: pa | BZ75: Punjabiische | CA75: Punjabi
A76: Rumänische, rumänisch | B76: Romanian | C76: ro | BZ76: Rumänische | CA76: rumänisch
A77: Russische, Russisch | B77: Russian | C77: ru | BZ77: Russische | CA77: Russisch
A78: Samoanische, Samoanisch | B78: Samoan | C78: sm | BZ78: Samoanische | CA78: Samoanisch
A79: Schottisches Gälische, Schottisches Gälisch | B79: Scots Gaelic | C79: gd | BZ79: Schottisches Gälische | CA79: Schottisches Gälisch
A80: Serbische, serbisch | B80: Serbian | C80: sr | BZ80: Serbische | CA80: serbisch
A81: Englische, Englisch | B81: Sesotho | C81: st | BZ81: Englische | CA81: Englisch
A82: Shonaische, Shona | B82: Shona | C82: sn | BZ82: Shonaische | CA82: Shona
A83: Sindhiische, Sindhi | B83: Sindhi | C83: sd | BZ83: Sindhiische | CA83: Sindhi
A84: Singhalesische, Singhalesisch | B84: Sinhala | C84: si | BZ84: Singhalesische | CA84: Singhalesisch
A85: Slowakische, slowakisch | B85: Slovak | C85: sk | BZ85: Slowakische | CA85: slowakisch
A86: Slowenische, Slowenisch | B86: Slovenian | C86: sl | BZ86: Slowenische | CA86: Slowenisch
A87: Somaliische, somali | B87: Somali | C87: so | BZ87: Somaliische | CA87: somali
A88: Spanische, Spanisch | B88: Spanish | C88: es | BZ88: Spanische | CA88: Spanisch
A89: Sundanesische, Sundanesisch | B89: Sundanese | C89: su | BZ89: Sundanesische | CA89: Sundanesisch
A90: Suaheliische, Suaheli | B90: Swahili | C90: sw | BZ90: Suaheliische | CA90: Suaheli
A91: Schwedische, Schwedisch | B91: Swedish | C91: sv | BZ91: Schwedische | CA91: Schwedisch
A92: Tadschikische, Tadschikisch | B92: Tajik | C92: tg | BZ92: Tadschikische | CA92: Tadschikisch
A93: Tamilische, Tamil | B93: Tamil | C93: ta | BZ93: Tamilische | CA93: Tamil
A94: Teluguische, Telugu | B94: Telugu | C94: te | BZ94: Teluguische | CA94: Telugu
A95: Thailändische, Thailändisch | B95: Thai | C95: th | BZ95: Thailändische | CA95: Thailändisch
A96: Türkische, Türkisch | B96: Turkish | C96: tr | BZ96: Türkische | CA96: Türkisch
A97: Ukrainische, ukrainisch | B97: Ukrainian | C97: uk | BZ97: Ukrainische | CA97: ukrainisch
A98: Urduische, Urdu | B98: Urdu | C98: ur | BZ98: Urduische | CA98: Urdu
A99: Usbekische, Usbekisch | B99: Uzbek | C99: uz | BZ99: Usbekische | CA99: Usbekisch
A100: Singleische, Single | B100: Vienamese | C100: vi | BZ100: Singleische | CA100: Single
A101: Walisische, Walisisch | B101: Welsh | C101: cy | BZ101: Walisische | CA101: Walisisch
A102: Xhosaische, Xhosa | B102: Xhosa | C102: xh | BZ102: Xhosaische | CA102: Xhosa
A103: Jiddische, Jiddisch | B103: Yiddish | C103: yi | BZ103: Jiddische | CA103: Jiddisch
A104: Yorubaische, Yoruba | B104: Yoruba | C104: yo | BZ104: Yorubaische | CA104: Yoruba
A105: Zulu-ische, Zulu- | B105: Zulu | C105: zu | BZ105: Zulu-ische | CA105: Zulu-

Sheet AIDIALOG (hidden)

Sheet AISPEAK (hidden)
C1: ID | D1: Reactiontags | E1: Antwort | F1: CountsofTagMatch
E2: Ha, ich habs geschafft. Wie geht’s dir Markus. Viel zu tun oder?
E3: Na, na, na, na, na, na.
E4: Das Vergnügen von Busbies Gegenwart ist immer spaßig und nett. Als Miss Jensy ihm ein Teufelchen schuld,legte er ihr Reiszwecken ins Bett. Am Ende des Tages klebten zehn Schweine an Ihrem Rücken hier und dort. Seine Streiche sind so erquickend und blasen meine Schwermut einfach hinfort.

Sheet AIANALYSE (hidden)
C1: ID | D1: What | E1: Depth | G1: Id | H1: Ergebnisprozedur | I1: Beschreibung | J1: wer | K1: was tun | L1: welches objekt | M1: Verbindung zu | N1: wo | O1: verwende | P1: Anrede/was
C2: C | D2: Funktionalitäten | J2: leonie | K2: Verb
C3: 1 | D3: protokollieren
C4: 2 | D4: ausführen
C5: 3 | D5: starten
C6: 4 | D6: übersetzten
C7: 5 | D7: recherchieren
C8: 6 | D8: suchen
C9: 7 | D9: finden
C10: 8 | D10: route berechnen
C11: 9 | D11: informieren
C12: 10 | D12: email senden
C13: 11 | D13: Musik abspielen
C14: 12 | D14: Datenbilder vergleichen
C15: 13 | D15: Google einträger erstellen
C16: 14 | D16: Finanzen überwachen
C17: 15 | D17: Erkennen
C18: 16 | D18: Google recherchieren
C19: 17 | D19: andere Ais steuern
C20: 18 | D20: Alexa, Bixby, Siri, cortana, Siri
C21: 19 | D21: News
C22: 20 | D22: Produce
C23: 21 | D23: reports
C24: 22 | D24: Tasksmanagement
C25: 23 | D25: Spaß

Sheet Display (1) (hidden)
C4: Alerts: | F4: User:
C5: Aufträge: | F5: Account:
C6: Zeitraum: | F6: Status:
C7: Letzte Änderungen: | F7: System:
C8: Neue Einträge: | F8: Version:
E23: 1|3

Sheet Display (2) (hidden)
C4: Alerts: | F4: User:
C5: Aufträge: | F5: Account:
C6: Zeitraum: | F6: Status:
C7: Letzte Änderungen: | F7: System:
C8: Neue Einträge: | F8: Version:
E23: 2|3

Sheet Display (3) (hidden)
C4: Alerts: | F4: User:
C5: Aufträge: | F5: Account:
C6: Zeitraum: | F6: Status:
C7: Letzte Änderungen: | F7: System:
C8: Neue Einträge: | F8: Version:
E23: 3|3

Sheet Alerts (hidden)
A1: ID | B1: Alerts | C1: Source | D1: Status

Sheet HRM (hidden)
A1: ID | B1: Vorname | C1: Namen | D1: Telefon | E1: E-Mail | F1: Was | G1: Wann | H1: Wie | I1: Wo | J1: Warum | K1: Details | L1: Kürzel | M1: Berechtigung | N1: Rolle | O1: Aufgaben | P1: Status

Sheet Projekt-Fokus (hidden)
A1: Fokuskapazität: | G1: Personality | S1: Verteilung:
A2: ID | B2: vom | C2: Worker | D2: Aktivität | G2: ID | H2: Was | K2: Wer | L2: Gesamt | O2: 10
A3: 1 | B3: 2022-02-03 | G3: 1 | H3: Openness (Aufgeschlossenheit) | O3: 9
G4: 2 | H4: Conscientiousness (Gewissenhaftigkeit) | O4: 8
G5: 3 | H5: Extraversion (Geselligkeit) | O5: 7
G6: 4 | H6: Agreeableness (Rücksichtnahme) | O6: 6
G7: 5 | H7: Neuroticism (Verletzlichkeit) | O7: 5
G8: 6 | H8: Narcism (!Gaslightning!) - bei Vorwurf | O8: 4
O9: 3
O10: 2
O11: 1
P12: 10% | R12: 20% | T12: 30% | V12: 40% | X12: Gesamt
Q14: Steigerung
P15: 100% | Q15: -> | R15: 1437%

Sheet Logbuch (hidden)
A1: ID | B1: Papa | C1: Kategorie | D1: Status | E1: Zufallsantworten | I1: Antwort1 | J1: Antwort2 | K1: Antwort3 | L1: Antwort4 | M1: Antwort5 | N1: Antwort6 | O1: Antwort7 | P1: Antwort8 | Q1: Antwort9 | R1: Antwort10 | S1: Antwort11 | T1: Antwort12

Sheet SubPDB (hidden)

Sheet SubPV (hidden)

Sheet SubLB (hidden)

Sheet Steuerung (2) (hidden)
A1: Display (1) | B1: 1 | C1: Smart-Version-ATEC-App: | F1: 1 | L1: ID=3 | M1: 01_Produktionssteuerung.xlsm'!click_Shape
A2: Display (2) | B2: 2 | M2: 01_Produktionssteuerung.xlsm'!shapeko
A3: Display (3) | B3: 3 | M3: 01_Produktionssteuerung.xlsm'!ShapeToTextBox
A4: Alerts | B4: 4 | M4: 01_Produktionssteuerung.xlsm'!Terminalselect
A5: HRM | B5: 5 | M5: 01_Produktionssteuerung.xlsm'!Mein_Name
A6: Projekt-Datenbank | B6: 6 | H6: Sub ShapeCard1 | M6: 01_Produktionssteuerung.xlsm'!click_Shape
A7: Projekt-Visualizer | B7: 7 | H7: ID=1 | M7: 01_Produktionssteuerung.xlsm'!click_Shape
A8: Logbuch | B8: 8 | H8: sheets("Projekt-Visualizer").Range("a1") = ID | M8: 01_Produktionssteuerung.xlsm'!Mein_Name
A9: SubPDB | B9: 9 | H9: ProjekteintragungBearbeiten.Show vbModeless | M9: 01_Produktionssteuerung.xlsm'!click_Shape
A10: SubPV | B10: 10 | H10: End Sub | M10: 01_Produktionssteuerung.xlsm'!click_Shape
A11: SubLB | B11: 11 | M11: 01_Produktionssteuerung.xlsm'!click_Shape
A12: Steuerung | B12: 12 | M12: 01_Produktionssteuerung.xlsm'!Points_Click
M13: 01_Produktionssteuerung.xlsm'!click_Shape

Sheet Aufgaben Management (hidden)
A1: ID | B1: G:\Meine Ablage\03_Entwicklung\04_Excel_Training.xlsm
A2: ID | B2: Was | C2: Content

Sheet Download Area (hidden)
B2: Logged in as: | E2: Smart Store
B3: Right-Level:
A7: Download
A8: OPEN
B9: Gesamt:
B10: Verfügbar:
B11: Downloads:

Sheet Mode (hidden)
A2: Modus aktiviert
A4: TRUE

Sheet Main (5) (hidden)
B1: 1
B2: Master Mode
B3: 1

Sheet Konsolidierung (hidden)

Sheet INetlinks2 (hidden)

Sheet input (hidden)
E1: 21:40:59
E2: 10.01.2022

Sheet O-List (hidden)
A1: FALSE | D1: C:\Users\Marku\Desktop\Management\03_Ausbildung_Studium\06_M.A.-Master ERP und Geschäftsprozessmanagement | F1: XLS | G1: FALSE | H1: PDF | I1: TRUE | J1: PPT | K1: TRUE | L1: DOC | M1: TRUE | N1: TXT | O1: TRUE | P1: C:\Users\Marku\Desktop\Management\03_Ausbildung_Studium\03_B.Eng.-Bachelor Produktions- und Automatisierungstechnik\6. Semester\x00_NCM - NC-Maschinen\B-NCM_Pruefung_2012_07_23-1.pdf | Q1: 1485 | R1: 340

Sheet B-List (hidden)
A1: ID | B1: Thema | C1: Begriff | D1: Definition | E1: Status

Sheet Elaborator (hidden)

Sheet MindMap (hidden)
B1: Die
B2: 105
B4: 6
B5: 1
B8: 1
B9: Modi
B10: HE setzen
B11: 2.6

Sheet OE-Listlog (hidden)

Sheet CybBase (hidden)
A1: WUSBT|WASBT | B1: Studium | F1: Semester | G1: Prüfungstelle | H1: Kandidat | I1: Datum | J1: Uhrzeit
A2: -Learnbase- | B2: Bachelor of Engineering | F2: 1. Semester | G2: Abteilung für Bachelor Degrees | I2: =TODAY() -> 2022-09-04 | J2: 20:27:00 | AA2: FALSE | AC2: C:\Users\Marku\Desktop\01_PBC\Academical Treasury\Academical Treasury_PDFs\QL1\2_.pdf | AD2: 2_.pdf
G3: Felina Küssenberg | AC3: C:\Users\Marku\Desktop\01_PBC\Academical Treasury\Academical Treasury_PDFs\QL2\56_Projektmanagement.pdf | AD3: 56_Projektmanagement.pdf
A4: Aktualisieren | C4: lfd. Nr. | D4: Fach | E4: Abfragetyp | F4: Aufgabenstellung | G4: Status | H4: Wiederholungen | I4: Note | J4: Auswahl | AC4: C:\Users\Marku\Desktop\01_PBC\Academical Treasury\Academical Treasury_PDFs\QL4\55_Project-& Lean and Six Sigma Management.pdf | AD4: 55_Project-& Lean and Six Sigma Management.pdf
AC5: C:\Users\Marku\Desktop\01_PBC\Academical Treasury\Academical Treasury_TM\2_Projektmanagement.xlsx | AD5: 2_Projektmanagement.xlsx
A6: 2021-11-17 | AC6: C:\Users\Marku\Desktop\01_PBC\Academical Treasury\Academical Treasury_TM\2_Projektmanagement_full_t-1.xlsx | AD6: 2_Projektmanagement_full_t-1.xlsx
A7: Starten | AC7: C:\Users\Marku\Desktop\01_PBC\Academical Treasury\Academical Treasury_TM\3_Projektmanagement_full_t-1.xlsx | AD7: 3_Projektmanagement_full_t-1.xlsx
AC8: C:\Users\Marku\Desktop\01_PBC\Academical Treasury\Academical Treasury_TM\4_Projektmanagement_full_t-1.xlsx | AD8: 4_Projektmanagement_full_t-1.xlsx
AC9: C:\Users\Marku\Desktop\01_PBC\Academical Treasury\Academical Treasury_TM\5_Projektmanagement_part_t-1.xlsx | AD9: 5_Projektmanagement_part_t-1.xlsx
A10: Absenden | AC10: C:\Users\Marku\Desktop\01_PBC\Academical Treasury\Academical Treasury_TM\6_Projektmanagement_full_t-1.xlsx | AD10: 6_Projektmanagement_full_t-1.xlsx
AC11: C:\Users\Marku\Desktop\01_PBC\Academical Treasury\Academical Treasury_TM\7_Projektmanagement_part_t-1.xlsx | AD11: 7_Projektmanagement_part_t-1.xlsx
AC12: C:\Users\Marku\Desktop\01_PBC\Uploadfiles\Update.xlsm | AD12: Update.xlsm
A13: Studybase
A16: Generator

Sheet Konfigurator (hidden)
AE1: Qualifikationsziele | AF1: 1 | AG1: 1 | AH1: 1 | AI1: 1 | AJ1: 1 | AK1: 1 | AL1: 2 | AM1: 2 | AN1: 2 | AO1: 2 | AP1: 2 | BM1: 2 | BS1: 2 | BT1: 2 | BU1: 2 | BV1: 2 | BW1: 2 | BX1: 2 | BY1: 2 | BZ1: 2 | CA1: 2 | CB1: 2 | CC1: 2
B2: ID | C2: Kontinent | D2: Land | E2: Universität | F2: Uniurl | G2: Studienfach | H2: Individualisierungsgrad | I2: Ausbildungslevel | J2: db | K2: Qualitätsniveau | L2: db | M2: Organisationsform | N2: db | O2: Studienzeit | P2: db | Q2: Abschlussarbeit | R2: db | S2: Semester | T2: db | U2: Jahre | V2: db | W2: Lehrsprache | X2: db | Y2: Mehrsprachig | Z2: db | AA2: Auswahloption | AB2: db | AC2: Aufbaustudiengänge | AD2: db | AE2: Studienabschnitt | AF2: Fixanteil Lernziele | AG2: ECTS | AH2: Fachkompetenz | AI2: ECTS | AJ2: ID | AK2: Studienabschnitt | AL2: Vorgabe | AM2: Wunschfach | AN2: Studiengebühr | AO2: Unkostenpauschale | AP2: ID | AQ2: Kontinent | AR2: Land | AS2: Universität | AT2: Uniurl | AU2: Studienfach | AV2: Individualisierungsgrad | AW2: Ausbildungslevel | AX2: db | AY2: Qualitätsniveau | AZ2: db | BA2: Organisationsform | BB2: db | BC2: Studienzeit | BD2: db | BE2: Abschlussarbeit | BF2: db | BG2: Semester | BH2: db | BI2: Jahre | BJ2: db | BK2: Lehrsprache | BL2: db | BM2: Mehrsprachig | BN2: db | BO2: Auswahloption | BP2: db | BQ2: Aufbaustudiengänge | BS2: Studienabschnitt | BT2: Fixanteil Lernziele | BU2: ECTS | BV2: Fachkompetenz | BW2: ECTS | BX2: ID | BY2: Studienabschnitt | BZ2: Vorgabe | CA2: Wunschfach | CB2: Studiengebühr | CC2: Unkostenpauschale
B3: 1 | C3: A new world | D3: WUSBT | WASBT II | E3: World University of Science, Business and Technology | F3: www.wasbt.com | H3: Individual | I3: Singular | J3: 19 | K3: Bachelor | L3: 10 | M3: Teilzeit | N3: 2 | O3: 180 | P3: 10 | Q3: 24 | R3: 10 | S3: 6 | T3: 10 | U3: =S3/2 -> 3 | V3: 10 | W3: German | X3: 31 | Y3: English | Z3: 31 | AA3: 66% Boost | AB3: 2 | AC3: interessiert | AD3: 1 | AE3: 2. Studiumsabschnitt | AF3: Sozialkompetenz | AG3: 6
A4: Key | H4: Non Individual | I4: Singular | K4: Bachelor | M4: Vollzeit | O4: 180 | Q4: 24 | S4: 6 | U4: =S4/2 -> 3 | W4: Afrikaans | AA4: 66% Boost | AB4: 1 | AC4: nicht interessiert | AE4: 1. Studiumsabschnitt | AF4: Softskillkompetenz | AG4: 6 | AH4: Science | AI4: 10 | AJ4: 1 | AK4: 1. Studiumsabschnitt | AL4: Sport- und Ernährungscoach
H5: Non Individual | I5: Singular | M5: Teilzeit | O5: 180 | Q5: 24 | S5: 6 | U5: =S5/2 -> 3 | W5: Albanian | AA5: 33% Boost | AF5: Selbstkompetenz | AG5: 6 | AH5: Business | AI5: 10 | AJ5: 2 | AK5: 1. Studiumsabschnitt | AL5: Sportwissenschaft
H6: Non Individual | I6: Singular | K6: Master | M6: Vollzeit | O6: 120 | Q6: 36 | S6: 4 | U6: 2 | W6: Amharic | AA6: 0% Boost | AE6: 2. Studiumsabschnitt | AF6: Sozialkompetenz | AG6: 6 | AH6: Technology | AI6: 10 | AJ6: 3 | AK6: 1. Studiumsabschnitt | AL6: Ernährung des Menschen
H7: Non Individual | I7: Singular | M7: Teilzeit | O7: 120 | Q7: 36 | S7: 4 | U7: 2 | W7: Arabic | AF7: Managementkompetenz | AG7: 6 | AJ7: 4 | AK7: 1. Studiumsabschnitt | AL7: Ernährung verschiedenen Lebensphasen
C8: info | D8: Main | H8: Non Individual | I8: Singular | K8: Doctor | M8: Vollzeit | O8: 180 | Q8: 60 | S8: 6 | U8: 3 | W8: Armenian | AE8: 3. Studiumsabschnitt | AF8: Persönlichkeitskompetenz | AG8: 6 | AJ8: 5 | AK8: 1. Studiumsabschnitt | AL8: Lebensmittelkunde
C9: data | D9: Main (4) | H9: Non Individual | I9: Singular | M9: Teilzeit | O9: 180 | Q9: 60 | S9: 6 | U9: 3 | W9: Azerbaijani | AF9: Methodenkompetenz | AG9: 6 | AJ9: 6 | AK9: 1. Studiumsabschnitt | AL9: Sporternährung
C10: production | D10: Main (3) | H10: Non Individual | I10: Double | K10: Bachelor | M10: Vollzeit | O10: =O4*2 -> 360 | Q10: 48 | S10: 6 | U10: 3 | W10: Basque | AJ10: 7 | AK10: 2. Studiumsabschnitt | AL10: Aktiver & passiver Bewegungsapparat
C11: def | D11: Main (2) | H11: Non Individual | I11: Double | M11: Teilzeit | O11: 360 | Q11: 48 | S11: 6 | U11: 3 | W11: Belarusian | AJ11: 8 | AK11: 2. Studiumsabschnitt | AL11: Anatomie & Physiologie
H12: Non Individual | I12: Double | K12: Master | M12: Vollzeit | O12: 240 | Q12: 72 | S12: 4 | U12: 2 | W12: Bengali | AJ12: 9 | AK12: 2. Studiumsabschnitt | AL12: Leistungsdiagnostik
H13: Non Individual | I13: Double | M13: Teilzeit | O13: 240 | Q13: 72 | S13: 4 | U13: 2 | W13: Bosnian | AJ13: 10 | AK13: 2. Studiumsabschnitt | AL13: Stoffwechsel
H14: Non Individual | I14: Double | K14: Doctor | M14: Vollzeit | O14: 360 | Q14: 102 | S14: 6 | U14: 3 | W14: Bulgarian | AJ14: 11 | AK14: 2. Studiumsabschnitt | AL14: Autogenes Training
H15: Non Individual | I15: Double | M15: Teilzeit | O15: 360 | Q15: 102 | S15: 6 | U15: 3 | W15: Catalan | AJ15: 12 | AK15: 2. Studiumsabschnitt | AL15: Fitnesstraining
H16: Non Individual | I16: Triple | K16: Bachelor | M16: Vollzeit | O16: =O4*3 -> 540 | Q16: 54 | S16: 6 | U16: 3 | W16: Cebuano | AJ16: 13 | AK16: 3. Studiumsabschnitt | AL16: Personal Fitness
H17: Non Individual | I17: Triple | M17: Teilzeit | O17: 540 | Q17: 54 | S17: 6 | U17: 3 | W17: Chichewa | AJ17: 14 | AK17: 3. Studiumsabschnitt | AL17: Indoor-Sport & Fitnessarten
H18: Non Individual | I18: Triple | K18: Master | M18: Vollzeit | O18: 360 | Q18: 108 | S18: 4 | U18: 2 | W18: Chinese | AJ18: 15 | AK18: 3. Studiumsabschnitt | AL18: Empirisches Arbeiten
H19: Non Individual | I19: Triple | M19: Teilzeit | O19: 360 | Q19: 108 | S19: 4 | U19: 2 | W19: Corsican | AJ19: 16 | AK19: 3. Studiumsabschnitt | AL19: Neuroanatomie
H20: Non Individual | I20: Triple | K20: Doctor | M20: Vollzeit | O20: 540 | Q20: 144 | S20: 6 | U20: 3 | W20: Croatian | AJ20: 17 | AK20: 3. Studiumsabschnitt | AL20: Psychologie
H21: Non Individual | I21: Triple | M21: Teilzeit | O21: 540 | Q21: 144 | S21: 6 | U21: 3 | W21: Czech | AJ21: 18 | AK21: 3. Studiumsabschnitt | AL21: LSS Projektmanagement
H22: Individual | I22: Singular | J22: 1 | K22: Bachelor | L22: 1 | M22: Vollzeit | O22: 180 | Q22: 24 | S22: 6 | U22: 3 | W22: Danish
H23: Individual | I23: Singular | M23: Teilzeit | N23: 1 | O23: 180 | P23: 1 | Q23: 24 | R23: 1 | S23: 6 | T23: 1 | U23: 3 | V23: 1 | W23: Dutch | CA23: Meine Studiumsänderung betrifft:/ My studychange is: _ID_1_Kontinent_A new world_Land_WUSBT | WASBT II_Universität_World University of Science, Business and Technology_Uniurl_www.wasbt.com_Studienfach_Ernährungswissenschaft _Individualisierungsgrad_Individual_Ausbildungslevel_Singular_Qualitätsniveau_Bachelor_Organisationsform_Teilzeit_Studienzeit_180_Abschlussarbeit_24_Semester_6_Jahre_3_Lehrsprache_German_Mehrsprachig_English_Auswahloption_66% Boost_Aufbaustudiengänge_interessiert_Aufbaustudiengänge_interessiert_Studienabschnitt_2. Studiumsabschnitt_Kontinent_A new world_Land_WUSBT | WASBT I_Universität_World University of Science, Business and Technology_Uniurl_www.wasbt.com_Studienfach_Ernährungswissenschaft _Individualisierungsgrad_Individual - Singular - Bachelor_Ausbildungslevel_Individual - Singular_Qualitätsniveau_Individual - Singular_Organisationsform_Teilzeit_Studienzeit_Bachelor-180 ECTS_Abschlussarbeit_24 ECTS_Semester_6 Semester_Jahre_3_Lehrsprache_German
H24: Individual | I24: Singular | K24: Master | M24: Vollzeit | O24: 120 | Q24: 36 | S24: 4 | U24: 2 | W24: English | CA24: =LEN(CA23) -> 985
H25: Individual | I25: Singular | M25: Teilzeit | O25: 120 | Q25: 36 | S25: 4 | U25: 2 | W25: Esperanto
H26: Individual | I26: Singular | K26: Doctor | M26: Vollzeit | O26: 180 | Q26: 60 | S26: 6 | U26: 3 | W26: Estonian
H27: Individual | I27: Singular | M27: Teilzeit | O27: 180 | Q27: 60 | S27: 6 | U27: 3 | W27: Filipino
H28: Individual | I28: Double | K28: Bachelor | M28: Vollzeit | O28: =O22*2 -> 360 | Q28: 48 | S28: 6 | U28: 3 | W28: Finnish
H29: Individual | I29: Double | M29: Teilzeit | O29: 360 | Q29: 48 | S29: 6 | U29: 3 | W29: French
H30: Individual | I30: Double | K30: Master | M30: Vollzeit | O30: 240 | Q30: 72 | S30: 4 | U30: 2 | W30: Frisian
H31: Individual | I31: Double | M31: Teilzeit | O31: 240 | Q31: 72 | S31: 4 | U31: 2 | W31: Galician
H32: Individual | I32: Double | K32: Doctor | M32: Vollzeit | O32: 360 | Q32: 102 | S32: 6 | U32: 3 | W32: Georgian
H33: Individual | I33: Double | M33: Teilzeit | O33: 360 | Q33: 102 | S33: 6 | U33: 3 | W33: German | X33: 1 | Y33: English | Z33: 1
H34: Individual | I34: Triple | K34: Bachelor | M34: Vollzeit | O34: =O22*3 -> 540 | Q34: 54 | S34: 6 | U34: 3 | W34: Greek
H35: Individual | I35: Triple | M35: Teilzeit | O35: 540 | Q35: 54 | S35: 6 | U35: 3 | W35: Gujarati
H36: Individual | I36: Triple | K36: Master | M36: Vollzeit | O36: 360 | Q36: 108 | S36: 4 | U36: 2 | W36: Haitian Creole
H37: Individual | I37: Triple | M37: Teilzeit | O37: 360 | Q37: 108 | S37: 4 | U37: 2 | W37: Hausa
H38: Individual | I38: Triple | K38: Doctor | M38: Vollzeit | O38: 540 | Q38: 144 | S38: 6 | U38: 3 | W38: Hawaiian
H39: Individual | I39: Triple | M39: Teilzeit | O39: 540 | Q39: 144 | S39: 6 | U39: 3 | W39: Hebrew
W40: Hindi
W41: Hmong
W42: Hungarian
W43: Icelandic
W44: Igbo
W45: Indonesian
W46: Irish
W47: Italian
W48: Japanese
W49: Javanese
W50: Kannada
W51: Kazakh
W52: Khmer
W53: Korean
W54: Kurdish (Kurmanji)
W55: Kyrgyz
W56: Lao
W57: Latin
W58: Latvian
W59: Lithuanian
W60: Luxembourgish
W61: Macedonian
W62: Malagasy
W63: Malay
W64: Malayalam
W65: Maltese
W66: Maori
W67: Marathi
W68: Mongolian
W69: Myanmar (Burmese)
W70: Nepali
W71: Norwegian
W72: Pashto
W73: Persian
W74: Polish
W75: Portuguese
W76: Punjabi
W77: Romanian
W78: Russian
W79: Samoan
W80: Scots Gaelic
W81: Serbian
W82: Sesotho
W83: Shona
W84: Sindhi
W85: Sinhala
W86: Slovak
W87: Slovenian
W88: Somali
W89: Spanish
W90: Sundanese
W91: Swahili
W92: Swedish
W93: Tajik
W94: Tamil
W95: Telugu
W96: Thai
W97: Turkish
W98: Ukrainian
W99: Urdu
W100: Uzbek
W101: Vienamese
W102: Welsh
W103: Xhosa
W104: Yiddish
W105: Yoruba
W106: Zulu
Z120: p-1

Sheet Access (hidden)
A1: ID | B1: PBC | C1: Name | D1: Nr1 | E1: Nr2 | F1: N3 | G1: Filename | H1: UpdateTime | I1: Link | J1: FirstOrder | K1: SecondOrder | L1: ThirdOrder | M1: f1 | N1: f2 | O1: f3 | P1: f4 | Q1: f5 | R1: f6 | S1: f7 | T1: f8 | U1: f9 | V1: f10 | W1: f11 | X1: f12 | Y1: f13 | Z1: f14 | AA1: f15 | AB1: f16 | AC1: f17

Sheet Systemdata (hidden)
A2: 1 | B2: 0_0_6_E-PBC-WUSBT-Base.xlsm | C2: 0_0_6_E-PBC-WUSBT-Base.xlsm | D2: 0 | E2: 0 | F2: 3 | G2: E-PBC-WUSBT-Base.xlsm | I2: https://wasbt.com/.cm4all/uproc.php/0/WUSBT%2B/Uploadstream/0/WUSBT%2B/Uploadstream/0_0_6_E-PBC-WUSBT-Base.xlsm?cdp=a&_=17e356b5e40 | J2: immediately | K2: 3 | L2: 7

Sheet PBC-lang (hidden)

Sheet Akeys (hidden)
A1: ID | B1: Lkey | C1: Akey | D1: Timestart | E1: Timeend | F1: Link | G1: What | H1: FirstOrder | I1: SecondOrder | J1: ThirdOrder | K1: Pause | L1: Storno | M1: Deaktivated | N1: Reaktivate | O1: Wiederherstellen | P1: Column16 | Q1: WUSBTR | R1: studyanzem=true | S1: Studium | T1: Semester | U1: Prüfungstelle | V1: Kandidat | W1: f7 | X1: f8 | Y1: f9 | Z1: f10 | AA1: f11 | AB1: f12 | AC1: f13 | AD1: f14 | AE1: f15 | AF1: f16 | AG1: f17
A2: 1 | C2: 109K4KVF221120 | D2: 2021-10-19 | E2: 2022-10-19
A3: 2 | C3: 10YM9C03445621121 | D3: 2021-10-19 | E3: 2022-10-19 | Q3: 1 | S3: B.Sc. Ernährungswissenschaft | T3: 5. Semester | U3: Abteilung für Bachelor Degrees - Felina Küssenberg | V3: Tanja Laurin | X3: 1
A4: 3 | C4: 10YM9C034456211321 | D4: 2021-10-19 | E4: 2022-10-19
A5: 4 | C5: 0YM9C0344562112 | D5: 2021-10-19 | E5: 2022-10-19 | Q5: 1 | S5: Dr.h.c. Cybernetic & Anthropology | T5: 8. Semester | U5: Abteilung für PhD/ Dr. Degrees - Tamina Merckelbach | V5: Markus Schmid | X5: 1

Sheet Cyberdata (hidden)
A1: lfd. Nr. | B1: C-Name | C1: Preis | D1: Beschreibung | E1: Download Link | F1: Dateiversionsname | G1: Dateiversionsname | H1: Numerrierung | I1: Status | J1: Prio | K1: Done | L1: Kategorie | M1: Kombinierbarkeit | N1: Picture | O1: Keys | P1: Keys | Q1: Keys | R1: Keys | S1: Keys | T1: Keys | U1: Keys | V1: Keys | W1: Keys | X1: Keys | Y1: Keys | Z1: Keys | AA1: Keys | AB1: Keys | AC1: Keys | AD1: Keys | AE1: Keys | AF1: Keys | AG1: Keys | AH1: Keys | AI1: Keys | AJ1: Keys | AK1: Keys | BXX1: 6_Projektmanagement_full_t-1.xlsx | BXY1: C:\Users\Marku\Desktop\01_PBC\Cybernetics\6_Projektmanagement_full_t-1.xlsx
B2: Bilanz Planning Bot | E2: https://wasbt.com/.cm4all/uproc.php/0/Downloads/Learnbase/6_Projektmanagement_full_t-1.xlsx?cdp=a&_=17da56914b8 | F2: 01_Bilanz.xlsm | G2: Bilanz Planning Bot | H2: 0_0_1_Bilanz Planning Bot | I2: Privat | J2: 0 | N2: C:\Users\Marku\Desktop\01_Bilanz.xlsm | O2: 08YM9C034456211622
B3: Prozessor ID Read Bot | C3: kostenlos | D3: Übungsabfrage -gemischt | E3: https://wasbt.com/.cm4all/uproc.php/0/Downloads/Cybernetics/01_01_01_WUSBT_%20I_%20WASBT_Markus.xlsm?cdp=a&_=17dd4633c08 | F3: Prozessoridauslesen.xlsm | G3: Prozessor ID Read Bot | H3: 0_0_1_Prozessor ID Read Bot | I3: Privat | J3: 1 | K3: 1 | L3: 1 | N3: C:\Users\Marku\Desktop\Prozessoridauslesen.xlsm
B4: WUSBT_ I_ WASBT_E-Learn-Base | C4: kostenlos | D4: 2,99€ /month | E4: https://wasbt.com/.cm4all/uproc.php/0/Downloads/Cybernetics/Prozessoridauslesen.xlsm?cdp=a&_=17dd4633c08 | F4: 01_01_01_WUSBT_ I_ WASBT_Markus.xlsm | G4: WUSBT_ I_ WASBT_E-Learn-Base | H4: 0_0_1_WUSBT_ I_ WASBT_E-Learn-Base | I4: Privat | J4: 1 | K4: 1 | L4: 1 | N4: C:\Users\Marku\Desktop\01_01_01_WUSBT_ I_ WASBT_Markus.xlsm
B5: My Swimlanes & Calender Bot | C5: kostenlos | D5: update | E5: https://wasbt.com/.cm4all/uproc.php/0/Downloads/Cybernetics/01_My%20Swimlanes%20-%20all%20.xlsm?cdp=a&_=17dd4633c08 | F5: 01_My Swimlanes - all .xlsm | G5: My Swimlanes & Calender Bot | H5: 0_0_1_My Swimlanes & Calender Bot | I5: Privat | J5: 1 | K5: 1 | L5: 1 | N5: C:\Users\Marku\Desktop\01_My Swimlanes - all .xlsm
B6: HRM Bot | C6: kostenlos | D6: Unterstützt das fachspezifische managen von Menschen, Objekten und Ihren resourcenmäßigen Umgebung | E6: https://wasbt.com/.cm4all/uproc.php/0/Downloads/Cybernetics/01_01_01_HRM.xlsm?cdp=a&_=17de8920740 | F6: 01_01_01_HRM.xlsm | G6: HRM Bot | H6: 01_01_01_HRM.xlsm | K6: 1
B7: My Swimlanes Bot | C7: kostenlos | D7: Ermöglicht das elaborieren und mangen von multifaktoriellen Parametern des Lebens, Ebenen des Managements und unterstützt die Bearbeitung und Priorisierung dieser uvm. | E7: https://wasbt.com/.cm4all/uproc.php/0/Downloads/Cybernetics/01_01_01_My%20Swimlanes.xlsm?cdp=a&_=17de8920b28 | F7: 01_01_01_My Swimlanes.xlsm | G7: My Swimlanes Bot | H7: 01_01_01_My Swimlanes.xlsm | K7: 1
B8: Prozessor-ID-Auslesen | C8: kostenlos | D8: Wie der Name schon sagt, ermöglicht es dieses eher sehr kleine Cybernetic die Prozessor-ID beispielsweise zum Service Schutz von Daten auszulesen und zu übertragen. | E8: https://wasbt.com/.cm4all/uproc.php/0/Downloads/Cybernetics/01_01_01_Prozessor-ID-Auslesen.xlsm?cdp=a&_=17de8920b28 | F8: 01_01_01_Prozessor-ID-Auslesen.xlsm | G8: Prozessor-ID-Auslesen | H8: 01_01_01_Prozessor-ID-Auslesen.xlsm | K8: 1
B9: WUSBT_I_WASBT_Selbstlernplattform | C9: kostenlos | D9: Mit der Selbstlernplattform, wird das Lernen jeglicher Fächer einfacher. Die Abfrageunterstützung und Timejumps zwischen Checklisten und Theorie erhöhen die Erfolgsrate. | E9: https://wasbt.com/.cm4all/uproc.php/0/Downloads/Cybernetics/01_01_01_WUSBT_%20I_%20WASBT_Selbstlernplattform.xlsm?cdp=a&_=17de8920f10 | F9: 01_01_01_WUSBT_I_WASBT_Selbstlernplattform.xlsm | G9: WUSBT_I_WASBT_Selbstlernplattform | H9: 01_01_01_WUSBT_I_WASBT_Selbstlernplattform.xlsm | K9: 1
B10: Planetic Bot | D10: preisverkauf-warenkorb-key-dann installation | F10: Planetic Bot.xlsm | G10: Planetic Bot | H10: 0_0_1_Planetic Bot | I10: Privat | J10: 1 | N10: C:\Users\Marku\Desktop\Planetic Bot.xlsm
B11: File Management Bot | D11: cybernetics schreibschutz | F11: 01_File Management Bot.xlsm | G11: File Management Bot | H11: 0_0_1_File Management Bot | I11: Privat | J11: 1 | N11: C:\Users\Marku\Desktop\Cybernetics\01_File Management Bot\01_File Management Bot.xlsm
B12: Presentation Translation Bot | F12: 00_00_01_Presentation-Translation-Foil-Reader-Bot .xlsm | G12: Presentation Translation Bot | H12: 0_0_1_Presentation Translation Bot | I12: Privat | J12: 1 | N12: C:\Users\Marku\Desktop\Cybernetics\02_Presentation Bot\00_00_01_Presentation-Translation-Foil-Reader-Bot .xlsm
B13: Presentation Bot | F13: 01_Presentation Paper Bot.xlsm | G13: Presentation Bot | H13: 0_0_1_Presentation Bot | I13: Privat | J13: 1 | N13: C:\Users\Marku\Desktop\Cybernetics\02_Presentation Bot\01_Presentation Paper Bot.xlsm
B14: Presentation Technology Bot | F14: 01_Technology_Presentation_Markus_Schmid.pptm | G14: Presentation Technology Bot | H14: 0_0_1_Presentation Technology Bot | I14: Privat | J14: 1 | N14: C:\Users\Marku\Desktop\Cybernetics\02_Presentation Bot\01_Technology_Presentation_Markus_Schmid.pptm
B15: Transformed Dissertation Result Bot | F15: 01_Transformed_Dissertation Seminar_Markus_Schmid_2021.pptm | G15: Transformed Dissertation Result Bot | H15: 0_0_1_Transformed Dissertation Result Bot | I15: Privat | J15: 1 | N15: C:\Users\Marku\Desktop\Cybernetics\02_Presentation Bot\01_Transformed_Dissertation Seminar_Markus_Schmid_2021.pptm
B16: Presentation Paper Bot | F16: 02_Presentation Paper Bot.xlsm | G16: Presentation Paper Bot | H16: 0_0_1_Presentation Paper Bot | I16: Privat | J16: 1 | N16: C:\Users\Marku\Desktop\Cybernetics\02_Presentation Bot\02_Presentation Paper Bot.xlsm
B17: Faktura Bot | F17: 01_E-PBC_Faktura_Robotik.xlsm | G17: Faktura Bot | H17: 0_0_1_Faktura Bot | I17: Privat | J17: 1 | N17: C:\Users\Marku\Desktop\Cybernetics\03_Faktura Bot\01_E-PBC_Faktura_Robotik.xlsm
B18: Team Management Bot | F18: Team.xlsm | G18: Team Management Bot | H18: 0_0_1_Team Management Bot | I18: Privat | J18: 1 | N18: C:\Users\Marku\Desktop\Cybernetics\04_HRM Bot\Team.xlsm
B19: Medical Supervision Bot | F19: Medical_Supervision_v3.pptx | G19: Medical Supervision Bot | H19: 0_0_1_Medical Supervision Bot | I19: Privat | J19: 1 | N19: C:\Users\Marku\Desktop\Cybernetics\07_Medical Super Bot\Medical_Supervision_v3.pptx
B20: Trainings Bot | F20: Trainings Bot.xlsm | G20: Trainings Bot | H20: 0_0_1_Trainings Bot | I20: Privat | J20: 1 | N20: C:\Users\Marku\Desktop\Cybernetics\07_Medical Super Bot\Trainings Bot.xlsm
B21: Curricula Studiorum Bot | F21: 01_Curricula Studiorum Bot.xlsm | G21: Curricula Studiorum Bot | H21: 0_0_1_Curricula Studiorum Bot | I21: Privat | J21: 1 | N21: C:\Users\Marku\Desktop\Cybernetics\08_WASBT Study Bot\01_Curricula Studiorum Bot.xlsm
B22: Immatrikulation Bot | D22: resteprocedure | F22: 01_Immatrikulation Bot.xlsm | G22: Immatrikulation Bot | H22: 0_0_1_Immatrikulation Bot | I22: Privat | J22: 1 | N22: C:\Users\Marku\Desktop\Cybernetics\08_WASBT Study Bot\01_Immatrikulation Bot.xlsm
B23: WUSBT Study Configuration Bot | D23: if not master then reset and set 1res for not always | F23: 01_WUSBT_WASBT - Study Configurator.xlsm | G23: WUSBT Study Configuration Bot | H23: 0_0_1_WUSBT Study Configuration Bot | I23: Privat | J23: 1 | N23: C:\Users\Marku\Desktop\Cybernetics\08_WASBT Study Bot\01_WUSBT_WASBT - Study Configurator.xlsm
B24: Inventory Leaflet Bot | D24: download view if master private | F24: 01_Inventory Leafletter Bot.xlsm | G24: Inventory Leaflet Bot | H24: 0_0_1_Inventory Leaflet Bot | I24: Privat | J24: 1 | N24: C:\Users\Marku\Desktop\Cybernetics\09_Inventory Bot\01_Inventory Leafletter Bot.xlsm
B25: My Studies Bot | F25: 01_Studien_elaboriert_Bachelor_Master_Daten.xlsm | G25: My Studies Bot | H25: 0_0_1_My Studies Bot | I25: Privat | J25: 1 | N25: C:\Users\Marku\Desktop\01_Studien_elaboriert_Bachelor_Master_Daten.xlsm
B26: My Certification Bot | D26: if downloadlinkhack->schreibschutz, pw schutz, base-ok | F26: 01_Zeugnisse.xlsm | G26: My Certification Bot | H26: 0_0_1_My Certification Bot | I26: Privat | J26: 1 | N26: C:\Users\Marku\Desktop\01_Zeugnisse.xlsm
B27: Win Taste H Bot | D27: keys: zugriffserlaubnis | F27: WinTasteh.txt | G27: Win Taste H Bot | H27: 0_0_1_Win Taste H Bot | I27: Privat | J27: 1 | N27: C:\Users\Marku\Desktop\Work in progress\06_Files und Notizen\WinTasteh.txt
B28: Delta Management Bot | D28: datei öffnen, wusbt sheet, makroshide, produce a cybernetic | F28: Soll-Ist Vergleich.xlsx | G28: Delta Management Bot | H28: 0_0_1_Delta Management Bot | I28: Privat | J28: 1 | N28: C:\Users\Marku\Desktop\Management\00_Management\Soll-Ist Vergleich.xlsx
B29: Studium Konfigurator | F29: Studium Konfigurator.xlsm | G29: Studium Konfigurator | H29: 0_0_1_Studium Konfigurator | I29: Privat | J29: 1 | N29: C:\Users\Marku\Desktop\Management\04_Businesses\03_WUSBT_World_University_of_Science_Business_and_Technology\Studium Konfigurator.xlsm
B30: Dataread Bot | F30: Dataread.xlsm | G30: Dataread Bot | H30: 0_0_1_Dataread Bot | I30: Privat | J30: 1 | N30: C:\Users\Marku\Desktop\Cybernetics\11_Porns Bot\Dataread.xlsm
B31: Databank Full Table Bot | F31: DBFullTable.xlsm | G31: Databank Full Table Bot | H31: 0_0_1_Databank Full Table Bot | I31: Privat | J31: 1 | N31: C:\Users\Marku\Desktop\Cybernetics\11_Porns Bot\DBFullTable.xlsm
B32: Management Robot | F32: 01_Management_Robot1.xlsm | G32: Management Robot | H32: 0_0_1_Management Robot | I32: Privat | J32: 1 | N32: C:\Users\Marku\Desktop\Cybernetics\14_MGT Bot\01_Management_Robot1.xlsm
B33: BAS Bot | F33: 01_BAS Bot.xlsm | G33: BAS Bot | H33: 0_0_1_BAS Bot | I33: Privat | J33: 1 | N33: C:\Users\Marku\Desktop\Cybernetics\15_BAS Bot\01_BAS Bot.xlsm
B34: Paper Bot | F34: 01_Paper Bot (3).xlsm | G34: Paper Bot | H34: 0_0_1_Paper Bot | I34: Privat | J34: 1 | N34: C:\Users\Marku\Desktop\Cybernetics\16_Paper Bot\01_Paper Bot (3).xlsm
B35: Paper Bot (Dr-Arbeit und Ernährungswissenschaften) | F35: 02_Paper Bot (Dr-Arbeit und Ernährungswissenschaften).xlsm | G35: Paper Bot (Dr-Arbeit und Ernährungswissenschaften) | H35: 0_0_1_Paper Bot (Dr-Arbeit und Ernährungswissenschaften) | I35: Privat | J35: 1 | N35: C:\Users\Marku\Desktop\Cybernetics\16_Paper Bot\02_Paper Bot (Dr-Arbeit und Ernährungswissenschaften).xlsm
B36: Paper Bot (Dr-Arbeit und Physik) | F36: 03_Paper Bot (Dr-Arbeit und Physik).xlsm | G36: Paper Bot (Dr-Arbeit und Physik) | H36: 0_0_1_Paper Bot (Dr-Arbeit und Physik) | I36: Privat | J36: 1 | N36: C:\Users\Marku\Desktop\Cybernetics\16_Paper Bot\03_Paper Bot (Dr-Arbeit und Physik).xlsm
B37: Paper Bot (Dr-Arbeit und Umweltschutz) | F37: 04_Paper Bot (Dr-Arbeit und Umweltschutz).xlsm | G37: Paper Bot (Dr-Arbeit und Umweltschutz) | H37: 0_0_1_Paper Bot (Dr-Arbeit und Umweltschutz) | I37: Privat | J37: 1 | N37: C:\Users\Marku\Desktop\Cybernetics\16_Paper Bot\04_Paper Bot (Dr-Arbeit und Umweltschutz).xlsm
B38: Paper Bot (Dr-Arbeit und Agiles Scrum) | F38: 05_Paper Bot (Dr-Arbeit und Agiles Scrum).xlsm | G38: Paper Bot (Dr-Arbeit und Agiles Scrum) | H38: 0_0_1_Paper Bot (Dr-Arbeit und Agiles Scrum) | I38: Privat | J38: 1 | N38: C:\Users\Marku\Desktop\Cybernetics\16_Paper Bot\05_Paper Bot (Dr-Arbeit und Agiles Scrum).xlsm
B39: Paper Bot (Dr-Arbeit und Studium) - Kopie | F39: 06_Paper Bot (Dr-Arbeit und Studium) - Kopie.xlsm | G39: Paper Bot (Dr-Arbeit und Studium) - Kopie | H39: 0_0_1_Paper Bot (Dr-Arbeit und Studium) - Kopie | I39: Privat | J39: 1 | N39: C:\Users\Marku\Desktop\Cybernetics\16_Paper Bot\06_Paper Bot (Dr-Arbeit und Studium) - Kopie.xlsm
B40: Paper Bot (Dr-Arbeit und Studium) | F40: 06_Paper Bot (Dr-Arbeit und Studium).xlsm | G40: Paper Bot (Dr-Arbeit und Studium) | H40: 0_0_1_Paper Bot (Dr-Arbeit und Studium) | I40: Privat | J40: 1 | N40: C:\Users\Marku\Desktop\Cybernetics\16_Paper Bot\06_Paper Bot (Dr-Arbeit und Studium).xlsm
B41: Paper Bot (Dr-Arbeit und ADB) | F41: 07_Paper Bot (Dr-Arbeit und ADB).xlsm | G41: Paper Bot (Dr-Arbeit und ADB) | H41: 0_0_1_Paper Bot (Dr-Arbeit und ADB) | I41: Privat | J41: 1 | N41: C:\Users\Marku\Desktop\Cybernetics\16_Paper Bot\07_Paper Bot (Dr-Arbeit und ADB).xlsm
B42: Paper Bot (Dr-Arbeit und Studium) | F42: 06_Paper Bot (Dr-Arbeit und Studium).xlsm | G42: Paper Bot (Dr-Arbeit und Studium) | H42: 0_0_1_Paper Bot (Dr-Arbeit und Studium) | I42: Privat | J42: 1 | N42: C:\Users\Marku\Desktop\Cybernetics\16_Paper Bot\06_Paper Bot (Dr-Arbeit und Studium) - Kopie.xlsm
B43: Carrier Base Bot | F43: Carrier Base.xlsx | G43: Carrier Base Bot | H43: 0_0_1_Carrier Base Bot | I43: Privat | J43: 1 | N43: C:\Users\Marku\Desktop\Work in progress\04_Public\Carrier Base.xlsx
B44: Production Base Bot | F44: Production Base.xlsx | G44: Production Base Bot | H44: 0_0_1_Production Base Bot | I44: Privat | J44: 1 | N44: C:\Users\Marku\Desktop\Work in progress\04_Public\Production Base.xlsx
B45: Time Base Bot | F45: Time Base.xlsx | G45: Time Base Bot | H45: 0_0_1_Time Base Bot | I45: Privat | J45: 1 | N45: C:\Users\Marku\Desktop\Work in progress\04_Public\Time Base.xlsx
B46: Management Robot Elementary Center File | F46: 01_Management_Robot_Elementary_Center.docx | G46: Management Robot Elementary Center File | H46: 0_0_1_Management Robot Elementary Center File | I46: Privat | J46: 1 | N46: C:\Users\Marku\Desktop\Work in progress\06_Files und Notizen\01_Management_Robot_Elementary_Center.docx
B47: WUSBT Paper Base Bot | F47: 04_WUSBT_Paper Base Bot.txt | G47: WUSBT Paper Base Bot | H47: 0_0_1_WUSBT Paper Base Bot | I47: Privat | J47: 1 | N47: C:\Users\Marku\Desktop\Work in progress\06_Files und Notizen\04_WUSBT_Paper Base Bot.txt
B48: PDF MGT Bot | F48: 07_PDFs.txt | G48: PDF MGT Bot | H48: 0_0_1_PDF MGT Bot | I48: Privat | J48: 1 | N48: C:\Users\Marku\Desktop\Work in progress\06_Files und Notizen\07_PDFs.txt
B49: Products Robotic | F49: 07_Products.txt | G49: Products Robotic | H49: 0_0_1_Products Robotic | I49: Privat | J49: 1 | N49: C:\Users\Marku\Desktop\Work in progress\06_Files und Notizen\07_Products.txt
B50: Initialisation Robotic | F50: 08_Initialise.txt | G50: Initialisation Robotic | H50: 0_0_1_Initialisation Robotic | I50: Privat | J50: 1 | N50: C:\Users\Marku\Desktop\Work in progress\06_Files und Notizen\08_Initialise.txt
B51: Cybernetic PBC System | F51: 09_Cybernetic pbc system ordner.txt | G51: Cybernetic PBC System | H51: 0_0_1_Cybernetic PBC System | I51: Privat | J51: 1 | N51: C:\Users\Marku\Desktop\Work in progress\06_Files und Notizen\09_Cybernetic pbc system ordner.txt
B52: Sprach Memo Sender Bot | F52: 09_Sprach Memo - Sender EAMS - .txt | G52: Sprach Memo Sender Bot | H52: 0_0_1_Sprach Memo Sender Bot | I52: Privat | J52: 1 | N52: C:\Users\Marku\Desktop\Work in progress\06_Files und Notizen\09_Sprach Memo - Sender EAMS - .txt
B53: Cyber Base Map Builder Bot | F53: Cybermap.xlsx | G53: Cyber Base Map Builder Bot | H53: 0_0_1_Cyber Base Map Builder Bot | I53: Privat | J53: 1 | N53: C:\Users\Marku\Desktop\Work in progress\06_Files und Notizen\Cybermap.xlsx
B54: Life Ressource Router | F54: Lebensoptimierungsverteilung.xlsx | G54: Life Ressource Router | H54: 0_0_1_Life Ressource Router | I54: Privat | J54: 1 | N54: C:\Users\Marku\Desktop\Work in progress\06_Files und Notizen\Lebensoptimierungsverteilung.xlsx
B55: Prozess MGT Bot | F55: prozess.txt | G55: Prozess MGT Bot | H55: 0_0_1_Prozess MGT Bot | I55: Privat | J55: 1 | N55: C:\Users\Marku\Desktop\Work in progress\06_Files und Notizen\prozess.txt
B56: Special Paper Bot | F56: Special Paper Bot.xlsm | G56: Special Paper Bot | H56: 0_0_1_Special Paper Bot | I56: Privat | J56: 1 | N56: C:\Users\Marku\Desktop\Work in progress\06_Files und Notizen\Special Paper Bot.xlsm
B57: Corporate Identity Bot | F57: Vertraulichkeitsvereinbarung.pdf | G57: Corporate Identity Bot | H57: 0_0_1_Corporate Identity Bot | I57: Privat | J57: 1 | N57: C:\Users\Marku\Desktop\Work in progress\06_Files und Notizen\Vertraulichkeitsvereinbarung.pdf
B58: Licence Checklist Bot | F58: Lizenz Checklist.xlsm | G58: Licence Checklist Bot | H58: 0_0_1_Licence Checklist Bot | I58: Privat | J58: 1 | N58: C:\Users\Marku\Desktop\Management\00_Management\Lizenz Checklist.xlsm
B59: Activity Log Bot | F59: 01_Aktivitätslog.docx | G59: Activity Log Bot | H59: 0_0_1_Activity Log Bot | I59: Privat | J59: 1 | N59: C:\Users\Marku\Desktop\Management\04_Businesses\03_WUSBT_World_University_of_Science_Business_and_Technology\01_Aktivitätslog.docx
B60: Control Panel Bot | F60: 01_Control Panel-WASBT~WUSBT.xlsm | G60: Control Panel Bot | H60: 0_0_1_Control Panel Bot | I60: Privat | J60: 1 | N60: C:\Users\Marku\Desktop\Management\04_Businesses\03_WUSBT_World_University_of_Science_Business_and_Technology\01_Control Panel-WASBT~WUSBT.xlsm
B61: Exam System Bot | F61: Exam System Tabelle.xlsx | G61: Exam System Bot | H61: 0_0_1_Exam System Bot | I61: Privat | J61: 1 | N61: C:\Users\Marku\Desktop\Management\04_Businesses\03_WUSBT_World_University_of_Science_Business_and_Technology\Exam System Tabelle.xlsx
B62: Uni Gen Bot | F62: Robot Uni Gen.xlsm | G62: Uni Gen Bot | H62: 0_0_1_Uni Gen Bot | I62: Privat | J62: 1 | N62: C:\Users\Marku\Desktop\Management\04_Businesses\03_WUSBT_World_University_of_Science_Business_and_Technology\Robot Uni Gen.xlsm
B63: Academical Degree Generator | F63: Studienfächer Akademische Grade.xlsm | G63: Academical Degree Generator | H63: 0_0_1_Academical Degree Generator | I63: Privat | J63: 1 | N63: C:\Users\Marku\Desktop\Management\04_Businesses\03_WUSBT_World_University_of_Science_Business_and_Technology\WUSBT\Studienfächer Akademische Grade.xlsm
B64: Studies and Modules Bot | F64: Studiengänge und Module.xlsx | G64: Studies and Modules Bot | H64: 0_0_1_Studies and Modules Bot | I64: Privat | J64: 1 | N64: C:\Users\Marku\Desktop\Management\04_Businesses\03_WUSBT_World_University_of_Science_Business_and_Technology\WUSBT\Studiengänge und Module.xlsx
B65: Home Kalkulation Bot | F65: 01_Home_Kalkulation.xlsm | G65: Home Kalkulation Bot | H65: 0_0_1_Home Kalkulation Bot | I65: Privat | J65: 1 | N65: C:\Users\Marku\Desktop\Management\04_Businesses\46_SH_Schmid_Home\01_Home_Kalkulation.xlsm
B66: BWL Kernsystem Robotic | F66: Betriebswirtschaftliches Kernsystem.xlsx | G66: BWL Kernsystem Robotic | H66: 0_0_1_BWL Kernsystem Robotic | I66: Privat | J66: 1 | N66: C:\Users\Marku\Desktop\Management\04_Businesses\51_BWL_Betriebswirtschaftslehre_Schmid\Betriebswirtschaftliches Kernsystem.xlsx
B67: Marktprozess Bot | F67: Marktprozess.xlsx | G67: Marktprozess Bot | H67: 0_0_1_Marktprozess Bot | I67: Privat | J67: 1 | N67: C:\Users\Marku\Desktop\Management\04_Businesses\51_BWL_Betriebswirtschaftslehre_Schmid\Marktprozess.xlsx
B68: App Dev Bot | F68: 07-PA-Appentwicklung | G68: App Dev Bot | H68: 0_0_1_App Dev Bot | I68: Privat | J68: 1 | N68: C:\Users\Marku\Desktop\Management\08_Projekte\07-PA-Appentwicklung
B69: Activity Check Bot | F69: 004_Activity Check Bot | G69: Activity Check Bot | H69: 0_0_1_Activity Check Bot | I69: Privat | J69: 1 | N69: C:\Users\Marku\Desktop\Management\09_Robots\004_Activity Check Bot
B70: Auto Start Bot | F70: 009_AutoStart Bot | G70: Auto Start Bot | H70: 0_0_1_Auto Start Bot | I70: Privat | J70: 1 | N70: C:\Users\Marku\Desktop\Management\09_Robots\009_AutoStart Bot
B71: Autostart Email Bot | F71: 010_Autostart Email Bot | G71: Autostart Email Bot | H71: 0_0_1_Autostart Email Bot | I71: Privat | J71: 1 | N71: C:\Users\Marku\Desktop\Management\09_Robots\010_Autostart Email Bot
B72: Book Creation Bot | F72: 013_Book Creation Bot | G72: Book Creation Bot | H72: 0_0_1_Book Creation Bot | I72: Privat | J72: 1 | N72: C:\Users\Marku\Desktop\Management\09_Robots\013_Book Creation Bot
B73: Books Bot | F73: 014_Books Bot | G73: Books Bot | H73: 0_0_1_Books Bot | I73: Privat | J73: 1 | N73: C:\Users\Marku\Desktop\Management\09_Robots\014_Books Bot
B74: Daten Machine Bot | F74: 024_Daten Machine Bot | G74: Daten Machine Bot | H74: 0_0_1_Daten Machine Bot | I74: Privat | J74: 1 | N74: C:\Users\Marku\Desktop\Management\09_Robots\024_Daten Machine Bot
B75: Decision Bot | F75: 025_Decision Bot | G75: Decision Bot | H75: 0_0_1_Decision Bot | I75: Privat | J75: 1 | N75: C:\Users\Marku\Desktop\Management\09_Robots\025_Decision Bot
B76: Direct Memorandum Bot | F76: 030_Direct Memorandum I Bot | G76: Direct Memorandum Bot | H76: 0_0_1_Direct Memorandum Bot | I76: Privat | J76: 1 | N76: C:\Users\Marku\Desktop\Management\09_Robots\030_Direct Memorandum I Bot
B77: Doktor Bot | F77: 033_Doktor Bot | G77: Doktor Bot | H77: 0_0_1_Doktor Bot | I77: Privat | J77: 1 | N77: C:\Users\Marku\Desktop\Management\09_Robots\033_Doktor Bot
B78: Elaborator Bot | F78: 036_Elaborator Bot | G78: Elaborator Bot | H78: 0_0_1_Elaborator Bot | I78: Privat | J78: 1 | N78: C:\Users\Marku\Desktop\Management\09_Robots\036_Elaborator Bot
B79: Elementary Star System of Robotics | F79: 037_Elementare Sternsystem der Robotic Center | G79: Elementary Star System of Robotics | H79: 0_0_1_Elementary Star System of Robotics | I79: Privat | J79: 1 | N79: C:\Users\Marku\Desktop\Management\09_Robots\037_Elementare Sternsystem der Robotic Center
B80: E-Mail Bot | F80: 038_Email -Bot | G80: E-Mail Bot | H80: 0_0_1_E-Mail Bot | I80: Privat | J80: 1 | N80: C:\Users\Marku\Desktop\Management\09_Robots\038_Email -Bot
B81: E-Research Base Bot | F81: 039_E-Research Base Bot | G81: E-Research Base Bot | H81: 0_0_1_E-Research Base Bot | I81: Privat | J81: 1 | N81: C:\Users\Marku\Desktop\Management\09_Robots\039_E-Research Base Bot
B82: Health & Sport Bot | F82: 052_Health & Sport Bot | G82: Health & Sport Bot | H82: 0_0_1_Health & Sport Bot | I82: Privat | J82: 1 | N82: C:\Users\Marku\Desktop\Management\09_Robots\052_Health & Sport Bot
B83: ICS Bot | F83: 056_ICS Bot | G83: ICS Bot | H83: 0_0_1_ICS Bot | I83: Privat | J83: 1 | N83: C:\Users\Marku\Desktop\Management\09_Robots\056_ICS Bot
B84: Konfigurator Bot | F84: 065_Konfigurator Bot | G84: Konfigurator Bot | H84: 0_0_1_Konfigurator Bot | I84: Privat | J84: 1 | N84: C:\Users\Marku\Desktop\Management\09_Robots\065_Konfigurator Bot
B85: Medical Supervision Bot | F85: 079_Medical Supervision Bot | G85: Medical Supervision Bot | H85: 0_0_1_Medical Supervision Bot | I85: Privat | J85: 1 | N85: C:\Users\Marku\Desktop\Management\09_Robots\079_Medical Supervision Bot
B86: Memorandum Bot | F86: 080_Memorandum Bot | G86: Memorandum Bot | H86: 0_0_1_Memorandum Bot | I86: Privat | J86: 1 | N86: C:\Users\Marku\Desktop\Management\09_Robots\080_Memorandum Bot
B87: Mgt Auto Cycle Net Bot | F87: 081_Mgt Auto Cycle Net Bot | G87: Mgt Auto Cycle Net Bot | H87: 0_0_1_Mgt Auto Cycle Net Bot | I87: Privat | J87: 1 | N87: C:\Users\Marku\Desktop\Management\09_Robots\081_Mgt Auto Cycle Net Bot
B88: MGT Bot | F88: 082_MGT Bot | G88: MGT Bot | H88: 0_0_1_MGT Bot | I88: Privat | J88: 1 | N88: C:\Users\Marku\Desktop\Management\09_Robots\082_MGT Bot
B89: Miron Susano Bot | F89: 084_MironSusano Bot | G89: Miron Susano Bot | H89: 0_0_1_Miron Susano Bot | I89: Privat | J89: 1 | N89: C:\Users\Marku\Desktop\Management\09_Robots\084_MironSusano Bot
B90: Process Analyser Bot | F90: 104_Process Analyser Bot | G90: Process Analyser Bot | H90: 0_0_1_Process Analyser Bot | I90: Privat | J90: 1 | N90: C:\Users\Marku\Desktop\Management\09_Robots\104_Process Analyser Bot
B91: Produkt Bot | F91: 111_Produkt Bot | G91: Produkt Bot | H91: 0_0_1_Produkt Bot | I91: Privat | J91: 1 | N91: C:\Users\Marku\Desktop\Management\09_Robots\111_Produkt Bot
B92: Termination Bot | F92: 126_Termination Bot | G92: Termination Bot | H92: 0_0_1_Termination Bot | I92: Privat | J92: 1 | N92: C:\Users\Marku\Desktop\Management\09_Robots\126_Termination Bot
B93: Time Designer Bot | F93: 130_Time Designer Bot | G93: Time Designer Bot | H93: 0_0_1_Time Designer Bot | I93: Privat | J93: 1 | N93: C:\Users\Marku\Desktop\Management\09_Robots\130_Time Designer Bot
B94: Timing Bot | F94: 131_Timing Bot | G94: Timing Bot | H94: 0_0_1_Timing Bot | I94: Privat | J94: 1 | N94: C:\Users\Marku\Desktop\Management\09_Robots\131_Timing Bot
B95: Transition Bot | F95: 133_Transition Bot | G95: Transition Bot | H95: 0_0_1_Transition Bot | I95: Privat | J95: 1 | N95: C:\Users\Marku\Desktop\Management\09_Robots\133_Transition Bot
B96: Visual All Bot | F96: 139_Visual All Bot | G96: Visual All Bot | H96: 0_0_1_Visual All Bot | I96: Privat | J96: 1 | N96: C:\Users\Marku\Desktop\Management\09_Robots\139_Visual All Bot
B97: Workbench Bot | F97: 146_Workbench Bot | G97: Workbench Bot | H97: 0_0_1_Workbench Bot | I97: Privat | J97: 1 | N97: C:\Users\Marku\Desktop\Management\09_Robots\146_Workbench Bot
B98: Zugangsdaten Bot | F98: 148_Zugangsdaten Bot | G98: Zugangsdaten Bot | H98: 0_0_1_Zugangsdaten Bot | I98: Privat | J98: 1 | N98: C:\Users\Marku\Desktop\Management\09_Robots\148_Zugangsdaten Bot
B99: Combiner Bot | F99: Combiner_ppt.pptx | G99: Combiner Bot | H99: 0_0_1_Combiner Bot | I99: Privat | J99: 1 | N99: C:\Users\Marku\Desktop\Management\10_Dateien\PPT\Combiner_ppt.pptx
B100: Deckblätter r | F100: Deckblätter.pptx | G100: Deckblätter r | H100: 0_0_1_Deckblätter r | I100: Privat | J100: 1 | N100: C:\Users\Marku\Desktop\Management\10_Dateien\PPT\Deckblätter.pptx
B101: Ich-Bot | F101: Ich.pptx | G101: Ich-Bot | H101: 0_0_1_Ich-Bot | I101: Privat | J101: 1 | N101: C:\Users\Marku\Desktop\Management\10_Dateien\PPT\Ich.pptx
B102: LEONIE'sAI | F102: LEONIE.odp | G102: LEONIE'sAI | H102: 0_0_1_LEONIE'sAI | I102: Privat | J102: 1 | N102: C:\Users\Marku\Desktop\Management\10_Dateien\PPT\LEONIE.odp
B103: Miron Susano Bot | F103: MIronSusano [Automatisch gespeichert].pptx | G103: Miron Susano Bot | H103: 0_0_1_Miron Susano Bot | I103: Privat | J103: 1 | N103: C:\Users\Marku\Desktop\Management\10_Dateien\PPT\MIronSusano [Automatisch gespeichert].pptx
B104: Starsystem Makigami CP Bot | F104: Sternsystem_Makigami_Control_Panel.pptx | G104: Starsystem Makigami CP Bot | H104: 0_0_1_Starsystem Makigami CP Bot | I104: Privat | J104: 1 | N104: C:\Users\Marku\Desktop\Management\10_Dateien\PPT\Sternsystem_Makigami_Control_Panel.pptx
B105: Access Data Bot | F105: 04_Zugriffsdaten.xlsm | G105: Access Data Bot | H105: 0_0_1_Access Data Bot | I105: Privat | J105: 1 | N105: C:\Users\Marku\Desktop\USB Stick\Neuer Ordner (3)\Entwicklungsfile\04_Zugriffsdaten.xlsm
B106: Newsletter Data Bot | F106: 0_0_0_Newsletters_ProduktDB6.xlsm | G106: Newsletter Data Bot | H106: 0_0_1_Newsletter Data Bot | I106: Privat | J106: 1 | N106: C:\Users\Marku\Desktop\USB Stick\Neuer Ordner (3)\Entwicklungsfile\0_0_0_Newsletters_ProduktDB6.xlsm
B107: File Management Bot | F107: 01_File Management Bot.xlsm | G107: File Management Bot | H107: 0_0_1_File Management Bot | I107: Privat | J107: 1 | N107: C:\Users\Marku\Desktop\USB Stick\Neuer Ordner (3)\01_File Management Bot.xlsm
B108: Paper Paper Bot | F108: 01_Paper Bot.xlsm | G108: Paper Paper Bot | H108: 0_0_1_Paper Paper Bot | I108: Privat | J108: 1 | N108: C:\Users\Marku\Desktop\USB Stick\Neuer Ordner (3)\01_Paper Bot.xlsm
B109: Access Data Bot | F109: 04_Zugriffsdaten.xlsm | G109: Access Data Bot | H109: 0_0_1_Access Data Bot | I109: Privat | J109: 1 | N109: C:\Users\Marku\Desktop\USB Stick\Neuer Ordner (3)\Entwicklungsfile\04_Zugriffsdaten.xlsm
B110: Newsletter Bot | F110: 0_0_0_Newsletters_ProduktDB6.xlsm | G110: Newsletter Bot | H110: 0_0_1_Newsletter Bot | I110: Privat | J110: 1 | N110: C:\Users\Marku\Desktop\USB Stick\Neuer Ordner (3)\Entwicklungsfile\0_0_0_Newsletters_ProduktDB6.xlsm
B111: AGB Draft Bot | F111: AGB Entwurf.pdf | G111: AGB Draft Bot | H111: 0_0_1_AGB Draft Bot | I111: Privat | J111: 1 | N111: C:\Users\Marku\Desktop\USB Stick\Neuer Ordner (3)\Entwicklungsfile\AGB Entwurf.pdf
B112: Maintenance Bot | F112: Maintenance.xlsx | G112: Maintenance Bot | H112: 0_0_1_Maintenance Bot | I112: Privat | J112: 1 | N112: C:\Users\Marku\Desktop\USB Stick\Neuer Ordner (3)\Entwicklungsfile\Maintenance.xlsx
B113: Skalen und Evaluation Bot | F113: Skalenwerte und Bewertungstabelle.xlsx | G113: Skalen und Evaluation Bot | H113: 0_0_1_Skalen und Evaluation Bot | I113: Privat | J113: 2 | N113: C:\Users\Marku\Desktop\Cybernetics\14_MGT Bot\Skalenwerte und Bewertungstabelle.xlsx
B114: Unternehmendata Bot | F114: Liste Unternehmen.txt | G114: Unternehmendata Bot | H114: 0_0_1_Unternehmendata Bot | I114: Privat | J114: 5 | N114: C:\Users\Marku\Desktop\Liste Unternehmen.txt
B115: Mail Base Bot | F115: Mail base.xlsx | G115: Mail Base Bot | H115: 0_0_1_Mail Base Bot | I115: Privat | J115: 5 | N115: C:\Users\Marku\Desktop\Work in progress\04_Public\Mail base.xlsx
B116: Management Base Bot | F116: Management Base.xlsx | G116: Management Base Bot | H116: 0_0_1_Management Base Bot | I116: Privat | J116: 5 | N116: C:\Users\Marku\Desktop\Work in progress\04_Public\Management Base.xlsx
B117: Marketing Base Bot | F117: Marketing Base.xlsx | G117: Marketing Base Bot | H117: 0_0_1_Marketing Base Bot | I117: Privat | J117: 5 | N117: C:\Users\Marku\Desktop\Work in progress\04_Public\Marketing Base.xlsx
B118: Projektmanagement Base Bot | F118: PM Base.xlsx | G118: Projektmanagement Base Bot | H118: 0_0_1_Projektmanagement Base Bot | I118: Privat | J118: 5 | N118: C:\Users\Marku\Desktop\Work in progress\04_Public\PM Base.xlsx
B119: Porn Base Bot | F119: Porn Base - Kopie.xlsx | G119: Porn Base Bot | H119: 0_0_1_Porn Base Bot | I119: Privat | J119: 5 | N119: C:\Users\Marku\Desktop\Work in progress\04_Public\Porn Base - Kopie.xlsx
B120: Sale Base Bot | F120: Sale Base.xlsx | G120: Sale Base Bot | H120: 0_0_1_Sale Base Bot | I120: Privat | J120: 5 | N120: C:\Users\Marku\Desktop\Work in progress\04_Public\Sale Base.xlsx
B121: Dictionary Bot - Robot Termament - Decon | F121: 02_Dictionary Bot - Robot Termament - Decon.txt | G121: Dictionary Bot - Robot Termament - Decon | H121: 0_0_1_Dictionary Bot - Robot Termament - Decon | I121: Privat | J121: 6 | N121: C:\Users\Marku\Desktop\Work in progress\06_Files und Notizen\02_Dictionary Bot - Robot Termament - Decon.txt
B122: Financial Service _Element Bot | F122: 03_Financial Service _Element Bot.txt | G122: Financial Service _Element Bot | H122: 0_0_1_Financial Service _Element Bot | I122: Privat | J122: 6 | N122: C:\Users\Marku\Desktop\Work in progress\06_Files und Notizen\03_Financial Service _Element Bot.txt
B123: Antrags Generator | F123: 01_AntragsGenerator-HR.xlsm | G123: Antrags Generator | H123: 0_0_1_Antrags Generator | I123: Privat | J123: 10 | N123: C:\Users\Marku\Desktop\Cybernetics\03_Faktura Bot\01_AntragsGenerator-HR.xlsm
B124: HRM Bot | F124: HRM Robot.xlsm | G124: HRM Bot | H124: 0_0_1_HRM Bot | I124: Privat | J124: 10 | N124: C:\Users\Marku\Desktop\Cybernetics\04_HRM Bot\HRM Robot.xlsm
B125: Springer Bot | F125: 01_Link Collecter Springer Bot_02.xlsm | G125: Springer Bot | H125: 0_0_1_Springer Bot | I125: Privat | J125: 10 | N125: C:\Users\Marku\Desktop\Cybernetics\10_Books Bot\01_Link Collecter Springer Bot_02.xlsm
B126: Springer Raredata Bot | F126: 01_Springer-Rohdaten.xlsm | G126: Springer Raredata Bot | H126: 0_0_1_Springer Raredata Bot | I126: Privat | J126: 10 | N126: C:\Users\Marku\Desktop\Cybernetics\10_Books Bot\01_Springer-Rohdaten.xlsm
B127: Engineer Planning Bot | F127: Bauplan.txt | G127: Engineer Planning Bot | H127: 0_0_1_Engineer Planning Bot | I127: Privat | J127: 10 | N127: C:\Users\Marku\Desktop\Cybernetics\11_Porns Bot\Bauplan.txt
B128: Link Converter Bot | F128: Robot Tab Link Converter.xlsm | G128: Link Converter Bot | H128: 0_0_1_Link Converter Bot | I128: Privat | J128: 10 | N128: C:\Users\Marku\Desktop\Cybernetics\11_Porns Bot\Robot Tab Link Converter.xlsm
B129: Unternehmensdaten München Bot | F129: Unternehmen München.xlsm | G129: Unternehmensdaten München Bot | H129: 0_0_1_Unternehmensdaten München Bot | I129: Privat | J129: 10 | N129: C:\Users\Marku\Desktop\Unternehmen München.xlsm
B130: Entertainment Base Bot | F130: Entertain Base.xlsx | G130: Entertainment Base Bot | H130: 0_0_1_Entertainment Base Bot | I130: Privat | J130: 10 | N130: C:\Users\Marku\Desktop\Work in progress\04_Public\Entertain Base.xlsx
B131: Assembling Center Bot | F131: 01_Assembling Center -Shaping Center - Combiner Bot.txt | G131: Assembling Center Bot | H131: 0_0_1_Assembling Center Bot | I131: Privat | J131: 10 | N131: C:\Users\Marku\Desktop\Work in progress\06_Files und Notizen\01_Assembling Center -Shaping Center - Combiner Bot.txt
B132: Query Robotic | F132: 09_Query generieren mit VBA.txt | G132: Query Robotic | H132: 0_0_1_Query Robotic | I132: Privat | J132: 10 | N132: C:\Users\Marku\Desktop\Work in progress\06_Files und Notizen\09_Query generieren mit VBA.txt
B133: Financial Transformation Calculator | F133: Kopie von coronaueberbrueckungshilfe3rechner.xlsm | G133: Financial Transformation Calculator | H133: 0_0_1_Financial Transformation Calculator | I133: Privat | J133: 10 | N133: C:\Users\Marku\Desktop\Work in progress\06_Files und Notizen\Kopie von coronaueberbrueckungshilfe3rechner.xlsm
B134: Dreamission Bot | F134: Solflugh2blitz.txt | G134: Dreamission Bot | H134: 0_0_1_Dreamission Bot | I134: Privat | J134: 10 | N134: C:\Users\Marku\Desktop\Work in progress\06_Files und Notizen\Solflugh2blitz.txt
B135: Reflection Cybernetic Bot | F135: Reflection Cybernetic.txt | G135: Reflection Cybernetic Bot | H135: 0_0_1_Reflection Cybernetic Bot | I135: Privat | J135: 10 | N135: C:\Users\Marku\Desktop\Work in progress\Reflection Bot\Reflection Cybernetic.txt
B136: Financial Potencial File | F136: Financial Potencial - Kopie.docx | G136: Financial Potencial File | H136: 0_0_1_Financial Potencial File | I136: Privat | J136: 10 | N136: C:\Users\Marku\Desktop\Management\02_Privat\05_Business_Dev\Financial Potencial - Kopie.docx
B137: Ressource Planing Bot | F137: Ressourcenplanung_Personal_Geräte_Finanzmittel_Material.xlsx | G137: Ressource Planing Bot | H137: 0_0_1_Ressource Planing Bot | I137: Privat | J137: 10 | N137: C:\Users\Marku\Desktop\Management\03_Ausbildung_Studium\Dateien & Verwaltung\Excel Dateien\Ressourcenplanung_Personal_Geräte_Finanzmittel_Material.xlsx
B138: Pro Contra Manager | F138: Vor und Nachteile.xlsx | G138: Pro Contra Manager | H138: 0_0_1_Pro Contra Manager | I138: Privat | J138: 10 | N138: C:\Users\Marku\Desktop\Management\03_Ausbildung_Studium\Dateien & Verwaltung\Excel Dateien\Vor und Nachteile.xlsx
B139: Literture Draft File | F139: Dokumentationsvorlage - Kopie.docx | G139: Literture Draft File | H139: 0_0_1_Literture Draft File | I139: Privat | J139: 10 | N139: C:\Users\Marku\Desktop\Management\03_Ausbildung_Studium\Dokumentationsvorlage - Kopie.docx
B140: WUSBT Degrees Bot | F140: Degrees_WUSBT.xlsm | G140: WUSBT Degrees Bot | H140: 0_0_1_WUSBT Degrees Bot | I140: Privat | J140: 10 | N140: C:\Users\Marku\Desktop\Management\04_Businesses\03_WUSBT_World_University_of_Science_Business_and_Technology\Degrees_WUSBT.xlsm
B141: WUBT | F141: WUBT.xlsx | G141: WUBT | H141: 0_0_1_WUBT | I141: Privat | J141: 10 | N141: C:\Users\Marku\Desktop\Management\04_Businesses\03_WUSBT_World_University_of_Science_Business_and_Technology\WUSBT\WUBT.xlsx
B142: TWB Factura Bot | F142: ThermowaveBook E-Mail Bestellung_Rechnungserstellung_Regelkreis.xlsm | G142: TWB Factura Bot | H142: 0_0_1_TWB Factura Bot | I142: Privat | J142: 10 | N142: C:\Users\Marku\Desktop\Management\04_Businesses\06_TWB_Thermo_Wave_Book\ThermowaveBook E-Mail Bestellung_Rechnungserstellung_Regelkreis.xlsm
B143: Digital Art Bot | F143: 03-PA-Digitale Kunst-Attelier | G143: Digital Art Bot | H143: 0_0_1_Digital Art Bot | I143: Privat | J143: 10 | N143: C:\Users\Marku\Desktop\Management\08_Projekte\03-PA-Digitale Kunst-Attelier
B144: Engineering Office Bot | F144: 06-PA-Ingenieurbüro Schmid | G144: Engineering Office Bot | H144: 0_0_1_Engineering Office Bot | I144: Privat | J144: 10 | N144: C:\Users\Marku\Desktop\Management\08_Projekte\06-PA-Ingenieurbüro Schmid
B145: Soap Bubble Fire Bot | F145: 08-PA-Soap Bubble Fire Machine | G145: Soap Bubble Fire Bot | H145: 0_0_1_Soap Bubble Fire Bot | I145: Privat | J145: 10 | N145: C:\Users\Marku\Desktop\Management\08_Projekte\08-PA-Soap Bubble Fire Machine
B146: Diamond Coins Bot | F146: 14-PA-Diamanten_Diamond_Coins_Währung | G146: Diamond Coins Bot | H146: 0_0_1_Diamond Coins Bot | I146: Privat | J146: 10 | N146: C:\Users\Marku\Desktop\Management\08_Projekte\14-PA-Diamanten_Diamond_Coins_Währung
B147: Rolling Boots Bot | F147: 22-PA-Rollenschuhe | G147: Rolling Boots Bot | H147: 0_0_1_Rolling Boots Bot | I147: Privat | J147: 10 | N147: C:\Users\Marku\Desktop\Management\08_Projekte\22-PA-Rollenschuhe
B148: Flying Paranout Bot | F148: 23-PA-Flying Paranout | G148: Flying Paranout Bot | H148: 0_0_1_Flying Paranout Bot | I148: Privat | J148: 10 | N148: C:\Users\Marku\Desktop\Management\08_Projekte\23-PA-Flying Paranout
B149: $-Spider Value Bot | F149: 001_$-Spider Value Bot | G149: $-Spider Value Bot | H149: 0_0_1_$-Spider Value Bot | I149: Privat | J149: 10 | N149: C:\Users\Marku\Desktop\Management\09_Robots\001_$-Spider Value Bot
B150: AI Base Bot | F150: 005_AI Base Bot | G150: AI Base Bot | H150: 0_0_1_AI Base Bot | I150: Privat | J150: 10 | N150: C:\Users\Marku\Desktop\Management\09_Robots\005_AI Base Bot
B151: Cloud Bot | F151: 019_Cloud Bot | G151: Cloud Bot | H151: 0_0_1_Cloud Bot | I151: Privat | J151: 10 | N151: C:\Users\Marku\Desktop\Management\09_Robots\019_Cloud Bot
B152: Combine Bot | F152: 020_Combine Bot | G152: Combine Bot | H152: 0_0_1_Combine Bot | I152: Privat | J152: 10 | N152: C:\Users\Marku\Desktop\Management\09_Robots\020_Combine Bot
B153: Company Data Bot | F153: 021_Company Data Bot | G153: Company Data Bot | H153: 0_0_1_Company Data Bot | I153: Privat | J153: 10 | N153: C:\Users\Marku\Desktop\Management\09_Robots\021_Company Data Bot
B154: Content Log Bot | F154: 022_Content Log Bot | G154: Content Log Bot | H154: 0_0_1_Content Log Bot | I154: Privat | J154: 10 | N154: C:\Users\Marku\Desktop\Management\09_Robots\022_Content Log Bot
B155: Dashboard Bot | F155: 023_Dashboard Bot | G155: Dashboard Bot | H155: 0_0_1_Dashboard Bot | I155: Privat | J155: 10 | N155: C:\Users\Marku\Desktop\Management\09_Robots\023_Dashboard Bot
B156: Decon Bot | F156: 026_Decon Bot | G156: Decon Bot | H156: 0_0_1_Decon Bot | I156: Privat | J156: 10 | N156: C:\Users\Marku\Desktop\Management\09_Robots\026_Decon Bot
B157: Deep Learning Bot | F157: 027_Deep Learning Bot | G157: Deep Learning Bot | H157: 0_0_1_Deep Learning Bot | I157: Privat | J157: 10 | N157: C:\Users\Marku\Desktop\Management\09_Robots\027_Deep Learning Bot
B158: Extract Listing Data Bot | F158: 041_Extracting listing Data Bot | G158: Extract Listing Data Bot | H158: 0_0_1_Extract Listing Data Bot | I158: Privat | J158: 10 | N158: C:\Users\Marku\Desktop\Management\09_Robots\041_Extracting listing Data Bot
B159: Function Analysis Bot | F159: 046_Function Analysis Bot | G159: Function Analysis Bot | H159: 0_0_1_Function Analysis Bot | I159: Privat | J159: 10 | N159: C:\Users\Marku\Desktop\Management\09_Robots\046_Function Analysis Bot
B160: Hierarchy Bot | F160: 053_Hierarchy Bot | G160: Hierarchy Bot | H160: 0_0_1_Hierarchy Bot | I160: Privat | J160: 10 | N160: C:\Users\Marku\Desktop\Management\09_Robots\053_Hierarchy Bot
B161: HRM Bot | F161: 054_HRM Bot | G161: HRM Bot | H161: 0_0_1_HRM Bot | I161: Privat | J161: 10 | N161: C:\Users\Marku\Desktop\Management\09_Robots\054_HRM Bot
B162: Jobs Analyse Generator Bot | F162: 059_Jobs Analyse Generator Bot | G162: Jobs Analyse Generator Bot | H162: 0_0_1_Jobs Analyse Generator Bot | I162: Privat | J162: 10 | N162: C:\Users\Marku\Desktop\Management\09_Robots\059_Jobs Analyse Generator Bot
B163: Kalender Bot | F163: 060_Kalender Bot | G163: Kalender Bot | H163: 0_0_1_Kalender Bot | I163: Privat | J163: 10 | N163: C:\Users\Marku\Desktop\Management\09_Robots\060_Kalender Bot
B164: Knowledge Extracts Bot | F164: 064_Knowledge Extracts Bot | G164: Knowledge Extracts Bot | H164: 0_0_1_Knowledge Extracts Bot | I164: Privat | J164: 10 | N164: C:\Users\Marku\Desktop\Management\09_Robots\064_Knowledge Extracts Bot
B165: Kontakt Bot | F165: 066_Kontakt Bot | G165: Kontakt Bot | H165: 0_0_1_Kontakt Bot | I165: Privat | J165: 10 | N165: C:\Users\Marku\Desktop\Management\09_Robots\066_Kontakt Bot
B166: KPI Base Bot | F166: 067_KPI Base Bot | G166: KPI Base Bot | H166: 0_0_1_KPI Base Bot | I166: Privat | J166: 10 | N166: C:\Users\Marku\Desktop\Management\09_Robots\067_KPI Base Bot
B167: KPI Yield Capacity Bot | F167: 068_KPI Yield Capacity Bot | G167: KPI Yield Capacity Bot | H167: 0_0_1_KPI Yield Capacity Bot | I167: Privat | J167: 10 | N167: C:\Users\Marku\Desktop\Management\09_Robots\068_KPI Yield Capacity Bot
B168: Lagerbestandsliste Bot | F168: 069_Lagerbestandsliste Bot | G168: Lagerbestandsliste Bot | H168: 0_0_1_Lagerbestandsliste Bot | I168: Privat | J168: 10 | N168: C:\Users\Marku\Desktop\Management\09_Robots\069_Lagerbestandsliste Bot
B169: List Bot | F169: 072_List Bot | G169: List Bot | H169: 0_0_1_List Bot | I169: Privat | J169: 10 | N169: C:\Users\Marku\Desktop\Management\09_Robots\072_List Bot
B170: Log Timer Decycler Bot | F170: 073_Log Timer Decycler Bot | G170: Log Timer Decycler Bot | H170: 0_0_1_Log Timer Decycler Bot | I170: Privat | J170: 10 | N170: C:\Users\Marku\Desktop\Management\09_Robots\073_Log Timer Decycler Bot
B171: LSS ERP Doku Bot | F171: 074_LSS ERP Doku Bot | G171: LSS ERP Doku Bot | H171: 0_0_1_LSS ERP Doku Bot | I171: Privat | J171: 10 | N171: C:\Users\Marku\Desktop\Management\09_Robots\074_LSS ERP Doku Bot
B172: Machine Learning Bot | F172: 075_Machine Learning Bot | G172: Machine Learning Bot | H172: 0_0_1_Machine Learning Bot | I172: Privat | J172: 10 | N172: C:\Users\Marku\Desktop\Management\09_Robots\075_Machine Learning Bot
B173: Master Bot | F173: 078_Master Bot | G173: Master Bot | H173: 0_0_1_Master Bot | I173: Privat | J173: 10 | N173: C:\Users\Marku\Desktop\Management\09_Robots\078_Master Bot
B174: Mind Stone Bot | F174: 083_Mind Stone Bot | G174: Mind Stone Bot | H174: 0_0_1_Mind Stone Bot | I174: Privat | J174: 10 | N174: C:\Users\Marku\Desktop\Management\09_Robots\083_Mind Stone Bot
B175: New Tree Bot | F175: 086_New Tree Bot | G175: New Tree Bot | H175: 0_0_1_New Tree Bot | I175: Privat | J175: 10 | N175: C:\Users\Marku\Desktop\Management\09_Robots\086_New Tree Bot
B176: Offers Bot | F176: 088_Offers Bot | G176: Offers Bot | H176: 0_0_1_Offers Bot | I176: Privat | J176: 10 | N176: C:\Users\Marku\Desktop\Management\09_Robots\088_Offers Bot
B177: Paper Base Bot | F177: 093_Paper Base Bot | G177: Paper Base Bot | H177: 0_0_1_Paper Base Bot | I177: Privat | J177: 10 | N177: C:\Users\Marku\Desktop\Management\09_Robots\093_Paper Base Bot
B178: Persona Bot | F178: 096_Persona Bot | G178: Persona Bot | H178: 0_0_1_Persona Bot | I178: Privat | J178: 10 | N178: C:\Users\Marku\Desktop\Management\09_Robots\096_Persona Bot
B179: Portable Lab Packs Bot | F179: 100_Portable Lab Packs Bot | G179: Portable Lab Packs Bot | H179: 0_0_1_Portable Lab Packs Bot | I179: Privat | J179: 10 | N179: C:\Users\Marku\Desktop\Management\09_Robots\100_Portable Lab Packs Bot
B180: Pre Shape Bot | F180: 103_Pre Shape Bot | G180: Pre Shape Bot | H180: 0_0_1_Pre Shape Bot | I180: Privat | J180: 10 | N180: C:\Users\Marku\Desktop\Management\09_Robots\103_Pre Shape Bot
B181: Statistics Bot | F181: 120_Statistics Bot | G181: Statistics Bot | H181: 0_0_1_Statistics Bot | I181: Privat | J181: 10 | N181: C:\Users\Marku\Desktop\Management\09_Robots\120_Statistics Bot
B182: Status Refresher Produktion Bot | F182: 121_Status Refresher Produktion Bot | G182: Status Refresher Produktion Bot | H182: 0_0_1_Status Refresher Produktion Bot | I182: Privat | J182: 10 | N182: C:\Users\Marku\Desktop\Management\09_Robots\121_Status Refresher Produktion Bot
B183: Structmof Bot | F183: 122_Structmof Bot | G183: Structmof Bot | H183: 0_0_1_Structmof Bot | I183: Privat | J183: 10 | N183: C:\Users\Marku\Desktop\Management\09_Robots\122_Structmof Bot
B184: Study Bot | F184: 123_Study Bot | G184: Study Bot | H184: 0_0_1_Study Bot | I184: Privat | J184: 10 | N184: C:\Users\Marku\Desktop\Management\09_Robots\123_Study Bot
B185: Task Bot | F185: 125_Task Bot | G185: Task Bot | H185: 0_0_1_Task Bot | I185: Privat | J185: 10 | N185: C:\Users\Marku\Desktop\Management\09_Robots\125_Task Bot
B186: Terms Dictionary Bot | F186: 127_Terms Dictionary Bot | G186: Terms Dictionary Bot | H186: 0_0_1_Terms Dictionary Bot | I186: Privat | J186: 10 | N186: C:\Users\Marku\Desktop\Management\09_Robots\127_Terms Dictionary Bot
B187: Text Bot | F187: 128_Text Bot | G187: Text Bot | H187: 0_0_1_Text Bot | I187: Privat | J187: 10 | N187: C:\Users\Marku\Desktop\Management\09_Robots\128_Text Bot
B188: Ticket Bot | F188: 129_Ticket Bot | G188: Ticket Bot | H188: 0_0_1_Ticket Bot | I188: Privat | J188: 10 | N188: C:\Users\Marku\Desktop\Management\09_Robots\129_Ticket Bot
B189: Weather Bot | F189: 141_Weather Bot | G189: Weather Bot | H189: 0_0_1_Weather Bot | I189: Privat | J189: 10 | N189: C:\Users\Marku\Desktop\Management\09_Robots\141_Weather Bot
B190: Web Gen Elab Bot | F190: 143_Web Gen Elab | G190: Web Gen Elab Bot | H190: 0_0_1_Web Gen Elab Bot | I190: Privat | J190: 10 | N190: C:\Users\Marku\Desktop\Management\09_Robots\143_Web Gen Elab
B191: Web ReadGen Bot | F191: 144_WebReadGen | G191: Web ReadGen Bot | H191: 0_0_1_Web ReadGen Bot | I191: Privat | J191: 10 | N191: C:\Users\Marku\Desktop\Management\09_Robots\144_WebReadGen
B192: Zeugnis Bot | F192: 147_Zeugnis Bot | G192: Zeugnis Bot | H192: 0_0_1_Zeugnis Bot | I192: Privat | J192: 10 | N192: C:\Users\Marku\Desktop\Management\09_Robots\147_Zeugnis Bot
B193: Risc Analysis Bot | F193: Beziehungs-Potenzielle Risikoanalyse.pptx | G193: Risc Analysis Bot | H193: 0_0_1_Risc Analysis Bot | I193: Privat | J193: 10 | N193: C:\Users\Marku\Desktop\Management\10_Dateien\PPT\Beziehungs-Potenzielle Risikoanalyse.pptx
B194: Marketing Sender 3 | F194: MarketingSender3.xlsm | G194: Marketing Sender 3 | H194: 0_0_1_Marketing Sender 3 | I194: Privat | J194: 10 | N194: C:\Users\Marku\Desktop\Management\10_Dateien\00_New Input (DB, SD, USB)\Sonstiges Wichtiges\MarketingSender3.xlsm
B195: E-Mail Read Bot | F195: E-Mail-Read Bot.xlsm | G195: E-Mail Read Bot | H195: 0_0_1_E-Mail Read Bot | I195: Privat | J195: 10 | N195: C:\Users\Marku\Desktop\Management\10_Dateien\00_New Input (DB, SD, USB)\Sonstiges Wichtiges\12_Faktura Machine\E-Mail-Read Bot.xlsm
B196: Rechnungsbot Automation | F196: Rechnungsbot automat.xlsm | G196: Rechnungsbot Automation | H196: 0_0_1_Rechnungsbot Automation | I196: Privat | J196: 10 | N196: C:\Users\Marku\Desktop\Management\10_Dateien\00_New Input (DB, SD, USB)\Sonstiges Wichtiges\12_Faktura Machine\Rechnungsbot automat.xlsm
B197: Rechnungs Bot | F197: Rechnungsbot.xlsm | G197: Rechnungs Bot | H197: 0_0_1_Rechnungs Bot | I197: Privat | J197: 10 | N197: C:\Users\Marku\Desktop\Management\10_Dateien\00_New Input (DB, SD, USB)\Sonstiges Wichtiges\12_Faktura Machine\Rechnungsbot.xlsm
B198: Present Bot | F198: Geschenke.xlsx | G198: Present Bot | H198: 0_0_1_Present Bot | I198: Privat | J198: 10 | N198: C:\Users\Marku\Desktop\Management\10_Dateien\Private -Music und Sonstiges\Geschenke.xlsx
B199: Inventory News bot | F199: 01_Inventory News Bot.xlsm | G199: Inventory News bot | H199: 0_0_1_Inventory News bot | I199: Privat | J199: 10 | N199: C:\Users\Marku\Desktop\USB Stick\Neuer Ordner (3)\Entwicklungsfile\01_Inventory News Bot.xlsm
B200: Inventory News Leaflet bot | F200: 01_Inventory News Leaflet Bot.xlsm | G200: Inventory News Leaflet bot | H200: 0_0_1_Inventory News Leaflet bot | I200: Privat | J200: 10 | N200: C:\Users\Marku\Desktop\USB Stick\Neuer Ordner (3)\01_Inventory News Leaflet Bot.xlsm
... 97 more rows

Sheet PDB (hidden)
B2: 1.xlsx

Sheet LearnBase (hidden)
B1: Studium | F1: Semester | G1: Prüfungstelle | H1: Kandidat | I1: Datum | J1: Uhrzeit | M1: Lvl1 | O1: Lvl2 | Q1: Lvl3 | S1: Lvl4 | U1: MM | W1: TE | Y1: TE | AA1: SI | AC1: Datenauflisten
A2: Learnbase | M2: Checkbox1 | O2: Checkbox20 | Q2: Checkbox38 | S2: Checkbox56 | U2: Checkbox127 | W2: Checkbox74 | Y2: Checkbox92 | AA2: TRUE | AC2: C:\Users\Marku\Desktop\01_PBC\Academical Treasury\Academical Treasury_PDFs\QL1\2_.pdf | AD2: C:\Users\Marku\Desktop\01_PBC\Academical Treasury\Academical Treasury_PDFs\QL1\2_.pdf | AH2: FALSE
M3: Checkbox2 | O3: Checkbox21 | Q3: Checkbox39 | S3: Checkbox57 | U3: Checkbox128 | W3: Checkbox75 | Y3: Checkbox93 | AA3: Checkbox111 | AC3: C:\Users\Marku\Desktop\01_PBC\Academical Treasury\Academical Treasury_PDFs\QL2\56_Projektmanagement.pdf | AD3: C:\Users\Marku\Desktop\01_PBC\Academical Treasury\Academical Treasury_PDFs\QL2\56_Projektmanagement.pdf
A4: Aktualisieren | C4: lfd. Nr. | D4: Fach | E4: Abfragetyp | F4: Aufgabenstellung | G4: Status | H4: Wiederholungen | I4: Note | J4: Auswahl | M4: Checkbox3 | O4: Checkbox22 | Q4: Checkbox40 | S4: Checkbox58 | U4: Checkbox129 | W4: Checkbox76 | Y4: Checkbox94 | AA4: Checkbox112 | AC4: C:\Users\Marku\Desktop\01_PBC\Academical Treasury\Academical Treasury_PDFs\QL4\55_Project-& Lean and Six Sigma Management.pdf | AD4: C:\Users\Marku\Desktop\01_PBC\Academical Treasury\Academical Treasury_PDFs\QL4\55_Project-& Lean and Six Sigma Management.pdf
M5: Checkbox4 | O5: Checkbox23 | Q5: Checkbox41 | S5: Checkbox59 | U5: Checkbox130 | W5: Checkbox77 | Y5: Checkbox95 | AA5: Checkbox113 | AC5: C:\Users\Marku\Desktop\01_PBC\Uploadfiles\Update.xlsm | AD5: C:\Users\Marku\Desktop\01_PBC\Uploadfiles\Update.xlsm
M6: Checkbox5 | O6: Checkbox24 | Q6: Checkbox42 | S6: Checkbox60 | U6: Checkbox131 | W6: Checkbox78 | Y6: Checkbox96 | AA6: Checkbox114
A7: Starten | M7: Checkbox6 | O7: Checkbox25 | Q7: Checkbox43 | S7: Checkbox61 | U7: Checkbox132 | W7: Checkbox79 | Y7: Checkbox97 | AA7: Checkbox115
M8: Checkbox7 | O8: Checkbox26 | Q8: Checkbox44 | S8: Checkbox62 | U8: Checkbox133 | W8: Checkbox80 | Y8: Checkbox98 | AA8: Checkbox116 | OV8: 9
M9: Checkbox8 | O9: Checkbox27 | Q9: Checkbox45 | S9: Checkbox63 | U9: Checkbox134 | W9: Checkbox81 | Y9: Checkbox99 | AA9: Checkbox117 | OV9: Sport
A10: Löschen | M10: Checkbox9 | O10: Checkbox28 | Q10: Checkbox46 | S10: Checkbox64 | U10: Checkbox135 | W10: Checkbox82 | Y10: Checkbox100 | AA10: Checkbox118 | OV10: Sport
M11: Checkbox10 | O11: Checkbox29 | Q11: Checkbox47 | S11: Checkbox65 | U11: Checkbox136 | W11: Checkbox83 | Y11: Checkbox101 | AA11: Checkbox119 | OV11: Sport
M12: Checkbox11 | O12: Checkbox30 | Q12: Checkbox48 | S12: Checkbox66 | U12: Checkbox137 | W12: Checkbox84 | Y12: Checkbox102 | AA12: Checkbox120 | OV12: Sport
A13: Studybase | M13: Checkbox12 | O13: Checkbox31 | Q13: Checkbox49 | S13: Checkbox67 | U13: Checkbox138 | W13: Checkbox85 | Y13: Checkbox103 | AA13: Checkbox121 | OV13: Sport
M14: Checkbox13 | O14: Checkbox32 | Q14: Checkbox50 | S14: Checkbox68 | U14: Checkbox139 | W14: Checkbox86 | Y14: Checkbox104 | AA14: Checkbox122 | OV14: Sport
M15: Checkbox14 | O15: Checkbox33 | Q15: Checkbox51 | S15: Checkbox69 | U15: Checkbox140 | W15: Checkbox87 | Y15: Checkbox105 | AA15: Checkbox123 | OV15: Ernährungswissenschaft
A16: Generator | M16: Checkbox15 | O16: Checkbox34 | Q16: Checkbox52 | S16: Checkbox70 | U16: Checkbox141 | W16: Checkbox88 | Y16: Checkbox106 | AA16: Checkbox124 | OV16: Ernährungswissenschaft
M17: Checkbox16 | O17: Checkbox35 | Q17: Checkbox53 | S17: Checkbox71 | U17: Checkbox126 | W17: Checkbox89 | Y17: Checkbox107 | AA17: Checkbox125 | OV17: Sport
OV18: Stütz- und Bewegungsapparat
OV19: Stütz- und Bewegungsapparat
OV20: Stütz- und Bewegungsapparat
OV21: Stütz- und Bewegungsapparat
OV22: Trainingswissenschaft
OV23: Trainingswissenschaft
OV24: Anatomie
OV25: Anatomie
OV26: Physiologie
OV27: Physiologie
OV28: Leistungsdiagnostik
OV29: Leistungsdiagnostik
OV30: Stoffwechsel
OV31: Stoffwechsel
OV32: Personal Training
OV33: Personal Training
OV34: Fitness
OV35: Fitness
OV36: Fitness
OV37: Autogenes Training
OV38: Autogenes Training
OV39: Indoor
OV40: Indoor
OV41: Natursport
OV42: Natursport
OV43: Fitnesstraining
OV44: Fitnesstraining
OV45: Ernährungslehre
OV46: Ernährungslehre
OV47: Ernährung des Menschen
OV48: Ernährung des Menschen
OV49: Lebensmittel
OV50: Lebensmittel
OV51: Sporternährung
OV52: Sporternährung
OV53: Funktionelles Training
OV54: Funktionelles Training
OV55: Sportwissenschaft
OV56: Sportwissenschaft
OV57: Empirie
OV58: Empirie
OV59: Neuroanatomie
OV60: Neuroanatomie
OV61: Psychology Today
OV62: Psychology Today
OV63: Ernährungswissenschaft
OV64: Aktiver Bewegungsapparat
OV65: Passiver Bewegungsapparat
OV66: Trainingswissenschaft
OV67: Anatomie
OV68: Physiologie
OV69: Leistungsdiagnostik
OV70: Stoffwechsel
OV71: Personal Fitness
OV72: Fitness
OV73: 48
OV74: Sport- und Ernährungscoach
OV75: Sport- und Ernährungscoach
OV76: Sport- und Ernährungscoach
OV77: Sport- und Ernährungscoach
OV78: Sportwissenschaft
OV79: Sportwissenschaft
OV80: Sportwissenschaft
OV81: Ernährung des Menschen
OV82: Ernährung des Menschen
OV83: Ernährung des Menschen
OV84: Ernährung verschiedenen Lebensphasen
OV85: Ernährung verschiedenen Lebensphasen
OV86: Ernährung verschiedenen Lebensphasen
OV87: Ernährungslehre
OV88: Ernährungslehre
OV89: Ernährungslehre
OV90: Lebensmittelkunde
OV91: Lebensmittelkunde
OV92: Lebensmittelkunde
OV93: Sporternährung
OV94: Sporternährung
OV95: Sporternährung
OV96: Aktiver & passiver Bewegungsapparat
OV97: Aktiver & passiver Bewegungsapparat
OV98: Aktiver & passiver Bewegungsapparat
OV99: Grundlagen der Trainingswissenschaft
OV100: Grundlagen der Trainingswissenschaft
OV101: Grundlagen der Trainingswissenschaft
OV102: Anatomie & Physiologie
OV103: Anatomie & Physiologie
OV104: Anatomie & Physiologie
OV105: Physiologie
OV106: Physiologie
OV107: Physiologie
OV108: Leistungsdiagnostik
OV109: Leistungsdiagnostik
OV110: Leistungsdiagnostik
OV111: Stoffwechsel
OV112: Stoffwechsel
OV113: Stoffwechsel
OV114: Autogenes Training
OV115: Autogenes Training
OV116: Autogenes Training
OV117: Fitnesstraining
OV118: Fitnesstraining
OV119: Fitnesstraining
OV120: Personal Fitness
OV121: Personal Fitness
OV122: Personal Fitness
OV123: Indoor-Sport & Fitnessarten
OV124: Indoor-Sport & Fitnessarten
OV125: Outdoor Sportarten
OV126: Outdoor Sportarten
OV127: Outdoor Sportarten
OV128: Empirisches Arbeiten
OV129: Empirisches Arbeiten
OV130: Neuroanatomie
OV131: Neuroanatomie
OV132: Psychologie
OV133: Psychologie
OV134: Psychologie
OV135: Ernährungslehre
OV136: Aktiver Bewegungsapparat
OV137: Passiver Bewegungsapparat
OV138: Grundlagen der Trainingswissenschaft
OV139: Anatomie & Physiologie
OV140: Physiologie
OV141: Leistungsdiagnostik
OV142: Stoffwechsel
OV143: Fitnesstraining
OV144: Personal Fitness
OV145: Sport- und Ernährungscoach
OV146: Sport- und Ernährungscoach
OV147: Sport- und Ernährungscoach
OV148: Sport- und Ernährungscoach
OV149: Sportwissenschaft
OV150: Sportwissenschaft
OV151: Sportwissenschaft
OV152: Ernährung des Menschen
OV153: Ernährung des Menschen
OV154: Ernährung des Menschen
OV155: Ernährung verschiedenen Lebensphasen
OV156: Ernährung verschiedenen Lebensphasen
OV157: Ernährung verschiedenen Lebensphasen
OV158: Ernährungslehre
OV159: Ernährungslehre
OV160: Ernährungslehre
OV161: Ernährungslehre
OV162: Lebensmittelkunde
OV163: Lebensmittelkunde
OV164: Lebensmittelkunde
OV165: Sporternährung
OV166: Sporternährung
OV167: Sporternährung
OV168: Aktiver & passiver Bewegungsapparat
OV169: Aktiver & passiver Bewegungsapparat
OV170: Aktiver & passiver Bewegungsapparat
OV171: Aktiver Bewegungsapparat
OV172: Passiver Bewegungsapparat
OV173: Grundlagen der Trainingswissenschaft
OV174: Grundlagen der Trainingswissenschaft
OV175: Grundlagen der Trainingswissenschaft
OV176: Grundlagen der Trainingswissenschaft
OV177: Anatomie & Physiologie
OV178: Anatomie & Physiologie
OV179: Anatomie & Physiologie
OV180: Anatomie & Physiologie
OV181: Physiologie
OV182: Physiologie
OV183: Physiologie
OV184: Physiologie
OV185: Leistungsdiagnostik
OV186: Leistungsdiagnostik
OV187: Leistungsdiagnostik
OV188: Leistungsdiagnostik
OV189: Stoffwechsel
OV190: Stoffwechsel
OV191: Stoffwechsel
OV192: Stoffwechsel
OV193: Autogenes Training
OV194: Autogenes Training
OV195: Autogenes Training
OV196: Fitnesstraining
OV197: Fitnesstraining
OV198: Fitnesstraining
OV199: Fitnesstraining
OV200: Personal Fitness
... 15 more rows

Sheet Abfragecenter (hidden)
B1: Prüfung | C1: Genutzte Zeit: | E1: Verfügbare Zeit: | G1: Restzeit: | I1: Uhrzeit: | K1: Punkte
AI2: a):
B3: 00:01:22 | AI3: b):
B4: Vorherige | N4: TRUE | AI4: c):
N5: TRUE | AI5: d):
B6: Überspringen | N6: TRUE | AI6: e):
AI7: f):
B8: Weiter | N8: TRUE | AI8: g):
I9: Punkte: | J9: 1 | N9: TRUE | AI9: h):
B10: Abfrage beenden | F10: Lösung | G10: x | H10: Timer | I10: 1 | N10: TRUE | AI10: i):
B11: Antwort | Lösungsvorschlag | N11: TRUE | AI11: j):
N12: TRUE | AI12: k):
AI13: l):
N14: TRUE | AI14: m):
N15: TRUE
B21: Selektieren | C21: Lfd. Nr. | D21: Frage | J21: Bewertung

Sheet pabfrage (hidden)
A1: lfd. Nr. | B1: Fach | C1: Abfragetyp | D1: Aufgabenstellung | E1: Link | F1: Sonstiges | G1: Keys | H1: Keys | I1: Keys | J1: Keys | K1: Keys | L1: Keys | M1: Keys | N1: Keys | O1: Keys | P1: Keys | Q1: Keys | R1: Keys | S1: Keys | T1: Keys | U1: Keys | V1: Keys | W1: Keys | X1: Keys | Y1: Keys | Z1: Keys | AA1: Keys | AB1: Keys | AC1: Keys
A2: 1 | B2: Projektmanagement | C2: Prüfungstest | D2: Übungsabfrage -gemischt | E2: https://wasbt.com/.cm4all/uproc.php/0/Downloads/Learnbase/6_Projektmanagement_full_t-1.xlsx?cdp=a&_=17da56914b8 | F2: 6_Projektmanagement_full_t-1 | G2: 08YM9C034456211622
A3: 2 | B3: Projektmanagement | C3: Prüfungstest | D3: Übungsabfrage -gemischt | E3: https://wasbt.com/.cm4all/uproc.php/0/Downloads/Learnbase/7_Projektmanagement_part_t-1.xlsx?cdp=a&_=17da5690ce8 | F3: 7_Projektmanagement_part_t-1 | G3: 08YM9C034456211622
A4: 3 | B4: Projektmanagement | C4: Prüfung | D4: Übungsabfrage -gemischt | E4: https://wasbt.com/.cm4all/uproc.php/0/Downloads/Learnbase/7_Projektmanagement_part_p-1.xlsx?cdp=a&_=17da56910d0 | F4: 8_Projektmanagement_part_p-1 | G4: 08YM9C034456211622

Sheet WUSBT (hidden)

Sheet ASheet (hidden)
A1: id | B1: Status | C1: Wiederholungen | D1: Note | E1: Genutzte Zeit | F1: Verfügbare Zeit | G1: Restzeit | H1: Uhrzeit | I1: Datum | J1: Studium | K1: Semester | L1: Prüfungstelle | M1: Kandidat | N1: link | S1: punktegesamt | T1: Punkte | U1: key | V1: Fach | W1: Abfragetyp | X1: idnr. | Y1: Prüfungsid | Z1: F-Id | AA1: Frage | AB1: Antwort1 | AC1: Antwort2 | AD1: Antwort3 | AE1: Antwort4 | AF1: Antwort5 | AG1: Antwort6 | AH1: Antwort7 | AI1: Antwort8 | AJ1: Antwort9 | AK1: Antwort10 | AL1: Antwort11 | AM1: Antwort12 | AN1: ra1 | AO1: ra2 | AP1: ra3 | AQ1: ra4 | AR1: ra5 | AS1: ra6 | AT1: ra7 | AU1: ra8 | AV1: ra9 | AW1: ra10 | AX1: ra11 | AY1: ra12 | AZ1: 1 | BA1: 1 | BB1: aa3 | BC1: 1 | BD1: 1 | BE1: aa6 | BF1: aa7 | BG1: aa8 | BH1: aa9 | BI1: aa10 | BJ1: aa11 | BK1: aa12 | BL1: 1 | BM1: ba2 | BN1: ba3 | BO1: 1 | BP1: 1 | BQ1: ba6 | BR1: ba7 | BS1: ba8 | BT1: ba9 | BU1: ba10 | BV1: ba11 | BW1: ba12 | BX1: 76 | BY1: lA1 | BZ1: lA2 | CA1: lA3 | CB1: lA4 | CC1: lA5 | CD1: lA6 | CE1: lA7 | CF1: lA8 | CG1: lA9 | CH1: lA10 | CI1: lA11 | CJ1: lA12 | CK1: Punkte | CL1: Lösungstext | CM1: 1. Counter: | CN1: 6

Sheet PASheet (hidden)
A1: id | B1: Status | C1: Wiederholungen | D1: Note | E1: Genutzte Zeit | F1: Verfügbare Zeit | G1: Restzeit | H1: Uhrzeit | I1: Datum | J1: Studium | K1: Semester | L1: Prüfungstelle | M1: Kandidat | N1: link | S1: punktegesamt | T1: Punkte | U1: key | V1: Fach | W1: Abfragetyp | X1: idnr. | Y1: Prüfungsid | Z1: F-Id | AA1: Frage | AB1: Antwort1 | AC1: Antwort2 | AD1: Antwort3 | AE1: Antwort4 | AF1: Antwort5 | AG1: Antwort6 | AH1: Antwort7 | AI1: Antwort8 | AJ1: Antwort9 | AK1: Antwort10 | AL1: Antwort11 | AM1: Antwort12 | AN1: ra1 | AO1: ra2 | AP1: ra3 | AQ1: ra4 | AR1: ra5 | AS1: ra6 | AT1: ra7 | AU1: ra8 | AV1: ra9 | AW1: ra10 | AX1: ra11 | AY1: ra12 | AZ1: 1 | BA1: 1 | BB1: aa3 | BC1: 1 | BD1: 1 | BE1: aa6 | BF1: aa7 | BG1: aa8 | BH1: aa9 | BI1: aa10 | BJ1: aa11 | BK1: aa12 | BL1: 1 | BM1: ba2 | BN1: ba3 | BO1: 1 | BP1: 1 | BQ1: ba6 | BR1: ba7 | BS1: ba8 | BT1: ba9 | BU1: ba10 | BV1: ba11 | BW1: ba12 | BX1: 76 | BY1: lA1 | BZ1: lA2 | CA1: lA3 | CB1: lA4 | CC1: lA5 | CD1: lA6 | CE1: lA7 | CF1: lA8 | CG1: lA9 | CH1: lA10 | CI1: lA11 | CJ1: lA12 | CK1: Punkte | CL1: Lösungstext | CM1: 1. Counter: | CN1: 38

Sheet PASheet (2) (hidden)
A1: id | B1: Status | C1: Wiederholungen | D1: Note | E1: Genutzte Zeit | F1: Verfügbare Zeit | G1: Restzeit | H1: Uhrzeit | I1: Datum | J1: Studium | K1: Semester | L1: Prüfungstelle | M1: Kandidat | N1: link | S1: punktegesamt | T1: Punkte | U1: key | V1: Fach | W1: Abfragetyp | X1: idnr. | Y1: Prüfungsid | Z1: F-Id | AA1: Frage | AB1: Antwort1 | AC1: Antwort2 | AD1: Antwort3 | AE1: Antwort4 | AF1: Antwort5 | AG1: Antwort6 | AH1: Antwort7 | AI1: Antwort8 | AJ1: Antwort9 | AK1: Antwort10 | AL1: Antwort11 | AM1: Antwort12 | AN1: ra1 | AO1: ra2 | AP1: ra3 | AQ1: ra4 | AR1: ra5 | AS1: ra6 | AT1: ra7 | AU1: ra8 | AV1: ra9 | AW1: ra10 | AX1: ra11 | AY1: ra12 | AZ1: 1 | BA1: 1 | BB1: aa3 | BC1: 1 | BD1: 1 | BE1: aa6 | BF1: aa7 | BG1: aa8 | BH1: aa9 | BI1: aa10 | BJ1: aa11 | BK1: aa12 | BL1: 1 | BM1: ba2 | BN1: ba3 | BO1: 1 | BP1: 1 | BQ1: ba6 | BR1: ba7 | BS1: ba8 | BT1: ba9 | BU1: ba10 | BV1: ba11 | BW1: ba12 | BX1: 76 | BY1: lA1 | BZ1: lA2 | CA1: lA3 | CB1: lA4 | CC1: lA5 | CD1: lA6 | CE1: lA7 | CF1: lA8 | CG1: lA9 | CH1: lA10 | CI1: lA11 | CJ1: lA12 | CK1: Punkte | CL1: Lösungstext

Sheet Learndb (hidden)
A1: id | B1: key | C1: Studium | D1: Semester | E1: Prüfungstelle | F1: Kandidat | G1: Datum | H1: Uhrzeit | I1: Fach | J1: Abfragetyp | K1: Aufgabenstellung | L1: Status | M1: Wiederholungen | N1: Punkte | O1: Note | P1: Auswahl | Q1: idnr. | R1: link

Sheet Learnlog (hidden)
A2: Id | B2: Prüfungsid | C2: Fach | D2: F-Id | E2: Thema | F2: Frage | G2: Antwort1 | H2: Antwort2 | I2: Antwort3 | J2: Antwort4 | K2: Antwort5 | L2: Antwort6 | M2: Antwort7 | N2: Antwort8 | O2: Antwort9 | P2: Antwort10 | Q2: Antwort11 | R2: Antwort12

Sheet Studybase (hidden)
B2: Studium
B4: Name
B6: Immatrikulationsstatus
B8: Study Curricula
B10: Immatrikulation
B12: Notenspiegel
B14: Semester
B16: Regelstudienzeit
B18: Semesterstart
B20: Semesterende

Sheet Auftragsliste (hidden)

Sheet sb (hidden)

Sheet Content (hidden)

Sheet Overview (hidden)
A1: C:\Users\Marku\Desktop\01_PBC\00_ISE_ISmith_Engineering\000_Base_Panel\01_Accounts\Accounts.xlsm | B1: AutoTitle | C1: Sportwissenschaft | G1: 1 | M1: LFd. Nr: | N1: 1 | O1: Id.AI | P1: 1 | Q1: Id.S | R1: 1 | S1: .pdf | T1: .xlsx | U1: .sql | V1: Id.Lvl | W1: 1 | Y1: id.Con | AA1: Id.Sprachen | AC1: Id.Pic | AG1: Id.Nr. | AL1: Editor
B2: Title | G2: 1 | H2: Deckblatt | J2: =IF(K2=1,IF(L2=TRUE,1,""),"") ->  | K2: 1 | L2: 1 | M2: Deckblattauswahl | N2: 1 | O2: 1 | P2: refreshloop | Q2: 1 | R2: Aktueller Speicherort | S2: ActiveWorkbook.Path | V2: 1 | W2: Level 0-Single Word | Y2: 1 | Z2: open | AA2: Auto | AB2: auto | AC2: 1 | AD2: =IF(AF2=1,AE2) -> White Opal | AE2: White Opal | AF2: 1 | AH2: =IF(AJ2=1,AI2) -> 1 | AI2: 1 | AJ2: 1 | AL2: Konsolidate | AM2: 1
B3: Subtitle: | G3: 1 | H3: Bilder: | L3: 0 | M3: X-Koordin. | N3: 1 | O3: 2 | P3: singleloop | Q3: 2 | R3: closed | V3: 2 | W3: Level 1 | Y3: 2 | Z3: 1 | AA3: Afrikaans | AB3: af | AC3: 2 | AD3: =IF(AF3=1,AE3) -> Lightning Opal | AE3: Lightning Opal | AF3: 1 | AH3: 2 | AI3: 2 | AJ3: 1 | AL3: PDf only
B4: Level: | C4: 1 | G4: 1 | H4: Sperrvermerk: | K4: 1 | L4: 0 | M4: Y-Koordin. | N4: =IF(C4="",0,C4) -> 1 | O4: 3 | P4: normalloop | Q4: 3 | R4: Dropbox Gate 1 | S4: C:\Users\Markus\Dropbox | V4: 3 | W4: Level 2 | Y4: 3 | Z4: 3 | AA4: Albanian | AB4: sq | AC4: 3 | AD4: Synthetic Opal | AE4: Synthetic Opal | AF4: 1 | AH4: 3 | AI4: 3 | AJ4: 1 | AL4: MM only
B5: Max. Contents | C5: 1 | G5: 1 | H5: Danksagung: | K5: 1 | L5: 0 | N5: 29 | O5: 4 | P5: growloop | Q5: 4 | R5: Dropbox Gate 2 | V5: 4 | W5: Level 3 | Y5: 4 | Z5: 5 | AA5: Amharic | AB5: am | AC5: 4 | AD5: Blue Opal | AE5: Blue Opal | AF5: 1 | AH5: 4 | AI5: 4 | AJ5: 1 | AL5: Exam only
B6: AutoLoops: | G6: 1 | H6: Abstract: | K6: 1 | L6: 0 | O6: 5 | P6: timeloop | Q6: 5 | R6: Dropbox Gate 3 | V6: 5 | W6: Level 4 | Y6: 5 | Z6: 7 | AA6: Arabic | AB6: ar | AC6: 5 | AD6: Red Fire Opal | AE6: Red Fire Opal | AF6: 1 | AH6: 5 | AI6: 5 | AJ6: 1 | AL6: Contentspeichern | AM6: 1
A7: Anzahl Produkte: | B7: Speicherort: | C7: 1 | D7: 2 | F7: 2 | G7: =IF(G4=1,IF(G1=TRUE,1,""),"") ->  | H7: Inhaltsverzeichnis: | K7: 1 | L7: 1 | Q7: 6 | R7: Dropbox Gate 4 | V7: 6 | W7: AI-Level | Y7: 6 | Z7: 10 | AA7: Armenian | AB7: hy | AC7: 6 | AD7: Gold Design | AE7: Gold Design | AF7: 1 | AH7: 6 | AI7: 6 | AJ7: 1 | AL7: Testprüfung only
A8: 01 | B8: Datenbank: | C8: 2 | D8: 2 | F8: 2 | G8: =IF(G5=1,IF(G2=TRUE,1,""),"") ->  | H8: Abkürzungsverzeichnis: | L8: 0 | Q8: 7 | R8: Dropbox Gate 5 | Y8: 7 | Z8: 15 | AA8: Azerbaijani | AB8: az | AC8: 7 | AD8: Boulder Opal | AE8: Boulder Opal | AF8: 1
B9: .pdf | C9: 1 | D9: 1 | E9: TRUE | G9: =IF(G6=1,IF(G3=TRUE,1,""),"") ->  | H9: Abbildungsverzeichnis: | L9: 0 | Q9: 8 | R9: WD Mycloud Gate 1 | Y9: 8 | Z9: 20 | AA9: Basque | AB9: eu | AC9: 8 | AD9: Pinfire Opal | AE9: Pinfire Opal | AF9: 1
A10: mp1 | B10: .xlsx | C10: 0 | D10: 1 | E10: TRUE | H10: Tabellenverzeichnis: | L10: 0 | Q10: 9 | R10: WD Mycloud Gate 2 | Y10: 9 | Z10: 25 | AA10: Belarusian | AB10: be | AC10: 9 | AD10: Red Blue Opal | AE10: Red Blue Opal | AF10: 1
B11: .txt | C11: 0 | D11: 1 | E11: TRUE | H11: Inhalt: | J11: =IF(K11=1,IF(L11=TRUE,1,""),"") ->  | K11: 1 | L11: 1 | Q11: 10 | R11: WD Mycloud Gate 3 | Y11: 10 | Z11: 30 | AA11: Bengali | AB11: bn | AC11: 10 | AD11: Black Opal | AE11: Black Opal | AF11: 1
A12: normal | B12: AI: | C12: 2 | H12: Literaturverzeichnis: | K12: 1 | L12: 1 | Q12: 11 | R12: WD Mycloud Gate 4 | Y12: 11 | Z12: 35 | AA12: Bosnian | AB12: bs | AC12: 11 | AD12: Edel Opal | AE12: Edel Opal | AF12: 1
B13: Language: | C13: 1 | H13: Formeln: | L13: 0 | Q13: 12 | R13: WD Mycloud Gate 5 | Y13: 12 | Z13: 40 | AA13: Bulgarian | AB13: bg | AC13: 12 | AD13: Dark Green Opal | AE13: Dark Green Opal | AF13: 1
A14: special | B14: Translation: | C14: 1 | D14: FALSE | H14: Anhang: | L14: 0 | R14: Open after published: | S14: C:\Users\Marku\Desktop\01_PBC\Academical Treasury\Academical Treasury_PDFs\QL2\1_Sportwissenschaft | Y14: 13 | Z14: 50 | AA14: Catalan | AB14: ca
B15: ReadIn: | C15: 1 | D15: 1 | E15: TRUE | H15: Wörterverzeichnis: | L15: 0 | Y15: 14 | Z15: 60 | AA15: Cebuano | AB15: ceb
B16: Editor: | C16: 0 | D16: 1 | E16: 0 | H16: Eidesstattliche Erklärung: | J16: =IF(K16=1,IF(L16=TRUE,1,""),"") ->  | K16: 1 | L16: 0 | Y16: 15 | Z16: 100 | AA16: Chichewa | AB16: ny
B17: Visualizer: | C17: 1 | D17: 1 | E17: TRUE | Y17: 16 | Z17: 1000 | AA17: Chinese | AB17: zh-CN
B18: Special: | C18: Qualitätsgrad | AA18: Corsican | AB18: co
B19: 0 | AA19: Croatian | AB19: hr
A20: Verlag: | B20: closed | C20: Umfang | D20: White Opal | E20: Lightning Opal | F20: Synthetic Opal | G20: Blue Opal | H20: Red Fire Opal | I20: Gold Design | J20: Boulder Opal | K20: Pinfire Opal | L20: Red Blue Opal | M20: Black Opal | N20: Edel Opal | O20: Dark Green Opal | AA20: Czech | AB20: cs
A21: 0 | C21: Level 0-Single Word | AA21: Danish | AB21: da
A22: Unternehmen: | B22: closed | C22: 0 | AA22: Dutch | AB22: nl
A23: 0 | AA23: English | AB23: en
A24: Google PDF Size | AA24: Esperanto | AB24: eo
B25: Single | C25: 1 | AA25: Estonian | AB25: et
A26: Eindeutige Treffer: | B26: TRUE | C26: 0 | AA26: Filipino | AB26: tl
A27: no pdf | B27: TRUE | C27: 0 | AA27: Finnish | AB27: fi
A28: mit blist überschrift | B28: TRUE | C28: 0 | AA28: French | AB28: fr
A29: Allroundtreffer | C29: 1 | AA29: Frisian | AB29: fy
AA30: Galician | AB30: gl
A31: Generate Learntest | B31: 0 | AA31: Georgian | AB31: ka
A32: Generate Paper | B32: 1 | AA32: German | AB32: de
A33: Plagiatscan vom Generiertem | B33: 0 | C33: Level 2 | AA33: Greek | AB33: el
A34: Plagiatscan vom Upload | AA34: Gujarati | AB34: gu
A35: 0 | AA35: Haitian Creole | AB35: ht
A36: weiter | AA36: Hausa | AB36: ha
AA37: Hawaiian | AB37: ka
C38: Level 3 | AA38: Hebrew | AB38: iw
AA39: Hindi | AB39: hi
AA40: Hmong | AB40: hmn
A41: Prüfungstest53 | AA41: Hungarian | AB41: hu
A42: Learntest49 | B42: 0 | AA42: Icelandic | AB42: is
A43: MindMap52 | B43: 0 | C43: Level 4 | AA43: Igbo | AB43: ig
AA44: Indonesian | AB44: id
A45: Editor | AA45: Irish | AB45: ga
AA46: Italian | AB46: it
AA47: Japanese | AB47: ja
C48: AI-Level | AA48: Javanese | AB48: jw
AA49: Kannada | AB49: kn
AA50: Kazakh | AB50: kk
AA51: Khmer | AB51: km
AA52: Korean | AB52: ko
AA53: Kurdish (Kurmanji) | AB53: ku
AA54: Kyrgyz | AB54: ky
B55: 1 | AA55: Lao | AB55: lo
AA56: Latin | AB56: la
AA57: Latvian | AB57: lv
AA58: Lithuanian | AB58: lt
AA59: Luxembourgish | AB59: lb
AA60: Macedonian | AB60: mk
AA61: Malagasy | AB61: mg
AA62: Malay | AB62: ms
AA63: Malayalam | AB63: ml
AA64: Maltese | AB64: mt
AA65: Maori | AB65: mi
AA66: Marathi | AB66: mr
AA67: Mongolian | AB67: mn
AA68: Myanmar (Burmese) | AB68: my
AA69: Nepali | AB69: ne
AA70: Norwegian | AB70: no
AA71: Pashto | AB71: ps
AA72: Persian | AB72: fa
AA73: Polish | AB73: pl
AA74: Portuguese | AB74: pt
AA75: Punjabi | AB75: pa
AA76: Romanian | AB76: ro
AA77: Russian | AB77: ru
AA78: Samoan | AB78: sm
AA79: Scots Gaelic | AB79: gd
AA80: Serbian | AB80: sr
AA81: Sesotho | AB81: st
AA82: Shona | AB82: sn
AA83: Sindhi | AB83: sd
AA84: Sinhala | AB84: si
AA85: Slovak | AB85: sk
AA86: Slovenian | AB86: sl
AA87: Somali | AB87: so
AA88: Spanish | AB88: es
AA89: Sundanese | AB89: su
AA90: Swahili | AB90: sw
AA91: Swedish | AB91: sv
AA92: Tajik | AB92: tg
AA93: Tamil | AB93: ta
AA94: Telugu | AB94: te
AA95: Thai | AB95: th
AA96: Turkish | AB96: tr
AA97: Ukrainian | AB97: uk
AA98: Urdu | AB98: ur
AA99: Uzbek | AB99: uz
AA100: Vienamese | AB100: vi | DR100: wasbt123
AA101: Welsh | AB101: cy
AA102: Xhosa | AB102: xh
AA103: Yiddish | AB103: yi
AA104: Yoruba | AB104: yo
AA105: Zulu | AB105: zu

Sheet AOP (hidden)

Sheet SV (hidden)
A1: Sperrvermerk
A3: Diese Arbeit beinhaltet interne und vertrauliche Daten der University of Innsbruck, World University of
A4: Science, Business and Technology und den International Academies managed by Program Base Cybernetics.
A5: Mit Ausnahme der Studierenden der WUSBT und APBCI, betreuenden Dozenten und registrierten Mitglieder
A6: der Internetplattformen www.apbci.com und www.wusbt.com, darf dieses Schriftstück Dritten oder besonders
A7: Personen schädigender Absichten nicht zugänglich gemacht werden. Eine Vervielfältigung und Veröffentlichung
A8: ohne ausdrückliche Genehmigung -auch in Auszügen- ist nicht erlaubt.

Sheet VW (hidden)

Sheet Danksagung (hidden)
A1: Danksagung
A3: An dieser Stelle ein herzliches Dankeschön an alle, die während der Anfertigung automatisierter Möglichkeiten
A4: die und weitere Arbeiten unterstüztend gemanaged haben, sowie für die hilfreichen Anregungen und die konstruktive
A5: Hinweise und Kritik bei der Erstellung. Ein besonderer Dank gilt den Familien für die finanzielle Unterstützung
A6: der Forschung, und allen Teilnehmern und Teilnehmerinnen für hilfreiche Beiträge, ohne denen diese
A7: Arbeit nicht hätte entstehen können. Der Dank gilt unter Anderem für die Informationsbereitschaft
A8: und interessanten Beiträgen und Antworten auf Fragen. Ebenfalls danke an die Schüler, Studenten
A9: und Kommilitonen die mit viel Geduld, Interesse und Hilfsbereitschaft zur Seite standen und für die
A10: zahlreichen interessanten Debatten und Ideen, die maßgeblich dazu beigetragen haben, dass diese
A11: Arbeit in dieser Form vorliegt. Abschließend danke an jene, die Studien durch ihre Unterstützung
A12: ermöglichten und stets ein offenes Ohr hatten, sowie den Autoren und Plattformen unter Anderem
A13: für Ihre Recherchen und Quellenangaben.

Sheet Abstrakt (hidden)
A1: Abstract
A3: Die vorliegende Arbeit mit dem Titel Strategisches Management setzt sich mit den in
A4: Verbindung gebrachten Fachbegriffen und Inhalten zur Schaffung von Wissen und Struktur mit
A5: beispielsweise Strategisches Management und Ebenen des strategischen Managements auseinander.
A6: Diese Arbeit zeigt welche Inhalte unter bei speziellen Konfigurationen autonom generiert werden können.
A7: Eine Vielzahl der angewandten Forschungsmethoden qualitativer, quantitativer Natur und sonstigen
A8: Klassifizierbarkeiten, sind bislang in solcher Form noch nicht existent in Erscheinung getreten.
A9: Vorstellbar als prozessuale Modellierung von Design, Optimierung und Kompensationsengineering
A10: redunzieren sich die Stammgehalte der einzelnen Elemente und Themen zu edukativen und wissenwerten
A11: Informationen. Über mehrere Seiten findet man unter Anderem zur Erkenntnissgewinnung und
A12: Wissensvermehrung, seltene Begriffe in deskriptiver und erklärender Form zu einer einzigartig
A13: fungierenden Gesamtfassung der Forschung, Schriftstücken und ausgewählter Literatur.
A14: Die Inhalte dieser Arbeit zeigen, dass es neben den implizit untergeordneten Begriffen auch noch
A15: weitere Aspekte zu diesen Thematiken gibt und daher berechtigten Anlass zur Erforschung und
A16: Wissensgenerierung tieferer Ebenen bieten. Aus diesem Grund wurde diese Arbeit mit dem AAA.I. indexiert,
A17: um die Typologisierung zukünftiger Forschungstiefen und deren Inhalte zu erleichtern, kennzuzeichnen
A18: und verdient durch Vergabe des Qualitätssiegels AAA.I. dieser Arbeit Tribut zu erweisen.

Sheet Abstract (hidden)
A1: Abstract
A3: Die vorliegende Arbeit mit dem Titel Strategisches Management setzt sich mit den in
A4: Verbindung gebrachten Fachbegriffen und Inhalten zur Schaffung von Wissen und Struktur mit
A5: beispielsweise Strategisches Management und Ebenen des strategischen Managements auseinander.
A6: Diese Arbeit zeigt welche Inhalte unter bei speziellen Konfigurationen autonom generiert werden können.
A7: Eine Vielzahl der angewandten Forschungsmethoden qualitativer, quantitativer Natur und sonstigen
A8: Klassifizierbarkeiten, sind bislang in solcher Form noch nicht existent in Erscheinung getreten.
A9: Vorstellbar als prozessuale Modellierung von Design, Optimierung und Kompensationsengineering
A10: redunzieren sich die Stammgehalte der einzelnen Elemente und Themen zu edukativen und wissenwerten
A11: Informationen. Über mehrere Seiten findet man unter Anderem zur Erkenntnissgewinnung und
A12: Wissensvermehrung, seltene Begriffe in deskriptiver und erklärender Form zu einer einzigartig
A13: fungierenden Gesamtfassung der Forschung, Schriftstücken und ausgewählter Literatur.
A14: Die Inhalte dieser Arbeit zeigen, dass es neben den implizit untergeordneten Begriffen auch noch
A15: weitere Aspekte zu diesen Thematiken gibt und daher berechtigten Anlass zur Erforschung und
A16: Wissensgenerierung tieferer Ebenen bieten. Aus diesem Grund wurde diese Arbeit mit dem AAA.I. indexiert,
A17: um die Typologisierung zukünftiger Forschungstiefen und deren Inhalte zu erleichtern, kennzuzeichnen
A18: und verdient durch Vergabe des Qualitätssiegels AAA.I. dieser Arbeit Tribut zu erweisen.

Sheet EE (hidden)
A1: Eidesstattliche Erklärung
A3: Hiermit erkläre ich an Eides Statt, dass die vorliegende Arbeit selbstständig und nur unter
A4: Zuhilfenahme der auszuweisenden Hilfsmittel angefertigt wurde. Sämtliche Stellen der Arbeit, die
A5: im Wortlaut oder dem Sinn nach anderen gedruckten oder im Internet verfügbaren Werken
A6: entnommen sind, wurden durch genaue Quellenangaben kenntlich gemacht.
A8: Maisach, den 06.10.2021
A12: Markus Schmid

Sheet ABBVZ (hidden)
A1: Abbildungsverzeichnis

Sheet Hierarchie (hidden)
A1: 1. Fachhochschule | C1: 1. Fachhochschule | E1: 1. Fachhochschule | F1: 1. | G1: Fachhochschule | H1: gp | I1: pm | J1: lm | K1: ss | L1: sonstiges | M1: Überschrift | N1: element | O1: prio | P1: p2 | Q1: link

Sheet IVZ (hidden)
A1: Inhaltsverzeichnis

Sheet C-DB (hidden)
B1: Id | D1: Links

Sheet C-DB2 (hidden)
B1: Id | C1: 01_Elementname | D1: 02_Link | E1: 03_Descr. | F1: References | G1: r2 | H1: r3 | I1: r4 | J1: r5 | K1: r6 | L1: r7 | M1: r8 | N1: r9 | O1: r10 | P1: Translation | Q1: Picture | R1: p2 | S1: p3 | T1: p4 | U1: p5 | V1: p6 | W1: p7 | X1: p8 | Y1: p9 | Z1: p10 | AA1: seiten | AB1: pfad1 | AC1: pfad2 | AD1: pfad3 | AE1: pfad4 | AF1: pfad5 | AG1: pfad6 | AH1: pfad7 | AI1: pfad8 | AJ1: pfad9 | AK1: pfad10 | AL1: b38 | AM1: h | AN1: bc | AO1: hc | AP1: z | AQ1: b43 | AR1: h | AS1: bc | AT1: hc | AU1: z | AV1: b48 | AW1: h | AX1: bc | AY1: hc | AZ1: z | BA1: b53 | BB1: h | BC1: bc | BD1: hc | BE1: z | BF1: b58 | BG1: h | BH1: bc | BI1: hc | BJ1: z | BK1: b63 | BL1: h | BM1: bc | BN1: hc | BO1: z | BP1: b68 | BQ1: h | BR1: bc | BS1: hc | BT1: z | BU1: b73 | BV1: h | BW1: bc | BX1: hc | BY1: z | BZ1: b78 | CA1: h | CB1: bc | CC1: hc | CD1: z | CE1: b83 | CF1: h | CG1: bc | CH1: hc | CI1: z | CJ1: b88 | CK1: h | CL1: bc | CM1: hc | CN1: z | CO1: b93 | CP1: h | CQ1: bc | CR1: hc | CS1: z | CT1: t1 | CU1: t2 | CV1: t3 | CW1: t4 | CX1: t5 | CY1: t6 | CZ1: t7 | DA1: t8 | DB1: t9 | DC1: t10 | DD1: t11 | DE1: st1
AM2: 16 | AN2: 16 | AO2: 16 | AP2: 2 | AQ2: 16 | AR2: 16 | AS2: 16 | AT2: 16 | AU2: 2
AM45: 14 | AN45: 16 | AO45: 14 | AP45: 1 | AQ45: 25 | AR45: 19 | AS45: 25 | AT45: 19 | AU45: 2
AM77: 16 | AN77: 16 | AO77: 16 | AP77: 2
AM159: 19 | AN159: 25 | AO159: 19 | AP159: 2
AM268: 19 | AN268: 25 | AO268: 19 | AP268: 2
AM394: 15 | AN394: 15 | AO394: 15 | AP394: 2
AM411: 15 | AN411: 15 | AO411: 15 | AP411: 2 | AQ411: 220 | AR411: 88 | AS411: 220 | AT411: 88 | AU411: 6
AM432: 24 | AN432: 24 | AO432: 24 | AP432: 2 | AQ432: 220 | AR432: 127 | AS432: 220 | AT432: 127 | AU432: 9 | AV432: 220 | AW432: 201 | AX432: 220 | AY432: 201 | AZ432: 14
AM455: 253 | AN455: 350 | AO455: 253 | AP455: 17 | AQ455: 220 | AR455: 180 | AS455: 220 | AT455: 180 | AU455: 13 | AV455: 25 | AW455: 19 | AX455: 25 | AY455: 19 | AZ455: 2
AM601: 16 | AN601: 12 | AO601: 16 | AP601: 2
AM627: 63 | AN627: 220 | AO627: 63 | AP627: 5
AM668: 276 | AN668: 220 | AO668: 276 | AP668: 19
AM689: 19 | AN689: 25 | AO689: 19 | AP689: 2
AM748: 233 | AN748: 310 | AO748: 233 | AP748: 16
AM807: 210 | AN807: 280 | AO807: 210 | AP807: 15 | AQ807: 280 | AR807: 210 | AS807: 280 | AT807: 210 | AU807: 15
AM843: 315 | AN843: 220 | AO843: 315 | AP843: 22 | AQ843: 25 | AR843: 19 | AS843: 25 | AT843: 19 | AU843: 2
AM875: 258 | AN875: 300 | AO875: 258 | AP875: 18 | AQ875: 500 | AR875: 112 | AS875: 471 | AT875: 105.504 | AU875: 8
AM937: 263 | AN937: 350 | AO937: 263 | AP937: 18 | AQ937: 220 | AR937: 165 | AS937: 220 | AT937: 165 | AU937: 12
AM944: 152 | AN944: 220 | AO944: 152 | AP944: 11 | AQ944: 25 | AR944: 19 | AS944: 25 | AT944: 19 | AU944: 2
AM989: 330 | AN989: 220 | AO989: 330 | AP989: 23 | AQ989: 220 | AR989: 146 | AS989: 220 | AT989: 146 | AU989: 10 | AV989: 220 | AW989: 185 | AX989: 220 | AY989: 185 | AZ989: 13
AM1035: 19 | AN1035: 25 | AO1035: 19 | AP1035: 2
AM1090: 16 | AN1090: 16 | AO1090: 16 | AP1090: 2 | AQ1090: 16 | AR1090: 16 | AS1090: 16 | AT1090: 16 | AU1090: 2
AM1094: 256 | AN1094: 220 | AO1094: 256 | AP1094: 18
AM1111: 146 | AN1111: 220 | AO1111: 146 | AP1111: 10 | AQ1111: 170 | AR1111: 241 | AS1111: 170 | AT1111: 241 | AU1111: 17 | AV1111: 170 | AW1111: 206 | AX1111: 170 | AY1111: 206 | AZ1111: 14
AM1138: 95 | AN1138: 180 | AO1138: 95 | AP1138: 7 | AQ1138: 95 | AR1138: 120 | AS1138: 95 | AT1138: 120 | AU1138: 9 | AV1138: 96 | AW1138: 119 | AX1138: 96 | AY1138: 119 | AZ1138: 8
AM1142: 16 | AN1142: 16 | AO1142: 16 | AP1142: 2 | AQ1142: 16 | AR1142: 16 | AS1142: 16 | AT1142: 16 | AU1142: 2
AM1183: 165 | AN1183: 219 | AO1183: 165 | AP1183: 12 | AQ1183: 219 | AR1183: 165 | AS1183: 219 | AT1183: 165 | AU1183: 12 | AV1183: 219 | AW1183: 165 | AX1183: 219 | AY1183: 165 | AZ1183: 12
AM1207: 16 | AN1207: 16 | AO1207: 16 | AP1207: 2
AM1249: 16 | AN1249: 16 | AO1249: 16 | AP1249: 2 | AQ1249: 25 | AR1249: 19 | AS1249: 25 | AT1249: 19 | AU1249: 2
AM1260: 19 | AN1260: 25 | AO1260: 19 | AP1260: 2
AM1271: 19 | AN1271: 25 | AO1271: 19 | AP1271: 2
AM1372: 16 | AN1372: 16 | AO1372: 16 | AP1372: 2 | AQ1372: 16 | AR1372: 16 | AS1372: 16 | AT1372: 16 | AU1372: 2
AM1377: 361 | AN1377: 220 | AO1377: 361 | AP1377: 25 | AQ1377: 25 | AR1377: 19 | AS1377: 25 | AT1377: 19 | AU1377: 2
AM1411: 149 | AN1411: 220 | AO1411: 149 | AP1411: 10 | AQ1411: 220 | AR1411: 147 | AS1411: 220 | AT1411: 147 | AU1411: 10 | AV1411: 220 | AW1411: 197 | AX1411: 220 | AY1411: 197 | AZ1411: 14
AM1427: 171 | AN1427: 220 | AO1427: 171 | AP1427: 12
AM1437: 15 | AN1437: 13 | AO1437: 15 | AP1437: 2 | AQ1437: 16 | AR1437: 16 | AS1437: 16 | AT1437: 16 | AU1437: 2 | AV1437: 16 | AW1437: 16 | AX1437: 16 | AY1437: 16 | AZ1437: 2
AM1498: 112 | AN1498: 471 | AO1498: 105.504 | AP1498: 8
AM1557: 18 | AN1557: 44 | AO1557: 18 | AP1557: 2
AM1571: 147 | AN1571: 220 | AO1571: 147 | AP1571: 10 | AQ1571: 220 | AR1571: 270 | AS1571: 220 | AT1571: 270 | AU1571: 19 | AV1571: 220 | AW1571: 275 | AX1571: 220 | AY1571: 275 | AZ1571: 19
AM1579: 15 | AN1579: 13 | AO1579: 15 | AP1579: 2 | AQ1579: 15 | AR1579: 15 | AS1579: 15 | AT1579: 15 | AU1579: 2 | AV1579: 13 | AW1579: 15 | AX1579: 13 | AY1579: 15 | AZ1579: 2
AM1593: 146 | AN1593: 220 | AO1593: 146 | AP1593: 10 | AQ1593: 220 | AR1593: 146 | AS1593: 220 | AT1593: 146 | AU1593: 10 | AV1593: 16 | AW1593: 16 | AX1593: 16 | AY1593: 16 | AZ1593: 2
AM1600: 24 | AN1600: 24 | AO1600: 24 | AP1600: 2
AM1639: 171 | AN1639: 400 | AO1639: 171 | AP1639: 12 | AQ1639: 25 | AR1639: 19 | AS1639: 25 | AT1639: 19 | AU1639: 2
AM1695: 16 | AN1695: 16 | AO1695: 16 | AP1695: 2 | AQ1695: 16 | AR1695: 16 | AS1695: 16 | AT1695: 16 | AU1695: 2 | AV1695: 16 | AW1695: 16 | AX1695: 16 | AY1695: 16 | AZ1695: 2
AM1717: 13 | AN1717: 20 | AO1717: 13 | AP1717: 1 | AQ1717: 180 | AR1717: 95 | AS1717: 180 | AT1717: 95 | AU1717: 7 | AV1717: 220 | AW1717: 282 | AX1717: 220 | AY1717: 282 | AZ1717: 19
AM1776: 16 | AN1776: 16 | AO1776: 16 | AP1776: 2 | AQ1776: 16 | AR1776: 16 | AS1776: 16 | AT1776: 16 | AU1776: 2 | AV1776: 25 | AW1776: 19 | AX1776: 25 | AY1776: 19 | AZ1776: 2
AM1883: 24 | AN1883: 24 | AO1883: 24 | AP1883: 2 | AQ1883: 25 | AR1883: 19 | AS1883: 25 | AT1883: 19 | AU1883: 2
AM1924: 19 | AN1924: 25 | AO1924: 19 | AP1924: 2 | AQ1924: 220 | AR1924: 286 | AS1924: 220 | AT1924: 286 | AU1924: 20 | AV1924: 220 | AW1924: 165 | AX1924: 220 | AY1924: 165 | AZ1924: 12
AM1980: 19 | AN1980: 25 | AO1980: 19 | AP1980: 2 | AQ1980: 220 | AR1980: 286 | AS1980: 220 | AT1980: 286 | AU1980: 20 | AV1980: 220 | AW1980: 165 | AX1980: 220 | AY1980: 165 | AZ1980: 12
AM2000: 16 | AN2000: 16 | AO2000: 16 | AP2000: 2
AM2020: 238 | AN2020: 440 | AO2020: 238 | AP2020: 16
AM2059: 212 | AN2059: 330 | AO2059: 212 | AP2059: 15 | AQ2059: 220 | AR2059: 162 | AS2059: 220 | AT2059: 162 | AU2059: 11 | AV2059: 220 | AW2059: 147 | AX2059: 220 | AY2059: 147 | AZ2059: 10
AM2134: 121 | AN2134: 219 | AO2134: 121 | AP2134: 9 | AQ2134: 220 | AR2134: 58 | AS2134: 220 | AT2134: 58 | AU2134: 4 | AV2134: 220 | AW2134: 116 | AX2134: 220 | AY2134: 116 | AZ2134: 8
AM2154: 293 | AN2154: 220 | AO2154: 293 | AP2154: 20 | AQ2154: 220 | AR2154: 147 | AS2154: 220 | AT2154: 147 | AU2154: 10 | AV2154: 220 | AW2154: 147 | AX2154: 220 | AY2154: 147 | AZ2154: 10
AM2182: 293 | AN2182: 220 | AO2182: 293 | AP2182: 20 | AQ2182: 25 | AR2182: 19 | AS2182: 25 | AT2182: 19 | AU2182: 2
AM2241: 16 | AN2241: 12 | AO2241: 16 | AP2241: 2
AM2244: 147 | AN2244: 220 | AO2244: 147 | AP2244: 10
AM2274: 18 | AN2274: 44 | AO2274: 18 | AP2274: 2
AM2290: 24 | AN2290: 24 | AO2290: 24 | AP2290: 2 | AQ2290: 25 | AR2290: 19 | AS2290: 25 | AT2290: 19 | AU2290: 2
AM2353: 486 | AN2353: 220 | AO2353: 486 | AP2353: 33 | AQ2353: 15 | AR2353: 15 | AS2353: 15 | AT2353: 15 | AU2353: 2
AM2376: 209 | AN2376: 220 | AO2376: 209 | AP2376: 14 | AQ2376: 196 | AR2376: 45 | AS2376: 196 | AT2376: 45 | AU2376: 4 | AV2376: 90 | AW2376: 83 | AX2376: 90 | AY2376: 83 | AZ2376: 6
AM2394: 182 | AN2394: 220 | AO2394: 182 | AP2394: 13 | AQ2394: 220 | AR2394: 210 | AS2394: 220 | AT2394: 210 | AU2394: 15 | AV2394: 220 | AW2394: 210 | AX2394: 220 | AY2394: 210 | AZ2394: 15
AM2414: 110 | AN2414: 220 | AO2414: 110 | AP2414: 8 | AQ2414: 220 | AR2414: 174 | AS2414: 220 | AT2414: 174 | AU2414: 12
AM2445: 220 | AN2445: 220 | AO2445: 220 | AP2445: 15 | AQ2445: 354 | AR2445: 141 | AS2445: 354 | AT2445: 141 | AU2445: 10
AM2461: 16 | AN2461: 16 | AO2461: 16 | AP2461: 2 | AQ2461: 16 | AR2461: 16 | AS2461: 16 | AT2461: 16 | AU2461: 2
AM2486: 24 | AN2486: 24 | AO2486: 24 | AP2486: 2
AM2490: 307 | AN2490: 220 | AO2490: 307 | AP2490: 21 | AQ2490: 220 | AR2490: 115 | AS2490: 220 | AT2490: 115 | AU2490: 8 | AV2490: 25 | AW2490: 19 | AX2490: 25 | AY2490: 19 | AZ2490: 2
AM2517: 165 | AN2517: 220 | AO2517: 165 | AP2517: 12 | AQ2517: 220 | AR2517: 147 | AS2517: 220 | AT2517: 147 | AU2517: 10 | AV2517: 220 | AW2517: 147 | AX2517: 220 | AY2517: 147 | AZ2517: 10
AM2569: 294 | AN2569: 220 | AO2569: 294 | AP2569: 20 | AQ2569: 220 | AR2569: 330 | AS2569: 220 | AT2569: 330 | AU2569: 23 | AV2569: 220 | AW2569: 220 | AX2569: 220 | AY2569: 220 | AZ2569: 15
AM2636: 85 | AN2636: 131 | AO2636: 85 | AP2636: 6 | AQ2636: 131 | AR2636: 85 | AS2636: 131 | AT2636: 85 | AU2636: 6
AM2687: 91 | AN2687: 219 | AO2687: 91 | AP2687: 7
AM2762: 200 | AN2762: 200 | AO2762: 200 | AP2762: 14 | AQ2762: 200 | AR2762: 200 | AS2762: 200 | AT2762: 200 | AU2762: 14 | AV2762: 200 | AW2762: 169 | AX2762: 200 | AY2762: 169 | AZ2762: 12
AM2777: 16 | AN2777: 12 | AO2777: 16 | AP2777: 2 | AQ2777: 16 | AR2777: 16 | AS2777: 16 | AT2777: 16 | AU2777: 2
AM2780: 15 | AN2780: 15 | AO2780: 15 | AP2780: 2
AM2806: 266 | AN2806: 471 | AO2806: 213.4344123 | AP2806: 15 | AQ2806: 587 | AR2806: 266 | AS2806: 471 | AT2806: 213.4344123 | AU2806: 15
AM2814: 311 | AN2814: 220 | AO2814: 311 | AP2814: 21
AM2818: 247 | AN2818: 440 | AO2818: 247 | AP2818: 17 | AQ2818: 12 | AR2818: 16 | AS2818: 12 | AT2818: 16 | AU2818: 2
AM2823: 212 | AN2823: 220 | AO2823: 212 | AP2823: 15
AM2841: 24 | AN2841: 24 | AO2841: 24 | AP2841: 2
AM2856: 234 | AN2856: 471 | AO2856: 220.428 | AP2856: 15 | AQ2856: 44 | AR2856: 18 | AS2856: 44 | AT2856: 18 | AU2856: 2
AM2931: 218 | AN2931: 170 | AO2931: 218 | AP2931: 15
AM2977: 19 | AN2977: 25 | AO2977: 19 | AP2977: 2
AM3037: 376 | AN3037: 220 | AO3037: 376 | AP3037: 26
AM3070: 24 | AN3070: 24 | AO3070: 24 | AP3070: 2 | AQ3070: 220 | AR3070: 147 | AS3070: 220 | AT3070: 147 | AU3070: 10
AM3094: 24 | AN3094: 24 | AO3094: 24 | AP3094: 2 | AQ3094: 220 | AR3094: 165 | AS3094: 220 | AT3094: 165 | AU3094: 12
AM3166: 50 | AN3166: 50 | AO3166: 50 | AP3166: 4
AM3225: 16 | AN3225: 16 | AO3225: 16 | AP3225: 2
AM3227: 142 | AN3227: 220 | AO3227: 142 | AP3227: 10
AM3235: 19 | AN3235: 25 | AO3235: 19 | AP3235: 2
AM3252: 247 | AN3252: 260 | AO3252: 247 | AP3252: 17
AM3257: 16 | AN3257: 16 | AO3257: 16 | AP3257: 2 | AQ3257: 16 | AR3257: 16 | AS3257: 16 | AT3257: 16 | AU3257: 2 | AV3257: 25 | AW3257: 19 | AX3257: 25 | AY3257: 19 | AZ3257: 2
AM3275: 308 | AN3275: 440 | AO3275: 308 | AP3275: 21
AM3302: 227 | AN3302: 170 | AO3302: 227 | AP3302: 16 | AQ3302: 220 | AR3302: 220 | AS3302: 220 | AT3302: 220 | AU3302: 15 | AZ3302: 1
AM3339: 15 | AN3339: 13 | AO3339: 15 | AP3339: 2 | AQ3339: 16 | AR3339: 16 | AS3339: 16 | AT3339: 16 | AU3339: 2 | AV3339: 16 | AW3339: 16 | AX3339: 16 | AY3339: 16 | AZ3339: 2
AM3350: 196 | AN3350: 450 | AO3350: 196 | AP3350: 14 | AQ3350: 330 | AR3350: 94 | AS3350: 330 | AT3350: 94 | AU3350: 7 | AV3350: 220 | AW3350: 149 | AX3350: 220 | AY3350: 149 | AZ3350: 10
AM3371: 460 | AN3371: 300 | AO3371: 460 | AP3371: 31 | AQ3371: 300 | AR3371: 225 | AS3371: 300 | AT3371: 225 | AU3371: 16 | AV3371: 300 | AW3371: 166 | AX3371: 300 | AY3371: 166 | AZ3371: 12
AM3384: 254 | AN3384: 170 | AO3384: 254 | AP3384: 17 | AQ3384: 440 | AR3384: 330 | AS3384: 440 | AT3384: 330 | AU3384: 23
AM3403: 15 | AN3403: 15 | AO3403: 15 | AP3403: 2 | AQ3403: 15 | AR3403: 16 | AS3403: 15 | AT3403: 16 | AU3403: 2
AM3412: 187 | AN3412: 220 | AO3412: 187 | AP3412: 13 | AQ3412: 220 | AR3412: 126 | AS3412: 220 | AT3412: 126 | AU3412: 9 | AV3412: 220 | AW3412: 143 | AX3412: 220 | AY3412: 143 | AZ3412: 10
AM3469: 146 | AN3469: 220 | AO3469: 146 | AP3469: 10 | AQ3469: 220 | AR3469: 146 | AS3469: 220 | AT3469: 146 | AU3469: 10 | AV3469: 220 | AW3469: 177 | AX3469: 220 | AY3469: 177 | AZ3469: 12
AM3479: 19 | AN3479: 25 | AO3479: 19 | AP3479: 2

Sheet Tabelle44 (hidden)
D2: 1 | E2: =MID(E1,H1+1,10000) ->  | F2: =MID(E2,1,105) ->  | G2: =MID(F2,1,H2) ->  | H2: =Von_Rechts(F2," ") -> 0 | I2: =IF(AND(H3=0,H2=0),"",IF(H3=0,E2,IF(H2=0,"",IF(J2<>"",J2,IF(H2=0,"",IF(H2<50,E2,MID(E2,1,H2))))))) -> 
D3: 1 | G3: =MID(F3,1,H3) ->  | H3: =Von_Rechts(F3," ") -> 0 | I3: =IF(AND(H4=0,H3=0),"",IF(H4=0,E3,IF(H3=0,"",IF(J3<>"",J3,IF(H3=0,"",IF(H3<50,E3,MID(E3,1,H3))))))) -> 
D4: 1 | H4: 0
D5: 1 | H5: 0
D6: 1 | H6: 0
D7: 1 | H7: 0
D8: 1 | H8: 0
D9: 1 | H9: 0
D10: 1 | H10: 0
D11: 1 | H11: 0
D12: 1 | H12: 0
D13: 1 | H13: 0
D14: 1 | H14: 0
D15: 1 | H15: 0
D16: 1 | H16: 0
D17: 1 | H17: 0
D18: 1 | H18: 0 | L18: =IF(Von_Rechts(J21,"."),J21&"…","") -> 
D19: 1 | F19: =MID(E19,1,100) ->  | H19: 0
D20: 1 | H20: 0
D21: 1 | H21: 0
D22: 1 | H22: 0
D23: 1 | H23: 0
D24: 1 | H24: 0
D25: 1 | H25: 0
D26: 1 | H26: 0
D27: 1 | H27: 0
D28: 1 | H28: 0
D29: 1 | H29: 0
D30: 1 | H30: 0
D31: 1 | H31: 0
D32: 1 | H32: 0
D33: 1 | H33: 0
D34: 1 | H34: 0
D35: 1 | H35: 0
D36: 1 | H36: 0
D37: 1 | H37: 0
D38: 1 | H38: 0
D39: 1 | H39: 0
D40: 1 | H40: 0
H41: 0
H42: 0

Sheet SpecialPaperBot (hidden)
C1: Connector | D1: Ref | F1: Height | G1: weigth | H1: Zeilen | I1: Bild | K1: ID | L1: Überschrift | M1: Inhalt | N1: Bild | O1: Ref | P1: Checked

Sheet Z (hidden)

Sheet lvl (hidden)

Sheet sb2 (hidden)

Sheet T1 (hidden)
D1: 1

Sheet T3 (hidden)

Sheet REF (hidden)
A1: Quellenangabe

Sheet T4 (hidden)
B1: 1 | G1: ↑ | H1: ⁰ | I1: ¹ | J1: ² | K1: ³ | L1: ⁴ | M1: ⁵ | N1: ⁶ | O1: ⁷ | P1: ⁸ | Q1: ⁹ | R1: 0 | S1: 9 | T1: (* | U1: †

Sheet R (hidden)

Sheet Tabelle10 (hidden)
C2: Start | D2: Machs41 | E2: 411 | F2: lvl2 | G2: lvl32 | H2: Prozesszeit | I2: Editor | J2: Konsolidate
C3: 1 | D3: 3-9 | I3: 0 | J3: Content
J4: Konsolidieren
J5: 2-4
B6: Exakt | C6: 1 | D6: Sb*2 | E6: Sb*7 | F6: Sb*7*7 | G6: Sb*7*7*7 | H6: 10s | I6: 10
B7: Alround | C7: 1 | D7: sb*15 | E7: sb*15*15 | F7: Sb*15*15*15 | G7: SB*15*15*15 | H7: 15s | I7: 15
D8: Level0 | E8: Level1 | F8: Level2 | G8: level3
B11: Openlinks | D11: Sb*15
B12: Exakt | D12: =C6*I6*D9
B13: Alround
C14: 1 | D14: 3-9 | H14: 3-9 | I14: 0 | J14: 2-4
C16: Start | D16: Machs41 | E16: 411 | F16: lvl2 | G16: lvl32 | H16: Prozesszeit | I16: Editor | J16: Konsolidate
C17: 1 | D17: 3-9 | I17: 0 | J17: Content
J18: Konsolidieren
J19: 2-4
B20: Exakt | C20: 1 | D20: Sb*2 | E20: Sb*7 | F20: Sb*7*7 | G20: Sb*7*7*7 | H20: 10s
B21: Alround | C21: 1 | D21: sb*15 | E21: sb*15*15 | F21: Sb*15*15*15 | G21: SB*15*15*15 | H21: 15s
D22: Level0 | E22: Level1 | F22: Level2 | G22: level3
D23: 2 | U23: 0
U24: 1
B25: Openlinks | D25: Sb*15 | U25: 2
B26: Exakt | D26: =C17*I20*D2 | U26: 3
B27: Alround | D27: =C20 -> 1 | U27: content
C28: 1 | D28: 3-9 | H28: 3-9 | I28: 0 | J28: 2-4 | U28: konsolidate
H29: exakt | I29: 10 | U29: save
H30: allround | I30: 10
D31: 2 | E31: 7 | F31: 49 | G31: =7*49 -> 343
D32: 15 | E32: 15 | F32: =15*15 -> 225 | G32: =15*15*15 -> 3375 | H32: 0 | I32: 1 | J32: 2 | K32: 3 | L32: content | M32: konsolidate | N32: save
C34: 1 | D34: =$D$31*$I$29*$C34 -> 20 | E34: =$E$31*$I$29*$C34 -> 70 | F34: =$F$31*$I$29*$C34 -> 490 | G34: =$G$31*$I$29*$C34 -> 3430 | H34: 1 | I34: 2 | J34: 9 | K34: 58 | L34: 1 min. | M34: 2 min. | N34: 9 min. | O34: 58 min. | P34: 1 | Q34: 2 | R34: 9 | S34: 58
D35: =$D$32*$I$30*$C34 -> 150 | E35: =$E$32*$I$30*$C34 -> 150 | F35: =$F$32*$I$30*$C34 -> 2250 | G35: =$G$32*$I$30*$C34 -> 33750 | H35: 3 | I35: 3 | J35: 38 | K35: 563 | L35: 3 min. | M35: 3 min. | N35: 38 min. | O35: 9,4 h | P35: 3 | Q35: 3 | R35: 38 | S35: 9.4
C36: 2 | D36: =$D$31*$I$29*$C36 -> 40 | E36: =$E$31*$I$29*$C36 -> 140 | F36: =$F$31*$I$29*$C36 -> 980 | G36: =$G$31*$I$29*$C36 -> 6860 | H36: 1 | I36: 3 | J36: 17 | K36: 115 | L36: 1 min. | M36: 3 min. | N36: 17 min. | O36: 2 h | P36: 1 | Q36: 3 | R36: 17 | S36: 2
D37: =$D$32*$I$30*$C36 -> 300 | E37: =$E$32*$I$30*$C36 -> 300 | F37: =$F$32*$I$30*$C36 -> 4500 | G37: =$G$32*$I$30*$C36 -> 67500 | H37: 5 | I37: 5 | J37: 75 | K37: 1125 | L37: 5 min. | M37: 5 min. | N37: 75 min. | O37: 18,8 h | P37: 5 | Q37: 5 | R37: 75 | S37: 18.8
C38: 3 | D38: =$D$31*$I$29*$C38 -> 60 | E38: =$E$31*$I$29*$C38 -> 210 | F38: =$F$31*$I$29*$C38 -> 1470 | G38: =$G$31*$I$29*$C38 -> 10290 | H38: 1 | I38: 4 | J38: 25 | K38: 172 | L38: 1 min. | M38: 4 min. | N38: 25 min. | O38: 2,9 h | P38: 1 | Q38: 4 | R38: 25 | S38: 2.9
D39: =$D$32*$I$30*$C38 -> 450 | E39: =$E$32*$I$30*$C38 -> 450 | F39: =$F$32*$I$30*$C38 -> 6750 | G39: =$G$32*$I$30*$C38 -> 101250 | H39: 8 | I39: 8 | J39: 113 | K39: 1688 | L39: 8 min. | M39: 8 min. | N39: 1,9 h | O39: 28,2 h | P39: 8 | Q39: 8 | R39: 1.9 | S39: 28.2
C40: 4 | D40: =$D$31*$I$29*$C40 -> 80 | E40: =$E$31*$I$29*$C40 -> 280 | F40: =$F$31*$I$29*$C40 -> 1960 | G40: =$G$31*$I$29*$C40 -> 13720 | H40: 2 | I40: 5 | J40: 33 | K40: 229 | L40: 2 min. | M40: 5 min. | N40: 33 min. | O40: 3,9 h | P40: 2 | Q40: 5 | R40: 33 | S40: 3.9
D41: =$D$32*$I$30*$C40 -> 600 | E41: =$E$32*$I$30*$C40 -> 600 | F41: =$F$32*$I$30*$C40 -> 9000 | G41: =$G$32*$I$30*$C40 -> 135000 | H41: 10 | I41: 10 | J41: 150 | K41: 2250 | L41: 10 min. | M41: 10 min. | N41: 2,5 h | O41: 37,5 h | P41: 10 | Q41: 10 | R41: 2.5 | S41: 37.5
C42: 5 | D42: =$D$31*$I$29*$C42 -> 100 | E42: =$E$31*$I$29*$C42 -> 350 | F42: =$F$31*$I$29*$C42 -> 2450 | G42: =$G$31*$I$29*$C42 -> 17150 | H42: 2 | I42: 6 | J42: 41 | K42: 286 | L42: 2 min. | M42: 6 min. | N42: 41 min. | O42: 4,8 h | P42: 2 | Q42: 6 | R42: 41 | S42: 4.8
D43: =$D$32*$I$30*$C42 -> 750 | E43: =$E$32*$I$30*$C42 -> 750 | F43: =$F$32*$I$30*$C42 -> 11250 | G43: =$G$32*$I$30*$C42 -> 168750 | H43: 13 | I43: 13 | J43: 188 | K43: 2813 | L43: 13 min. | M43: 13 min. | N43: 3,2 h | O43: 46,9 h | P43: 13 | Q43: 13 | R43: 3.2 | S43: 46.9
C44: 6 | D44: =$D$31*$I$29*$C44 -> 120 | E44: =$E$31*$I$29*$C44 -> 420 | F44: =$F$31*$I$29*$C44 -> 2940 | G44: =$G$31*$I$29*$C44 -> 20580 | H44: 2 | I44: 7 | J44: 49 | K44: 343 | L44: 2 min. | M44: 7 min. | N44: 49 min. | O44: 5,8 h | P44: 2 | Q44: 7 | R44: 49 | S44: 5.8
D45: =$D$32*$I$30*$C44 -> 900 | E45: =$E$32*$I$30*$C44 -> 900 | F45: =$F$32*$I$30*$C44 -> 13500 | G45: =$G$32*$I$30*$C44 -> 202500 | H45: 15 | I45: 15 | J45: 225 | K45: 3375 | L45: 15 min. | M45: 15 min. | N45: 3,8 h | O45: 56,3 h | P45: 15 | Q45: 15 | R45: 3.8 | S45: 56.3
C46: 7 | D46: =$D$31*$I$29*$C46 -> 140 | E46: =$E$31*$I$29*$C46 -> 490 | F46: =$F$31*$I$29*$C46 -> 3430 | G46: =$G$31*$I$29*$C46 -> 24010 | H46: 3 | I46: 9 | J46: 58 | K46: 401 | L46: 3 min. | M46: 9 min. | N46: 58 min. | O46: 6,7 h | P46: 3 | Q46: 9 | R46: 58 | S46: 6.7
D47: =$D$32*$I$30*$C46 -> 1050 | E47: =$E$32*$I$30*$C46 -> 1050 | F47: =$F$32*$I$30*$C46 -> 15750 | G47: =$G$32*$I$30*$C46 -> 236250 | H47: 18 | I47: 18 | J47: 263 | K47: 3938 | L47: 18 min. | M47: 18 min. | N47: 4,4 h | O47: 65,7 h | P47: 18 | Q47: 18 | R47: 4.4 | S47: 65.7
C48: 8 | D48: =$D$31*$I$29*$C48 -> 160 | E48: =$E$31*$I$29*$C48 -> 560 | F48: =$F$31*$I$29*$C48 -> 3920 | G48: =$G$31*$I$29*$C48 -> 27440 | H48: 3 | I48: 10 | J48: 66 | K48: 458 | L48: 3 min. | M48: 10 min. | N48: 66 min. | O48: 7,7 h | P48: 3 | Q48: 10 | R48: 66 | S48: 7.7
D49: =$D$32*$I$30*$C48 -> 1200 | E49: =$E$32*$I$30*$C48 -> 1200 | F49: =$F$32*$I$30*$C48 -> 18000 | G49: =$G$32*$I$30*$C48 -> 270000 | H49: 20 | I49: 20 | J49: 300 | K49: 4500 | L49: 20 min. | M49: 20 min. | N49: 5 h | O49: 75 h | P49: 20 | Q49: 20 | R49: 5 | S49: 75
C50: 9 | D50: =$D$31*$I$29*$C50 -> 180 | E50: =$E$31*$I$29*$C50 -> 630 | F50: =$F$31*$I$29*$C50 -> 4410 | G50: =$G$31*$I$29*$C50 -> 30870 | H50: 3 | I50: 11 | J50: 74 | K50: 515 | L50: 3 min. | M50: 11 min. | N50: 74 min. | O50: 8,6 h | P50: 3 | Q50: 11 | R50: 74 | S50: 8.6
D51: =$D$32*$I$30*$C50 -> 1350 | E51: =$E$32*$I$30*$C50 -> 1350 | F51: =$F$32*$I$30*$C50 -> 20250 | G51: =$G$32*$I$30*$C50 -> 303750 | H51: 23 | I51: 23 | J51: 338 | K51: 5063 | L51: 23 min. | M51: 23 min. | N51: 5,7 h | O51: 84,4 h | P51: 23 | Q51: 23 | R51: 5.7 | S51: 84.4
C52: 10 | D52: =$D$31*$I$29*$C52 -> 200 | E52: =$E$31*$I$29*$C52 -> 700 | F52: =$F$31*$I$29*$C52 -> 4900 | G52: =$G$31*$I$29*$C52 -> 34300 | H52: 4 | I52: 12 | J52: 82 | K52: 572 | L52: 4 min. | M52: 12 min. | N52: 82 min. | O52: 9,6 h | P52: 4 | Q52: 12 | R52: 82 | S52: 9.6
D53: =$D$32*$I$30*$C52 -> 1500 | E53: =$E$32*$I$30*$C52 -> 1500 | F53: =$F$32*$I$30*$C52 -> 22500 | G53: =$G$32*$I$30*$C52 -> 337500 | H53: 25 | I53: 25 | J53: 375 | K53: 5625 | L53: 25 min. | M53: 25 min. | N53: 6,3 h | O53: 93,8 h | P53: 25 | Q53: 25 | R53: 6.3 | S53: 93.8
C54: 11 | D54: =$D$31*$I$29*$C54 -> 220 | E54: =$E$31*$I$29*$C54 -> 770 | F54: =$F$31*$I$29*$C54 -> 5390 | G54: =$G$31*$I$29*$C54 -> 37730 | H54: 4 | I54: 13 | J54: 90 | K54: 629 | L54: 4 min. | M54: 13 min. | N54: 90 min. | O54: 10,5 h | P54: 4 | Q54: 13 | R54: 90 | S54: 10.5
D55: =$D$32*$I$30*$C54 -> 1650 | E55: =$E$32*$I$30*$C54 -> 1650 | F55: =$F$32*$I$30*$C54 -> 24750 | G55: =$G$32*$I$30*$C54 -> 371250 | H55: 28 | I55: 28 | J55: 413 | K55: 6188 | L55: 28 min. | M55: 28 min. | N55: 6,9 h | O55: 103,2 h | P55: 28 | Q55: 28 | R55: 6.9 | S55: 103.2
C56: 12 | D56: =$D$31*$I$29*$C56 -> 240 | E56: =$E$31*$I$29*$C56 -> 840 | F56: =$F$31*$I$29*$C56 -> 5880 | G56: =$G$31*$I$29*$C56 -> 41160 | H56: 4 | I56: 14 | J56: 98 | K56: 686 | L56: 4 min. | M56: 14 min. | N56: 98 min. | O56: 11,5 h | P56: 4 | Q56: 14 | R56: 98 | S56: 11.5
D57: =$D$32*$I$30*$C56 -> 1800 | E57: =$E$32*$I$30*$C56 -> 1800 | F57: =$F$32*$I$30*$C56 -> 27000 | G57: =$G$32*$I$30*$C56 -> 405000 | H57: 30 | I57: 30 | J57: 450 | K57: 6750 | L57: 30 min. | M57: 30 min. | N57: 7,5 h | O57: 112,5 h | P57: 30 | Q57: 30 | R57: 7.5 | S57: 112.5
C58: 13 | D58: =$D$31*$I$29*$C58 -> 260 | E58: =$E$31*$I$29*$C58 -> 910 | F58: =$F$31*$I$29*$C58 -> 6370 | G58: =$G$31*$I$29*$C58 -> 44590 | H58: 5 | I58: 16 | J58: 107 | K58: 744 | L58: 5 min. | M58: 16 min. | N58: 1,8 h | O58: 12,4 h | P58: 5 | Q58: 16 | R58: 1.8 | S58: 12.4
D59: =$D$32*$I$30*$C58 -> 1950 | E59: =$E$32*$I$30*$C58 -> 1950 | F59: =$F$32*$I$30*$C58 -> 29250 | G59: =$G$32*$I$30*$C58 -> 438750 | H59: 33 | I59: 33 | J59: 488 | K59: 7313 | L59: 33 min. | M59: 33 min. | N59: 8,2 h | O59: 121,9 h | P59: 33 | Q59: 33 | R59: 8.2 | S59: 121.9
C60: 14 | D60: =$D$31*$I$29*$C60 -> 280 | E60: =$E$31*$I$29*$C60 -> 980 | F60: =$F$31*$I$29*$C60 -> 6860 | G60: =$G$31*$I$29*$C60 -> 48020 | H60: 5 | I60: 17 | J60: 115 | K60: 801 | L60: 5 min. | M60: 17 min. | N60: 2 h | O60: 13,4 h | P60: 5 | Q60: 17 | R60: 2 | S60: 13.4
D61: =$D$32*$I$30*$C60 -> 2100 | E61: =$E$32*$I$30*$C60 -> 2100 | F61: =$F$32*$I$30*$C60 -> 31500 | G61: =$G$32*$I$30*$C60 -> 472500 | H61: 35 | I61: 35 | J61: 525 | K61: 7875 | L61: 35 min. | M61: 35 min. | N61: 8,8 h | O61: 131,3 h | P61: 35 | Q61: 35 | R61: 8.8 | S61: 131.3
C62: 15 | D62: =$D$31*$I$29*$C62 -> 300 | E62: =$E$31*$I$29*$C62 -> 1050 | F62: =$F$31*$I$29*$C62 -> 7350 | G62: =$G$31*$I$29*$C62 -> 51450 | H62: 5 | I62: 18 | J62: 123 | K62: 858 | L62: 5 min. | M62: 18 min. | N62: 2,1 h | O62: 14,3 h | P62: 5 | Q62: 18 | R62: 2.1 | S62: 14.3
D63: =$D$32*$I$30*$C62 -> 2250 | E63: =$E$32*$I$30*$C62 -> 2250 | F63: =$F$32*$I$30*$C62 -> 33750 | G63: =$G$32*$I$30*$C62 -> 506250 | H63: 38 | I63: 38 | J63: 563 | K63: 8438 | L63: 38 min. | M63: 38 min. | N63: 9,4 h | O63: 140,7 h | P63: 38 | Q63: 38 | R63: 9.4 | S63: 140.7
C64: 16 | D64: =$D$31*$I$29*$C64 -> 320 | E64: =$E$31*$I$29*$C64 -> 1120 | F64: =$F$31*$I$29*$C64 -> 7840 | G64: =$G$31*$I$29*$C64 -> 54880 | H64: 6 | I64: 19 | J64: 131 | K64: 915 | L64: 6 min. | M64: 19 min. | N64: 2,2 h | O64: 15,3 h | P64: 6 | Q64: 19 | R64: 2.2 | S64: 15.3
D65: =$D$32*$I$30*$C64 -> 2400 | E65: =$E$32*$I$30*$C64 -> 2400 | F65: =$F$32*$I$30*$C64 -> 36000 | G65: =$G$32*$I$30*$C64 -> 540000 | H65: 40 | I65: 40 | J65: 600 | K65: 9000 | L65: 40 min. | M65: 40 min. | N65: 10 h | O65: 150 h | P65: 40 | Q65: 40 | R65: 10 | S65: 150
C66: 17 | D66: =$D$31*$I$29*$C66 -> 340 | E66: =$E$31*$I$29*$C66 -> 1190 | F66: =$F$31*$I$29*$C66 -> 8330 | G66: =$G$31*$I$29*$C66 -> 58310 | H66: 6 | I66: 20 | J66: 139 | K66: 972 | L66: 6 min. | M66: 20 min. | N66: 2,4 h | O66: 16,2 h | P66: 6 | Q66: 20 | R66: 2.4 | S66: 16.2
D67: =$D$32*$I$30*$C66 -> 2550 | E67: =$E$32*$I$30*$C66 -> 2550 | F67: =$F$32*$I$30*$C66 -> 38250 | G67: =$G$32*$I$30*$C66 -> 573750 | H67: 43 | I67: 43 | J67: 638 | K67: 9563 | L67: 43 min. | M67: 43 min. | N67: 10,7 h | O67: 159,4 h | P67: 43 | Q67: 43 | R67: 10.7 | S67: 159.4
C68: 18 | D68: =$D$31*$I$29*$C68 -> 360 | E68: =$E$31*$I$29*$C68 -> 1260 | F68: =$F$31*$I$29*$C68 -> 8820 | G68: =$G$31*$I$29*$C68 -> 61740 | H68: 6 | I68: 21 | J68: 147 | K68: 1029 | L68: 6 min. | M68: 21 min. | N68: 2,5 h | O68: 17,2 h | P68: 6 | Q68: 21 | R68: 2.5 | S68: 17.2
D69: =$D$32*$I$30*$C68 -> 2700 | E69: =$E$32*$I$30*$C68 -> 2700 | F69: =$F$32*$I$30*$C68 -> 40500 | G69: =$G$32*$I$30*$C68 -> 607500 | H69: 45 | I69: 45 | J69: 675 | K69: 10125 | L69: 45 min. | M69: 45 min. | N69: 11,3 h | O69: 168,8 h | P69: 45 | Q69: 45 | R69: 11.3 | S69: 168.8
C70: 19 | D70: =$D$31*$I$29*$C70 -> 380 | E70: =$E$31*$I$29*$C70 -> 1330 | F70: =$F$31*$I$29*$C70 -> 9310 | G70: =$G$31*$I$29*$C70 -> 65170 | H70: 7 | I70: 23 | J70: 156 | K70: 1087 | L70: 7 min. | M70: 23 min. | N70: 2,6 h | O70: 18,2 h | P70: 7 | Q70: 23 | R70: 2.6 | S70: 18.2
D71: =$D$32*$I$30*$C70 -> 2850 | E71: =$E$32*$I$30*$C70 -> 2850 | F71: =$F$32*$I$30*$C70 -> 42750 | G71: =$G$32*$I$30*$C70 -> 641250 | H71: 48 | I71: 48 | J71: 713 | K71: 10688 | L71: 48 min. | M71: 48 min. | N71: 11,9 h | O71: 178,2 h | P71: 48 | Q71: 48 | R71: 11.9 | S71: 178.2
C72: 20 | D72: =$D$31*$I$29*$C72 -> 400 | E72: =$E$31*$I$29*$C72 -> 1400 | F72: =$F$31*$I$29*$C72 -> 9800 | G72: =$G$31*$I$29*$C72 -> 68600 | H72: 7 | I72: 24 | J72: 164 | K72: 1144 | L72: 7 min. | M72: 24 min. | N72: 2,8 h | O72: 19,1 h | P72: 7 | Q72: 24 | R72: 2.8 | S72: 19.1
D73: =$D$32*$I$30*$C72 -> 3000 | E73: =$E$32*$I$30*$C72 -> 3000 | F73: =$F$32*$I$30*$C72 -> 45000 | G73: =$G$32*$I$30*$C72 -> 675000 | H73: 50 | I73: 50 | J73: 750 | K73: 11250 | L73: 50 min. | M73: 50 min. | N73: 12,5 h | O73: 187,5 h | P73: 50 | Q73: 50 | R73: 12.5 | S73: 187.5
C74: 21 | D74: =$D$31*$I$29*$C74 -> 420 | E74: =$E$31*$I$29*$C74 -> 1470 | F74: =$F$31*$I$29*$C74 -> 10290 | G74: =$G$31*$I$29*$C74 -> 72030 | H74: 7 | I74: 25 | J74: 172 | K74: 1201 | L74: 7 min. | M74: 25 min. | N74: 2,9 h | O74: 20,1 h | P74: 7 | Q74: 25 | R74: 2.9 | S74: 20.1
D75: =$D$32*$I$30*$C74 -> 3150 | E75: =$E$32*$I$30*$C74 -> 3150 | F75: =$F$32*$I$30*$C74 -> 47250 | G75: =$G$32*$I$30*$C74 -> 708750 | H75: 53 | I75: 53 | J75: 788 | K75: 11813 | L75: 53 min. | M75: 53 min. | N75: 13,2 h | O75: 196,9 h | P75: 53 | Q75: 53 | R75: 13.2 | S75: 196.9
C76: 22 | D76: =$D$31*$I$29*$C76 -> 440 | E76: =$E$31*$I$29*$C76 -> 1540 | F76: =$F$31*$I$29*$C76 -> 10780 | G76: =$G$31*$I$29*$C76 -> 75460 | H76: 8 | I76: 26 | J76: 180 | K76: 1258 | L76: 8 min. | M76: 26 min. | N76: 3 h | O76: 21 h | P76: 8 | Q76: 26 | R76: 3 | S76: 21
D77: =$D$32*$I$30*$C76 -> 3300 | E77: =$E$32*$I$30*$C76 -> 3300 | F77: =$F$32*$I$30*$C76 -> 49500 | G77: =$G$32*$I$30*$C76 -> 742500 | H77: 55 | I77: 55 | J77: 825 | K77: 12375 | L77: 55 min. | M77: 55 min. | N77: 13,8 h | O77: 206,3 h | P77: 55 | Q77: 55 | R77: 13.8 | S77: 206.3
C78: 23 | D78: =$D$31*$I$29*$C78 -> 460 | E78: =$E$31*$I$29*$C78 -> 1610 | F78: =$F$31*$I$29*$C78 -> 11270 | G78: =$G$31*$I$29*$C78 -> 78890 | H78: 8 | I78: 27 | J78: 188 | K78: 1315 | L78: 8 min. | M78: 27 min. | N78: 3,2 h | O78: 22 h | P78: 8 | Q78: 27 | R78: 3.2 | S78: 22
D79: =$D$32*$I$30*$C78 -> 3450 | E79: =$E$32*$I$30*$C78 -> 3450 | F79: =$F$32*$I$30*$C78 -> 51750 | G79: =$G$32*$I$30*$C78 -> 776250 | H79: 58 | I79: 58 | J79: 863 | K79: 12938 | L79: 58 min. | M79: 58 min. | N79: 14,4 h | O79: 215,7 h | P79: 58 | Q79: 58 | R79: 14.4 | S79: 215.7
C80: 24 | D80: =$D$31*$I$29*$C80 -> 480 | E80: =$E$31*$I$29*$C80 -> 1680 | F80: =$F$31*$I$29*$C80 -> 11760 | G80: =$G$31*$I$29*$C80 -> 82320 | H80: 8 | I80: 28 | J80: 196 | K80: 1372 | L80: 8 min. | M80: 28 min. | N80: 3,3 h | O80: 22,9 h | P80: 8 | Q80: 28 | R80: 3.3 | S80: 22.9
D81: =$D$32*$I$30*$C80 -> 3600 | E81: =$E$32*$I$30*$C80 -> 3600 | F81: =$F$32*$I$30*$C80 -> 54000 | G81: =$G$32*$I$30*$C80 -> 810000 | H81: 60 | I81: 60 | J81: 900 | K81: 13500 | L81: 60 min. | M81: 60 min. | N81: 15 h | O81: 225 h | P81: 60 | Q81: 60 | R81: 15 | S81: 225
C82: 25 | D82: =$D$31*$I$29*$C82 -> 500 | E82: =$E$31*$I$29*$C82 -> 1750 | F82: =$F$31*$I$29*$C82 -> 12250 | G82: =$G$31*$I$29*$C82 -> 85750 | H82: 9 | I82: 30 | J82: 205 | K82: 1430 | L82: 9 min. | M82: 30 min. | N82: 3,5 h | O82: 23,9 h | P82: 9 | Q82: 30 | R82: 3.5 | S82: 23.9
D83: =$D$32*$I$30*$C82 -> 3750 | E83: =$E$32*$I$30*$C82 -> 3750 | F83: =$F$32*$I$30*$C82 -> 56250 | G83: =$G$32*$I$30*$C82 -> 843750 | H83: 63 | I83: 63 | J83: 938 | K83: 14063 | L83: 63 min. | M83: 63 min. | N83: 15,7 h | O83: 234,4 h | P83: 63 | Q83: 63 | R83: 15.7 | S83: 234.4
C84: 26 | D84: =$D$31*$I$29*$C84 -> 520 | E84: =$E$31*$I$29*$C84 -> 1820 | F84: =$F$31*$I$29*$C84 -> 12740 | G84: =$G$31*$I$29*$C84 -> 89180 | H84: 9 | I84: 31 | J84: 213 | K84: 1487 | L84: 9 min. | M84: 31 min. | N84: 3,6 h | O84: 24,8 h | P84: 9 | Q84: 31 | R84: 3.6 | S84: 24.8
D85: =$D$32*$I$30*$C84 -> 3900 | E85: =$E$32*$I$30*$C84 -> 3900 | F85: =$F$32*$I$30*$C84 -> 58500 | G85: =$G$32*$I$30*$C84 -> 877500 | H85: 65 | I85: 65 | J85: 975 | K85: 14625 | L85: 65 min. | M85: 65 min. | N85: 16,3 h | O85: 243,8 h | P85: 65 | Q85: 65 | R85: 16.3 | S85: 243.8
C86: 27 | D86: =$D$31*$I$29*$C86 -> 540 | E86: =$E$31*$I$29*$C86 -> 1890 | F86: =$F$31*$I$29*$C86 -> 13230 | G86: =$G$31*$I$29*$C86 -> 92610 | H86: 9 | I86: 32 | J86: 221 | K86: 1544 | L86: 9 min. | M86: 32 min. | N86: 3,7 h | O86: 25,8 h | P86: 9 | Q86: 32 | R86: 3.7 | S86: 25.8
D87: =$D$32*$I$30*$C86 -> 4050 | E87: =$E$32*$I$30*$C86 -> 4050 | F87: =$F$32*$I$30*$C86 -> 60750 | G87: =$G$32*$I$30*$C86 -> 911250 | H87: 68 | I87: 68 | J87: 1013 | K87: 15188 | L87: 68 min. | M87: 68 min. | N87: 16,9 h | O87: 253,2 h | P87: 68 | Q87: 68 | R87: 16.9 | S87: 253.2
C88: 28 | D88: =$D$31*$I$29*$C88 -> 560 | E88: =$E$31*$I$29*$C88 -> 1960 | F88: =$F$31*$I$29*$C88 -> 13720 | G88: =$G$31*$I$29*$C88 -> 96040 | H88: 10 | I88: 33 | J88: 229 | K88: 1601 | L88: 10 min. | M88: 33 min. | N88: 3,9 h | O88: 26,7 h | P88: 10 | Q88: 33 | R88: 3.9 | S88: 26.7
D89: =$D$32*$I$30*$C88 -> 4200 | E89: =$E$32*$I$30*$C88 -> 4200 | F89: =$F$32*$I$30*$C88 -> 63000 | G89: =$G$32*$I$30*$C88 -> 945000 | H89: 70 | I89: 70 | J89: 1050 | K89: 15750 | L89: 70 min. | M89: 70 min. | N89: 17,5 h | O89: 262,5 h | P89: 70 | Q89: 70 | R89: 17.5 | S89: 262.5
C90: 29 | D90: =$D$31*$I$29*$C90 -> 580 | E90: =$E$31*$I$29*$C90 -> 2030 | F90: =$F$31*$I$29*$C90 -> 14210 | G90: =$G$31*$I$29*$C90 -> 99470 | H90: 10 | I90: 34 | J90: 237 | K90: 1658 | L90: 10 min. | M90: 34 min. | N90: 4 h | O90: 27,7 h | P90: 10 | Q90: 34 | R90: 4 | S90: 27.7
D91: =$D$32*$I$30*$C90 -> 4350 | E91: =$E$32*$I$30*$C90 -> 4350 | F91: =$F$32*$I$30*$C90 -> 65250 | G91: =$G$32*$I$30*$C90 -> 978750 | H91: 73 | I91: 73 | J91: 1088 | K91: 16313 | L91: 73 min. | M91: 73 min. | N91: 18,2 h | O91: 271,9 h | P91: 73 | Q91: 73 | R91: 18.2 | S91: 271.9
C92: 30 | D92: =$D$31*$I$29*$C92 -> 600 | E92: =$E$31*$I$29*$C92 -> 2100 | F92: =$F$31*$I$29*$C92 -> 14700 | G92: =$G$31*$I$29*$C92 -> 102900 | H92: 10 | I92: 35 | J92: 245 | K92: 1715 | L92: 10 min. | M92: 35 min. | N92: 4,1 h | O92: 28,6 h | P92: 10 | Q92: 35 | R92: 4.1 | S92: 28.6
D93: =$D$32*$I$30*$C92 -> 4500 | E93: =$E$32*$I$30*$C92 -> 4500 | F93: =$F$32*$I$30*$C92 -> 67500 | G93: =$G$32*$I$30*$C92 -> 1012500 | H93: 75 | I93: 75 | J93: 1125 | K93: 16875 | L93: 75 min. | M93: 75 min. | N93: 18,8 h | O93: 281,3 h | P93: 75 | Q93: 75 | R93: 18.8 | S93: 281.3
C94: 31 | D94: =$D$31*$I$29*$C94 -> 620 | E94: =$E$31*$I$29*$C94 -> 2170 | F94: =$F$31*$I$29*$C94 -> 15190 | G94: =$G$31*$I$29*$C94 -> 106330 | H94: 11 | I94: 37 | J94: 254 | K94: 1773 | L94: 11 min. | M94: 37 min. | N94: 4,3 h | O94: 29,6 h | P94: 11 | Q94: 37 | R94: 4.3 | S94: 29.6
D95: =$D$32*$I$30*$C94 -> 4650 | E95: =$E$32*$I$30*$C94 -> 4650 | F95: =$F$32*$I$30*$C94 -> 69750 | G95: =$G$32*$I$30*$C94 -> 1046250 | H95: 78 | I95: 78 | J95: 1163 | K95: 17438 | L95: 78 min. | M95: 78 min. | N95: 19,4 h | O95: 290,7 h | P95: 78 | Q95: 78 | R95: 19.4 | S95: 290.7
C96: 32 | D96: =$D$31*$I$29*$C96 -> 640 | E96: =$E$31*$I$29*$C96 -> 2240 | F96: =$F$31*$I$29*$C96 -> 15680 | G96: =$G$31*$I$29*$C96 -> 109760 | H96: 11 | I96: 38 | J96: 262 | K96: 1830 | L96: 11 min. | M96: 38 min. | N96: 4,4 h | O96: 30,5 h | P96: 11 | Q96: 38 | R96: 4.4 | S96: 30.5
D97: =$D$32*$I$30*$C96 -> 4800 | E97: =$E$32*$I$30*$C96 -> 4800 | F97: =$F$32*$I$30*$C96 -> 72000 | G97: =$G$32*$I$30*$C96 -> 1080000 | H97: 80 | I97: 80 | J97: 1200 | K97: 18000 | L97: 80 min. | M97: 80 min. | N97: 20 h | O97: 300 h | P97: 80 | Q97: 80 | R97: 20 | S97: 300
C98: 33 | D98: =$D$31*$I$29*$C98 -> 660 | E98: =$E$31*$I$29*$C98 -> 2310 | F98: =$F$31*$I$29*$C98 -> 16170 | G98: =$G$31*$I$29*$C98 -> 113190 | H98: 11 | I98: 39 | J98: 270 | K98: 1887 | L98: 11 min. | M98: 39 min. | N98: 4,5 h | O98: 31,5 h | P98: 11 | Q98: 39 | R98: 4.5 | S98: 31.5
D99: =$D$32*$I$30*$C98 -> 4950 | E99: =$E$32*$I$30*$C98 -> 4950 | F99: =$F$32*$I$30*$C98 -> 74250 | G99: =$G$32*$I$30*$C98 -> 1113750 | H99: 83 | I99: 83 | J99: 1238 | K99: 18563 | L99: 83 min. | M99: 83 min. | N99: 20,7 h | O99: 309,4 h | P99: 83 | Q99: 83 | R99: 20.7 | S99: 309.4
C100: 34 | D100: =$D$31*$I$29*$C100 -> 680 | E100: =$E$31*$I$29*$C100 -> 2380 | F100: =$F$31*$I$29*$C100 -> 16660 | G100: =$G$31*$I$29*$C100 -> 116620 | H100: 12 | I100: 40 | J100: 278 | K100: 1944 | L100: 12 min. | M100: 40 min. | N100: 4,7 h | O100: 32,4 h | P100: 12 | Q100: 40 | R100: 4.7 | S100: 32.4
D101: =$D$32*$I$30*$C100 -> 5100 | E101: =$E$32*$I$30*$C100 -> 5100 | F101: =$F$32*$I$30*$C100 -> 76500 | G101: =$G$32*$I$30*$C100 -> 1147500 | H101: 85 | I101: 85 | J101: 1275 | K101: 19125 | L101: 85 min. | M101: 85 min. | N101: 21,3 h | O101: 318,8 h | P101: 85 | Q101: 85 | R101: 21.3 | S101: 318.8
C102: 35 | D102: =$D$31*$I$29*$C102 -> 700 | E102: =$E$31*$I$29*$C102 -> 2450 | F102: =$F$31*$I$29*$C102 -> 17150 | G102: =$G$31*$I$29*$C102 -> 120050 | H102: 12 | I102: 41 | J102: 286 | K102: 2001 | L102: 12 min. | M102: 41 min. | N102: 4,8 h | O102: 33,4 h | P102: 12 | Q102: 41 | R102: 4.8 | S102: 33.4
D103: =$D$32*$I$30*$C102 -> 5250 | E103: =$E$32*$I$30*$C102 -> 5250 | F103: =$F$32*$I$30*$C102 -> 78750 | G103: =$G$32*$I$30*$C102 -> 1181250 | H103: 88 | I103: 88 | J103: 1313 | K103: 19688 | L103: 88 min. | M103: 88 min. | N103: 21,9 h | O103: 328,2 h | P103: 88 | Q103: 88 | R103: 21.9 | S103: 328.2
C104: 36 | D104: =$D$31*$I$29*$C104 -> 720 | E104: =$E$31*$I$29*$C104 -> 2520 | F104: =$F$31*$I$29*$C104 -> 17640 | G104: =$G$31*$I$29*$C104 -> 123480 | H104: 12 | I104: 42 | J104: 294 | K104: 2058 | L104: 12 min. | M104: 42 min. | N104: 4,9 h | O104: 34,3 h | P104: 12 | Q104: 42 | R104: 4.9 | S104: 34.3
D105: =$D$32*$I$30*$C104 -> 5400 | E105: =$E$32*$I$30*$C104 -> 5400 | F105: =$F$32*$I$30*$C104 -> 81000 | G105: =$G$32*$I$30*$C104 -> 1215000 | H105: 90 | I105: 90 | J105: 1350 | K105: 20250 | L105: 90 min. | M105: 90 min. | N105: 22,5 h | O105: 337,5 h | P105: 90 | Q105: 90 | R105: 22.5 | S105: 337.5
C106: 37 | D106: =$D$31*$I$29*$C106 -> 740 | E106: =$E$31*$I$29*$C106 -> 2590 | F106: =$F$31*$I$29*$C106 -> 18130 | G106: =$G$31*$I$29*$C106 -> 126910 | H106: 13 | I106: 44 | J106: 303 | K106: 2116 | L106: 13 min. | M106: 44 min. | N106: 5,1 h | O106: 35,3 h | P106: 13 | Q106: 44 | R106: 5.1 | S106: 35.3
D107: =$D$32*$I$30*$C106 -> 5550 | E107: =$E$32*$I$30*$C106 -> 5550 | F107: =$F$32*$I$30*$C106 -> 83250 | G107: =$G$32*$I$30*$C106 -> 1248750 | H107: 93 | I107: 93 | J107: 1388 | K107: 20813 | L107: 93 min. | M107: 93 min. | N107: 23,2 h | O107: 346,9 h | P107: 93 | Q107: 93 | R107: 23.2 | S107: 346.9
C108: 38 | D108: =$D$31*$I$29*$C108 -> 760 | E108: =$E$31*$I$29*$C108 -> 2660 | F108: =$F$31*$I$29*$C108 -> 18620 | G108: =$G$31*$I$29*$C108 -> 130340 | H108: 13 | I108: 45 | J108: 311 | K108: 2173 | L108: 13 min. | M108: 45 min. | N108: 5,2 h | O108: 36,3 h | P108: 13 | Q108: 45 | R108: 5.2 | S108: 36.3
D109: =$D$32*$I$30*$C108 -> 5700 | E109: =$E$32*$I$30*$C108 -> 5700 | F109: =$F$32*$I$30*$C108 -> 85500 | G109: =$G$32*$I$30*$C108 -> 1282500 | H109: 95 | I109: 95 | J109: 1425 | K109: 21375 | L109: 95 min. | M109: 95 min. | N109: 23,8 h | O109: 356,3 h | P109: 95 | Q109: 95 | R109: 23.8 | S109: 356.3
C110: 39 | D110: =$D$31*$I$29*$C110 -> 780 | E110: =$E$31*$I$29*$C110 -> 2730 | F110: =$F$31*$I$29*$C110 -> 19110 | G110: =$G$31*$I$29*$C110 -> 133770 | H110: 13 | I110: 46 | J110: 319 | K110: 2230 | L110: 13 min. | M110: 46 min. | N110: 5,4 h | O110: 37,2 h | P110: 13 | Q110: 46 | R110: 5.4 | S110: 37.2
D111: =$D$32*$I$30*$C110 -> 5850 | E111: =$E$32*$I$30*$C110 -> 5850 | F111: =$F$32*$I$30*$C110 -> 87750 | G111: =$G$32*$I$30*$C110 -> 1316250 | H111: 98 | I111: 98 | J111: 1463 | K111: 21938 | L111: 98 min. | M111: 98 min. | N111: 24,4 h | O111: 365,7 h | P111: 98 | Q111: 98 | R111: 24.4 | S111: 365.7
C112: 40 | D112: =$D$31*$I$29*$C112 -> 800 | E112: =$E$31*$I$29*$C112 -> 2800 | F112: =$F$31*$I$29*$C112 -> 19600 | G112: =$G$31*$I$29*$C112 -> 137200 | H112: 14 | I112: 47 | J112: 327 | K112: 2287 | L112: 14 min. | M112: 47 min. | N112: 5,5 h | O112: 38,2 h | P112: 14 | Q112: 47 | R112: 5.5 | S112: 38.2
D113: =$D$32*$I$30*$C112 -> 6000 | E113: =$E$32*$I$30*$C112 -> 6000 | F113: =$F$32*$I$30*$C112 -> 90000 | G113: =$G$32*$I$30*$C112 -> 1350000 | H113: 100 | I113: 100 | J113: 1500 | K113: 22500 | L113: 1,7 h | M113: 1,7 h | N113: 25 h | O113: 375 h | P113: 1.7 | Q113: 1.7 | R113: 25 | S113: 375
C114: 41 | D114: =$D$31*$I$29*$C114 -> 820 | E114: =$E$31*$I$29*$C114 -> 2870 | F114: =$F$31*$I$29*$C114 -> 20090 | G114: =$G$31*$I$29*$C114 -> 140630 | H114: 14 | I114: 48 | J114: 335 | K114: 2344 | L114: 14 min. | M114: 48 min. | N114: 5,6 h | O114: 39,1 h | P114: 14 | Q114: 48 | R114: 5.6 | S114: 39.1
D115: =$D$32*$I$30*$C114 -> 6150 | E115: =$E$32*$I$30*$C114 -> 6150 | F115: =$F$32*$I$30*$C114 -> 92250 | G115: =$G$32*$I$30*$C114 -> 1383750 | H115: 103 | I115: 103 | J115: 1538 | K115: 23063 | L115: 1,8 h | M115: 1,8 h | N115: 25,7 h | O115: 384,4 h | P115: 1.8 | Q115: 1.8 | R115: 25.7 | S115: 384.4
C116: 42 | D116: =$D$31*$I$29*$C116 -> 840 | E116: =$E$31*$I$29*$C116 -> 2940 | F116: =$F$31*$I$29*$C116 -> 20580 | G116: =$G$31*$I$29*$C116 -> 144060 | H116: 14 | I116: 49 | J116: 343 | K116: 2401 | L116: 14 min. | M116: 49 min. | N116: 5,8 h | O116: 40,1 h | P116: 14 | Q116: 49 | R116: 5.8 | S116: 40.1
D117: =$D$32*$I$30*$C116 -> 6300 | E117: =$E$32*$I$30*$C116 -> 6300 | F117: =$F$32*$I$30*$C116 -> 94500 | G117: =$G$32*$I$30*$C116 -> 1417500 | H117: 105 | I117: 105 | J117: 1575 | K117: 23625 | L117: 1,8 h | M117: 1,8 h | N117: 26,3 h | O117: 393,8 h | P117: 1.8 | Q117: 1.8 | R117: 26.3 | S117: 393.8
C118: 43 | D118: =$D$31*$I$29*$C118 -> 860 | E118: =$E$31*$I$29*$C118 -> 3010 | F118: =$F$31*$I$29*$C118 -> 21070 | G118: =$G$31*$I$29*$C118 -> 147490 | H118: 15 | I118: 51 | J118: 352 | K118: 2459 | L118: 15 min. | M118: 51 min. | N118: 5,9 h | O118: 41 h | P118: 15 | Q118: 51 | R118: 5.9 | S118: 41
D119: =$D$32*$I$30*$C118 -> 6450 | E119: =$E$32*$I$30*$C118 -> 6450 | F119: =$F$32*$I$30*$C118 -> 96750 | G119: =$G$32*$I$30*$C118 -> 1451250 | H119: 108 | I119: 108 | J119: 1613 | K119: 24188 | L119: 1,8 h | M119: 1,8 h | N119: 26,9 h | O119: 403,2 h | P119: 1.8 | Q119: 1.8 | R119: 26.9 | S119: 403.2
C120: 44 | D120: =$D$31*$I$29*$C120 -> 880 | E120: =$E$31*$I$29*$C120 -> 3080 | F120: =$F$31*$I$29*$C120 -> 21560 | G120: =$G$31*$I$29*$C120 -> 150920 | H120: 15 | I120: 52 | J120: 360 | K120: 2516 | L120: 15 min. | M120: 52 min. | N120: 6 h | O120: 42 h | P120: 15 | Q120: 52 | R120: 6 | S120: 42
D121: =$D$32*$I$30*$C120 -> 6600 | E121: =$E$32*$I$30*$C120 -> 6600 | F121: =$F$32*$I$30*$C120 -> 99000 | G121: =$G$32*$I$30*$C120 -> 1485000 | H121: 110 | I121: 110 | J121: 1650 | K121: 24750 | L121: 1,9 h | M121: 1,9 h | N121: 27,5 h | O121: 412,5 h | P121: 1.9 | Q121: 1.9 | R121: 27.5 | S121: 412.5
C122: 45 | D122: =$D$31*$I$29*$C122 -> 900 | E122: =$E$31*$I$29*$C122 -> 3150 | F122: =$F$31*$I$29*$C122 -> 22050 | G122: =$G$31*$I$29*$C122 -> 154350 | H122: 15 | I122: 53 | J122: 368 | K122: 2573 | L122: 15 min. | M122: 53 min. | N122: 6,2 h | O122: 42,9 h | P122: 15 | Q122: 53 | R122: 6.2 | S122: 42.9
D123: =$D$32*$I$30*$C122 -> 6750 | E123: =$E$32*$I$30*$C122 -> 6750 | F123: =$F$32*$I$30*$C122 -> 101250 | G123: =$G$32*$I$30*$C122 -> 1518750 | H123: 113 | I123: 113 | J123: 1688 | K123: 25313 | L123: 1,9 h | M123: 1,9 h | N123: 28,2 h | O123: 421,9 h | P123: 1.9 | Q123: 1.9 | R123: 28.2 | S123: 421.9
C124: 46 | D124: =$D$31*$I$29*$C124 -> 920 | E124: =$E$31*$I$29*$C124 -> 3220 | F124: =$F$31*$I$29*$C124 -> 22540 | G124: =$G$31*$I$29*$C124 -> 157780 | H124: 16 | I124: 54 | J124: 376 | K124: 2630 | L124: 16 min. | M124: 54 min. | N124: 6,3 h | O124: 43,9 h | P124: 16 | Q124: 54 | R124: 6.3 | S124: 43.9
D125: =$D$32*$I$30*$C124 -> 6900 | E125: =$E$32*$I$30*$C124 -> 6900 | F125: =$F$32*$I$30*$C124 -> 103500 | G125: =$G$32*$I$30*$C124 -> 1552500 | H125: 115 | I125: 115 | J125: 1725 | K125: 25875 | L125: 2 h | M125: 2 h | N125: 28,8 h | O125: 431,3 h | P125: 2 | Q125: 2 | R125: 28.8 | S125: 431.3
C126: 47 | D126: =$D$31*$I$29*$C126 -> 940 | E126: =$E$31*$I$29*$C126 -> 3290 | F126: =$F$31*$I$29*$C126 -> 23030 | G126: =$G$31*$I$29*$C126 -> 161210 | H126: 16 | I126: 55 | J126: 384 | K126: 2687 | L126: 16 min. | M126: 55 min. | N126: 6,4 h | O126: 44,8 h | P126: 16 | Q126: 55 | R126: 6.4 | S126: 44.8
D127: =$D$32*$I$30*$C126 -> 7050 | E127: =$E$32*$I$30*$C126 -> 7050 | F127: =$F$32*$I$30*$C126 -> 105750 | G127: =$G$32*$I$30*$C126 -> 1586250 | H127: 118 | I127: 118 | J127: 1763 | K127: 26438 | L127: 2 h | M127: 2 h | N127: 29,4 h | O127: 440,7 h | P127: 2 | Q127: 2 | R127: 29.4 | S127: 440.7
C128: 48 | D128: =$D$31*$I$29*$C128 -> 960 | E128: =$E$31*$I$29*$C128 -> 3360 | F128: =$F$31*$I$29*$C128 -> 23520 | G128: =$G$31*$I$29*$C128 -> 164640 | H128: 16 | I128: 56 | J128: 392 | K128: 2744 | L128: 16 min. | M128: 56 min. | N128: 6,6 h | O128: 45,8 h | P128: 16 | Q128: 56 | R128: 6.6 | S128: 45.8
D129: =$D$32*$I$30*$C128 -> 7200 | E129: =$E$32*$I$30*$C128 -> 7200 | F129: =$F$32*$I$30*$C128 -> 108000 | G129: =$G$32*$I$30*$C128 -> 1620000 | H129: 120 | I129: 120 | J129: 1800 | K129: 27000 | L129: 2 h | M129: 2 h | N129: 30 h | O129: 450 h | P129: 2 | Q129: 2 | R129: 30 | S129: 450
C130: 49 | D130: =$D$31*$I$29*$C130 -> 980 | E130: =$E$31*$I$29*$C130 -> 3430 | F130: =$F$31*$I$29*$C130 -> 24010 | G130: =$G$31*$I$29*$C130 -> 168070 | H130: 17 | I130: 58 | J130: 401 | K130: 2802 | L130: 17 min. | M130: 58 min. | N130: 6,7 h | O130: 46,7 h | P130: 17 | Q130: 58 | R130: 6.7 | S130: 46.7
D131: =$D$32*$I$30*$C130 -> 7350 | E131: =$E$32*$I$30*$C130 -> 7350 | F131: =$F$32*$I$30*$C130 -> 110250 | G131: =$G$32*$I$30*$C130 -> 1653750 | H131: 123 | I131: 123 | J131: 1838 | K131: 27563 | L131: 2,1 h | M131: 2,1 h | N131: 30,7 h | O131: 459,4 h | P131: 2.1 | Q131: 2.1 | R131: 30.7 | S131: 459.4
C132: 50 | D132: =$D$31*$I$29*$C132 -> 1000 | E132: =$E$31*$I$29*$C132 -> 3500 | F132: =$F$31*$I$29*$C132 -> 24500 | G132: =$G$31*$I$29*$C132 -> 171500 | H132: 17 | I132: 59 | J132: 409 | K132: 2859 | L132: 17 min. | M132: 59 min. | N132: 6,9 h | O132: 47,7 h | P132: 17 | Q132: 59 | R132: 6.9 | S132: 47.7
D133: =$D$32*$I$30*$C132 -> 7500 | E133: =$E$32*$I$30*$C132 -> 7500 | F133: =$F$32*$I$30*$C132 -> 112500 | G133: =$G$32*$I$30*$C132 -> 1687500 | H133: 125 | I133: 125 | J133: 1875 | K133: 28125 | L133: 2,1 h | M133: 2,1 h | N133: 31,3 h | O133: 468,8 h | P133: 2.1 | Q133: 2.1 | R133: 31.3 | S133: 468.8
C134: 51 | D134: =$D$31*$I$29*$C134 -> 1020 | E134: =$E$31*$I$29*$C134 -> 3570 | F134: =$F$31*$I$29*$C134 -> 24990 | G134: =$G$31*$I$29*$C134 -> 174930 | H134: 17 | I134: 60 | J134: 417 | K134: 2916 | L134: 17 min. | M134: 60 min. | N134: 7 h | O134: 48,6 h | P134: 17 | Q134: 60 | R134: 7 | S134: 48.6
D135: =$D$32*$I$30*$C134 -> 7650 | E135: =$E$32*$I$30*$C134 -> 7650 | F135: =$F$32*$I$30*$C134 -> 114750 | G135: =$G$32*$I$30*$C134 -> 1721250 | H135: 128 | I135: 128 | J135: 1913 | K135: 28688 | L135: 2,2 h | M135: 2,2 h | N135: 31,9 h | O135: 478,2 h | P135: 2.2 | Q135: 2.2 | R135: 31.9 | S135: 478.2
C136: 52 | D136: =$D$31*$I$29*$C136 -> 1040 | E136: =$E$31*$I$29*$C136 -> 3640 | F136: =$F$31*$I$29*$C136 -> 25480 | G136: =$G$31*$I$29*$C136 -> 178360 | H136: 18 | I136: 61 | J136: 425 | K136: 2973 | L136: 18 min. | M136: 61 min. | N136: 7,1 h | O136: 49,6 h | P136: 18 | Q136: 61 | R136: 7.1 | S136: 49.6
D137: =$D$32*$I$30*$C136 -> 7800 | E137: =$E$32*$I$30*$C136 -> 7800 | F137: =$F$32*$I$30*$C136 -> 117000 | G137: =$G$32*$I$30*$C136 -> 1755000 | H137: 130 | I137: 130 | J137: 1950 | K137: 29250 | L137: 2,2 h | M137: 2,2 h | N137: 32,5 h | O137: 487,5 h | P137: 2.2 | Q137: 2.2 | R137: 32.5 | S137: 487.5
C138: 53 | D138: =$D$31*$I$29*$C138 -> 1060 | E138: =$E$31*$I$29*$C138 -> 3710 | F138: =$F$31*$I$29*$C138 -> 25970 | G138: =$G$31*$I$29*$C138 -> 181790 | H138: 18 | I138: 62 | J138: 433 | K138: 3030 | L138: 18 min. | M138: 62 min. | N138: 7,3 h | O138: 50,5 h | P138: 18 | Q138: 62 | R138: 7.3 | S138: 50.5
D139: =$D$32*$I$30*$C138 -> 7950 | E139: =$E$32*$I$30*$C138 -> 7950 | F139: =$F$32*$I$30*$C138 -> 119250 | G139: =$G$32*$I$30*$C138 -> 1788750 | H139: 133 | I139: 133 | J139: 1988 | K139: 29813 | L139: 2,3 h | M139: 2,3 h | N139: 33,2 h | O139: 496,9 h | P139: 2.3 | Q139: 2.3 | R139: 33.2 | S139: 496.9
C140: 54 | D140: =$D$31*$I$29*$C140 -> 1080 | E140: =$E$31*$I$29*$C140 -> 3780 | F140: =$F$31*$I$29*$C140 -> 26460 | G140: =$G$31*$I$29*$C140 -> 185220 | H140: 18 | I140: 63 | J140: 441 | K140: 3087 | L140: 18 min. | M140: 63 min. | N140: 7,4 h | O140: 51,5 h | P140: 18 | Q140: 63 | R140: 7.4 | S140: 51.5
D141: =$D$32*$I$30*$C140 -> 8100 | E141: =$E$32*$I$30*$C140 -> 8100 | F141: =$F$32*$I$30*$C140 -> 121500 | G141: =$G$32*$I$30*$C140 -> 1822500 | H141: 135 | I141: 135 | J141: 2025 | K141: 30375 | L141: 2,3 h | M141: 2,3 h | N141: 33,8 h | O141: 506,3 h | P141: 2.3 | Q141: 2.3 | R141: 33.8 | S141: 506.3
C142: 55
C144: 56
C146: 57
C148: 58
C150: 59
C152: 60
C154: 61
C156: 62
C158: 63
C160: 64
C162: 65
C164: 66
C166: 67
C168: 68
C170: 69
C172: 70
C174: 71
C176: 72
C178: 73
C180: 74
C182: 75
C184: 76
C186: 77
C188: 78
C190: 79
C192: 80
C194: 81
C196: 82
C198: 83
C200: 84
C202: 85
C204: 86
C206: 87
C208: 88
C210: 89
C212: 90
C214: 91
C216: 92
C218: 93
C220: 94
C222: 95
C224: 96
C226: 97
C228: 98
C230: 99
C232: 100
C234: 101
C236: 102
C238: 103
C240: 104
C242: 105
C244: 106
C246: 107
C248: 108
C250: 109
C252: 110
C254: 111
C256: 112
C258: 113
C260: 114
C262: 115
C264: 116
C266: 117
C268: 118
... 3 more rows

Sheet DB (hidden)
A7: World University of Science Business and Technology

Sheet Tabelle9 (hidden)
A1: I~Smith | B1: Title | C1: Sub Title | D1: Autoren | E1: Jahr | F1: Beschreibung1 | G1: Price | H1: ID | I1: Bewertung | J1: Logo | K1: Website | L1: SubKategorie | M1: Unternehmen | N1: Fullname | O1: Beschreibung () | P1: UG1 | Q1: UG2 | R1: UG3 | S1: UG4 | T1: UG5 | U1: Firma Unternehmenssignatur | V1: E-Mail | W1: AllgMail | X1: Besuchen sie Ihre Webseite oder downloaden Sie sich das Business-PDF des Unternehmens. Sie können sich auch die E-PBC-Businesseinheit für weitere informationen und konkreten Produkten downloaden. Wir wünschen Ihnen viel Spaß damit. | Z1: Newletter Part1 | AA1: Newletter Part2 | AB1: Newletter Part3 | AC1: Newletter Part4 | AD1: Newletter Part5 | AE1: Newletter Part6 | AI1: I~Smith | AJ1: 50
A2: C:\Users\Marku\Pictures\01_Businessbilder\52__GL_Goods & Luxuries\1.png | B2: Studium Konfiguration | F2: 20-50€/h Schätzwert, Bestellung machen und Kontakt aufnehmen | G2: 20 | J2: C:\Users\Marku\Pictures\00_Logos\Bild18.png | K2: www.apbci.com | L2: World Academy of Science, Business and Technology | M2: World Academy of Science, Business and Technology | N2: World Academy of Science, Business and Technology - WASBT | O2: Die World Academy of Science, Business and Technology ist eine private Digitaluniversität mit vielerlei Stipendienmöglichkeiten, einer großen Vielfalt verschiedenster Studienangebote und entsprechend der Startwebseite ECTS konform mit höchstem Nachhaltigkeitslevel, welches es an keiner anderen Universität oder Hochschule in der Welt gibt. Sie erhalten dort einen stabilen Ausbildungswert und Lernerfolg bei verglichen sehr günstigen Preisen. Zeitlich zahlen Sie nicht drauf. Sie können Ihren Lernprozess und Prüfungszeitpunkt selbst bestimmen. Über die service@wasbt.com erreichen Sie unsere zentrale Serviceabteilung. | P2: Weiterbildung | Q2: Fortbildung | R2: Zeugnisausstellung | U2: World Academy of Science, Business and Technology - WASBT - Weiterbildung, Fortbildung, Zeugnisausstellung - service@wasbt.com | V2: service@wasbt.com | AI2: Abk. | AJ2: WASBT
A3: C:\Users\Marku\Pictures\01_Businessbilder\52__GL_Goods & Luxuries\1.png | B3: Individual Management | F3: 20-50€/h Schätzwert, Bestellung machen und Kontakt aufnehmen | G3: 20 | M3: World Academy of Science, Business and Technology | N3: World Academy of Science, Business and Technology - WASBT | O3: Die World Academy of Science, Business and Technology ist eine private Digitaluniversität mit vielerlei Stipendienmöglichkeiten, einer großen Vielfalt verschiedenster Studienangebote und entsprechend der Startwebseite ECTS konform mit höchstem Nachhaltigkeitslevel, welches es an keiner anderen Universität oder Hochschule in der Welt gibt. Sie erhalten dort einen stabilen Ausbildungswert und Lernerfolg bei verglichen sehr günstigen Preisen. Zeitlich zahlen Sie nicht drauf. Sie können Ihren Lernprozess und Prüfungszeitpunkt selbst bestimmen. Über die service@wasbt.com erreichen Sie unsere zentrale Serviceabteilung. | P3: Weiterbildung | Q3: Fortbildung | R3: Zeugnisausstellung | U3: World Academy of Science, Business and Technology - WASBT - Weiterbildung, Fortbildung, Zeugnisausstellung - service@wasbt.com | V3: service@wasbt.com | AG3: Produkte und Angebote | AI3: Firma | AJ3: World Academy of Science, Business and Technology
A4: C:\Users\Marku\Pictures\01_Businessbilder\52__GL_Goods & Luxuries\1.png | B4: Beurkundung | F4: 20-50€/h Schätzwert, Bestellung machen und Kontakt aufnehmen | G4: 20 | M4: World Academy of Science, Business and Technology | N4: World Academy of Science, Business and Technology - WASBT | O4: Die World Academy of Science, Business and Technology ist eine private Digitaluniversität mit vielerlei Stipendienmöglichkeiten, einer großen Vielfalt verschiedenster Studienangebote und entsprechend der Startwebseite ECTS konform mit höchstem Nachhaltigkeitslevel, welches es an keiner anderen Universität oder Hochschule in der Welt gibt. Sie erhalten dort einen stabilen Ausbildungswert und Lernerfolg bei verglichen sehr günstigen Preisen. Zeitlich zahlen Sie nicht drauf. Sie können Ihren Lernprozess und Prüfungszeitpunkt selbst bestimmen. Über die service@wasbt.com erreichen Sie unsere zentrale Serviceabteilung. | P4: Weiterbildung | Q4: Fortbildung | R4: Zeugnisausstellung | U4: World Academy of Science, Business and Technology - WASBT - Weiterbildung, Fortbildung, Zeugnisausstellung - service@wasbt.com | V4: service@wasbt.com | AI4: Fullname | AJ4: World Academy of Science, Business and Technology - WASBT
A5: C:\Users\Marku\Pictures\01_Businessbilder\52__GL_Goods & Luxuries\1.png | B5: Zeugnisvergabe | F5: 20-50€/h Schätzwert, Bestellung machen und Kontakt aufnehmen | G5: 20 | M5: World Academy of Science, Business and Technology | N5: World Academy of Science, Business and Technology - WASBT | O5: Die World Academy of Science, Business and Technology ist eine private Digitaluniversität mit vielerlei Stipendienmöglichkeiten, einer großen Vielfalt verschiedenster Studienangebote und entsprechend der Startwebseite ECTS konform mit höchstem Nachhaltigkeitslevel, welches es an keiner anderen Universität oder Hochschule in der Welt gibt. Sie erhalten dort einen stabilen Ausbildungswert und Lernerfolg bei verglichen sehr günstigen Preisen. Zeitlich zahlen Sie nicht drauf. Sie können Ihren Lernprozess und Prüfungszeitpunkt selbst bestimmen. Über die service@wasbt.com erreichen Sie unsere zentrale Serviceabteilung. | P5: Weiterbildung | Q5: Fortbildung | R5: Zeugnisausstellung | U5: World Academy of Science, Business and Technology - WASBT - Weiterbildung, Fortbildung, Zeugnisausstellung - service@wasbt.com | V5: service@wasbt.com | AI5: Beschreibung () | AJ5: Die World Academy of Science, Business and Technology ist eine private Digitaluniversität mit vielerlei Stipendienmöglichkeiten, einer großen Vielfalt verschiedenster Studienangebote und entsprechend der Startwebseite ECTS konform mit höchstem Nachhaltigkeitslevel, welches es an keiner anderen Universität oder Hochschule in der Welt gibt. Sie erhalten dort einen stabilen Ausbildungswert und Lernerfolg bei verglichen sehr günstigen Preisen. Zeitlich zahlen Sie nicht drauf. Sie können Ihren Lernprozess und Prüfungszeitpunkt selbst bestimmen. Über die service@wasbt.com erreichen Sie unsere zentrale Serviceabteilung.
A6: C:\Users\Marku\Pictures\01_Businessbilder\52__GL_Goods & Luxuries\1.png | B6: Prüfungserhebung | F6: 20-50€/h Schätzwert, Bestellung machen und Kontakt aufnehmen | G6: 20 | M6: World Academy of Science, Business and Technology | N6: World Academy of Science, Business and Technology - WASBT | O6: Die World Academy of Science, Business and Technology ist eine private Digitaluniversität mit vielerlei Stipendienmöglichkeiten, einer großen Vielfalt verschiedenster Studienangebote und entsprechend der Startwebseite ECTS konform mit höchstem Nachhaltigkeitslevel, welches es an keiner anderen Universität oder Hochschule in der Welt gibt. Sie erhalten dort einen stabilen Ausbildungswert und Lernerfolg bei verglichen sehr günstigen Preisen. Zeitlich zahlen Sie nicht drauf. Sie können Ihren Lernprozess und Prüfungszeitpunkt selbst bestimmen. Über die service@wasbt.com erreichen Sie unsere zentrale Serviceabteilung. | P6: Weiterbildung | Q6: Fortbildung | R6: Zeugnisausstellung | U6: World Academy of Science, Business and Technology - WASBT - Weiterbildung, Fortbildung, Zeugnisausstellung - service@wasbt.com | V6: service@wasbt.com | AI6: UG1 | AJ6: Weiterbildung
A7: C:\Users\Marku\Pictures\01_Businessbilder\52__GL_Goods & Luxuries\1.png | B7: Studiumsevaluierung | F7: 20-50€/h Schätzwert, Bestellung machen und Kontakt aufnehmen | G7: 20 | M7: World Academy of Science, Business and Technology | N7: World Academy of Science, Business and Technology - WASBT | O7: Die World Academy of Science, Business and Technology ist eine private Digitaluniversität mit vielerlei Stipendienmöglichkeiten, einer großen Vielfalt verschiedenster Studienangebote und entsprechend der Startwebseite ECTS konform mit höchstem Nachhaltigkeitslevel, welches es an keiner anderen Universität oder Hochschule in der Welt gibt. Sie erhalten dort einen stabilen Ausbildungswert und Lernerfolg bei verglichen sehr günstigen Preisen. Zeitlich zahlen Sie nicht drauf. Sie können Ihren Lernprozess und Prüfungszeitpunkt selbst bestimmen. Über die service@wasbt.com erreichen Sie unsere zentrale Serviceabteilung. | P7: Weiterbildung | Q7: Fortbildung | R7: Zeugnisausstellung | U7: World Academy of Science, Business and Technology - WASBT - Weiterbildung, Fortbildung, Zeugnisausstellung - service@wasbt.com | V7: service@wasbt.com | AI7: UG2 | AJ7: Fortbildung
A8: C:\Users\Marku\Pictures\01_Businessbilder\52__GL_Goods & Luxuries\1.png | B8: Qualitätsaudit | F8: 20-50€/h Schätzwert, Bestellung machen und Kontakt aufnehmen | G8: 20 | M8: World Academy of Science, Business and Technology | N8: World Academy of Science, Business and Technology - WASBT | O8: Die World Academy of Science, Business and Technology ist eine private Digitaluniversität mit vielerlei Stipendienmöglichkeiten, einer großen Vielfalt verschiedenster Studienangebote und entsprechend der Startwebseite ECTS konform mit höchstem Nachhaltigkeitslevel, welches es an keiner anderen Universität oder Hochschule in der Welt gibt. Sie erhalten dort einen stabilen Ausbildungswert und Lernerfolg bei verglichen sehr günstigen Preisen. Zeitlich zahlen Sie nicht drauf. Sie können Ihren Lernprozess und Prüfungszeitpunkt selbst bestimmen. Über die service@wasbt.com erreichen Sie unsere zentrale Serviceabteilung. | P8: Weiterbildung | Q8: Fortbildung | R8: Zeugnisausstellung | U8: World Academy of Science, Business and Technology - WASBT - Weiterbildung, Fortbildung, Zeugnisausstellung - service@wasbt.com | V8: service@wasbt.com | AI8: UG3 | AJ8: Zeugnisausstellung
A9: C:\Users\Marku\Pictures\01_Businessbilder\52__GL_Goods & Luxuries\1.png | B9: ECTS-Management | F9: 20-50€/h Schätzwert, Bestellung machen und Kontakt aufnehmen | G9: 20 | M9: World Academy of Science, Business and Technology | N9: World Academy of Science, Business and Technology - WASBT | O9: Die World Academy of Science, Business and Technology ist eine private Digitaluniversität mit vielerlei Stipendienmöglichkeiten, einer großen Vielfalt verschiedenster Studienangebote und entsprechend der Startwebseite ECTS konform mit höchstem Nachhaltigkeitslevel, welches es an keiner anderen Universität oder Hochschule in der Welt gibt. Sie erhalten dort einen stabilen Ausbildungswert und Lernerfolg bei verglichen sehr günstigen Preisen. Zeitlich zahlen Sie nicht drauf. Sie können Ihren Lernprozess und Prüfungszeitpunkt selbst bestimmen. Über die service@wasbt.com erreichen Sie unsere zentrale Serviceabteilung. | P9: Weiterbildung | Q9: Fortbildung | R9: Zeugnisausstellung | U9: World Academy of Science, Business and Technology - WASBT - Weiterbildung, Fortbildung, Zeugnisausstellung - service@wasbt.com | V9: service@wasbt.com | AI9: UG4

Sheet EPBC (hidden)

Sheet Access2 (hidden)
A1: ID | B1: PBC | C1: Name | D1: 0 | E1: 0 | F1: 8 | G1: E-PBC-WUSBT-Base.xlsm | H1: UpdateTime | I1: Link | J1: FirstOrder | K1: SecondOrder | L1: ThirdOrder | M1: 8 | N1: f2 | O1: f3 | P1: f4 | Q1: f5 | R1: f6 | S1: f7 | T1: f8 | U1: f9 | V1: f10 | W1: f11 | X1: f12 | Y1: f13 | Z1: f14 | AA1: f15 | AB1: f16 | AC1: f17

Sheet i (hidden)
R1: 0_0_9_E-PBC-WUSBT-Base.xlsm | V1: 0 | W1: 0 | X1: 8 | Y1: E-PBC-WUSBT-Base.xlsm | Z1: 8

Sheet Steuerung (hidden)
A1: id | B1: Steuerung | C1: time | D1: delta | E1: Beschreibung | F1: 0.00 | I1: id | J1: Regelung | K1: time | L1: 6 | M1: Beschreibung | N1: b1 | O1: b2 | P1: b3 | Q1: id | R1: Con | S1: time | T1: delta | U1: Besch | AA1: 1 | AB1: 0
B2: 0 | E2: Shortcuterzeugen | M2: 17:36:23 | N2: pw | O2: sheets hide | P2: 15.06.2020 | AG2: Masterlogin | AH2: Markus@Schmid
B3: 0 | E3: aktiviert spezifische pfad | M3: loginversuche | AH3: Boolean | AI3: Datum
E4: autogrowcheck | J4: 1 | L4: 0 | M4: Time | AG4: Inputlinks | AH4: 1 | AJ4: 9
B5: 1 | E5: Aktivierungsschlüssel | J5: 0 | L5: 0 | M5: DateDifferenzeOnline | N5: Atomic
E6: Outlooksynchron | J6: 1 | L6: 1 | M6: Timeout aus
B7: 1 | E7: Freischaltungsantrag | G7: 8 | J7: 1 | M7: 14
B8: 1 | E8: Aktivierungscheck | F8: 0 | H8: 2 | J8: 1 | M8: 7
B9: 0 | E9: Lizenzschlüssel | F9: 0 | J9: 1 | M9: Timeout 1 Tag
E10: Lizensierungsstatus | J10: 1 | M10: Timeout 12h
E11: Planungsstatus | J11: 1 | M11: Timeout 6h
E12: Special Status | J12: 1 | M12: Timeout 2h
E13: Hidden Status | J13: 1 | M13: Timeout 1h
B14: 1 | E14: Sendltimer | F14: 44769 | J14: 1 | M14: loginversucheTime 5 Hinweis
B15: 1 | E15: Sendftimer | F15: 44769 | J15: 1 | M15: loginversucheTime 10 1min sperre
B16: 1 | E16: 22 | F16: 2021-10-19 | J16: 1 | M16: loginversucheTime 20 5 min sperre
B17: 1 | E17: TradeBaseStatus | J17: 1 | M17: loginversucheTime 25 1 Tag sperre
B18: 1 | E18: Sychnronisationsstatus | G18: C:\Users\Marku\Desktop\01_PBC\tempsyspbc\tempbc_0000001_02032021_05002 (3).xlsx | J18: 1 | M18: loginversucheTime 40 dauerhafte sperre
B19: 1 | E19: currencytoday | J19: 1 | M19: DefendMode
B20: 1 | E20: ActivateWorkbook | M20: keygen | N20: bei reg: key gen | O20: key reg
B21: 1 | E21: TimerDeakt | M21: Keycheck | N21: check if key is reged
B22: 1 | E22: Hint Deakt | F22: 1 | M22: plancheck
E23: klickbar | M23: Lizenzcheck
E24: SuborMain | M24: updatecheck
J25: 1 | M25: freischaltungscheck
M26: Security Process
J27: 1 | M27: user
J28: 1 | M28: pwort
J29: 1 | M29: Aktivierungsschlüsselzähler
J30: 1 | M30: SortVariable
J31: 1 | M31: Suchbegriff
J32: 1 | L32: Tabelle9 | M32: Steuerung
K33: 0.01 | L33: 0.018 | M33: l1
K34: 0.02 | L34: 0.0225 | M34: l2
K35: 0.03 | L35: 0.03 | M35: l3
K36: 0.04 | L36: 0.045 | M36: l4
K37: 0.09 | L37: 0.09 | M37: l5
J38: 1 | M38: sb1
J39: 1 | M39: sb2
J40: 1 | M40: sb3
J41: 1 | M41: sb4
J42: 1 | M42: sb5
J43: 1 | M43: sb6
J44: 1 | M44: rlvl
J45: 1 | M45: c1/0
M46: Register
J47: 1 | K47: 1 | L47: 1 | M47: Online
M48: Timestamp if Offline
J49: 1 | L49: 3 | M49: VIPPointUFVisibility
L50: 0_0_9_E-PBC-WUSBT-Base - Kopie.xlsm
J51: 1 | L51: 1 | M51: 1 | N51: Aus/Einlesevariable
M52: 2
M53: 3
AB119: 1

Sheet ADB (hidden)
G1: Artikel/Produkt | I1: Bestand/Stock | K1: Info | M1: Laden/Load | N1: Einträge/ Entries | P1: 1 | R1: 1 | U1: 1 | Y1: Sortierung Filter
V2: 5
V3: 10
V4: 20
V5: 30
V6: 50
V7: 100
V8: 200
V9: 500
V10: 1000
V11: 5000
V12: 10000

Sheet Login (hidden)
C2: Benutzername: | G2: Password: | J2: Registration | K2: Login
A3: Welcome back to PBC, | F3: Logged in | J3: Logout | L3: sdf
A4: Für Studium bewerben
L5: Account
L6: Einstellungen
A7: Studiums Konfigurator | C7: Notiz/ Note: | L7: Persönliche Zahlungsmethoden
C8: Id | D8: Benutzername | E8: Pw | F8: Activationdate | G8: Outlook-Synch. | H8: Status | J8: Refresh | L8: Passwort ändern/ reset
A9: Lern- & Abfrage Center | J9: Clear | P9: FALSE
J10: Delete | L10: Freischalten (E-Mail Service) | N10: 1 | P10: FALSE
A11: This Business | L11: Lizenzaktivierung (E-Mail Service) | N11: 2 | P11: FALSE
A12: Businesses | P12: FALSE
A13: EAMS
A14: CBMB
A15: Account
A16: Activation Area
A17: Affiliation
A18: Balance
A19: Discount Area
A20: Vip Area

Sheet EAMS (hidden)
D1: Manuelle Kontaktliste (eingeben) | F1: 0 | KU1: Id | KV1: Provider | KW1: daily | KX1: endung | KY1: e2 | LA1: id | LB1: Key | LC1: Email | LD1: 1 | LE1: 2 | LF1: 3 | LG1: 4 | LH1: 5 | LI1: 6 | LJ1: 7 | LK1: 8 | LL1: 9 | LM1: 10 | LN1: 1 | LO1: 2 | LP1: 3 | LQ1: 4 | LR1: 5 | LS1: 6 | LT1: 7 | LU1: 8 | LV1: 9 | LW1: 10 | LX1: O1 | LY1: 2 | LZ1: 3 | MA1: 4 | MB1: 5 | MC1: 6 | MD1: 7 | ME1: 8 | MF1: 9+MLZ1:MF1 | MG1: 10 | MH1: A1 | MI1: 2 | MJ1: 3 | MK1: 4 | ML1: 5 | MM1: 6 | MN1: 7 | MO1: 8 | MP1: 9 | MQ1: 10 | MR1: id | MS1: Kontinent | MT1: Land | MU1: Stadt | MV1: Bundesland | MW1: Prozesse | MX1: Branche | MZ1: id | NA1: laufzeit | NB1: Menge | NC1: Adressorte | NF1: id | NG1: Kontinent | NH1: Land | NI1: Coswig | NJ1: Region | NK1: Stadt | NL1: Branche | NM1: Branche | NN1: Branche | NT1: DailyKont | NU1: MonthlKont | NV1: Usedday | NW1: timediff | NY1: 750 | OA1: m | OB1: id log | OC1: acc | OD1: dk | OE1: mk | OF1: du | OG1: 1 | OH1: 2 | OI1: 3 | OJ1: 4 | OK1: 5 | OL1: 6 | OM1: 7 | ON1: 8 | OO1: 9 | OP1: 10 | OU1: 1 | OV1: <br> | OW1: id Mess | OX1: Betreff | OY1: Nachricht | OZ1: Website | PA1: What | PB1: Art | PC1: Desc2 | PD1: Argument1 | PE1: A2 | PF1: a3 | PG1: a4 | PH1: a5 | PI1: a6 | PJ1: Prämie | PK1: Benefits | PL1: Bedarf | PM1: S-engl1 | PN1: S-engl2 | PO1: S-engl3 | PP1: S-engl4
C2: Autosending | D2: Name (optional) | E2: E-Mail-Adress-Liste (Empfänger) | F2: Status | KV2: 1and1 | KW2: 100 | KX2: 1und1 | LA2: 1 | LB2: YM9C0344561 | LC2: markusschmid3@gmx.de | LD2: markusschmid3@gmx.de | LM2: 1 | LN2: 50 | LW2: 50 | LX2: 1 | MS2: Europa | MT2: Belgien | MU2: Brüssel | MV2: Berlin | MW2: Einkauf | MX2: Unternehmen | NA2: 5 min | NB2: 10 | NC2: E-Mail @ | NI2: Berlin | NY2: 750 | OC2: markus.schmid@wusbt.net | OD2: 2020-11-18T20:17:00 | OE2: =LEN(OC2) -> 23 | OV2: <br> <br> | OX2: Einladung | OY2: www.wasbt.com | OZ2: https://wasbt.com/ | PA2: University | PB2: Digitale Studienabschlüsse | PC2: Hochschulausbildung | PE2: Artefacte | PM2: Invitation | PN2: https://wasbt.com/English/
KV3: All-Inkl.com | KW3: 1000 | KX3: all-inkl | LA3: 2 | LB3: 0YM9C0344562112 | LW3: 50 | MG3: 1 | MS3: Europa | MT3: Bulgarien | MU3: Sofia | MV3: Bayern | MW3: Marketing | MX3: Firma | NA3: 10 min | NB3: 50 | NC3: E-Mail Adresse | NI3: Berlin | NY3: 750 | OC3: markus.schmid@wusbt.net | OD3: 2020-11-16T19:33:00 | OX3: Sehr geehrte Damen und Herren, | OY3: www.apbci.com | OZ3: https://apbci.com/ | PA3: Technologies | PB3: Cybernetics | PC3: Excel Workbooks Technologien | PE3: Coins | PM3: To whom it may concern, | PN3: www.apbci.com
A4: Affiliationkey: | KV4: BlueHost | KW4: 500 | KX4: bluehost | LA4: 3 | MS4: Europa | MT4: Dänemark | MU4: Kopenhagen | MV4: Brandenburg | MW4: Verkauf | MX4: Geschäft | NA4: 20 min | NB4: 100 | NC4: Impressum @ | NI4: Berlin | NY4: 750 | OC4: markus.schmid@wusbt.net | OX4: Vielen Dank und mit freundlichen Grüßen, | OY4: f | OZ4: 40 weiter Unternehmensgegenstände | PD4: preiswert (nutzen) | PM4: Sincerely,
A5: 0YM9C0344562112 | KV5: DomainFactory (df.eu) | KW5: 5000 | KX5: domainfactory | LA5: 4 | MS5: Europa | MT5: Deutschland | MU5: Berlin | MV5: Bremen | MW5: Produktion | MX5: Administration | NA5: 30min | NB5: 200 | NC5: Kontakt Mail | NI5: Berlin | NY5: 750 | OC5: markus.schmid@wusbt.net | OD5: 2020-11-16T19:33:00 | OX5: Powered by APBCI | PD5: attraktiv
KV6: DreamHost | KW6: 2400 | KX6: dreamhost | LA6: 5 | MS6: Europa | MT6: Deutschland | MU6: Stuttgart | MV6: Hamburg | MW6: Faktura | MX6: Hochschule | NA6: 60 min | NB6: 500 | NC6: About Mail | NI6: Berlin | NY6: 750 | OC6: nina.leffers@oth-regensburg.de | OX6: Artificial Program Base Cybernetic Intelligence | PD6: optimiert
KV7: Free.fr | KW7: 2400 | KX7: free | LA7: 6 | MS7: Europa | MT7: Deutschland | MU7: München | MV7: Hessen | MW7: Finanz | MX7: Universität | NA7: 2 h | NB7: 750 | NI7: Berlin | NY7: 750 | OC7: Ej.vonbaubach@zippe.de | OZ7: staunen | PD7: Innovationskraft erhöht
KV8: Freemail | KW8: 100 | KX8: freemail | LA8: 7 | MS8: Europa | MT8: Deutschland | MU8: Potsdam | MV8: Mecklenburg-Vorpommern | MW8: Service | MX8: Schule | NA8: 3 h | NB8: 1000 | NI8: Berlin | NY8: 750 | OC8: hs.navarro@t-online.de | OZ8: locken | PD8: schnell wahrnehmbare durchdringende Verbesserungen
KV9: FrogHost.com | KW9: 5000 | KX9: froghost | LA9: 8 | MS9: Europa | MT9: Deutschland | MU9: Bremen | MV9: Niedersachsen | MW9: Vertrieb | MX9: Verwaltung | NA9: 4 h | NB9: 1500 | NI9: Berlin | NY9: 750 | OC9: 1265-1275iatrikulation@h.edu | OZ9: weil leckerein zum glücklich machen dienen | PD9: sicherstellung des Geldflusses
KV10: GMX | KW10: 50 | KX10: gmx | LA10: 9 | MS10: Europa | MT10: Deutschland | MU10: Hamburg | MV10: Nordrhein-Westfalen | MW10: Handel | MX10: Bürowesen | NA10: 5 h | NB10: 2000 | NI10: Berlin | NY10: 750 | OC10: stefan.linner@h.edu | PD10: Bedeutung
KV11: Goneo | KW11: 5000 | KX11: goneo | MS11: Europa | MT11: Deutschland | MU11: Wiesbaden | MV11: Rheinland-Pfalz | MX11: Schreibwaren | NA11: 6 h | NB11: 3000 | NI11: Berlin | NY11: 750 | OC11: uenchen@adnet.de | PD11: Eigenleistung
A12: =B23 -> 0 | B12: PBC-Earth-Gold Cash | KV12: Google | KW12: 500 | KX12: gmail | KY12: googlemail | MS12: Europa | MT12: Deutschland | MU12: Schwerin | MV12: Saarland | MX12: Automobil | NB12: 5000 | NI12: Berlin | NY12: 750 | OC12: info@hff-uc.de | PD12: glaubhaftiger Mehrwert
A13: Outlooksynchronität | B13: unique | KV13: GreenGreeks | KW13: 5000 | KX13: greengreeks | MS13: Europa | MT13: Deutschland | MU13: Hannover | MV13: Sachsen | MX13: Automobilzulieferer | NB13: 10000 | NI13: Berlin | NY13: 750 | OC13: weiterbildung@thi.de | PD13: Vorteil
A14: Sending Accounts | B14: 0 | KV14: hawkhost.com | KW14: 5000 | KX14: hawkhost | MS14: Europa | MT14: Deutschland | MU14: Düsseldorf | MV14: Sachsen-Anhalt | MX14: Events | NB14: 15000 | NI14: Berlin | NY14: 750 | OC14: info@vwi.org | PD14: Empfehlungen | PE14: einzigartig | PF14: selten | PG14: wertvoll | PH14: Qualitätserhöhung | PI14: technischer Vorsprung
A15: Equalizer | B15: 1 | KV15: Hotmail | KW15: 100 | KX15: hotmail | MS15: Europa | MT15: Deutschland | MU15: Mainz | MV15: Schleswig-Holstein | MX15: Banken | NB15: 20000 | NI15: Berlin | NY15: 750 | OC15: arketing@sw.de | PD15: wer | PE15: immer schneller steigender Wachstum in Entwicklung, Fertigung und Innovation
KV16: Yahoo | KW16: 500 | KX16: yahoo | MS16: Europa | MT16: Deutschland | MU16: Saarbrücken | MV16: Thüringen | MX16: Baugewerbe | NB16: 30000 | NI16: Berlin | NY16: 750 | OC16: tutoren@hfph.de | PD16: wann
A17: Betriebsmodus | B17: Addressbuch Betrieb | KV17: Sonstige | KW17: 100 | MS17: Europa | MT17: Deutschland | MU17: Dresden | MV17: Baden-Württemberg | MX17: Architektur | NB17: 50000 | NI17: Berlin | NY17: 750 | OC17: rochus.schid@rub.de | PD17: was
A18: Preismodus | B18: 0,10 PBC-Earth Cash/ 500 Mails | MS18: Europa | MT18: Deutschland | MU18: Magdeburg | MX18: Beratung | NB18: 100000 | NI18: Berlin | NY18: 750 | OC18: chavelet@h.edu | PD18: wie
MS19: Europa | MT19: Deutschland | MU19: Kiel | MX19: Consulting | NI19: Berlin | NY19: 750 | OC19: let@h.edu/ stefan.linner@h.edu ... Produktion und Autoati | PD19: wo
A20: PBC - Kontingent | B20: 500 | MS20: Europa | MT20: Deutschland | MU20: Köln | MX20: Bildung | NI20: Berlin | NY20: 750 | OC20: uenchen@diploa.de | PD20: was ist sonst noch wichtig
A21: PBC - Neues Kontingent | MS21: Europa | MT21: Deutschland | MU21: Frankfurt am Main | MX21: Fachhoschule | NI21: Berlin | NY21: 750 | OC21: markus.schmid@wusbt.net | OD21: 2020-11-26T16:21:00 | PD21: Ansehen
A22: Verdient vor Prüfung | B22: A: K:500 M:0 S:0 PBCEC | MS22: Europa | MT22: Deutschland | MU22: Dortmund | MX22: Schulen | NI22: Berlin | NY22: 750 | OC22: markus.schmid@wusbt.net | OD22: 2020-11-26T18:50:00 | PD22: Rendite
A23: Verdient nach Prüfung | B23: 0 | MS23: Europa | MT23: Deutschland | MU23: Essen | MX23: Chemie | NI23: Berlin | NY23: 750 | OC23: service@apbci.co | OD23: 2020-11-26T18:52:00 | PD23: Sicherheit
MS24: Europa | MT24: Deutschland | MU24: Leipzig | MX24: Dienstleistung | NI24: Berlin | NY24: 750 | OC24: markus.schmid@wusbt.net | OD24: 2020-11-26T18:51:00 | PD24: Entlastung
A25: Limit | B25: =B20 -> 500 | MS25: Europa | MT25: Deutschland | MU25: Nürnberg | MX25: Druck | NI25: Berlin | NY25: 750 | OC25: markus.schmid@wusbt.net | OD25: 2020-11-26T18:57:00 | PD25: Entdeckung/Innovation
A26: Online | B26: 1 | MS26: Europa | MT26: Deutschland | MU26: Duisburg | MX26: Papier | NI26: Berlin | NY26: 750 | OC26: markusschmid3@gmx.de | OD26: 2020-11-26T19:55:00 | PD26: Soziales
A27: Offline | B27: 2 | MS27: Europa | MT27: Deutschland | MU27: Bochum | MX27: Verpackung | NI27: Berlin | NY27: 750 | OC27: service@apbci.com | OD27: 2020-11-26T19:56:00 | PD27: Gesundheit
A28: Gesendet | B28: 3 | MS28: Europa | MT28: Deutschland | MU28: Wuppertal | MX28: EDV | NI28: Berlin | NY28: 750 | PD28: Kosten/ Nutzen Relation
MS29: Europa | MT29: Deutschland | MU29: Bielefeld | MX29: IT | NI29: Berlin | NY29: 750 | PD29: Ziele
MS30: Europa | MT30: Deutschland | MU30: Bonn | MX30: Einkauf | NI30: Berlin | NY30: 750 | PD30: wille
MS31: Europa | MT31: Deutschland | MU31: Münster | MX31: Beschaffung | NI31: Berlin | NY31: 750 | PD31: Angebote
MS32: Europa | MT32: Deutschland | MU32: Karlsruhe | MX32: Elektro | NI32: Berlin | NY32: 750 | PD32: welches Problem
A33: 2020-11-20T11:58:38 | MS33: Europa | MT33: Deutschland | MU33: Mannheim | MX33: Elektronik | NI33: Berlin | NY33: 750 | PD33: Erwartung
A34: Addressbuch Betrieb | MS34: Europa | MT34: Deutschland | MU34: Augsburg | MX34: Energiewirtschaft | NI34: Berlin | NY34: 750 | PD34: Lieferzeit
MS35: Europa | MT35: Deutschland | MU35: Gelsenkirchen | MX35: Finanzen | NI35: Berlin | NY35: 750 | PD35: Lieferbedingungen
A36: 47.81666667 | MS36: Europa | MT36: Deutschland | MU36: Mönchengladbach | MX36: Forschung | NI36: Berlin | NY36: 750 | PD36: warum
MS37: Europa | MT37: Deutschland | MU37: Braunschweig | MX37: Entwicklung | NI37: Berlin | NY37: 750 | PD37: wofür
MS38: Europa | MT38: Deutschland | MU38: Chemnitz | MX38: Wissenschaft | NI38: Berlin | NY38: 750 | PD38: Rahmenbedingungen
MS39: Europa | MT39: Deutschland | MU39: Aachen | MX39: Gesundheitswesen | NI39: Berlin | NY39: 750 | PD39: Service
MS40: Europa | MT40: Deutschland | MU40: Halle | MX40: Soziales | NI40: Berlin | NY40: 750 | PD40: Transparenz
MS41: Europa | MT41: Deutschland | MU41: Freiburg im Breisgau | MX41: Pflege | NI41: Berlin | NY41: 750 | PD41: Funktionalitäten
MS42: Europa | MT42: Deutschland | MU42: Krefeld | MX42: Handel | NI42: Berlin | NY42: 750 | PD42: Angebotene Leistungen
MS43: Europa | MT43: Deutschland | MU43: Lübeck | MX43: Konsum | NI43: Berlin | NY43: 750 | PD43: Rabatte
MS44: Europa | MT44: Deutschland | MU44: Oberhausen | MX44: Handwerk | NI44: Berlin | NY44: 750 | PD44: Sonderpreise
MS45: Europa | MT45: Deutschland | MU45: Erfurt | MX45: Immobilien | NI45: Berlin | NY45: 750 | PD45: Gültigkeit des Angebots
MS46: Europa | MT46: Deutschland | MU46: Rostock | MX46: Facility | NI46: Berlin | NY46: 750 | PD46: Garantien
MS47: Europa | MT47: Deutschland | MU47: Kassel | MX47: Management | NI47: Berlin | NY47: 750 | PD47: Ansprechpartner
MS48: Europa | MT48: Deutschland | MU48: Hagen | MX48: Industrie | NI48: Berlin | NY48: 750 | PD48: Beratung
MS49: Europa | MT49: Deutschland | MU49: Hamm | MX49: Internet | NI49: Berlin | NY49: 750 | PD49: Vertrauen an den Kunden
MS50: Europa | MT50: Deutschland | MU50: Mülheim an der Ruhr | MX50: Multimedia | NI50: Berlin | NY50: 750
MS51: Europa | MT51: Deutschland | MU51: Ludwigshafen am Rhein | MX51: Kunst | NI51: Berlin | NY51: 750
MS52: Europa | MT52: Deutschland | MU52: Oldenburg | MX52: Kultur | NI52: Berlin | NY52: 750
MS53: Europa | MT53: Deutschland | MU53: Osnabrück | MX53: Unterhaltung | NI53: Berlin | NY53: 750
MS54: Europa | MT54: Deutschland | MU54: Leverkusen | MX54: Marketing | NI54: Berlin | NY54: 750
MS55: Europa | MT55: Deutschland | MU55: Heidelberg | MX55: Werbung | NI55: Berlin | NY55: 750
MS56: Europa | MT56: Deutschland | MU56: Solingen | MX56: PR | NI56: Berlin | NY56: 750
MS57: Europa | MT57: Deutschland | MU57: Darmstadt | MX57: Marktforschung | NI57: Berlin | NY57: 750
MS58: Europa | MT58: Deutschland | MU58: Herne | MX58: Maschinen | NI58: Berlin | NY58: 750
MS59: Europa | MT59: Deutschland | MU59: Neuss | MX59: Anlagenbau | NI59: Berlin | NY59: 750
MS60: Europa | MT60: Deutschland | MU60: Paderborn | MX60: Medien | NI60: Berlin | NY60: 750
MS61: Europa | MT61: Deutschland | MU61: Regensburg | MX61: Medizin | NI61: Berlin | NY61: 750
MS62: Europa | MT62: Deutschland | MU62: Ingolstadt | MX62: Pharma | NI62: Berlin | NY62: 750
MS63: Europa | MT63: Deutschland | MU63: Würzburg | MX63: Medizintechnik | NI63: Berlin | NY63: 750
MS64: Europa | MT64: Deutschland | MU64: Fürth | MX64: Nahrungsmittel | NI64: Berlin | NY64: 750
MS65: Europa | MT65: Deutschland | MU65: Offenbach am Main | MX65: Land | NI65: Berlin | NY65: 750
MS66: Europa | MT66: Deutschland | MU66: Ulm | MX66: Forstwirtschaft | NI66: Berlin | NY66: 750
MS67: Europa | MT67: Deutschland | MU67: Wolfsburg | MX67: Personalwesen | NI67: Berlin | NY67: 750
MS68: Europa | MT68: Deutschland | MU68: Heilbronn | MX68: Personalbeschaffung | NI68: Berlin | NY68: 750
MS69: Europa | MT69: Deutschland | MU69: Pforzheim | MX69: Rechtsberatung | NI69: Berlin | NY69: 750
MS70: Europa | MT70: Deutschland | MU70: Göttingen | MX70: Seminar | NI70: Berlin | NY70: 750
MS71: Europa | MT71: Deutschland | MU71: Bottrop | MX71: Messeanbieter | NI71: Berlin | NY71: 750
MS72: Europa | MT72: Deutschland | MU72: Reutlingen | MX72: Sport | NI72: Berlin | NY72: 750
MS73: Europa | MT73: Deutschland | MU73: Recklinghausen | MX73: Fitness | NI73: Berlin | NY73: 750
MS74: Europa | MT74: Deutschland | MU74: Koblenz | MX74: Beauty | NI74: Berlin | NY74: 750
MS75: Europa | MT75: Deutschland | MU75: Bremerhaven | MX75: Steuerberatung | NI75: Berlin | NY75: 750
MS76: Europa | MT76: Deutschland | MU76: Bergisch Gladbach | MX76: Wirtschaftsprüfung | NI76: Berlin | NY76: 750
MS77: Europa | MT77: Deutschland | MU77: Remscheid | MX77: Telekommunikation | NI77: Berlin | NY77: 750
MS78: Europa | MT78: Deutschland | MU78: Jena | MX78: Textilbranche | NI78: Berlin | NY78: 750
MS79: Europa | MT79: Deutschland | MU79: Erlangen | MX79: Tourismus | NI79: Berlin | NY79: 750
MS80: Europa | MT80: Deutschland | MU80: Trier | MX80: Hotel | NI80: Berlin | NY80: 750
MS81: Europa | MT81: Deutschland | MU81: Moers | MX81: Gastronomie | NI81: Berlin | NY81: 750
MS82: Europa | MT82: Deutschland | MU82: Salzgitter | MX82: Vereine | NI82: Berlin | NY82: 750
MS83: Europa | MT83: Deutschland | MU83: Siegen | MX83: Verkehr | NI83: Berlin | NY83: 750
MS84: Europa | MT84: Deutschland | MU84: Hildesheim | MX84: Transport | NI84: Berlin | NY84: 750
MS85: Europa | MT85: Deutschland | MU85: Cottbus | MX85: Logistik | NI85: Berlin | NY85: 750
MS86: Europa | MT86: Deutschland | MU86: Kaiserslautern | MX86: Versicherung | NI86: Berlin | NY86: 750
MS87: Europa | MT87: Deutschland | MU87: Gütersloh | MX87: Öffentliche | NI87: Berlin | NY87: 750
MS88: Europa | MT88: Deutschland | MU88: Witten | MX88: Administration/Verwaltung | NI88: Berlin | NY88: 750
MS89: Europa | MT89: Deutschland | MU89: Hanau | MX89: Bau/Architektur | NI89: Berlin | NY89: 750
MS90: Europa | MT90: Deutschland | MU90: Gera | MX90: Beratung/Consulting | NI90: Berlin | NY90: 750
MS91: Europa | MT91: Deutschland | MU91: Iserlohn | MX91: Druck/Verpackung | NI91: Berlin | NY91: 750
MS92: Europa | MT92: Deutschland | MU92: Ludwigsburg | MX92: Elektro/Elektronik | NI92: Berlin | NY92: 750
MS93: Europa | MT93: Deutschland | MU93: Esslingen am Neckar | MX93: Energie | NI93: Berlin | NY93: 750
MS94: Europa | MT94: Deutschland | MU94: Zwickau | MX94: Finanz | NI94: Berlin | NY94: 750
MS95: Europa | MT95: Deutschland | MU95: Düren | MX95: Forschung/Entwicklung | NI95: Berlin | NY95: 750
MS96: Europa | MT96: Deutschland | MU96: Tübingen | MX96: Gesundheit/Soziales/Pflege | NI96: Berlin | NY96: 750
MS97: Europa | MT97: Deutschland | MU97: Flensburg | MX97: Kunst/Kultur | NI97: Berlin | NY97: 750
MS98: Europa | MT98: Deutschland | MU98: Ratingen | MX98: Marketing/Werbung/PR | NI98: Berlin | NY98: 750
MS99: Europa | MT99: Deutschland | MU99: Gießen | MX99: Maschinenbau | NI99: Berlin | NY99: 750
MS100: Europa | MT100: Deutschland | MU100: Lünen | MX100: Medizin/Pharma | NI100: Berlin | NY100: 750
MS101: Europa | MT101: Deutschland | MU101: Villingen-Schwenningen | MX101: Nahrungsmittel/Landwirtschaft | NI101: Berlin | NY101: 750
MS102: Europa | MT102: Deutschland | MU102: Konstanz | MX102: Personalwesen & -beschaffung | NI102: Berlin | NY102: 750
MS103: Europa | MT103: Deutschland | MU103: Marl | MX103: Recht | NI103: Berlin | NY103: 750
MS104: Europa | MT104: Deutschland | MU104: Worms | MX104: Seminare/Messen | NI104: Berlin | NY104: 750
MS105: Europa | MT105: Deutschland | MU105: Dessau-Roßlau | MX105: Sonstige Branchen | NI105: Berlin | NY105: 750
MS106: Europa | MT106: Deutschland | MU106: Velbert | MX106: Sport/Beauty | NI106: Berlin | NY106: 750
MS107: Europa | MT107: Deutschland | MU107: Minden | MX107: Steuerberatung/Wirtschaftsprüfung | NI107: Berlin | NY107: 750
MS108: Europa | MT108: Deutschland | MU108: Neumünster | MX108: Textil | NI108: Berlin | NY108: 750
MS109: Europa | MT109: Deutschland | MU109: Norderstedt | MX109: Tourismus/Gastronomie | NI109: Berlin | NY109: 750
MS110: Europa | MT110: Deutschland | MU110: Delmenhorst | MX110: Transport/Verkehr/Logistik | NI110: Berlin | NY110: 750
MS111: Europa | MT111: Deutschland | MU111: Viersen | MX111: Öffentliche Verwaltung | NI111: Berlin | NY111: 750
MS112: Europa | MT112: Deutschland | MU112: Wilhelmshaven | MX112: Anlagen- und Maschinenbau | NI112: Berlin | NY112: 750
MS113: Europa | MT113: Deutschland | MU113: Bamberg | MX113: Industrielle Zulieferer | NI113: Berlin | NY113: 750
MS114: Europa | MT114: Deutschland | MU114: Gladbeck | MX114: Nahrung & Genuss | NI114: Berlin | NY114: 750
MS115: Europa | MT115: Deutschland | MU115: Rheine | MX115: Tourismus & Freizeit | NI115: Berlin | NY115: 750
MS116: Europa | MT116: Deutschland | MU116: Dorsten | MX116: Wohnen & Einrichtung | NI116: Berlin | NY116: 750
MS117: Europa | MT117: Deutschland | MU117: Marburg | MX117: Automobil- und Fahrzeugbau | NI117: Berlin | NY117: 750
MS118: Europa | MT118: Deutschland | MU118: Troisdorf | MX118: Dienstleistungen | NI118: Berlin | NY118: 750
MS119: Europa | MT119: Deutschland | MU119: Lüneburg | MX119: Gesundheit, Medizin & Pharma | NI119: Berlin | NY119: 750
MS120: Europa | MT120: Deutschland | MU120: Castrop-Rauxel | MX120: Informations- und Kommunikationstechnik | NI120: Berlin | NY120: 750
MS121: Europa | MT121: Deutschland | MU121: Arnsberg | MX121: Technik | NI121: Berlin | NY121: 750
MS122: Europa | MT122: Deutschland | MU122: Detmold | MX122: Transport & Logistik | NI122: Berlin | NY122: 750
MS123: Europa | MT123: Deutschland | MU123: Lüdenscheid | MX123: Bau | NI123: Berlin | NY123: 750
MS124: Europa | MT124: Deutschland | MU124: Bayreuth | MX124: Energie- und Umweltwirtschaft | NI124: Berlin | NY124: 750
MS125: Europa | MT125: Deutschland | MU125: Brandenburg an der Havel | MX125: Handel & Konsumgüter | NI125: Berlin | NY125: 750
MS126: Europa | MT126: Deutschland | MU126: Bocholt | MX126: Textil & Mode | NI126: Berlin | NY126: 750
MS127: Europa | MT127: Deutschland | MU127: Landshut | MX127: Werkstoffe & Werkstoffverarbeitung | NI127: Berlin | NY127: 750
MS128: Europa | MT128: Deutschland | MU128: Celle | NI128: Berlin | NY128: 750
MS129: Europa | MT129: Deutschland | MU129: Aschaffenburg | NI129: Berlin | NY129: 750
MS130: Europa | MT130: Deutschland | MU130: Lippstadt | NI130: Berlin | NY130: 750
MS131: Europa | MT131: Deutschland | MU131: Dinslaken | NI131: Berlin | NY131: 750
MS132: Europa | MT132: Deutschland | MU132: Aalen | NI132: Berlin | NY132: 750
MS133: Europa | MT133: Deutschland | MU133: Kempten | NI133: Berlin | NY133: 750
MS134: Europa | MT134: Deutschland | MU134: Fulda | NI134: Berlin | NY134: 750
MS135: Europa | MT135: Deutschland | MU135: Herford | NI135: Berlin | NY135: 750
MS136: Europa | MT136: Deutschland | MU136: Kerpen | NI136: Berlin | NY136: 750
MS137: Europa | MT137: Deutschland | MU137: Plauen | NI137: Berlin | NY137: 750
MS138: Europa | MT138: Deutschland | MU138: Neuwied | NI138: Berlin | NY138: 750
MS139: Europa | MT139: Deutschland | MU139: Weimar | NI139: Berlin | NY139: 750
MS140: Europa | MT140: Deutschland | MU140: Sindelfingen | NI140: Berlin | NY140: 750
MS141: Europa | MT141: Deutschland | MU141: Rüsselsheim am Main | NI141: Berlin | NY141: 750
MS142: Europa | MT142: Deutschland | MU142: Dormagen | NI142: Berlin | NY142: 750
MS143: Europa | MT143: Deutschland | MU143: Neubrandenburg | NI143: Berlin | NY143: 750
MS144: Europa | MT144: Deutschland | MU144: Grevenbroich | NI144: Berlin | NY144: 750
MS145: Europa | MT145: Deutschland | MU145: Rosenheim | NI145: Berlin | NY145: 750
MS146: Europa | MT146: Deutschland | MU146: Herten | NI146: Berlin | NY146: 750
MS147: Europa | MT147: Deutschland | MU147: Garbsen | NI147: Berlin | NY147: 750
MS148: Europa | MT148: Deutschland | MU148: Wesel | NI148: Berlin | NY148: 750
MS149: Europa | MT149: Deutschland | MU149: Schwäbisch Gmünd | NI149: Berlin | NY149: 750
MS150: Europa | MT150: Deutschland | MU150: Bergheim | NI150: Berlin | NY150: 750
MS151: Europa | MT151: Deutschland | MU151: Friedrichshafen | NI151: Berlin | NY151: 750
MS152: Europa | MT152: Deutschland | MU152: Hürth | NI152: Berlin | NY152: 750
MS153: Europa | MT153: Deutschland | MU153: Stralsund | NI153: Berlin | NY153: 750
MS154: Europa | MT154: Deutschland | MU154: Offenburg | NI154: Berlin | NY154: 750
MS155: Europa | MT155: Deutschland | MU155: Langenfeld | NI155: Berlin | NY155: 750
MS156: Europa | MT156: Deutschland | MU156: Frankfurt | NI156: Berlin | NY156: 750
MS157: Europa | MT157: Deutschland | MU157: Greifswald | NI157: Berlin | NY157: 750
MS158: Europa | MT158: Deutschland | MU158: Unna | NI158: Berlin | NY158: 750
MS159: Europa | MT159: Deutschland | MU159: Euskirchen | NI159: Berlin | NY159: 750
MS160: Europa | MT160: Deutschland | MU160: Neu-Ulm | NI160: Berlin | NY160: 750
MS161: Europa | MT161: Deutschland | MU161: Göppingen | NI161: Berlin | NY161: 750
MS162: Europa | MT162: Deutschland | MU162: Hameln | NI162: Berlin | NY162: 750
MS163: Europa | MT163: Deutschland | MU163: Stolberg | NI163: Berlin | NY163: 750
MS164: Europa | MT164: Deutschland | MU164: Sankt Augustin | NI164: Berlin | NY164: 750
MS165: Europa | MT165: Deutschland | MU165: Eschweiler | NI165: Berlin | NY165: 750
MS166: Europa | MT166: Deutschland | MU166: Görlitz | NI166: Berlin | NY166: 750
MS167: Europa | MT167: Deutschland | MU167: Hilden | NI167: Berlin | NY167: 750
MS168: Europa | MT168: Deutschland | MU168: Meerbusch | NI168: Berlin | NY168: 750
MS169: Europa | MT169: Deutschland | MU169: Waiblingen | NI169: Berlin | NY169: 750
MS170: Europa | MT170: Deutschland | MU170: Hattingen | NI170: Berlin | NY170: 750
MS171: Europa | MT171: Deutschland | MU171: Baden-Baden | NI171: Berlin | NY171: 750
MS172: Europa | MT172: Deutschland | MU172: Lingen | NI172: Berlin | NY172: 750
MS173: Europa | MT173: Deutschland | MU173: Pulheim | NI173: Berlin | NY173: 750
MS174: Europa | MT174: Deutschland | MU174: Bad Salzuflen | NI174: Berlin | NY174: 750
MS175: Europa | MT175: Deutschland | MU175: Bad Homburg vor der Höhe | NI175: Berlin | NY175: 750
MS176: Europa | MT176: Deutschland | MU176: Langenhagen | NI176: Berlin | NY176: 750
MS177: Europa | MT177: Deutschland | MU177: Menden | NI177: Berlin | NY177: 750
MS178: Europa | MT178: Deutschland | MU178: Nordhorn | NI178: Berlin | NY178: 750
MS179: Europa | MT179: Deutschland | MU179: Neustadt an der Weinstraße | NI179: Berlin | NY179: 750
MS180: Europa | MT180: Deutschland | MU180: Ahlen | NI180: Berlin | NY180: 750
MS181: Europa | MT181: Deutschland | MU181: Schweinfurt | NI181: Berlin | NY181: 750
MS182: Europa | MT182: Deutschland | MU182: Wolfenbüttel | NI182: Berlin | NY182: 750
MS183: Europa | MT183: Deutschland | MU183: Wetzlar | NI183: Berlin | NY183: 750
MS184: Europa | MT184: Deutschland | MU184: Frechen | NI184: Berlin | NY184: 750
MS185: Europa | MT185: Deutschland | MU185: Goslar | NI185: Berlin | NY185: 750
MS186: Europa | MT186: Deutschland | MU186: Ibbenbüren | NI186: Berlin | NY186: 750
MS187: Europa | MT187: Deutschland | MU187: Passau | NI187: Berlin | NY187: 750
MS188: Europa | MT188: Deutschland | MU188: Kleve | NI188: Berlin | NY188: 750
MS189: Europa | MT189: Deutschland | MU189: Willich | NI189: Berlin | NY189: 750
MS190: Europa | MT190: Deutschland | MU190: Speyer | NI190: Berlin | NY190: 750
MS191: Europa | MT191: Deutschland | MU191: Emden | NI191: Berlin | NY191: 750
MS192: Europa | MT192: Deutschland | MU192: Gummersbach | NI192: Berlin | NY192: 750
MS193: Europa | MT193: Deutschland | MU193: Ravensburg | NI193: Berlin | NY193: 750
MS194: Europa | MT194: Deutschland | MU194: Bad Kreuznach | NI194: Berlin | NY194: 750
MS195: Europa | MT195: Deutschland | MU195: Peine | NI195: Berlin | NY195: 750
MS196: Europa | MT196: Deutschland | MU196: Böblingen | NI196: Berlin | NY196: 750
MS197: Europa | MT197: Deutschland | MU197: Erftstadt | NI197: Berlin | NY197: 750
MS198: Europa | MT198: Deutschland | MU198: Elmshorn | NI198: Berlin | NY198: 750
MS199: Europa | MT199: Deutschland | MU199: Lörrach | NI199: Berlin | NY199: 750
MS200: Europa | MT200: Deutschland | MU200: Bad Oeynhausen | NI200: Berlin | NY200: 750
... 5417 more rows

Sheet Autosendingkonfig (hidden)

Sheet Account (hidden)
B1: Vorname | C1: Nachname | D1: Straße | E1: PLZ | F1: Ort | G1: Land | H1: E-Mail-Adresse | I1: Outlook | J1: Telephone
M4: TRUE
D5: Zahlungsart/ Paymentmethod | I5: Accountinformationen/ Zahlungsinformationen -aktualisieren- | K5: 1
D6: IBAN | E6: Vorname/ Prename | F6: Nachname/ Name | G6: Bankfiliale/ Bank branch (BIC) | M6: FALSE
A7: 1 | B7: Vorkasse/ Advanced Debit | I7: Freischaltaktivierung (E-Mail Service) | K7: 2 | M7: FALSE
D8: Kreditkartennummer/ Creditcardnumber | E8: Vorname/ Prename | F8: Nachname/ Name | G8: Ablaufdatum/ Expirationdate | H8: Prüfziffer/ Security Number | I8: Lizenzaktivierung (E-Mail Service) | K8: 3 | M8: FALSE
A9: 2 | B9: Kreditkarte/ Creditcard | M9: FALSE
A12: 3 | B12: Incoterms
A14: 4 | B14: SEPA-Mandat/mandate

Sheet Activation (hidden)
A1: 1
B3: Base Plan Aktivierung/ Activation | E3: Base Plan hochstufen/ upgrade | H3: Cybernetic Aktivierung/ Cybernetic Activation | K3: Cybernetic Hochstufen/ Cybernetic Upgrade | N3: New Business | P3: Installations | T3: Kaufen/ Buying
P4: ID. | Q4: Was/ What | R4: Classification | T4: Refresh | U4: Base Plans/ Cybernetics
P5: 1 | Q5: a | T5: ID. | U5: Product | V5: Price 1 | W5: Price 2 | X5: Price 3 | Y5: Download | Z5: What's new
B6: Base Plan pausieren/ pause Base Plan | E6: Base Plan herabstufen/ downgrade | H6: Cybernetic pausieren/ pause cybernetic Cybernetic Activation | K6: Cybernetic Herabstufen/ Cybernetic Downgrade | P6: 2 | Q6: b
P7: 3 | Q7: c
N8: Businesses | P8: 4 | Q8: d
B9: Base Plan reaktivieren/ reactivate | E9: Base Plan deaktivieren/ deactivate | H9: Cybernetic reaktivieren/ reactivate cybernetic Cybernetic Activation | K9: Cybernetic deaktivieren/ Cybernetic deactivate | P9: 5 | Q9: e
B13: CUG | C13: Login | D13: Discount Area | F13: Balance | G13: Affiliation | H13: Order | K13: Sychronisation Trade Base & CO | O13: Werben/ Affiliate
O14: TRUE
O15: d
B17: Protokoll/ Log: | N17: Refresh
B18: ID. | D18: License | F18: Produkt/ Product | H18: Preis/ Price | J18: Uhrzeit/ Time | L18: Status | N18: Activität/ Activity
B19: 1 | D19: 10B12B1 | F19: a | J19: 27.09.2019 | L19: Key-Account | N19: logged out

Sheet ISE-Login (hidden)
F8: Username: | G8: MAS
F10: Passwort:
G12: Login

Sheet Cybernetics (hidden)

Sheet Order (hidden)
A1: 8 | D1: Warenkorb/ Cart | N1: 64
N2: C:\Users\Marku\Desktop\Bäckerei Schmid & Restaurant.xlsm
B3: FALSE
B4: Selektion | C4: Id. | D4: Article/ Product | E4: Price | F4: Amount | G4: Price*Amount
B5: FALSE
B6: FALSE
B7: FALSE
B8: FALSE
B9: FALSE
B10: FALSE
B11: FALSE
B12: FALSE
B13: FALSE
B14: Select all | D14: Währung | I14: Rabattcodes/ Gutscheine:
I15: Input | K15: Status
C16: 3.00 € | E16: Mehrwertsteuer:
B17: FALSE | D17: 1,95 BGN /€ | E17: Netto-Gesamtbetrag:
D18: FALSE | E18: AGB's Rabatt:
I19: List: | J19: Code:
D22: Zahlungsmethode
D24: Paypal
D26: IBAN (Überweisung)
D28: IBAN (Lastschrift)
D30: Creditcard
D32: Crypto Currency
C34: FALSE | D34: Other
C36: TRUE | D36: E-Mail (empfohlen)

Sheet Pdf (hidden)
I3: World University of Science, Business and Technology
B4: Bestellung | G4: WUSBT | WASBT
G5: service@wusbt.net
H8: 2022-07-12
B11: Sehr geehrte Damen und Herren,
B12: To whom it may concern,
A14: ich würde gerne folgende Artikel bei Ihnen bestellen wollen und nehme eine Vorkassenzahlung in Kenntnis.
B15: I would very much like to order following articles and know about the prepayment method.
B18: Id. | C18: Article/ Product | D18: Price | F18: Amount | H18: Price*Amount
B36: Vielen Dank und mit freundlichen Grüßen,
B37: Sincerely,
B42: Affiliated to
B43: Service by PBC- Program Base Cybernetics

Sheet buy2wCyb (hidden)
A1: ID | B1: Cybernetic | C1: installationstart | D1: installationend | E1: Differenz | F1: Rest

Sheet VIP Area (hidden)
A1: Startlevel | B1: Student@PBC&CO | C1: Level | D1: PBC-VIP | E1: Level | F1: Special priviledged by PBC | G1: Level | M1: Abfrage
A2: 1 | B2: 3.70% | C2: 10 | D2: 3.70% | E2: 19 | F2: 3.70% | G2: 28 | J2: Your Picture | K2: Vip: | M2: Kontostand
A3: 2 | B3: 7.40% | C3: 11 | D3: 7.40% | E3: 20 | F3: 7.40% | G3: 29 | K3: Level: | M3: Balance:
A4: 3 | B4: 11.10% | C4: 12 | D4: 11.10% | E4: 21 | F4: 11.10% | G4: 30 | K4: Code: | M4: Rabattwert
A5: 4 | B5: 14.80% | C5: 13 | D5: 14.80% | E5: 22 | F5: 14.80% | G5: 31 | K5: Stars: | M5: Discountbalance:
A6: 5 | B6: 18.50% | C6: 14 | D6: 18.50% | E6: 23 | F6: 18.50% | G6: 32 | J6: You | K6: Points: | M6: Geworben
A7: 6 | B7: 22.20% | C7: 15 | D7: 22.20% | E7: 24 | F7: 22.20% | G7: 33 | M7: Affiliated:
A8: 7 | B8: 25.90% | C8: 16 | D8: 25.90% | E8: 25 | F8: 25.90% | G8: 34 | J8: Vip Download Area | M8: Empfohlen
A9: 8 | B9: 29.60% | C9: 17 | D9: 29.60% | E9: 26 | F9: 29.60% | G9: 35 | M9: Recommended:
A10: 9 | B10: 33.30% | C10: 18 | D10: 33.30% | E10: 27 | F10: 33.30% | G10: 36 | M10: PBC-Cash:
M11: Collected Vip-Points:
B12: StatusCode: | C12: 0 | D12: Discount: | E12: 0 | F12: %
B13: 11 | C13: 21 | D13: 32
B14: 7.40% | C14: 11.10% | D14: 18.50% | E14: =SUM(B14:D14) -> 37.00%
A16: Level | B16: VipPunkte/Points | C16: Role | E16: Features | H16: Procedure
A17: 1 | B17: 0 | C17: Beginner | E17: Auswahl/ Selection House of Program Excellence Zugang/ Access zu/ to PBC- Cybernet Programm Protection Data Protection Time Protection Functional Protection Process Protection Progress cover System Guard Security Service
A18: 2 | B18: 300 | E18: Vorherige Features/ Previous Features Login/ Registration Terminal Aktivierung/ Activation Systemsicherheit/ Systemsecurity Programm Protection Account Protection Login/ Logout Protection
A19: 3 | B19: 700 | E19: Vorherige Features/ Previous Features Unlock (Instructions) Unternehmens-/ Business Produkte/ Products Weitere/ Additional Produkte/ Products Currencychanger PBC-Cash Wallet Bestellungen/ Ordering
A20: 4 | B20: 1000 | E20: Vorherige Features/ Previous Features Autotimeout Account Protection Trade Base Statuscheck Cybernetic Statuscheck Freischalten/ Unlock
A21: 5 | B21: 1300 | E21: Vorherige Features/ Previous Features Account Manageability (Key/ Master, Sub) 2nd Level Produkte/ Products Sub-Terminal- Funktion/Ability Konfigurator/ Configurator Account Änderbarkeit/ Configurability Autosynchronisation Auto Update
A22: 6 | B22: 1700 | C22: Normal | E22: Vorherige Features/ Previous Features Lizensierung Outlooksynchronisation UpdateCheck Plans Cybernetics Business Products TradeBase
A23: 7 | B23: 2200 | E23: Vorherige Features/ Previous Features Affiliation-Track Control Terminal Auto VIP Initialisation
A24: 8 | B24: 2800 | E24: Vorherige Features/ Previous Features Werben/ Affiliation E-Mail- Affiliator (EMA) EMA-Autolist EMA-Search Bot EMA-Counter EMA-Sender EMA-Logger EMA-Blacklist EMA-Limiter EMA-Security List EMA-Add-List
A25: 9 | B25: 3700 | E25: Vorherige Features/ Previous Features Auto EMA-Analyser E-Mail Counter Clean Traffic Bot
A26: 10 | B26: 4800 | E26: Vorherige Features/ Previous Features Newsviewing Business Card View House of Excellence Konto/Account Geldbeutel/ Cashbeutel | H26: goto
A27: 11 | B27: 6300 | C27: Advanced | E27: Vorherige Features/ Previous Features Plan Base Balance Prices for Vip Points Boost Prices for PBC Cash Boost Prices for Plans Boost Prices for Levels Boost Prices for Vip Levels Boost Prices for Businesses Boost Prices for Products Boost Prices for Affiliation/ Trade Limits Boost
A28: 12 | B28: 8200 | E28: Vorherige Features/ Previous Features Cash-4-Quest-Unlock Daily Quests Normal Quests Earth-Quests Water-Quests Air-Quests Fire-Quests VIP-Quests
A29: 13 | B29: 10700 | E29: Vorherige Features/ Previous Features Special Service Function Upgrader Cybernetic Map Decoder
A30: 14 | B30: 13900 | E30: Vorherige Features/ Previous Features Synch- konfigurator/ configurator Zugänge / Access
A31: 15 | B31: 27200 | E31: Vorherige Features/ Previous Features White List Verification Centralized Special Business Products
A32: 16 | B32: 35400 | C32: Competent | E32: Vorherige Features/ Previous Features Discount Loader Auto Discount Loader Base Plan Balancer Direct Affiliation Money
A33: 17 | B33: 46000 | E33: Vorherige Features/ Previous Features Events Newcommers View Represent? New Business New Sychroniser
A34: 18 | B34: 59800 | E34: Vorherige Features/ Previous Features AutoHide Function Focus Following Youtube Replicator SM-Replicators English Translation Any Language Translation
A35: 19 | B35: 77800 | E35: Vorherige Features/ Previous Features Cybs Collector New Business (1NB/10PBCs) Price Updater Search Manual Elite Quests
A36: 20 | B36: 101200 | E36: Vorherige Features/ Previous Features Digital PDFs Bonus-daily 1-10 Autocollect Daily Discounts Autoload & save Discounts
A37: 21 | B37: 131500 | C37: Skilled | E37: Vorherige Features/ Previous Features Golden Business Ticket
A38: 22 | B38: 171000 | E38: Vorherige Features/ Previous Features Green Cybernetic Ticket
A39: 23 | B39: 222000 | E39: Vorherige Features/ Previous Features Business Service
A40: 24 | B40: 289000 | E40: Vorherige Features/ Previous Features Cybernetic Service
A41: 25 | B41: 375000 | E41: Vorherige Features/ Previous Features Production Level 1
A42: 26 | B42: 651000 | C42: Expert | E42: Vorherige Features/ Previous Features Werben/Affiliate Eigenes neues/ Own new Business
A43: 27 | B43: 846000 | E43: Vorherige Features/ Previous Features E-mail Readin codes
A44: 28 | B44: 1100000 | E44: Vorherige Features/ Previous Features Business Sale Zugang/ Access
A45: 29 | B45: 1431000 | E45: Vorherige Features/ Previous Features Special Request
A46: 30 | B46: 1860000 | E46: Vorherige Features/ Previous Features Automation Level 1
A47: 31 | B47: 2418000 | C47: Professional | E47: Locked by Special Service
A48: 32 | B48: 3930000
A49: 33 | B49: 5108000
A50: 34 | B50: 6641000
A51: 35 | B51: 11512000
A52: 36 | B52: 14965000 | C52: Tarned
A53: 37 | B53: 19455000 | C53: God Mode
C54: *PBC-ler

Sheet Discount Area (hidden)
N1: Gesamt/Total: | O1: €10.00 | T1: Synch 2 Trade Base | Z1: List: | AA1: Code:
B2: Discount Area | W2: reset | X2: Used Discountcodes:
B3: ID. | C3: Rabatt/ Discount Area | H3: Login Geschenke/ Gifts | L3: Vip Points | N3: Affiliation Geschenke/ Gifts
C4: Code | D4: Benefit | E4: Wert/ Value | F4: Status | G4: Gültig bis/ Expiration | H4: Code | I4: Benefit | J4: Wert/ Value | K4: Activ | L4: Update | M4: Upgrade | N4: Code | O4: Benefit | P4: Classification | Q4: Price | R4: Amount | S4: Wert/ Value | T4: Activ | V4: Rabatteingabe/ Discount Input Code:
A5: Profil | B5: 1 | K5: collect | M5: Buy | T5: collect | W5: Input | Y5: Status
V6: Load
V9: Load List | W9: List: | X9: Code:

Sheet Plan-Base-Balance (hidden)
B2: Base-Plan-Balance
B3: Activations: | H3: Price 1 | I3: Price2 | J3: Price 3 | L3: Plan | M3: Cybernetics | N3: ?s
B4: ID. | C4: Was/ What | D4: Classification | E4: Price/ Preis | F4: Status | G4: Gesamt/ Total:
B5: 1 | C5: a
B6: 2 | C6: b
B7: 3 | C7: c
B8: 4 | C8: d
B9: 5 | C9: e

Sheet E-Mail-Affiliation (hidden)
T1: Synch-TB
B2: E-Mail-Affiliation
B3: Private list | C3: Add | D3: Automated List | E3: Add | F3: Search | G3: Add | H3: Counter | J3: Sent: | K3: Add | L3: Money: | M3: Add | N3: Log | P3: Blacklist | Q3: Add | W3: List: | X3: Code:
T4: reset | U4: Used Discountcodes:
S6: Rabatteingabe/ Discount Input Code:
T7: Input | V7: Status
S8: Load
S11: Load List | T11: List: | U11: Code:

Sheet WhiteList (hidden)
B3: Account: | D3: Request | F3: Add
F5: Preis single Account

Sheet Datenuebertragung (hidden)

Sheet PKonfig (hidden)
B1: id | G1: aktabfr. | H1: wiederholung | I1: note | L1: ID | M1: aktabfr. | N1: wiederholung | O1: note | P1: Key
B2: Status
B3: Wiederholungen
B4: Note | F4: c-db
B5: Genutzte Zeit | F5: Load
B6: Verfügbare Zeit | F6: durchwürfeln
B7: Restzeit | E7: id
B8: Uhrzeit | E8: akey
B9: Datum | E9: Prüfung gen
B10: Studium | E10: Test gen
B11: Semester
B12: Prüfungstelle
B13: Kandidat
B14: link
B19: punktegesamt
B20: Punkte
B21: key
B22: Fach
B23: Abfragetyp
B24: idnr.
B25: Prüfungsid
B26: F-Id
B27: Frage
B28: Antwort1
B29: Antwort2
B30: Antwort3
B31: Antwort4
B32: Antwort5
B33: Antwort6
B34: Antwort7
B35: Antwort8
B36: Antwort9
B37: Antwort10
B38: Antwort11
B39: Antwort12
B40: ra1
B41: ra2
B42: ra3
B43: ra4
B44: ra5
B45: ra6
B46: ra7
B47: ra8
B48: ra9
B49: ra10
B50: ra11
B51: ra12
B52: 1
B53: 1
B54: aa3
B55: 1
B56: 1
B57: aa6
B58: aa7
B59: aa8
B60: aa9
B61: aa10
B62: aa11
B63: aa12
B64: 1
B65: ba2
B66: ba3
B67: 1
B68: 1
B69: ba6
B70: ba7
B71: ba8
B72: ba9
B73: ba10
B74: ba11
B75: ba12
B76: 76
B77: lA1
B78: lA2
B79: lA3
B80: lA4
B81: lA5
B82: lA6
B83: lA7
B84: lA8
B85: lA9
B86: lA10
B87: lA11
B88: lA12
B89: Punkte
W129: OAy5ßUDn5ntL4v2HLQDYAf7jöKdev,c"w

Sheet Inputlinks (hidden)
A2: 01_PBC-Links.xlsx | B2: tempbc_0000001_02032021_05002 (1) | C2: https://wasbt.com/.cm4all/uproc.php/0/DownloadSysPB/tempbc_0000001_02032021_05002%20(1).xlsx?cdp=a&_=17d7d5e4998
A3: 02_PBC-Files (Updates).xlsx | B3: tempbc_0000001_02032021_05002 (2) | C3: https://wasbt.com/.cm4all/uproc.php/0/DownloadSysPB/tempbc_0000001_02032021_05002%20(2).xlsx?cdp=a&_=17e35708690
A4: 03_PBC-A-Keys.xlsx | B4: tempbc_0000001_02032021_05002 (3) | C4: https://wasbt.com/.cm4all/uproc.php/0/DownloadSysPB/tempbc_0000001_02032021_05002%20(3).xlsx?cdp=a&_=17d76c26498
A5: 04_PBC-Cash.xlsx | B5: tempbc_0000001_02032021_05002 (4) | C5: https://wasbt.com/.cm4all/uproc.php/0/DownloadSysPB/tempbc_0000001_02032021_05002%20(4).xlsx?cdp=a&_=17da5744400
A6: 05_PBC-Plans.xlsx | B6: tempbc_0000001_02032021_05002 (5) | C6: https://wasbt.com/.cm4all/uproc.php/0/DownloadSysPB/tempbc_0000001_02032021_05002%20(5).xlsx
A7: 06_E-Mails.xlsx | B7: tempbc_0000001_02032021_05002 (6) | C7: https://wasbt.com/.cm4all/uproc.php/0/DownloadSysPB/tempbc_0000001_02032021_05002%20(6).xlsx
A8: 07_Blacklist.xlsx | B8: tempbc_0000001_02032021_05002 (7) | C8: https://wasbt.com/.cm4all/uproc.php/0/DownloadSysPB/tempbc_0000001_02032021_05002%20(7).xlsx
A9: 08_Whitelist.xlsx | B9: tempbc_0000001_02032021_05002 (8) | C9: https://wasbt.com/.cm4all/uproc.php/0/DownloadSysPB/tempbc_0000001_02032021_05002%20(8).xlsx
A10: 09_Businesslist.xlsx | B10: tempbc_0000001_02032021_05002 (9) | C10: https://wasbt.com/.cm4all/uproc.php/0/DownloadSysPB/tempbc_0000001_02032021_05002%20(9).xlsx
A11: 10_News.xlsx | B11: tempbc_0000001_02032021_05002 (10) | C11: https://wasbt.com/.cm4all/uproc.php/0/DownloadSysPB/tempbc_0000001_02032021_05002%20(10).xlsx
A12: 11_Werbung.xlsx | B12: tempbc_0000001_02032021_05002 (11) | C12: https://wasbt.com/.cm4all/uproc.php/0/DownloadSysPB/tempbc_0000001_02032021_05002%20(11).xlsx
A13: 12_Geschenke.xlsx | B13: tempbc_0000001_02032021_05002 (12) | C13: https://wasbt.com/.cm4all/uproc.php/0/DownloadSysPB/tempbc_0000001_02032021_05002%20(12).xlsx
A14: 13_Produktlist1.xlsx | B14: tempbc_0000001_02032021_05002 (13) | C14: https://wasbt.com/.cm4all/uproc.php/0/DownloadSysPB/tempbc_0000001_02032021_05002%20(13).xlsx
A15: 14_Produktlist2.xlsxa | B15: tempbc_0000001_02032021_05002 (14) | C15: https://wasbt.com/.cm4all/uproc.php/0/DownloadSysPB/tempbc_0000001_02032021_05002%20(14).xlsx
A16: 0_0_2_E-PBC-Main_Base.xlsm | B16: 0_0_2_E-PBC-Main_Base.xlsm | C16: https://wasbt.com/.cm4all/uproc.php/0/DownloadSysPB/0_0_2_E-PBC-Main_Base.xlsm
A17: 0_0_7_E-PBC-WUSBT-Base.xlsm | B17: 0_0_7_E-PBC-WUSBT-Base.xlsm | C17: https://wasbt.com/.cm4all/uproc.php/0/WUSBT%2B/Uploadstream/0_0_7_E-PBC-WUSBT-Base.xlsm?cdp=a&_=17e40e839a0
A18: 0_0_1_Cybernetics | B18: tempbc_0000015_02032021_05002 (1) | C18: https://wasbt.com/.cm4all/uproc.php/0/Downloads/Cyberbase/tempbc_0000015_02032021_05002%20(1).xlsx?cdp=a&_=17de8bd9b80

Sheet Preisgestaltung (hidden)
B1: How | H1: 1 | I1: Cybernetics | J1: Businessplanabfrage | K1: read in | L1: offers | M1: activation | N1: synchronisation | O1: Produktdetails | P1: Levels | Q1: Abfrage | U1: 1 | V1: 0 | W1: Free acceleration for 5mins | X1: Free acceleration for 5mins | Y1: 1 | Z1: 0 | AA1: 0 | AB1: 0 | AC1: 0 | AD1: 0 | AE1: 0 | AF1: 0
A2: ID | B2: Einzelpreis | C2: Produkte | D2: Dienstleistungen | E2: konkrete Entities | F2: Plan | G2: Update | H2: 2 | I2: business plan trigger | J2: save entry if fullfilled | K2: read in &save | W2: 1 daily Braveheart use | X2: 1 daily Braveheart use | Y2: 2 | Z2: 100 | AA2: =Z3/Z2 -> 3 | AB2: 100 | AC2: =ROUND(AB2,0) -> 100 | AD2: =AC2*6 -> 600 | AE2: =LEFT(AD2,LEN(AD2)-2)&"00" -> 600 | AF2: 600
C3: was | D3: eingabe oder nicht | E3: reaktion auf name | H3: 3 | I3: New Business | W3: 3 daily Elite Stage entries | X3: 3 daily Elite Stage entries | Y3: 3 | Z3: 300 | AA3: =Z4/Z3 -> 1.333333333 | AB3: =AB2*1.3 -> 130 | AC3: =ROUND(AB3,0) -> 130 | AD3: =AC3*6 -> 780 | AE3: =LEFT(AD3,LEN(AD3)-2)&"00" -> 700 | AF3: 700
C4: konkret | H4: 4 | I4: Vip Area | J4: Points | K4: Features | W4: Admin Quests increased to 5 | X4: Admin Quests increased to 5 | Y4: 4 | Z4: 400 | AA4: 2 | AB4: =AB3*1.3 -> 169 | AC4: =ROUND(AB4,0) -> 169 | AD4: =AC4*6 -> 1014 | AE4: 1000 | AF4: 1000
C5: implizit | H5: 5 | I5: Rabatt/ Discount Area | J5: code | K5: benefit | L5: wert | M5: status | N5: expiration | W5: Guild Quests increased to 5 | X5: Guild Quests increased to 5 | Y5: 5 | Z5: 800 | AA5: 2 | AB5: 219.7 | AC5: 220 | AD5: 1320 | AE5: 1300 | AF5: 1300
H6: 5 | I6: Login Geschenke | J6: code | W6: Open 1 VIP Quest Chests | X6: Open 1 VIP Quest Chests | Y6: 6 | Z6: 1600 | AA6: 2.5 | AB6: 285.61 | AC6: 286 | AD6: 1716 | AE6: 1700 | AF6: 1700
H7: 5 | I7: Vip points | J7: Update | Y7: 7 | Z7: 4000 | AA7: 2 | AB7: 371.293 | AC7: 371 | AD7: 2226 | AE7: 2200 | AF7: 2200
E8: Cybs | H8: 5 | I8: Affiliation Gifts | J8: Code | K8: benefit | L8: Classification | M8: Price | N8: Menge | O8: Wert | P8: Activ | U8: 2 | V8: 100 | W8: Free acceleration for 7mins | X8: Free acceleration for 7mins | Y8: 8 | Z8: 8000 | AA8: 2.5 | AB8: 482.6809 | AC8: 483 | AD8: 2898 | AE8: 2800 | AF8: 2800
B9: 0 | C9: Upgrade | D9: Shapes | E9: Business | F9: base plans ab boundary | G9: 1 | H9: 5 | I9: Rabatteingabe | J9: Load | K9: List | L9: reset | M9: codegen | N9: aktiv:1/0 | O9: übermitteln | P9: speichern (double use) | W9: 2 daily Braveheart uses | X9: 2 daily Braveheart uses | Y9: 9 | Z9: 20000 | AA9: 2.5 | AB9: 627.48517 | AC9: 627 | AD9: 3762 | AE9: 3700 | AF9: 3700
B10: 1 | C10: Features& Functions | D10: Schloss | E10: was | F10: cybernetics | G10: 2 | H10: 6 | I10: Businesses | W10: 4 daily Elite Stage entries | X10: 4 daily Elite Stage entries | Y10: 10 | Z10: 50000 | AA10: 1.8 | AB10: 815.730721 | AC10: 816 | AD10: 4896 | AE10: 4800 | AF10: 4800
B11: 2 | D11: Bonis | E11: prozessvorgehen | F11: cybernetics ab price | G11: 2 | H11: 6 | I11: Plan Base Balance | J11: Activations per account read | K11: from activated features (Schema: was: class: price: status: possibilities: | M11: Abfrage: features cybernetics, ects. | N11: Tab4 | O11: Tab5 | W11: Admin Quests increased to 6 | X11: Admin Quests increased to 6 | Y11: 11 | Z11: 90000 | AA11: 1.944444444 | AB11: 1060.449937 | AC11: 1060 | AD11: 6360 | AE11: 6300 | AF11: 6300
B12: 3 | C12: Vip | D12: Geschenke | E12: visualisierung | F12: products | G12: 3 | H12: 6 | I12: Log | S12: Affiliation Security List | W12: Guild Quests increased to 5 | X12: Player EXP Boost +5% | Y12: 12 | Z12: 175000 | AA12: 2 | AB12: 1378.584918 | AC12: 1379 | AD12: 8274 | AE12: 8200 | AF12: 8200
B13: 4 | C13: cybernetics | D13: PBC CC | E13: updates | F13: kaufangebote | G13: 4 | H13: 7 | I13: E-Mail Affiliation | J13: Private E-Adresses | K13: Automated input | M13: Search UF | N13: Counter | O13: Limiter | P13: Sent | Q13: Money | R13: Log | W13: Player EXP Boost +5% | X13: 3 Free acceleration for 9mins | Y13: 13 | Z13: 350000 | AA13: 2.085714286 | AB13: 1792.160394 | AC13: 1792 | AD13: 10752 | AE13: 10700 | AF13: 10700
B14: 5 | C14: levels | E14: Produktkategoriesierung | F14: Preisgestaltung | G14: 5 | W14: Open 1 VIP Quest Chests | X14: 3 daily Braveheart uses | Y14: 14 | Z14: 730000 | AA14: 2.054794521 | AB14: 2329.808512 | AC14: 2330 | AD14: 13980 | AE14: 13900 | AF14: 13900
B15: 6 | C15: Business Plans | E15: Art | F15: Plan Base Balance | G15: 6 | X15: 5 daily Elite Stage entries | Y15: 15 | Z15: 1500000 | AA15: 0.4964915751 | AB15: 3028.751066 | AC15: 3029 | AD15: =AC15*9 -> 27261 | AE15: 27200 | AF15: 27200
B16: 7 | C16: Benefits | E16: flexibel | F16: rabatt/discount | G16: 7 | U16: 3 | V16: 300 | W16: 3 Free acceleration for 9mins | X16: Guild Quests increased to 6 | Y16: 16 | Z16: 744737 | AA16: =Z17/Z16 -> 1.09586151 | AB16: 3937.376386 | AC16: 3937 | AD16: =AC16*9 -> 35433 | AE16: 35400 | AF16: 35400
B17: 8 | C17: PBC Cash | E17: physical | F17: Vip Points | G17: 8 | W17: 3 daily Braveheart uses | X17: Player EXP Boost +7% | Y17: 17 | Z17: 816129 | AA17: 1.087475935 | AB17: 5118.589301 | AC17: 5119 | AD17: 46071 | AE17: 46000 | AF17: 46000
B18: 9 | C18: Zugänge | E18: immaterial | F18: base update | G18: 9 | W18: 5 daily Elite Stage entries | X18: All Resources Production +3% | Y18: 18 | Z18: 887521 | AA18: 1.080439421 | AB18: 6654.166092 | AC18: 6654 | AD18: 59886 | AE18: 59800 | AF18: 59800
B19: 10 | C19: Points | E19: downloadable | F19: base und cybernetic update free | G19: 9 | W19: Admin Quests increased to 6 | X19: Free acceleration for 11mins | Y19: 19 | Z19: 958912 | AA19: 1.074450654 | AB19: 8650.415919 | AC19: 8650 | AD19: 77850 | AE19: 77800 | AF19: 77800
B20: 11 | C20: Businesses | E20: dynamic | F20: Upgrade& Update procedure | G20: 9 | W20: Guild Quests increased to 6 | X20: 4 daily Braveheart uses | Y20: 20 | Z20: 1030304 | AA20: 1.069291832 | AB20: 11245.5407 | AC20: 11246 | AD20: 101214 | AE20: 101200 | AF20: 101200
B21: 12 | C21: activation | E21: static | F21: emailaffiliation | G21: 10 | W21: Player EXP Boost +7% | X21: 7 daily Elite Stage entries | Y21: 21 | Z21: 1101696 | AA21: 1.06480161 | AB21: 14619.2029 | AC21: 14619 | AD21: 131571 | AE21: 131500 | AF21: 131500
B22: 13 | C22: Role (Idea Event, New Comers Event, Boosts %) | E22: strategisch | F22: activation read classification | G22: 11 | W22: All Resources Production +3% | X22: Player EXP Boost +10% | Y22: 22 | Z22: 1173087 | AA22: 1.060857918 | AB22: 19004.96377 | AC22: 19005 | AD22: 171045 | AE22: 171000 | AF22: 171000
E23: taktisch | F23: activation | G23: 11 | W23: Open 1 VIP Quest Chests | X23: All Resources Production +4% | Y23: 23 | Z23: 1244479 | AA23: 1.0573667 | AB23: 24706.45291 | AC23: 24706 | AD23: 222354 | AE23: =LEFT(AD23,LEN(AD23)-3)&"000" -> 222000 | AF23: 222000
E24: operativ | F24: kaufen (delivered) | G24: 12 | X24: Travel Speed +5% | Y24: 24 | Z24: 1315871 | AA24: 1.05425431 | AB24: 32118.38878 | AC24: 32118 | AD24: 289062 | AE24: =LEFT(AD24,LEN(AD24)-3)&"000" -> 289000 | AF24: 289000
E25: effektiv | F25: login Geschenke | G25: 13 | U25: 4 | V25: 400 | W25: Free acceleration for 11mins | X25: Open 2 VIP Quest Chests | Y25: 25 | Z25: 1387262 | AA25: 1.05146226 | AB25: 41753.90541 | AC25: 41754 | AD25: 375786 | AE25: 375000 | AF25: 375000
E26: effizient | F26: Affiliation Geschenke/Benefits | G26: 13 | W26: 4 daily Braveheart uses | X26: Free acceleration for 13mins | Y26: 26 | Z26: 1458654 | AA26: 1.048943516 | AB26: 54280.07704 | AC26: 54280 | AD26: =AC26*12 -> 651360 | AE26: 651000 | AF26: 651000
E27: erneuerbar | F27: protokoll per log | G27: 14 | W27: 7 daily Elite Stage entries | X27: 5 daily Braveheart uses | Y27: 27 | Z27: 1530045 | AA27: 1.046659821 | AB27: 70564.10015 | AC27: 70564 | AD27: 846768 | AE27: 846000 | AF27: 846000
F28: whitelist | G28: 15 | W28: Admin Quests increased to 6 | X28: 9 daily Elite Stage entries | Y28: 28 | Z28: 1601437 | AA28: =Z29/Z28 -> 1.044579738 | AB28: 91733.33019 | AC28: 91733 | AD28: 1100796 | AE28: 1100000 | AF28: 1100000
W29: Guild Quests increased to 6 | X29: Admin Quests increased to 7 | Y29: 29 | Z29: 1672829 | AA29: 1.0426772 | AB29: 119253.3293 | AC29: 119253 | AD29: 1431036 | AE29: 1431000 | AF29: 1431000
W30: Player EXP Boost +10% | X30: Player EXP Boost +14% | Y30: 30 | Z30: 1744220 | AA30: 1.040930405 | AB30: 155029.328 | AC30: 155029 | AD30: 1860348 | AE30: 1860000 | AF30: 1860000
C31: cyb | D31: neues update-> | E31: sale lvls | F31: sale features | G31: points | W31: All Resources Production +4% | X31: All Resources Production +5% | Y31: 31 | Z31: 1815612 | AA31: 1.039320981 | AB31: 201538.1264 | AC31: 201538 | AD31: 2418456 | AE31: 2418000 | AF31: 2418000
D32: aktualisiere cybernetic | W32: Travel Speed +5% | X32: Free acceleration for 15mins | Y32: 32 | Z32: 1887004 | AA32: 1.037833337 | AB32: 261999.5644 | AC32: 262000 | AD32: =AC32*15 -> 3930000 | AE32: 3930000 | AF32: 3930000
D33: specific download | W33: Open 2 VIP Quest Chests | X33: 6 daily Braveheart uses | Y33: 33 | Z33: 1958395 | AA33: 1.036454155 | AB33: 340599.4337 | AC33: 340599 | AD33: =AC33*15 -> 5108985 | AE33: 5108000 | AF33: 5108000
D34: visualizer in tradebase | X34: 11 daily Elite Stage entries | Y34: 34 | Z34: 2029787 | AA34: 1.03517199 | AB34: 442779.2638 | AC34: 442779 | AD34: =AC34*15 -> 6641685 | AE34: 6641000 | AF34: 6641000
C35: kauf | D35: akey | E35: lvlpermissions(cyb) | F35: pointpermission(vip points auto) | U35: 5 | V35: 800 | W35: Free acceleration for 13mins | X35: Player EXP Boost +20% | Y35: 35 | Z35: 2101179 | AA35: 1.033976953 | AB35: 575613.0429 | AC35: 575613 | AD35: =AC35*20 -> 11512260 | AE35: 11512000 | AF35: 11512000
D36: abfrage | E36: readin lvlpermissions (upgrades)->freischalten | F36: reactonlvlpermission(Triggers4Features=1) | W36: 5 daily Braveheart uses | X36: All Resources Production +6% | Y36: 36 | Z36: 2172570 | AA36: 1.032860454 | AB36: 748296.9558 | AC36: 748297 | AD36: =AC36*20 -> 14965940 | AE36: 14965000 | AF36: 14965000
C37: Collect New Permissions | W37: 9 daily Elite Stage entries | X37: Auto Battle for Hero Stages | Y37: 37 | Z37: 2243962 | AA37: 0 | AB37: 972786.0425 | AC37: 972786 | AD37: =AC37*20 -> 19455720 | AE37: 19455000 | AF37: 19455000
W38: Admin Quests increased to 7 | X38: Open 3 VIP Quest Chests
C39: Cybs details->Up/Downgrade | W39: Guild Quests increased to 6 | X39: Free acceleration for 18mins
C40: events (generating prices for aiding pbc business) | W40: Player EXP Boost +14% | X40: 7 daily Bravehearts uses
C41: 7 Tage Ziel | D41: Börsenspiel | E41: Finish Main Process | W41: All Resources Production +5% | X41: 14 daily Elite Stage entries
W42: Travel Speed +5% | X42: Guild Quests increased to 7
W43: Open 2 VIP Quest Chests | X43: Player EXP Boost +28%
X44: All Resources Production +7%
U45: 6 | V45: 1600 | W45: Free acceleration for 15mins | X45: Auto Complete Admin Quests
W46: 6 daily Braveheart uses | X46: Free acceleration for 21mins
W47: 11 daily Elite Stage entries | X47: 8 daily Braveheart uses
W48: Admin Quests increased to 7 | X48: 17 daily Elite Stage entries
W49: Guild Quests increased to 6 | X49: Admin Quests increased to 8
W50: Player EXP Boost +20% | X50: Player EXP Boost +38%
W51: All Resources Production +6% | X51: All Resources Production +8%
W52: Travel Speed +5% | X52: Auto Complete Guild Quests
W53: Auto Battle for Hero Stages | X53: Free acceleration for 24mins
W54: Open 3 VIP Quest Chests | X54: 9 daily Braveheart uses
X55: 20 daily Elite Stage entries
U56: 7 | V56: 4000 | W56: Free acceleration for 18mins | X56: Player EXP Boost +50%
W57: 7 daily Bravehearts uses | X57: All Resources Production +9%
W58: 14 daily Elite Stage entries | X58: Travel Speed +7%
W59: Admin Quests increased to 7 | X59: Army ATK +5%
W60: Guild Quests increased to 7 | X60: Open 4 VIP Quest Chests
W61: Player EXP Boost +28% | X61: Free acceleration for 27mins
W62: All Resources Production +7% | X62: 10 daily Braveheart uses
W63: Travel Speed +5% | X63: 24 daily Elite Stage entries
W64: Auto Battle for Hero Stages | X64: All Resources Production +10%
W65: Auto Complete Admin Quests | X65: Army ATK +5%, Army DEF +5%
W66: Open 3 VIP Quest Chests | X66: Free acceleration for 30mins
X67: 11 daily Braveheart uses
U68: 8 | V68: 8000 | W68: Free acceleration for 21mins | X68: 28 daily Elite Stage entries
W69: 8 daily Braveheart uses | X69: Admin Quests increased to 9
W70: 17 daily Elite Stage entries | X70: Guild Quests increased to 8
W71: Admin Quests increased to 8 | X71: All Resources Production +11%
W72: Guild Quests increased to 7 | X72: Army DEF +5%
W73: Player EXP Boost +38% | X73: Army Max HP +5%
W74: All Resources Production +8% | X74: Free acceleration for 35mins
W75: Travel Speed +5% | X75: 12 daily Braveheart uses
W76: Auto Battle for Hero Stages | X76: 32 daily Elite Stage entries
W77: Auto Complete Admin Quests | X77: All Resources Production +12%
W78: Auto Complete Guild Quests | X78: Forging Speed +5%
W79: Open 3 VIP Quest Chests | X79: Open all Guild Gifts
X80: Open 5 VIP Quest Chests
U81: 9 | V81: 20000 | W81: Free acceleration for 24mins | X81: Free acceleration for 40mins
W82: 9 daily Braveheart uses | X82: 13 daily Braveheart uses
W83: 20 daily Elite Stage entries | X83: Unlimited daily Elite Stage entries
W84: Admin Quests increased to 8 | X84: All Resources Production +14%
W85: Guild Quests increased to 7 | X85: Free acceleration for 45mins
W86: Player EXP Boost +50% | X86: Unlimited daily Bravehearts uses
W87: All Resources Production +9% | X87: Admin Quests increased to 10
W88: Travel Speed +7% | X88: All Resources Production +16%
W89: Auto Battle for Hero Stages | X89: Free acceleration for 60mins
W90: Auto Complete Admin Quests | X90: Guild Quests increased to 9
W91: Auto Complete Guild Quests | X91: All Resources Production +25%
W92: Army ATK +5% | X92: Travel Speed +10%
W93: Open 4 VIP Quest Chests | X93: Army ATK +15%
X94: Army DEF +10%
U95: 10 | V95: 50000 | W95: Free acceleration for 27mins | X95: Army Max HP +10%
W96: 10 daily Braveheart uses | X96: Forging Speed +10%
W97: 24 daily Elite Stage entries | X97: Open 6 VIP Quest Chests
W98: Admin Quests increased to 8
W99: Guild Quests increased to 7
W100: Player EXP Boost +50%
W101: All Resources Production +10%
W102: Travel Speed +7%
W103: Auto Battle for Hero Stages
W104: Auto Complete Admin Quests
W105: Auto Complete Guild Quests
W106: Army ATK +5%, Army DEF +5%
W107: Open 4 VIP Quest Chests
U109: 11 | V109: 90000 | W109: Free acceleration for 30mins
W110: 11 daily Braveheart uses
W111: 28 daily Elite Stage entries
W112: Admin Quests increased to 9
W113: Guild Quests increased to 8
W114: Player EXP Boost +50%
W115: All Resources Production +11%
W116: Travel Speed +7%
W117: Auto Battle for Hero Stages
W118: Auto Complete Admin Quests
W119: Auto Complete Guild Quests
W120: Army ATK +5%
W121: Army DEF +5%
W122: Army Max HP +5%
W123: Open 4 VIP Quest Chests
U125: 12 | V125: 175000 | W125: Free acceleration for 35mins
W126: 12 daily Braveheart uses
W127: 32 daily Elite Stage entries
W128: Admin Quests increased to 9
W129: Guild Quests increased to 8
W130: Player EXP Boost +50%
W131: All Resources Production +12%
W132: Travel Speed +7%
W133: Auto Battle for Hero Stages
W134: Auto Complete Admin Quests
W135: Auto Complete Guild Quests
W136: Army ATK +5%
W137: Army DEF +5%
W138: Army Max HP +5%
W139: Forging Speed +5%
W140: Open all Guild Gifts
W141: Open 5 VIP Quest Chests
U143: 13 | V143: 350000 | W143: Free acceleration for 40mins
W144: 13 daily Braveheart uses
W145: Unlimited daily Elite Stage entries
W146: Admin Quests increased to 9
W147: Guild Quests increased to 8
W148: Player EXP Boost +50%
W149: All Resources Production +14%
W150: Travel Speed +7%
W151: Auto Battle for Hero Stages
W152: Auto Complete Admin Quests
W153: Auto Complete Guild Quests
W154: Army ATK +5%
W155: Army DEF +5%
W156: Army Max HP +5%
W157: Forging Speed +5%
W158: Open all Guild Gifts
W159: Open 5 VIP Quest Chests
U161: 14 | V161: 730000 | W161: Free acceleration for 45mins
W162: Unlimited daily Bravehearts uses
W163: Unlimited daily Elite Stage entries
W164: Admin Quests increased to 10
W165: Guild Quests increased to 8
W166: Player EXP Boost +50%
W167: All Resources Production +16%
W168: Travel Speed +7%
W169: Auto Battle for Hero Stages
W170: Auto Complete Admin Quests
W171: Auto Complete Guild Quests
W172: Army ATK +5%
W173: Army DEF +5%
W174: Army Max HP +5%
W175: Forging Speed +5%
W176: Open all Guild Gifts
W177: Open 5 VIP Quest Chests
U179: 15 | V179: 1,500,000 | W179: Free acceleration for 60mins
W180: Unlimited daily Bravehearts uses
W181: Unlimited daily Elite Stage entries
W182: Admin Quests increased to 10
W183: Guild Quests increased to 9
W184: Player EXP Boost +50%
W185: All Resources Production +25%
W186: Travel Speed +10%
W187: Auto Battle for Hero Stages
W188: Auto Complete Admin Quests
W189: Auto Complete Guild Quests
W190: Army ATK +15%
W191: Army DEF +10%
W192: Army Max HP +10%
W193: Forging Speed +10%
W194: Open all Guild Gifts
W195: Open 6 VIP Quest Chests

Sheet Updatelist (hidden)
A1: a | B1: a | C1: a | D1: a | F1: a | G1: a | H1: a | I1: a | J1: a | K1: a | L1: a | M1: a | N1: a | O1: a | P1: a | Q1: a | R1: a

Sheet ldb (hidden)
A1: ID. | B1: License-Key | C1: Activation-Key | D1: User_name | E1: Passwort | F1: License-Key | G1: CPU | H1: Prozessor | I1: frequenz | J1: p-id | K1: Computername | L1: Operating System | M1: ProzessorKey | N1: AffiliationKey | O1: Pause-Key | P1: ReactivationKey | Q1: DeactivationKey | R1: Product | S1: Activity | T1: Status | U1: LicensedDateSendtimer | V1: ActivationDate | W1: StartDate | X1: EndDate | Y1: 22 | Z1: DateDiff | AA1: Anzahl_User | AB1: Anzahl_pcs | AC1: Counter_User | AD1: Counter_Pcs | AE1: StatusUser | AF1: ID.Customer | AG1: Vorname/ Prename | AH1: Nachname/Name | AI1: Straße/Street | AJ1: PLZ/ZIP | AK1: Ort/Place | AL1: Land/land | AM1: Telephone | AN1: Outlook | AO1: Vorkasse/ Advanced Debit | AP1: Kreditkarte/ Creditcard | AQ1: IBAN | AR1: Vorname/ Prename | AS1: Nachname/ Name | AT1: Bankfiliale/ Bank branch BIC | AU1: Kreditkartennummer/ Creditcardnumber | AV1: Vorname/ Prename | AW1: Nachname/ Name | AX1: Ablaufdatum/ Expirationdate | AY1: Prüfziffer/ Security Number | AZ1: Incoterms | BA1: SEPA-Mandat/mandate | BB1: TradeBase | BC1: ActivationDate | BD1: Differenz | BE1: TBLink | BF1: Synchronisiert | BG1: S-Date | BH1: S-Date-Differenz | BI1: Shortcutstatus | BJ1: Shortcutpath | BK1: Autogrow | BL1: Autogrowpath | BM1: Timeout | BN1: PBCPath | BO1: ShortcutPath | BP1: PBCPATHon | BQ1: ShortCutPathon | BR1: AutogrowOn | BS1: AutoSynchOn | BT1: AutoUpdateOn | BU1: AutoUpgradeOn | BV1: closetbaftersynchronisationon | BW1: closetbaftersynchronisationdate | BX1: PBCPathDate | BY1: ShortcutPathDate | BZ1: PBCPATHonDate | CA1: ShortCutPathonDate | CB1: AutogrowOnDate | CC1: AutoSynchOnDate | CD1: AutoUpdateOnDate | CE1: AutoUpgradeOnDate | CF1: lkeydate | CG1: akeydate | CH1: affkeydate | CI1: reactivdate | CJ1: deactivdate | CK1: productdownloaddate | CL1: pausedate | CM1: reactivationdate | CN1: freischaltdate | CO1: tbdate | CP1: synchronisationdate | CQ1: autogrowdate | CR1: autosynchdate | CS1: sperredate | CT1: shortcutdate | CU1: speicherortdate | CV1: plandate | CW1: featuredate | CX1: newbusinessdate | CY1: functiondate | CZ1: cyberneticdate | DA1: orderdate | DB1: logindate | DC1: whitelistgrad | DD1: whitelistdate | DE1: blacklistgrad | DF1: blacklistdate | DG1: timeoutdate | DH1: VipStatus1 | DI1: VS1Date | DJ1: VipStatus2 | DK1: VS2Date | DL1: VipStatus3 | DM1: VS3Date | DN1: feature1 | DO1: feature2 | DP1: feature3 | DQ1: feature4 | DR1: feature5 | DS1: feature6 | DT1: feature7 | DU1: feature8 | DV1: feature9 | DW1: feature10 | DX1: feature11 | DY1: feature12 | DZ1: feature13 | EA1: feature14 | EB1: feature15 | EC1: feature16 | ED1: feature17 | EE1: feature18 | EF1: feature19 | EG1: feature20 | EH1: feature21 | EI1: feature22 | EJ1: feature23 | EK1: feature24 | EL1: feature25 | EM1: feature26 | EN1: feature27 | EO1: feature28 | EP1: feature29 | EQ1: feature30 | ER1: feature31 | ES1: feature32 | ET1: feature33 | EU1: feature34 | EV1: newbusiness1 | EW1: newbusiness2 | EX1: newbusiness3 | EY1: newbusiness4 | EZ1: newbusiness5 | FA1: newbusiness6 | FB1: newbusiness7 | FC1: newbusiness8 | FD1: newbusiness9 | FE1: newbusiness10 | FF1: newbusiness11 | FG1: newbusiness12 | FH1: newbusiness13 | FI1: newbusiness14 | FJ1: newbusiness15 | FK1: newbusiness16 | FL1: newbusiness17 | FM1: newbusiness18 | FN1: newbusiness19 | FO1: newbusiness20 | FP1: newbusiness21 | FQ1: newbusiness22 | FR1: newbusiness23 | FS1: newbusiness24 | FT1: newbusiness25 | FU1: function1 | FV1: function2 | FW1: function3 | FX1: function4 | FY1: function5 | FZ1: function6 | GA1: function7 | GB1: function8 | GC1: function9 | GD1: function10 | GE1: function11 | GF1: function12 | GG1: function13 | GH1: function14 | GI1: function15 | GJ1: function16 | GK1: function17 | GL1: function18 | GM1: function19 | GN1: function20 | GO1: function21 | GP1: function22 | GQ1: function23 | GR1: function24 | GS1: cyber1 | GT1: cyber2 | GU1: cyber3 | GV1: cyber4 | GW1: cyber5 | GX1: cyber6 | GY1: cyber7 | GZ1: cyber8 | HA1: cyber9 | HB1: cyber10 | HC1: cyber11 | HD1: cyber12 | HE1: cyber13

Sheet Update (hidden)
G1: Artikel/Produkt | H1: Bestand/Stock | I1: Info | J1: Link | M1: Laden/Load

Sheet Ordner (hidden)
T2: C:\Users\Marku\Desktop\01_PBC\E-AI-Base_Trade\0_0_1_E-AI-Base_Trade.xlsm | U2: 0_0_1_E-AI-Base_Trade.xlsm
T3: C:\Users\Marku\Desktop\01_PBC\E-BOOKS-Base_Trade\0_0_1_E-BOOKS-Base_Trade.xlsm | U3: 0_0_1_E-BOOKS-Base_Trade.xlsm
T4: C:\Users\Marku\Desktop\01_PBC\E-BUSINESS-Base_Trade\0_0_1_E-BUSINESS-Base_Trade.xlsm | U4: 0_0_1_E-BUSINESS-Base_Trade.xlsm
T5: C:\Users\Marku\Desktop\01_PBC\E-BUY-Base_Trade\0_0_1_E-BUY-Base_Trade.xlsm | U5: 0_0_1_E-BUY-Base_Trade.xlsm
T6: C:\Users\Marku\Desktop\01_PBC\E-CARRIER-Base_Trade\0_0_1_E-CARRIER-Base_Trade.xlsm | U6: 0_0_1_E-CARRIER-Base_Trade.xlsm
T7: C:\Users\Marku\Desktop\01_PBC\E-DEVELOPMENT-Base_Trade\0_0_1_E-DEVELOPMENT-Base_Trade.xlsm | U7: 0_0_1_E-DEVELOPMENT-Base_Trade.xlsm
T8: C:\Users\Marku\Desktop\01_PBC\E-ENTERTAINMENT-Base_Trade\0_0_1_E-ENTERTAINMENT-Base_Trade.xlsm | U8: 0_0_1_E-ENTERTAINMENT-Base_Trade.xlsm
T9: C:\Users\Marku\Desktop\01_PBC\E-EXTRACTOR-Base_Trade\0_0_1_E-EXTRACTOR-Base_Trade.xlsm | U9: 0_0_1_E-EXTRACTOR-Base_Trade.xlsm
T10: C:\Users\Marku\Desktop\01_PBC\E-FRIENDS-Base_Trade\0_0_1_E-FRIENDS-Base_Trade.xlsm | U10: 0_0_1_E-FRIENDS-Base_Trade.xlsm
T11: C:\Users\Marku\Desktop\01_PBC\E-GEOLOCATOR-Base_Trade\0_0_1_E-GEOLOCATOR-Base_Trade.xlsm | U11: 0_0_1_E-GEOLOCATOR-Base_Trade.xlsm
T12: C:\Users\Marku\Desktop\01_PBC\E-HRM-Base_Trade\0_0_1_E-HRM-Base_Trade.xlsm | U12: 0_0_1_E-HRM-Base_Trade.xlsm
T13: C:\Users\Marku\Desktop\01_PBC\E-LANGUAGE-Base_Trade\0_0_1_E-LANGUAGE-Base_Trade.xlsm | U13: 0_0_1_E-LANGUAGE-Base_Trade.xlsm
T14: C:\Users\Marku\Desktop\01_PBC\E-MANAGEMENT-Base_Trade\0_0_1_E-MANAGEMENT-Base_Trade.xlsm | U14: 0_0_1_E-MANAGEMENT-Base_Trade.xlsm
T15: C:\Users\Marku\Desktop\01_PBC\E-MARKETING-Base_Trade\0_0_1_E-MARKETING-Base_Trade.xlsm | U15: 0_0_1_E-MARKETING-Base_Trade.xlsm
T16: C:\Users\Marku\Desktop\01_PBC\E-PBC-Base_Trade\0_0_1_E-PBC-Trade_Base.xlsm | U16: 0_0_1_E-PBC-Trade_Base.xlsm
T17: C:\Users\Marku\Desktop\01_PBC\E-PLS-Base_Trade\0_0_1_E-PLS-Base_Trade.xlsm | U17: 0_0_1_E-PLS-Base_Trade.xlsm
T18: C:\Users\Marku\Desktop\01_PBC\E-PM-Base_Trade\0_0_1_E-PM-Base_Trade.xlsm | U18: 0_0_1_E-PM-Base_Trade.xlsm
T19: C:\Users\Marku\Desktop\01_PBC\E-PRODUCTION-Base_Trade\0_0_1_E-PRODUCTION-Base_Trade.xlsm | U19: 0_0_1_E-PRODUCTION-Base_Trade.xlsm
T20: C:\Users\Marku\Desktop\01_PBC\E-PROMOTION-Base_Trade\0_0_1_E-PROMOTION-Base_Trade.xlsm | U20: 0_0_1_E-PROMOTION-Base_Trade.xlsm
T21: C:\Users\Marku\Desktop\01_PBC\E-RESEARCH-Base_Trade\0_0_1_E-RESEARCH-Base_Trade.xlsm | U21: 0_0_1_E-RESEARCH-Base_Trade.xlsm
T22: C:\Users\Marku\Desktop\01_PBC\E-SALE-Base_Trade\0_0_1_E-SALE-Base_Trade.xlsm | U22: 0_0_1_E-SALE-Base_Trade.xlsm
T23: C:\Users\Marku\Desktop\01_PBC\E-SEX-Base_Trade\0_0_1_E-SEX-Base_Trade.xlsm | U23: 0_0_1_E-SEX-Base_Trade.xlsm
T24: C:\Users\Marku\Desktop\01_PBC\E-SYSTEM-Base_Trade\0_0_1_E-SYSTEM-Base_Trade.xlsm | U24: 0_0_1_E-SYSTEM-Base_Trade.xlsm
T25: C:\Users\Marku\Desktop\01_PBC\E-TIME-Base_Trade\0_0_1_E-TIME-Base_Trade.xlsm | U25: 0_0_1_E-TIME-Base_Trade.xlsm
T26: C:\Users\Marku\Desktop\01_PBC\E-WUSBT-Base_Trade\0_0_1_E-WUSBT-Base_Trade.xlsm | U26: 0_0_1_E-WUSBT-Base_Trade.xlsm

Sheet SCConfig (hidden)
A1: 'pbcpathon | B1: 1 | C1: E-PBC-WUSBT-Base | E1: https://wasbt.com/.cm4all/uproc.php/0/DownloadSysPB/0_0_2_E-PBC-Main_Base.xlsm
A2: 'shortcutpathundon
A3: 'autgrowon
A4: 'autosynch
A5: 'autoupdate
A6: 'autoupgrade
A7: 'closembaftersynch
A8: 'Hintdeactivation
A9: SourceUrl

Sheet Tabelle3 (hidden)
A1: Column1 | B1: Column2 | C1: Column3 | D1: Column4 | E1: Column5 | F1: Column6 | G1: Column7 | H1: Column8
A2: Idw | B2: Währung | C2: Details | D2: Zeichen | E2: Kurs | F2: 1 | G2: 2 | H2: 6
A3: 1 | B3: Dollar | C3: Australien | D3: AUD | E3: 1.636 | F3: 1.636 | G3: 2 | H3: 1.63 | J3: AUD | K3: Australien
A4: 2 | B4: Real | C4: Brasilien | D4: BRL | E4: 6.0839 | F4: 6.0839 | G4: 2 | H4: 6.08 | J4: BRL | K4: Brasilien
A5: 3 | B5: Lew | C5: Bulgarien | D5: BGN | E5: 1.9558 | F5: 1.9558 | G5: 2 | H5: 1.95 | J5: BGN | K5: Bulgarien
A6: 4 | B6: Yuan | C6: China | D6: CNY | E6: 7.9975 | F6: 7.9975 | G6: 2 | H6: 7.99 | J6: CNY | K6: China
A7: 5 | B7: Krone | C7: Dänemark | D7: DKK | E7: 7.4453 | F7: 7.4453 | G7: 2 | H7: 7.44 | J7: DKK | K7: Dänemark
A8: 6 | B8: Pfund | C8: Großbritannien | D8: GBP | E8: 0.9108 | F8: 0.9108 | G8: 2 | H8: 0.91 | J8: GBP | K8: Großbritannien
A9: 7 | B9: Dollar | C9: Hongkong | D9: HKD | E9: 8.8617 | F9: 8.8617 | G9: 2 | H9: 8.86 | J9: HKD | K9: Hongkong
A10: 8 | B10: Rupie | C10: Indien | D10: INR | E10: 85.67 | F10: 85.677 | G10: 3 | H10: 85.67 | J10: INR | K10: Indien
A11: 9 | B11: Rupiah | C11: Indonesien | D11: IDR | E11: 16793.45 | F11: 16793.45 | G11: 6 | H11: 16793.45 | J11: IDR | K11: Indonesien
A12: 10 | B12: Schekel | C12: Israel | D12: ILS | E12: 3.9253 | F12: 3.925345 | G12: 2 | H12: 3.92 | J12: ILS | K12: Israel
A13: 11 | B13: Yen | C13: Japan | D13: JPY | E13: 122.53 | F13: 122.5345 | G13: 4 | H13: 122.53 | J13: JPY | K13: Japan
A14: 12 | B14: Dollar | C14: Kanada | D14: CAD | E14: 1.551 | F14: 1.551345 | G14: 2 | H14: 1.55 | J14: CAD | K14: Kanada
A15: 13 | B15: Kuna | C15: Kroatien | D15: HRK | E15: 7.538 | F15: 7.538345 | G15: 2 | H15: 7.53 | J15: HRK | K15: Kroatien
A16: 14 | B16: Ringgit | C16: Malaysia | D16: MYR | E16: 4.8723 | F16: 4.872345 | G16: 2 | H16: 4.87 | J16: MYR | K16: Malaysia
A17: 15 | B17: Peso | C17: Mexiko | D17: MXN | E17: 25.6132 | F17: 25.61325 | G17: 3 | H17: 25.61 | J17: MXN | K17: Mexiko
A18: 16 | B18: Dollar | C18: Neuseeland | D18: NZD | E18: 1.7463 | F18: 1.746325 | G18: 2 | H18: 1.74 | J18: NZD | K18: Neuseeland
A19: 17 | B19: Krone | C19: Norwegen | D19: NOK | E19: 10.5995 | F19: 10.59955 | G19: 3 | H19: 10.59 | J19: NOK | K19: Norwegen
A20: 18 | B20: Peso | C20: Philippinen | D20: PHP | E20: 56.511 | F20: 56.51155 | G20: 3 | H20: 56.51 | J20: PHP | K20: Philippinen
A21: 19 | B21: Zloty | C21: Polen | D21: PLN | E21: 4.4827 | F21: 4.482755 | G21: 2 | H21: 4.48 | J21: PLN | K21: Polen
A22: 20 | B22: Rand | C22: Republik Südafrika | D22: ZAR | E22: 19.0496 | F22: 19.04965 | G22: 3 | H22: 19.04 | J22: ZAR | K22: Republik Südafrika
A23: 21 | B23: Lei | C23: Rumänien | D23: RON | E23: 4.8422 | F23: 4.842265 | G23: 2 | H23: 4.84 | J23: RON | K23: Rumänien
A24: 22 | B24: Rubel | C24: Russland | D24: RUB | E24: 81.8409 | F24: 81.84095 | G24: 3 | H24: 81.84 | J24: RUB | K24: Russland
A25: 23 | B25: Krone | C25: Schweden | D25: SEK | E25: 10.333 | F25: 10.33395 | G25: 3 | H25: 10.33 | J25: SEK | K25: Schweden
A26: 24 | B26: Franken | C26: Schweiz | D26: CHF | E26: 1.0753 | F26: 1.075395 | G26: 2 | H26: 1.07 | J26: CHF | K26: Schweiz
A27: 25 | B27: Dollar | C27: Singapur | D27: SGD | E27: 1.5887 | F27: 1.588795 | G27: 2 | H27: 1.58 | J27: SGD | K27: Singapur
A28: 26 | B28: Won | C28: Südkorea | D28: KRW | E28: 1376.55 | F28: 1376.555 | G28: 5 | H28: 1376.55 | J28: KRW | K28: Südkorea
A29: 27 | B29: Baht | C29: Thailand | D29: THB | E29: 36.238 | F29: 36.23855 | G29: 3 | H29: 36.23 | J29: THB | K29: Thailand
A30: 28 | B30: Krone | C30: Tschechische Republik | D30: CZK | E30: 26.682 | F30: 26.68255 | G30: 3 | H30: 26.68 | J30: CZK | K30: Tschechische Republik
A31: 29 | B31: Lira | C31: Türkei | D31: TRY | E31: 7.8413 | F31: 7.841355 | G31: 2 | H31: 7.84 | J31: TRY | K31: Türkei
A32: 30 | B32: Forint | C32: Ungarn | D32: HUF | E32: 353.72 | F32: 353.7255 | G32: 4 | H32: 353.72 | J32: HUF | K32: Ungarn
A33: 31 | B33: Dollar | C33: Vereinigte Staaten von Amerika | D33: USD | E33: 1.1428 | F33: 1.142855 | G33: 2 | H33: 1.14 | J33: USD | K33: Vereinigte Staaten von Amerika
A34: 32 | B34: Afghani | C34: Afghanistan | D34: AFN | E34: 88.0459 | F34: 88.04595 | G34: 3 | H34: 88.04 | J34: AFN | K34: Afghanistan
A35: 33 | B35: Libra | C35: Ägypten | D35: EGP | E35: 18.2154 | F35: 18.21545 | G35: 3 | H35: 18.21 | J35: EGP | K35: Ägypten
A36: 34 | B36: Lek | C36: Albanien | D36: ALL | E36: 124.7759 | F36: 124.7759 | G36: 4 | H36: 124.77 | J36: ALL | K36: Albanien
A37: 35 | B37: Dinar | C37: Algerien | D37: DZD | E37: 146.5469 | F37: 146.5469 | G37: 4 | H37: 146.54 | J37: DZD | K37: Algerien
A38: 36 | B38: Kwanza | C38: Angola | D38: AOA | E38: 647.2866 | F38: 647.2866 | G38: 4 | H38: 647.28 | J38: AOA | K38: Angola
A39: 37 | B39: Peso | C39: Argentinien | D39: ARS | E39: 81.4583 | F39: 81.45836 | G39: 3 | H39: 81.45 | J39: ARS | K39: Argentinien
A40: 38 | B40: Dram | C40: Armenien | D40: AMD | E40: 554.3829 | F40: 554.3829 | G40: 4 | H40: 554.38 | J40: AMD | K40: Armenien
A41: 39 | B41: Florin | C41: Aruba | D41: AWG | E41: 2.0549 | F41: 2.054929 | G41: 2 | H41: 2.05 | J41: AWG | K41: Aruba
A42: 40 | B42: Manat | C42: Aserbaidschan | D42: AZN | E42: 1.8774 | F42: 1.877429 | G42: 2 | H42: 1.87 | J42: AZN | K42: Aserbaidschan
A43: 41 | B43: Birr | C43: Äthiopien | D43: ETB | E43: 40.3413 | F43: 40.34139 | G43: 3 | H43: 40.34 | J43: ETB | K43: Äthiopien
A44: 42 | B44: Dollar | C44: Bahama | D44: BSD | E44: 1.1426 | F44: 1.142639 | G44: 2 | H44: 1.14 | J44: BSD | K44: Bahama
A45: 43 | B45: Dinar | C45: Bahrain | D45: BHD | E45: 0.4306 | F45: 0.430639 | G45: 2 | H45: 0.43 | J45: BHD | K45: Bahrain
A46: 44 | B46: Taka | C46: Bangladesch | D46: BDT | E46: 96.889 | F46: 96.88939 | G46: 3 | H46: 96.88 | J46: BDT | K46: Bangladesch
A47: 45 | B47: Dollar | C47: Barbados | D47: BBD | E47: 2.307 | F47: 2.307939 | G47: 2 | H47: 2.3 | J47: BBD | K47: Barbados
A48: 46 | B48: Rubel | C48: Belarus | D48: BYR | E48: 22375.3232 | F48: 22375.32 | G48: 6 | H48: 22375.32 | J48: BYR | K48: Belarus
A49: 47 | B49: Dollar | C49: Belize | D49: BZD | E49: 2.3031 | F49: 2.303132 | G49: 2 | H49: 2.3 | J49: BZD | K49: Belize
A50: 48 | B50: Dollar | C50: Bermuda | D50: BMD | E50: 1.1416 | F50: 1.141632 | G50: 2 | H50: 1.14 | J50: BMD | K50: Bermuda
A51: 49 | B51: Ngultrum | C51: Bhutan | D51: BTN | E51: 85.9661 | F51: 85.96612 | G51: 3 | H51: 85.96 | J51: BTN | K51: Bhutan
A52: 50 | B52: Boliviano | C52: Bolivien | D52: BOB | E52: 7.8899 | F52: 7.889912 | G52: 2 | H52: 7.88 | J52: BOB | K52: Bolivien
A53: 51 | B53: Marka | C53: Bosnien und Herzegowina | D53: BAM | E53: 1.9612 | F53: 1.961212 | G53: 2 | H53: 1.96 | J53: BAM | K53: Bosnien und Herzegowina
A54: 52 | B54: pula | C54: Botswana | D54: BWP | E54: 13.2094 | F54: 13.20942 | G54: 3 | H54: 13.2 | J54: BWP | K54: Botswana
A55: 53 | B55: Dollar | C55: Brunei | D55: BND | E55: 1.5918 | F55: 1.591842 | G55: 2 | H55: 1.59 | J55: BND | K55: Brunei
A56: 54 | B56: Franc | C56: Burundi | D56: BIF | E56: 2200.1217 | F56: 2200.121 | G56: 5 | H56: 2200.12 | J56: BIF | K56: Burundi
A57: 55 | B57: Peso | C57: Chile | D57: CLP | E57: 901.1658 | F57: 901.1658 | G57: 4 | H57: 901.16 | J57: CLP | K57: Chile
A58: 56 | B58: Colon | C58: Costa Rica | D58: CRC | E58: 664.8999 | F58: 664.8999 | G58: 4 | H58: 664.89 | J58: CRC | K58: Costa Rica
A59: 57 | B59: Won | C59: Demokratische Volksrepublik Korea | D59: KPW | E59: 1027.5097 | F59: 1027.509 | G59: 5 | H59: 1027.5 | J59: KPW | K59: Demokratische Volksrepublik Korea
A60: 58 | B60: Peso | C60: Dominikanische Republik | D60: DOP | E60: 66.6133 | F60: 66.61339 | G60: 3 | H60: 66.61 | J60: DOP | K60: Dominikanische Republik
A61: 59 | B61: Franc | C61: Dschibuti | D61: DJF | E61: 203.4094 | F61: 203.4094 | G61: 4 | H61: 203.4 | J61: DJF | K61: Dschibuti
A62: 60 | B62: Colon | C62: El Salvador | D62: SVC | E62: 9.998 | F62: 9.998094 | G62: 2 | H62: 9.99 | J62: SVC | K62: El Salvador
A63: 61 | B63: Pfund | C63: Falkland | D63: FKP | E63: 0.9087 | F63: 0.908794 | G63: 2 | H63: 0.9 | J63: FKP | K63: Falkland
A64: 62 | B64: Dollar | C64: Fidschi | D64: FJD | E64: 2.4641 | F64: 2.464194 | G64: 2 | H64: 2.46 | J64: FJD | K64: Fidschi
A65: 63 | B65: Franc | C65: Französisch-Polynesien | D65: XPF | E65: 119.4679 | F65: 119.4679 | G65: 4 | H65: 119.46 | J65: XPF | K65: Französisch-Polynesien
A66: 64 | B66: Dalasi | C66: Gambia | D66: GMD | E66: 59.1578 | F66: 59.15789 | G66: 3 | H66: 59.15 | J66: GMD | K66: Gambia
A67: 65 | B67: Lari | C67: Georgien | D67: GEL | E67: 3.5162 | F67: 3.516289 | G67: 2 | H67: 3.51 | J67: GEL | K67: Georgien
A68: 66 | B68: Cedi | C68: Ghana | D68: GHS | E68: 6.5701 | F68: 6.570189 | G68: 2 | H68: 6.57 | J68: GHS | K68: Ghana
A69: 67 | B69: Pfund | C69: Gibraltar | D69: GIP | E69: 0.9087 | F69: 0.908789 | G69: 2 | H69: 0.9 | J69: GIP | K69: Gibraltar
A70: 68 | B70: Gold | C70: Goldpreis | D70: XAU | E70: 0.0006 | F70: 0.000689 | G70: 2 | H70: 0 | J70: XAU | K70: Goldpreis
A71: 69 | B71: Quetzal | C71: Guatemala | D71: GTQ | E71: 8.7954 | F71: 8.795489 | G71: 2 | H71: 8.79 | J71: GTQ | K71: Guatemala
A72: 70 | B72: Franc | C72: Guinea | D72: GNF | E72: 11001.912 | F72: 11001.91 | G72: 6 | H72: 11001.91 | J72: GNF | K72: Guinea
A73: 71 | B73: Dollar | C73: Guyana | D73: GYD | E73: 238.9105 | F73: 238.9105 | G73: 4 | H73: 238.91 | J73: GYD | K73: Guyana
A74: 72 | B74: Gourde | C74: Haiti | D74: HTG | E74: 126.1498 | F74: 126.1498 | G74: 4 | H74: 126.14 | J74: HTG | K74: Haiti
A75: 73 | B75: Lempira | C75: Honduras | D75: HNL | E75: 28.2721 | F75: 28.27218 | G75: 3 | H75: 28.27 | J75: HNL | K75: Honduras
A76: 74 | B76: Dinar | C76: Irak | D76: IQD | E76: 1357.931 | F76: 1357.931 | G76: 5 | H76: 1357.93 | J76: IQD | K76: Irak
A77: 75 | B77: Rial | C77: Iran | D77: IRR | E77: 48066.989 | F77: 48066.98 | G77: 6 | H77: 48066.98 | J77: IRR | K77: Iran
A78: 76 | B78: Krone | C78: Island | D78: ISK | E78: 160.1889 | F78: 160.1889 | G78: 4 | H78: 160.18 | J78: ISK | K78: Island
A79: 77 | B79: Dollar | C79: Jamaika | D79: JMD | E79: 163.9542 | F79: 163.9542 | G79: 4 | H79: 163.95 | J79: JMD | K79: Jamaika
A80: 78 | B80: Rial | C80: Jemen | D80: YER | E80: 285.8557 | F80: 285.8557 | G80: 4 | H80: 285.85 | J80: YER | K80: Jemen
A81: 79 | B81: Dinar | C81: Jordanien | D81: JOD | E81: 0.8094 | F81: 0.809457 | G81: 2 | H81: 0.8 | J81: JOD | K81: Jordanien
A82: 80 | B82: Dollar | C82: Kaimaninseln | D82: KYD | E82: 0.9522 | F82: 0.952257 | G82: 2 | H82: 0.95 | J82: KYD | K82: Kaimaninseln
A83: 81 | B83: Riel | C83: Kambodscha | D83: KHR | E83: 4676.5574 | F83: 4676.557 | G83: 5 | H83: 4676.55 | J83: KHR | K83: Kambodscha
A84: 82 | B84: Escudo | C84: Kap Verde | D84: CVE | E84: 110.566 | F84: 110.5667 | G84: 4 | H84: 110.56 | J84: CVE | K84: Kap Verde
A85: 83 | B85: Tenge | C85: Kasachstan | D85: KZT | E85: 472.3515 | F85: 472.3515 | G85: 4 | H85: 472.35 | J85: KZT | K85: Kasachstan
A86: 84 | B86: Riyal | C86: Katar | D86: QAR | E86: 4.1566 | F86: 4.156615 | G86: 2 | H86: 4.15 | J86: QAR | K86: Katar
A87: 85 | B87: Schilling | C87: Kenia | D87: KES | E87: 122.8365 | F87: 122.8365 | G87: 4 | H87: 122.83 | J87: KES | K87: Kenia
A88: 86 | B88: Som | C88: Kirgisistan | D88: KGS | E88: 88.4121 | F88: 88.41215 | G88: 3 | H88: 88.41 | J88: KGS | K88: Kirgisistan
A89: 87 | B89: Peso | C89: Kolumbien | D89: COP | E89: 4150.8508 | F89: 4150.85 | G89: 5 | H89: 4150.85 | J89: COP | K89: Kolumbien
A90: 88 | B90: Franc | C90: Komoren | D90: KMF | E90: 491.7439 | F90: 491.7439 | G90: 4 | H90: 491.74 | J90: KMF | K90: Komoren
A91: 89 | B91: Franc | C91: Kongo | D91: CDF | E91: 2198.7179 | F91: 2198.717 | G91: 5 | H91: 2198.71 | J91: CDF | K91: Kongo
A92: 90 | B92: Peso | C92: Kuba | D92: CUP | E92: 30.2524 | F92: 30.25247 | G92: 3 | H92: 30.25 | J92: CUP | K92: Kuba
A93: 91 | B93: Peso | C93: Kuba | D93: CUC | E93: 1.1416 | F93: 1.141647 | G93: 2 | H93: 1.14 | J93: CUC | K93: Kuba
A94: 92 | B94: Dinar | C94: Kuwait | D94: KWD | E94: 0.3512 | F94: 0.351247 | G94: 2 | H94: 0.35 | J94: KWD | K94: Kuwait
A95: 93 | B95: Kip | C95: Laos | D95: LAK | E95: 10332.6046 | F95: 10332.6 | G95: 6 | H95: 10332.6 | J95: LAK | K95: Laos
A96: 94 | B96: Loti | C96: Lesotho | D96: LSL | E96: 18.973 | F96: 18.9736 | G96: 3 | H96: 18.97 | J96: LSL | K96: Lesotho
A97: 95 | B97: Pfund | C97: Libanon | D97: LBP | E97: 1727.5581 | F97: 1727.558 | G97: 5 | H97: 1727.55 | J97: LBP | K97: Libanon
A98: 96 | B98: Dollar | C98: Liberia | D98: LRD | E98: 227.5774 | F98: 227.5774 | G98: 4 | H98: 227.57 | J98: LRD | K98: Liberia
A99: 97 | B99: Dinar | C99: Libyen | D99: LYD | E99: 1.5906 | F99: 1.590674 | G99: 2 | H99: 1.59 | J99: LYD | K99: Libyen
A100: 98 | B100: Pataca | C100: Macau | D100: MOP | E100: 9.1266 | F100: 9.126674 | G100: 2 | H100: 9.12 | J100: MOP | K100: Macau
A101: 99 | B101: Ariary | C101: Madagaskar | D101: MGA | E101: 4420.1475 | F101: 4420.147 | G101: 5 | H101: 4420.14 | J101: MGA | K101: Madagaskar
A102: 100 | B102: Kwacha | C102: Malawi | D102: MWK | E102: 842.3138 | F102: 842.3138 | G102: 4 | H102: 842.31 | J102: MWK | K102: Malawi
A103: 101 | B103: Rufiyaa | C103: Malediven | D103: MVR | E103: 17.5828 | F103: 17.58288 | G103: 3 | H103: 17.58 | J103: MVR | K103: Malediven
A104: 102 | B104: Dirham | C104: Marokko | D104: MAD | E104: 10.965 | F104: 10.96588 | G104: 3 | H104: 10.96 | J104: MAD | K104: Marokko
A105: 103 | B105: Ouguiya | C105: Mauretanien | D105: MRO | E105: 407.5507 | F105: 407.5507 | G105: 4 | H105: 407.55 | J105: MRO | K105: Mauretanien
A106: 104 | B106: Rupia | C106: Mauritius | D106: MUR | E106: 45.961 | F106: 45.96107 | G106: 3 | H106: 45.96 | J106: MUR | K106: Mauritius
A107: 105 | B107: Denar | C107: Mazedonien | D107: MKD | E107: 61.8431 | F107: 61.84317 | G107: 3 | H107: 61.84 | J107: MKD | K107: Mazedonien
A108: 106 | B108: Tögrög | C108: Mongolei | D108: MNT | E108: 3244.4479 | F108: 3244.447 | G108: 5 | H108: 3244.44 | J108: MNT | K108: Mongolei
A109: 107 | B109: Metical | C109: Mosambik | D109: MZN | E109: 80.3971 | F109: 80.39717 | G109: 3 | H109: 80.39 | J109: MZN | K109: Mosambik
A110: 108 | B110: Kyat | C110: Myanmar | D110: MMK | E110: 1565.9207 | F110: 1565.92 | G110: 5 | H110: 1565.92 | J110: MMK | K110: Myanmar
A111: 109 | B111: Dollar | C111: Namibia | D111: NAD | E111: 18.9731 | F111: 18.9731 | G111: 3 | H111: 18.97 | J111: NAD | K111: Namibia
A112: 110 | B112: Rupie | C112: Nepal | D112: NPR | E112: 137.5413 | F112: 137.5413 | G112: 4 | H112: 137.54 | J112: NPR | K112: Nepal
A113: 111 | B113: Córdoba Oro | C113: Nicaragua | D113: NIO | E113: 39.7065 | F113: 39.70653 | G113: 3 | H113: 39.7 | J113: NIO | K113: Nicaragua
A114: 112 | B114: Gulden | C114: Niederländische Antillen | D114: ANG | E114: 2.0509 | F114: 2.050953 | G114: 2 | H114: 2.05 | J114: ANG | K114: Niederländische Antillen
A115: 113 | B115: Naira | C115: Nigeria | D115: NGN | E115: 442.3714 | F115: 442.3714 | G115: 4 | H115: 442.37 | J115: NGN | K115: Nigeria
A116: 114 | B116: Rial | C116: Oman | D116: OMR | E116: 0.4395 | F116: 0.439514 | G116: 2 | H116: 0.43 | J116: OMR | K116: Oman
A117: 115 | B117: Dollar | C117: Ostkaribik | D117: XCD | E117: 3.0852 | F117: 3.085214 | G117: 2 | H117: 3.08 | J117: XCD | K117: Ostkaribik
A118: 116 | B118: Rupie | C118: Pakistan | D118: PKR | E118: 191.1572 | F118: 191.1572 | G118: 4 | H118: 191.15 | J118: PKR | K118: Pakistan
A119: 117 | B119: Balboa | C119: Panama | D119: PAB | E119: 1.1426 | F119: 1.142672 | G119: 2 | H119: 1.14 | J119: PAB | K119: Panama
A120: 118 | B120: Kina | C120: Papua-Neuguinea | D120: PGK | E120: 3.9708 | F120: 3.970872 | G120: 2 | H120: 3.97 | J120: PGK | K120: Papua-Neuguinea
A121: 119 | B121: Guaraní | C121: Paraguay | D121: PYG | E121: 7898.2311 | F121: 7898.231 | G121: 5 | H121: 7898.23 | J121: PYG | K121: Paraguay
A122: 120 | B122: Sol | C122: Peru | D122: PEN | E122: 3.9941 | F122: 3.994131 | G122: 2 | H122: 3.99 | J122: PEN | K122: Peru
A123: 121 | B123: Leu | C123: Republik Moldau | D123: MDL | E123: 19.5098 | F123: 19.50981 | G123: 3 | H123: 19.5 | J123: MDL | K123: Republik Moldau
A124: 122 | B124: Franc | C124: Ruanda | D124: RWF | E124: 1093.5394 | F124: 1093.539 | G124: 5 | H124: 1093.53 | J124: RWF | K124: Ruanda
A125: 123 | B125: Dollar | C125: Salomon-Inseln | D125: SBD | E125: 9.5319 | F125: 9.531939 | G125: 2 | H125: 9.53 | J125: SBD | K125: Salomon-Inseln
A126: 124 | B126: Kwacha | C126: Sambia | D126: ZMK | E126: 10275.7546 | F126: 10275.75 | G126: 6 | H126: 10275.75 | J126: ZMK | K126: Sambia
A127: 125 | B127: Tala | C127: Samoa | D127: WST | E127: 3.0348 | F127: 3.034875 | G127: 2 | H127: 3.03 | J127: WST | K127: Samoa
A128: 126 | B128: Dobra | C128: São Tomé und Príncipe | D128: STD | E128: 24995.4816 | F128: 24995.48 | G128: 6 | H128: 24995.48 | J128: STD | K128: São Tomé und Príncipe
A129: 127 | B129: Riyal | C129: Saudi-Arabien | D129: SAR | E129: 4.2816 | F129: 4.281648 | G129: 2 | H129: 4.28 | J129: SAR | K129: Saudi-Arabien
A130: 128 | B130: Dinar | C130: Serbien | D130: RSD | E130: 117.5734 | F130: 117.5734 | G130: 4 | H130: 117.57 | J130: RSD | K130: Serbien
A131: 129 | B131: Rupie | C131: Seychellen | D131: SCR | E131: 20.1429 | F131: 20.14294 | G131: 3 | H131: 20.14 | J131: SCR | K131: Seychellen
A132: 130 | B132: Leone | C132: Sierra Leone | D132: SLL | E132: 11141.9977 | F132: 11141.99 | G132: 6 | H132: 11141.99 | J132: SLL | K132: Sierra Leone
A133: 131 | B133: Silber | C133: Silberpreis | D133: XAG | E133: 0.0598 | F133: 0.059899 | G133: 2 | H133: 0.05 | J133: XAG | K133: Silberpreis
A134: 132 | B134: Schilling | C134: Somalia | D134: SOS | E134: 663.2688 | F134: 663.2688 | G134: 4 | H134: 663.26 | J134: SOS | K134: Somalia
A135: 133 | B135: Rupie | C135: Sri Lanka | D135: LKR | E135: 212.2943 | F135: 212.2943 | G135: 4 | H135: 212.29 | J135: LKR | K135: Sri Lanka
A136: 134 | B136: Pfund | C136: St. Helena | D136: SHP | E136: 0.9087 | F136: 0.908743 | G136: 2 | H136: 0.9 | J136: SHP | K136: St. Helena
A137: 135 | B137: Pfund | C137: Sudan | D137: SDG | E137: 63.1589 | F137: 63.15893 | G137: 3 | H137: 63.15 | J137: SDG | K137: Sudan
A138: 136 | B138: Dollar | C138: Surinam | D138: SRD | E138: 8.514 | F138: 8.514893 | G138: 2 | H138: 8.51 | J138: SRD | K138: Surinam
A139: 137 | B139: Lilangeni | C139: Swasiland | D139: SZL | E139: 19.0601 | F139: 19.06013 | G139: 3 | H139: 19.06 | J139: SZL | K139: Swasiland
A140: 138 | B140: Pfund | C140: Syrien | D140: SYP | E140: 585.8665 | F140: 585.8665 | G140: 4 | H140: 585.86 | J140: SYP | K140: Syrien
A141: 139 | B141: Somoni | C141: Tadschikistan | D141: TJS | E141: 11.7777 | F141: 11.77775 | G141: 3 | H141: 11.77 | J141: TJS | K141: Tadschikistan
A142: 140 | B142: Dollar | C142: Taiwan | D142: TWD | E142: 33.6537 | F142: 33.65375 | G142: 3 | H142: 33.65 | J142: TWD | K142: Taiwan
A143: 141 | B143: Schilling | C143: Tansania | D143: TZS | E143: 2647.3657 | F143: 2647.365 | G143: 5 | H143: 2647.36 | J143: TZS | K143: Tansania
A144: 142 | B144: Paʻanga | C144: Tonga | D144: TOP | E144: 2.6062 | F144: 2.606265 | G144: 2 | H144: 2.6 | J144: TOP | K144: Tonga
A145: 143 | B145: Dollar | C145: Trinidad und Tobago | D145: TTD | E145: 7.7259 | F145: 7.725965 | G145: 2 | H145: 7.72 | J145: TTD | K145: Trinidad und Tobago
A146: 144 | B146: Dinar | C146: Tunesien | D146: TND | E146: 3.2153 | F146: 3.215365 | G146: 2 | H146: 3.21 | J146: TND | K146: Tunesien
A147: 145 | B147: Manat | C147: Turkmenistan | D147: TMT | E147: 3.9956 | F147: 3.995665 | G147: 2 | H147: 3.99 | J147: TMT | K147: Turkmenistan
A148: 146 | B148: Schilling | C148: Uganda | D148: UGX | E148: 4219.6885 | F148: 4219.688 | G148: 5 | H148: 4219.68 | J148: UGX | K148: Uganda
A149: 147 | B149: Hrywnja | C149: Ukraine | D149: UAH | E149: 31.1352 | F149: 31.13528 | G149: 3 | H149: 31.13 | J149: UAH | K149: Ukraine
A150: 148 | B150: Peso | C150: Uruguay | D150: UYU | E150: 50.0874 | F150: 50.08748 | G150: 3 | H150: 50.08 | J150: UYU | K150: Uruguay
A151: 149 | B151: Soʻm | C151: Usbekistan | D151: UZS | E151: 11675.3466 | F151: 11675.34 | G151: 6 | H151: 11675.34 | J151: UZS | K151: Usbekistan
A152: 150 | B152: Vatu | C152: Vanuatu | D152: VUV | E152: 131.9052 | F152: 131.9052 | G152: 4 | H152: 131.9 | J152: VUV | K152: Vanuatu
A153: 151 | B153: Bolívar | C153: Venezuela | D153: VEF | E153: 11.4017 | F153: 11.40172 | G153: 3 | H153: 11.4 | J153: VEF | K153: Venezuela
A154: 152 | B154: Dirham | C154: Vereinigte Arabische Emirate | D154: AED | E154: 4.1931 | F154: 4.193172 | G154: 2 | H154: 4.19 | J154: AED | K154: Vereinigte Arabische Emirate
A155: 153 | B155: Dong | C155: Vietnam | D155: VND | E155: 26475.9437 | F155: 26475.94 | G155: 6 | H155: 26475.94 | J155: VND | K155: Vietnam
A156: 154 | B156: Franc | C156: Westafrikanische Wirtschafts- und Währungsunion | D156: XOF | E156: 657.7276 | F156: 657.7276 | G156: 4 | H156: 657.72 | J156: XOF | K156: Westafrikanische Wirtschafts- und Währungsunion
A157: 155 | B157: Franc | C157: Zentralafrikanische Republik | D157: XAF | E157: 657.7189 | F157: 657.7189 | G157: 4 | H157: 657.71 | J157: XAF | K157: Zentralafrikanische Republik

Sheet installed (hidden)

Sheet Visualizer2 (hidden)
G1: Artikel/Produkt | I1: Bestand/Stock | K1: Info | M1: Laden/Load | N1: Einträge/ Entries | P1: 1 | S1: Seite/ Page | U1: 1 | X1: Sortierung Filter
V2: 5
V3: 10
V4: 20
V5: 30
V6: 50
V7: 100
V8: 200
V9: 500
V10: 1000
V11: 5000
V12: 10000

Sheet Visualizer3 (hidden)
G1: Artikel/Produkt | I1: Bestand/Stock | K1: Info | M1: Laden/Load | N1: Einträge/ Entries | P1: 1 | S1: Seite/ Page | U1: 1 | X1: Sortierung Filter
E2: https://wasbt.com/.cm4all/mediadb/Bildersuche/Businessbilder/194.png | V2: 5
V3: 10
V4: 20
V5: 30
V6: 50
V7: 100
V8: 200
V9: 500
V10: 1000
V11: 5000
V12: 10000

Sheet Visualizer4 (hidden)
G1: Artikel/Produkt | I1: Bestand/Stock | K1: Info | M1: Laden/Load | N1: Einträge/ Entries | P1: 1 | S1: Seite/ Page | U1: 1 | X1: Sortierung Filter
V2: 5
V3: 10
V4: 20
V5: 30
V6: 50
V7: 100
V8: 200
V9: 500
V10: 1000
V11: 5000
V12: 10000

Sheet Visualizer5 (hidden)
G1: Artikel/Produkt | I1: Bestand/Stock | K1: Info | M1: Laden/Load | N1: Einträge/ Entries | P1: 1 | S1: Seite/ Page | U1: 1 | X1: Sortierung Filter
V2: 5
V3: 10
V4: 20
V5: 30
V6: 50
V7: 100
V8: 200
V9: 500
V10: 1000
V11: 5000
V12: 10000

Sheet 2 (hidden)
A1: Picture | B1: Title | C1: Sub Title | D1: Autoren2 | E1: Jahr | F1: Beschreibung1 | G1: Price | H1: Trigger
